{"text_format":"1","workbook":"xlsx","n_sheets":6,"sheets":["Invoer","Overzichtsberekening","Aanwezigheidspercentages","Gegevensvalidatie","Projectgebied","Dropdownmenu"],"not_rendered":{"charts":0,"images":2,"macros":1,"external_links":0,"defined_names":1,"comments":0,"pivot_tables":0},"unopened":[],"bounds":{"document_bytes":16777216,"sheet_cells":100000,"rows_first":2000,"rows_last":500,"rows_between":2000,"halvings":0,"cell_chars":16384,"cell_head_chars":4096},"cells_cut":0,"cells_raw":0,"read":"whole","date_system":"1900"}

{"sheet":"Invoer","index":0,"n_rows":64,"n_cols":16,"rows_kept":64,"cut":false,"hidden":false,"merged":[[63,1,63,3],[63,4,63,5],[49,1,49,5],[50,1,50,5],[51,1,51,5],[52,1,52,7],[57,1,57,3],[57,4,57,5],[58,1,58,3],[58,4,58,5],[59,1,59,3],[60,1,60,3],[61,1,61,3],[32,1,32,7],[48,1,48,5],[37,1,37,5],[38,1,38,5],[39,1,39,5],[40,1,40,5],[41,1,41,5],[42,1,42,5],[43,1,43,5],[44,1,44,5],[45,1,45,5],[46,1,46,5],[47,1,47,5],[27,1,27,5],[28,1,28,5],[29,1,29,5],[30,1,30,5],[31,1,31,5],[22,1,22,5],[23,1,23,5],[24,1,24,5],[25,1,25,5],[26,1,26,5],[21,1,21,5],[17,1,17,5],[18,1,18,5],[19,1,19,5],[20,1,20,5]]}
[null,"Invoerscherm Verkeersgeneratie & Parkeernorm"]
[]
[]
[null,"PROJECTGEGEVENS",null,null,null,null,null,null,null,"Uitgangspunten",null,null,"Stedelijkheidsgraad van Nederlandse gemeenten"]
[null,null,null,null,null,null,null,null,1,"Cijfers van CROW Publicatie 381 (2018)",null,null,"Klasse","Omgevingsadressendichtheid (adressen per km2)"]
[null,"PROJECTNAAM",null,null,null,null,null,null,2,null,null,null,"zeer sterk stedelijk","> 2500"]
[null,"REFERENTIE",null,null,null,null,null,null,3,null,null,null,"sterk stedelijk","1500-2500"]
[null,"PLANLOCATIE",null,null,null,null,null,null,4,null,null,null,"matig stedelijk","1000-1500"]
[null,null,null,null,"Klik hier en plak de kaart",null,null,null,5,null,null,null,"weinig stedelijk","500-1000"]
[null,"DATUM",null,null,null,null,null,null,6,null,null,null,"niet stedelijk","< 500"]
[null,"INGEVULD DOOR",null,null,null,null,null,null,7]
[null,null,null,null,null,null,null,null,8]
[null,null,null,null,null,null,null,null,9]
[null,"DEEL 1: Bestaande situatie"]
[null,"Vul hieronder de gegevens in;"]
[]
[null,null,null,null,null,null,null,null,null,null,null,null,"Rekenhulp"]
[null,"Functie",null,null,null,null,"Stedelijkheidsgraad","Schil","Aantal","Eenheid",null,null,"Functie","Gemeten BVO","Eenheid","In te vullen aantal"]
[null,null,null,null,null,null,null,null,null,{"$f":"IF(B19=\"\",\"\",INDEX(Dropdownmenu!$F$3:$F$117,MATCH(Invoer!B19,Dropdownmenu!$A$3:$A$117,0)))","v":""},null,null,null,null,null,{"$f":"IFERROR(SUM(N19/O19),\"\")","v":""}]
[null,null,null,null,null,null,null,null,null,{"$f":"IF(B20=\"\",\"\",INDEX(Dropdownmenu!$F$3:$F$117,MATCH(Invoer!B20,Dropdownmenu!$A$3:$A$117,0)))","v":""},null,null,null,null,null,{"$f":"IFERROR(SUM(N20/O20),\"\")","v":""}]
[null,null,null,null,null,null,null,null,null,{"$f":"IF(B21=\"\",\"\",INDEX(Dropdownmenu!$F$3:$F$117,MATCH(Invoer!B21,Dropdownmenu!$A$3:$A$117,0)))","v":""},null,null,null,null,null,""]
[null,null,null,null,null,null,null,null,null,{"$f":"IF(B22=\"\",\"\",INDEX(Dropdownmenu!$F$3:$F$117,MATCH(Invoer!B22,Dropdownmenu!$A$3:$A$117,0)))","v":""},null,null,null,null,null,""]
[null,null,null,null,null,null,null,null,null,{"$f":"IF(B23=\"\",\"\",INDEX(Dropdownmenu!$F$3:$F$117,MATCH(Invoer!B23,Dropdownmenu!$A$3:$A$117,0)))","v":""},null,null,null,null,null,""]
[null,null,null,null,null,null,null,null,null,{"$f":"IF(B24=\"\",\"\",INDEX(Dropdownmenu!$F$3:$F$117,MATCH(Invoer!B24,Dropdownmenu!$A$3:$A$117,0)))","v":""},null,null,null,null,null,""]
[null,null,null,null,null,null,null,null,null,{"$f":"IF(B25=\"\",\"\",INDEX(Dropdownmenu!$F$3:$F$117,MATCH(Invoer!B25,Dropdownmenu!$A$3:$A$117,0)))","v":""},null,null,null,null,null,""]
[null,null,null,null,null,null,null,null,null,{"$f":"IF(B26=\"\",\"\",INDEX(Dropdownmenu!$F$3:$F$117,MATCH(Invoer!B26,Dropdownmenu!$A$3:$A$117,0)))","v":""},null,null,null,null,null,""]
[null,null,null,null,null,null,null,null,null,{"$f":"IF(B27=\"\",\"\",INDEX(Dropdownmenu!$F$3:$F$117,MATCH(Invoer!B27,Dropdownmenu!$A$3:$A$117,0)))","v":""},null,null,null,null,null,""]
[null,null,null,null,null,null,null,null,null,{"$f":"IF(B28=\"\",\"\",INDEX(Dropdownmenu!$F$3:$F$117,MATCH(Invoer!B28,Dropdownmenu!$A$3:$A$117,0)))","v":""},null,null,null,null,null,""]
[null,null,null,null,null,null,null,null,null,{"$f":"IF(B29=\"\",\"\",INDEX(Dropdownmenu!$F$3:$F$117,MATCH(Invoer!B29,Dropdownmenu!$A$3:$A$117,0)))","v":""},null,null,null,null,null,""]
[null,null,null,null,null,null,null,null,null,{"$f":"IF(B30=\"\",\"\",INDEX(Dropdownmenu!$F$3:$F$117,MATCH(Invoer!B30,Dropdownmenu!$A$3:$A$117,0)))","v":""},null,null,null,null,null,""]
[null,null,null,null,null,null,null,null,null,{"$f":"IF(B31=\"\",\"\",INDEX(Dropdownmenu!$F$3:$F$117,MATCH(Invoer!B31,Dropdownmenu!$A$3:$A$117,0)))","v":""},null,null,null,null,null,""]
[null,null,null,null,null,null,null,null,null,{"$f":"IF(B32=\"\",\"\",INDEX(Dropdownmenu!$F$3:$F$117,MATCH(Invoer!B32,Dropdownmenu!$A$3:$A$117,0)))","v":""},null,null,null,null,null,""]
[null,"Totaal aantal units",null,null,null,null,null,null,{"$f":"SUM(I19:I32)","v":0}]
[]
[null,"DEEL 2: Nieuwe situatie"]
[null,"Vul hieronder de gegevens in;"]
[]
[null,"FUNCTIE",null,null,null,null,"Stedelijkheidsgraad","Schil","Aantal","Eenheid"]
[null,"Koop, Vrijstaand",null,null,null,null,"Matig","Schilcentrum",20,{"$f":"IF(B39=\"\",\"\",INDEX(Dropdownmenu!$F$3:$F$117,MATCH(Invoer!B39,Dropdownmenu!$A$3:$A$117,0)))","v":"Per woning"}]
[null,"Buurtsupermarkt",null,null,null,null,"Matig","Schilcentrum",10,{"$f":"IF(B40=\"\",\"\",INDEX(Dropdownmenu!$F$3:$F$117,MATCH(Invoer!B40,Dropdownmenu!$A$3:$A$117,0)))","v":"Per 100m2 bvo"}]
[null,null,null,null,null,null,null,null,null,{"$f":"IF(B41=\"\",\"\",INDEX(Dropdownmenu!$F$3:$F$117,MATCH(Invoer!B41,Dropdownmenu!$A$3:$A$117,0)))","v":""}]
[null,null,null,null,null,null,null,null,null,{"$f":"IF(B42=\"\",\"\",INDEX(Dropdownmenu!$F$3:$F$117,MATCH(Invoer!B42,Dropdownmenu!$A$3:$A$117,0)))","v":""}]
[null,null,null,null,null,null,null,null,null,{"$f":"IF(B43=\"\",\"\",INDEX(Dropdownmenu!$F$3:$F$117,MATCH(Invoer!B43,Dropdownmenu!$A$3:$A$117,0)))","v":""}]
[null,null,null,null,null,null,null,null,null,{"$f":"IF(B44=\"\",\"\",INDEX(Dropdownmenu!$F$3:$F$117,MATCH(Invoer!B44,Dropdownmenu!$A$3:$A$117,0)))","v":""}]
[null,null,null,null,null,null,null,null,null,{"$f":"IF(B45=\"\",\"\",INDEX(Dropdownmenu!$F$3:$F$117,MATCH(Invoer!B45,Dropdownmenu!$A$3:$A$117,0)))","v":""}]
[null,null,null,null,null,null,null,null,null,{"$f":"IF(B46=\"\",\"\",INDEX(Dropdownmenu!$F$3:$F$117,MATCH(Invoer!B46,Dropdownmenu!$A$3:$A$117,0)))","v":""}]
[null,null,null,null,null,null,null,null,null,{"$f":"IF(B47=\"\",\"\",INDEX(Dropdownmenu!$F$3:$F$117,MATCH(Invoer!B47,Dropdownmenu!$A$3:$A$117,0)))","v":""}]
[null,null,null,null,null,null,null,null,null,{"$f":"IF(B48=\"\",\"\",INDEX(Dropdownmenu!$F$3:$F$117,MATCH(Invoer!B48,Dropdownmenu!$A$3:$A$117,0)))","v":""}]
[null,null,null,null,null,null,null,null,null,{"$f":"IF(B49=\"\",\"\",INDEX(Dropdownmenu!$F$3:$F$117,MATCH(Invoer!B49,Dropdownmenu!$A$3:$A$117,0)))","v":""}]
[null,null,null,null,null,null,null,null,null,{"$f":"IF(B50=\"\",\"\",INDEX(Dropdownmenu!$F$3:$F$117,MATCH(Invoer!B50,Dropdownmenu!$A$3:$A$117,0)))","v":""}]
[null,null,null,null,null,null,null,null,null,{"$f":"IF(B51=\"\",\"\",INDEX(Dropdownmenu!$F$3:$F$117,MATCH(Invoer!B51,Dropdownmenu!$A$3:$A$117,0)))","v":""}]
[null,null,null,null,null,null,null,null,null,{"$f":"IF(B52=\"\",\"\",INDEX(Dropdownmenu!$F$3:$F$117,MATCH(Invoer!B52,Dropdownmenu!$A$3:$A$117,0)))","v":""}]
[null,"Totaal aantal units nieuwe situatie",null,null,null,null,null,null,{"$f":"SUM(I39:I52)","v":30}]
[]
[null,"DEEL 3: Factor gegevens"]
[null,"Vul hieronder de gegevens in;"]
[]
[null,"Aandeel spits etmaal intensiteit",null,null,0.1]
[null,"Omrekenfactor week-werkdag",null,null,1.1100000000000001]
[null,null,null,null,"In","Uit"]
[null,"Aandeel ochtendspits",null,null,0.25,0.75]
[null,"Aandeel avondspits",null,null,0.7,0.3]
[]
[null,"Afronden op meervoud van",null,null,5]

{"sheet":"Overzichtsberekening","index":1,"n_rows":56,"n_cols":33,"rows_kept":56,"cut":false,"hidden":false,"merged":[[49,7,49,10],[50,7,50,8],[50,9,50,10],[25,27,25,28],[25,29,25,30],[25,31,25,32],[42,7,42,8],[42,9,42,10],[25,13,25,14],[25,16,25,17],[25,18,25,19],[25,21,25,22],[25,23,25,24],[25,25,25,26],[25,11,25,12],[24,11,24,14],[24,16,24,19],[24,21,24,24],[24,25,24,28],[24,29,24,32],[8,29,8,32],[9,11,9,12],[9,13,9,14],[9,16,9,17],[9,18,9,19],[9,21,9,22],[9,23,9,24],[9,25,9,26],[9,27,9,28],[9,29,9,30],[9,31,9,32],[7,4,7,5],[8,11,8,14],[8,16,8,19],[8,21,8,24],[8,25,8,28],[2,4,2,5],[3,4,3,5],[4,4,4,5],[5,4,5,5],[6,4,6,5]]}
[]
[]
[null,null,{"$f":"Invoer!B6","v":"PROJECTNAAM"},null,{"$f":"Invoer!E6","v":0}]
[null,null,{"$f":"Invoer!B7","v":"REFERENTIE"},null,{"$f":"Invoer!E7","v":0}]
[null,null,{"$f":"Invoer!B8","v":"PLANLOCATIE"},null,{"$f":"Invoer!E8","v":0}]
[]
[null,null,{"$f":"Invoer!B10","v":"DATUM"},null,{"$f":"Invoer!E10","v":"00:00:00"}]
[null,null,{"$f":"Invoer!B11","v":"INGEVULD DOOR"},null,{"$f":"Invoer!E11","v":0}]
[null,null,null,null,null,null,"Oude situatie",null,null,null,null,"Kencijfers",null,null,null,null,"Resultaat",null,null,null,null,"Werkdag",null,null,null,"Ochtendspits",null,null,null,"Avondspits"]
[null,null,null,null,null,null,null,null,null,null,null,"Verkeersgeneratie",null,"Parkeernorm",null,null,"Verkeersgeneratie",null,"Parkeernorm",null,null,"Etmaalintensiteit",null,"Drukste Spitsuur",null,"Wijk in",null,"Wijk uit",null,"Wijk in",null,"Wijk uit"]
[null,null,"Uitgangspunten",null,null,null,"Functie","Stedelijkheid","Schil","Aantal",null,"Min","Max","Min","Max",null,"Min","Max","Min","Max",null,"Min","Max","Min","Max","Min","Max","Min","Max","Min","Max","Min","Max"]
[null,null,{"$f":"_xlfn.CONCAT(Invoer!I5,\" \",Invoer!J5)","v":"1 Cijfers van CROW Publicatie 381 (2018)"},null,null,null,{"$f":"IF(Invoer!B19=\"\",\"\",Invoer!B19)","v":""},{"$f":"IF(Invoer!G19=\"\",\"\",Invoer!G19)","v":""},{"$f":"IF(Invoer!H19=\"\",\"\",Invoer!H19)","v":""},{"$f":"IF(Invoer!I19=\"\",\"\",Invoer!I19)","v":""},null,{"$f":"IFERROR(Verkeersgeneratiemin(J12),\"\")","v":""},{"$f":"IFERROR(Verkeersgeneratiemax(J12),\"\")","v":""},{"$f":"IFERROR(parkeernormmin(J12),\"\")","v":""},{"$f":"IFERROR(Parkeernormmax(J12),\"\")","v":""},null,{"$f":"IF(G12=\"\",\"\",L12*$J12)","v":""},{"$f":"IF(H12=\"\",\"\",M12*$J12)","v":""},{"$f":"IF(I12=\"\",\"\",N12*$J12)","v":""},{"$f":"IF(J12=\"\",\"\",O12*$J12)","v":""},null,{"$f":"IF($G12=\"\",\"\",MROUND(L12*$J12*Invoer!$E$59,Invoer!$E$64))","v":""},{"$f":"IF($G12=\"\",\"\",MROUND(M12*$J12*Invoer!$E$59,Invoer!$E$64))","v":""},{"$f":"IF($G12=\"\",\"\",V12*Invoer!$E$58)","v":""},{"$f":"IF($G12=\"\",\"\",W12*Invoer!$E$58)","v":""},{"$f":"IF($G12=\"\",\"\",Invoer!$E$61*X12)","v":""},{"$f":"IF($G12=\"\",\"\",Invoer!$E$61*Y12)","v":""},{"$f":"IF($G12=\"\",\"\",Invoer!$F$61*X12)","v":""},{"$f":"IF($G12=\"\",\"\",Invoer!$F$61*Y12)","v":""},{"$f":"IF($G12=\"\",\"\",Invoer!$E$62*X12)","v":""},{"$f":"IF($G12=\"\",\"\",Invoer!$E$62*Y12)","v":""},{"$f":"IF($G12=\"\",\"\",Invoer!$F$62*X12)","v":""},{"$f":"IF($G12=\"\",\"\",Invoer!$F$62*Y12)","v":""}]
[null,null,{"$f":"_xlfn.CONCAT(Invoer!I6,\" \",Invoer!J6)","v":"2 "},null,null,null,{"$f":"IF(Invoer!B20=\"\",\"\",Invoer!B20)","v":""},{"$f":"IF(Invoer!G20=\"\",\"\",Invoer!G20)","v":""},{"$f":"IF(Invoer!H20=\"\",\"\",Invoer!H20)","v":""},{"$f":"IF(Invoer!I20=\"\",\"\",Invoer!I20)","v":""},null,{"$f":"IFERROR(Verkeersgeneratiemin(J13),\"\")","v":""},{"$f":"IFERROR(Verkeersgeneratiemax(J13),\"\")","v":""},{"$f":"IFERROR(parkeernormmin(J13),\"\")","v":""},{"$f":"IFERROR(Parkeernormmax(J13),\"\")","v":""},null,{"$f":"IF(G13=\"\",\"\",L13*$J13)","v":""},"","","",null,{"$f":"IF($G13=\"\",\"\",MROUND(L13*$J13*Invoer!$E$59,Invoer!$E$64))","v":""},{"$f":"IF($G13=\"\",\"\",MROUND(M13*$J13*Invoer!$E$59,Invoer!$E$64))","v":""},{"$f":"IF($G13=\"\",\"\",V13*Invoer!$E$58)","v":""},{"$f":"IF($G13=\"\",\"\",W13*Invoer!$E$58)","v":""},{"$f":"IF($G13=\"\",\"\",Invoer!$E$61*X13)","v":""},{"$f":"IF($G13=\"\",\"\",Invoer!$E$61*Y13)","v":""},{"$f":"IF($G13=\"\",\"\",Invoer!$F$61*X13)","v":""},{"$f":"IF($G13=\"\",\"\",Invoer!$F$61*Y13)","v":""},{"$f":"IF($G13=\"\",\"\",Invoer!$E$62*X13)","v":""},{"$f":"IF($G13=\"\",\"\",Invoer!$E$62*Y13)","v":""},{"$f":"IF($G13=\"\",\"\",Invoer!$F$62*X13)","v":""},{"$f":"IF($G13=\"\",\"\",Invoer!$F$62*Y13)","v":""}]
[null,null,{"$f":"_xlfn.CONCAT(Invoer!I7,\" \",Invoer!J7)","v":"3 "},null,null,null,{"$f":"IF(Invoer!B21=\"\",\"\",Invoer!B21)","v":""},{"$f":"IF(Invoer!G21=\"\",\"\",Invoer!G21)","v":""},{"$f":"IF(Invoer!H21=\"\",\"\",Invoer!H21)","v":""},{"$f":"IF(Invoer!I21=\"\",\"\",Invoer!I21)","v":""},null,{"$f":"IFERROR(Verkeersgeneratiemin(J14),\"\")","v":""},{"$f":"IFERROR(Verkeersgeneratiemax(J14),\"\")","v":""},{"$f":"IFERROR(parkeernormmin(J14),\"\")","v":""},{"$f":"IFERROR(Parkeernormmax(J14),\"\")","v":""},null,"","","","",null,{"$f":"IF($G14=\"\",\"\",MROUND(L14*$J14*Invoer!$E$59,Invoer!$E$64))","v":""},{"$f":"IF($G14=\"\",\"\",MROUND(M14*$J14*Invoer!$E$59,Invoer!$E$64))","v":""},{"$f":"IF($G14=\"\",\"\",V14*Invoer!$E$58)","v":""},{"$f":"IF($G14=\"\",\"\",W14*Invoer!$E$58)","v":""},{"$f":"IF($G14=\"\",\"\",Invoer!$E$61*X14)","v":""},{"$f":"IF($G14=\"\",\"\",Invoer!$E$61*Y14)","v":""},{"$f":"IF($G14=\"\",\"\",Invoer!$F$61*X14)","v":""},{"$f":"IF($G14=\"\",\"\",Invoer!$F$61*Y14)","v":""},{"$f":"IF($G14=\"\",\"\",Invoer!$E$62*X14)","v":""},{"$f":"IF($G14=\"\",\"\",Invoer!$E$62*Y14)","v":""},{"$f":"IF($G14=\"\",\"\",Invoer!$F$62*X14)","v":""},{"$f":"IF($G14=\"\",\"\",Invoer!$F$62*Y14)","v":""}]
[null,null,{"$f":"_xlfn.CONCAT(Invoer!I8,\" \",Invoer!J8)","v":"4 "},null,null,null,{"$f":"IF(Invoer!B22=\"\",\"\",Invoer!B22)","v":""},{"$f":"IF(Invoer!G22=\"\",\"\",Invoer!G22)","v":""},{"$f":"IF(Invoer!H22=\"\",\"\",Invoer!H22)","v":""},{"$f":"IF(Invoer!I22=\"\",\"\",Invoer!I22)","v":""},null,{"$f":"IFERROR(Verkeersgeneratiemin(J15),\"\")","v":""},{"$f":"IFERROR(Verkeersgeneratiemax(J15),\"\")","v":""},{"$f":"IFERROR(parkeernormmin(J15),\"\")","v":""},{"$f":"IFERROR(Parkeernormmax(J15),\"\")","v":""},null,"","","","",null,{"$f":"IF($G15=\"\",\"\",MROUND(L15*$J15*Invoer!$E$59,Invoer!$E$64))","v":""},{"$f":"IF($G15=\"\",\"\",MROUND(M15*$J15*Invoer!$E$59,Invoer!$E$64))","v":""},{"$f":"IF($G15=\"\",\"\",V15*Invoer!$E$58)","v":""},{"$f":"IF($G15=\"\",\"\",W15*Invoer!$E$58)","v":""},{"$f":"IF($G15=\"\",\"\",Invoer!$E$61*X15)","v":""},{"$f":"IF($G15=\"\",\"\",Invoer!$E$61*Y15)","v":""},{"$f":"IF($G15=\"\",\"\",Invoer!$F$61*X15)","v":""},{"$f":"IF($G15=\"\",\"\",Invoer!$F$61*Y15)","v":""},{"$f":"IF($G15=\"\",\"\",Invoer!$E$62*X15)","v":""},{"$f":"IF($G15=\"\",\"\",Invoer!$E$62*Y15)","v":""},{"$f":"IF($G15=\"\",\"\",Invoer!$F$62*X15)","v":""},{"$f":"IF($G15=\"\",\"\",Invoer!$F$62*Y15)","v":""}]
[null,null,{"$f":"_xlfn.CONCAT(Invoer!I9,\" \",Invoer!J9)","v":"5 "},null,null,null,{"$f":"IF(Invoer!B23=\"\",\"\",Invoer!B23)","v":""},{"$f":"IF(Invoer!G23=\"\",\"\",Invoer!G23)","v":""},{"$f":"IF(Invoer!H23=\"\",\"\",Invoer!H23)","v":""},{"$f":"IF(Invoer!I23=\"\",\"\",Invoer!I23)","v":""},null,{"$f":"IFERROR(Verkeersgeneratiemin(J16),\"\")","v":""},{"$f":"IFERROR(Verkeersgeneratiemax(J16),\"\")","v":""},{"$f":"IFERROR(parkeernormmin(J16),\"\")","v":""},{"$f":"IFERROR(Parkeernormmax(J16),\"\")","v":""},null,"","","","",null,{"$f":"IF($G16=\"\",\"\",MROUND(L16*$J16*Invoer!$E$59,Invoer!$E$64))","v":""},{"$f":"IF($G16=\"\",\"\",MROUND(M16*$J16*Invoer!$E$59,Invoer!$E$64))","v":""},{"$f":"IF($G16=\"\",\"\",V16*Invoer!$E$58)","v":""},{"$f":"IF($G16=\"\",\"\",W16*Invoer!$E$58)","v":""},{"$f":"IF($G16=\"\",\"\",Invoer!$E$61*X16)","v":""},{"$f":"IF($G16=\"\",\"\",Invoer!$E$61*Y16)","v":""},{"$f":"IF($G16=\"\",\"\",Invoer!$F$61*X16)","v":""},{"$f":"IF($G16=\"\",\"\",Invoer!$F$61*Y16)","v":""},{"$f":"IF($G16=\"\",\"\",Invoer!$E$62*X16)","v":""},{"$f":"IF($G16=\"\",\"\",Invoer!$E$62*Y16)","v":""},{"$f":"IF($G16=\"\",\"\",Invoer!$F$62*X16)","v":""},{"$f":"IF($G16=\"\",\"\",Invoer!$F$62*Y16)","v":""}]
[null,null,{"$f":"_xlfn.CONCAT(Invoer!I10,\" \",Invoer!J10)","v":"6 "},null,null,null,{"$f":"IF(Invoer!B24=\"\",\"\",Invoer!B24)","v":""},{"$f":"IF(Invoer!G24=\"\",\"\",Invoer!G24)","v":""},{"$f":"IF(Invoer!H24=\"\",\"\",Invoer!H24)","v":""},{"$f":"IF(Invoer!I24=\"\",\"\",Invoer!I24)","v":""},null,{"$f":"IFERROR(Verkeersgeneratiemin(J17),\"\")","v":""},{"$f":"IFERROR(Verkeersgeneratiemax(J17),\"\")","v":""},{"$f":"IFERROR(parkeernormmin(J17),\"\")","v":""},{"$f":"IFERROR(Parkeernormmax(J17),\"\")","v":""},null,"","","","",null,{"$f":"IF($G17=\"\",\"\",MROUND(L17*$J17*Invoer!$E$59,Invoer!$E$64))","v":""},{"$f":"IF($G17=\"\",\"\",MROUND(M17*$J17*Invoer!$E$59,Invoer!$E$64))","v":""},{"$f":"IF($G17=\"\",\"\",V17*Invoer!$E$58)","v":""},{"$f":"IF($G17=\"\",\"\",W17*Invoer!$E$58)","v":""},{"$f":"IF($G17=\"\",\"\",Invoer!$E$61*X17)","v":""},{"$f":"IF($G17=\"\",\"\",Invoer!$E$61*Y17)","v":""},{"$f":"IF($G17=\"\",\"\",Invoer!$F$61*X17)","v":""},{"$f":"IF($G17=\"\",\"\",Invoer!$F$61*Y17)","v":""},{"$f":"IF($G17=\"\",\"\",Invoer!$E$62*X17)","v":""},{"$f":"IF($G17=\"\",\"\",Invoer!$E$62*Y17)","v":""},{"$f":"IF($G17=\"\",\"\",Invoer!$F$62*X17)","v":""},{"$f":"IF($G17=\"\",\"\",Invoer!$F$62*Y17)","v":""}]
[null,null,{"$f":"_xlfn.CONCAT(Invoer!I11,\" \",Invoer!J11)","v":"7 "},null,null,null,{"$f":"IF(Invoer!B25=\"\",\"\",Invoer!B25)","v":""},{"$f":"IF(Invoer!G25=\"\",\"\",Invoer!G25)","v":""},{"$f":"IF(Invoer!H25=\"\",\"\",Invoer!H25)","v":""},{"$f":"IF(Invoer!I25=\"\",\"\",Invoer!I25)","v":""},null,{"$f":"IFERROR(Verkeersgeneratiemin(J18),\"\")","v":""},{"$f":"IFERROR(Verkeersgeneratiemax(J18),\"\")","v":""},{"$f":"IFERROR(parkeernormmin(J18),\"\")","v":""},{"$f":"IFERROR(Parkeernormmax(J18),\"\")","v":""},null,"","","","",null,{"$f":"IF($G18=\"\",\"\",MROUND(L18*$J18*Invoer!$E$59,Invoer!$E$64))","v":""},{"$f":"IF($G18=\"\",\"\",MROUND(M18*$J18*Invoer!$E$59,Invoer!$E$64))","v":""},{"$f":"IF($G18=\"\",\"\",V18*Invoer!$E$58)","v":""},{"$f":"IF($G18=\"\",\"\",W18*Invoer!$E$58)","v":""},{"$f":"IF($G18=\"\",\"\",Invoer!$E$61*X18)","v":""},{"$f":"IF($G18=\"\",\"\",Invoer!$E$61*Y18)","v":""},{"$f":"IF($G18=\"\",\"\",Invoer!$F$61*X18)","v":""},{"$f":"IF($G18=\"\",\"\",Invoer!$F$61*Y18)","v":""},{"$f":"IF($G18=\"\",\"\",Invoer!$E$62*X18)","v":""},{"$f":"IF($G18=\"\",\"\",Invoer!$E$62*Y18)","v":""},{"$f":"IF($G18=\"\",\"\",Invoer!$F$62*X18)","v":""},{"$f":"IF($G18=\"\",\"\",Invoer!$F$62*Y18)","v":""}]
[null,null,{"$f":"_xlfn.CONCAT(Invoer!I12,\" \",Invoer!J12)","v":"8 "},null,null,null,{"$f":"IF(Invoer!B26=\"\",\"\",Invoer!B26)","v":""},{"$f":"IF(Invoer!G26=\"\",\"\",Invoer!G26)","v":""},{"$f":"IF(Invoer!H26=\"\",\"\",Invoer!H26)","v":""},{"$f":"IF(Invoer!I26=\"\",\"\",Invoer!I26)","v":""},null,{"$f":"IFERROR(Verkeersgeneratiemin(J19),\"\")","v":""},{"$f":"IFERROR(Verkeersgeneratiemax(J19),\"\")","v":""},{"$f":"IFERROR(parkeernormmin(J19),\"\")","v":""},{"$f":"IFERROR(Parkeernormmax(J19),\"\")","v":""},null,"","","","",null,{"$f":"IF($G19=\"\",\"\",MROUND(L19*$J19*Invoer!$E$59,Invoer!$E$64))","v":""},{"$f":"IF($G19=\"\",\"\",MROUND(M19*$J19*Invoer!$E$59,Invoer!$E$64))","v":""},{"$f":"IF($G19=\"\",\"\",V19*Invoer!$E$58)","v":""},{"$f":"IF($G19=\"\",\"\",W19*Invoer!$E$58)","v":""},{"$f":"IF($G19=\"\",\"\",Invoer!$E$61*X19)","v":""},{"$f":"IF($G19=\"\",\"\",Invoer!$E$61*Y19)","v":""},{"$f":"IF($G19=\"\",\"\",Invoer!$F$61*X19)","v":""},{"$f":"IF($G19=\"\",\"\",Invoer!$F$61*Y19)","v":""},{"$f":"IF($G19=\"\",\"\",Invoer!$E$62*X19)","v":""},{"$f":"IF($G19=\"\",\"\",Invoer!$E$62*Y19)","v":""},{"$f":"IF($G19=\"\",\"\",Invoer!$F$62*X19)","v":""},{"$f":"IF($G19=\"\",\"\",Invoer!$F$62*Y19)","v":""}]
[null,null,{"$f":"_xlfn.CONCAT(Invoer!I13,\" \",Invoer!J13)","v":"9 "},null,null,null,{"$f":"IF(Invoer!B27=\"\",\"\",Invoer!B27)","v":""},{"$f":"IF(Invoer!G27=\"\",\"\",Invoer!G27)","v":""},{"$f":"IF(Invoer!H27=\"\",\"\",Invoer!H27)","v":""},{"$f":"IF(Invoer!I27=\"\",\"\",Invoer!I27)","v":""},null,{"$f":"IFERROR(Verkeersgeneratiemin(J20),\"\")","v":""},{"$f":"IFERROR(Verkeersgeneratiemax(J20),\"\")","v":""},{"$f":"IFERROR(parkeernormmin(J20),\"\")","v":""},{"$f":"IFERROR(Parkeernormmax(J20),\"\")","v":""},null,"","","","",null,{"$f":"IF($G20=\"\",\"\",MROUND(L20*$J20*Invoer!$E$59,Invoer!$E$64))","v":""},{"$f":"IF($G20=\"\",\"\",MROUND(M20*$J20*Invoer!$E$59,Invoer!$E$64))","v":""},{"$f":"IF($G20=\"\",\"\",V20*Invoer!$E$58)","v":""},{"$f":"IF($G20=\"\",\"\",W20*Invoer!$E$58)","v":""},{"$f":"IF($G20=\"\",\"\",Invoer!$E$61*X20)","v":""},{"$f":"IF($G20=\"\",\"\",Invoer!$E$61*Y20)","v":""},{"$f":"IF($G20=\"\",\"\",Invoer!$F$61*X20)","v":""},{"$f":"IF($G20=\"\",\"\",Invoer!$F$61*Y20)","v":""},{"$f":"IF($G20=\"\",\"\",Invoer!$E$62*X20)","v":""},{"$f":"IF($G20=\"\",\"\",Invoer!$E$62*Y20)","v":""},{"$f":"IF($G20=\"\",\"\",Invoer!$F$62*X20)","v":""},{"$f":"IF($G20=\"\",\"\",Invoer!$F$62*Y20)","v":""}]
[null,null,null,null,null,null,{"$f":"IF(Invoer!B28=\"\",\"\",Invoer!B28)","v":""},{"$f":"IF(Invoer!G28=\"\",\"\",Invoer!G28)","v":""},{"$f":"IF(Invoer!H28=\"\",\"\",Invoer!H28)","v":""},{"$f":"IF(Invoer!I28=\"\",\"\",Invoer!I28)","v":""},null,{"$f":"IFERROR(Verkeersgeneratiemin(J21),\"\")","v":""},{"$f":"IFERROR(Verkeersgeneratiemax(J21),\"\")","v":""},{"$f":"IFERROR(parkeernormmin(J21),\"\")","v":""},{"$f":"IFERROR(Parkeernormmax(J21),\"\")","v":""},null,"","","","",null,{"$f":"IF($G21=\"\",\"\",MROUND(L21*$J21*Invoer!$E$59,Invoer!$E$64))","v":""},{"$f":"IF($G21=\"\",\"\",MROUND(M21*$J21*Invoer!$E$59,Invoer!$E$64))","v":""},{"$f":"IF($G21=\"\",\"\",V21*Invoer!$E$58)","v":""},{"$f":"IF($G21=\"\",\"\",W21*Invoer!$E$58)","v":""},{"$f":"IF($G21=\"\",\"\",Invoer!$E$61*X21)","v":""},{"$f":"IF($G21=\"\",\"\",Invoer!$E$61*Y21)","v":""},{"$f":"IF($G21=\"\",\"\",Invoer!$F$61*X21)","v":""},{"$f":"IF($G21=\"\",\"\",Invoer!$F$61*Y21)","v":""},{"$f":"IF($G21=\"\",\"\",Invoer!$E$62*X21)","v":""},{"$f":"IF($G21=\"\",\"\",Invoer!$E$62*Y21)","v":""},{"$f":"IF($G21=\"\",\"\",Invoer!$F$62*X21)","v":""},{"$f":"IF($G21=\"\",\"\",Invoer!$F$62*Y21)","v":""}]
[null,null,null,null,null,null,{"$f":"IF(Invoer!B29=\"\",\"\",Invoer!B29)","v":""},{"$f":"IF(Invoer!G29=\"\",\"\",Invoer!G29)","v":""},{"$f":"IF(Invoer!H29=\"\",\"\",Invoer!H29)","v":""},{"$f":"IF(Invoer!I29=\"\",\"\",Invoer!I29)","v":""},null,{"$f":"IFERROR(Verkeersgeneratiemin(J22),\"\")","v":""},{"$f":"IFERROR(Verkeersgeneratiemax(J22),\"\")","v":""},{"$f":"IFERROR(parkeernormmin(J22),\"\")","v":""},{"$f":"IFERROR(Parkeernormmax(J22),\"\")","v":""},null,"","","","",null,{"$f":"IF($G22=\"\",\"\",MROUND(L22*$J22*Invoer!$E$59,Invoer!$E$64))","v":""},{"$f":"IF($G22=\"\",\"\",MROUND(M22*$J22*Invoer!$E$59,Invoer!$E$64))","v":""},{"$f":"IF($G22=\"\",\"\",V22*Invoer!$E$58)","v":""},{"$f":"IF($G22=\"\",\"\",W22*Invoer!$E$58)","v":""},{"$f":"IF($G22=\"\",\"\",Invoer!$E$61*X22)","v":""},{"$f":"IF($G22=\"\",\"\",Invoer!$E$61*Y22)","v":""},{"$f":"IF($G22=\"\",\"\",Invoer!$F$61*X22)","v":""},{"$f":"IF($G22=\"\",\"\",Invoer!$F$61*Y22)","v":""},{"$f":"IF($G22=\"\",\"\",Invoer!$E$62*X22)","v":""},{"$f":"IF($G22=\"\",\"\",Invoer!$E$62*Y22)","v":""},{"$f":"IF($G22=\"\",\"\",Invoer!$F$62*X22)","v":""},{"$f":"IF($G22=\"\",\"\",Invoer!$F$62*Y22)","v":""}]
[null,null,"Factor gegevens",null,null,null,null,null,null,null,"Gemiddeld",{"$f":"IFERROR(SUMPRODUCT(J12:J22,L12:L22)/SUM(J12:J22),\"\")","v":""},{"$f":"IFERROR(SUMPRODUCT($J$12:$J$22,M12:M22)/SUM($J$12:$J$22),\"\")","v":""},{"$f":"IFERROR(SUMPRODUCT($J$12:$J$22,N12:N22)/SUM($J$12:$J$22),\"\")","v":""},{"$f":"IFERROR(SUMPRODUCT($J$12:$J$22,O12:O22)/SUM($J$12:$J$22),\"\")","v":""},"Totaal",{"$f":"SUM(Q12:Q22)","v":0},{"$f":"SUM(R12:R22)","v":0},0,0,"Totaal",{"$f":"SUM(V12:V22)","v":0},{"$f":"SUM(W12:W22)","v":0},0,0,0,0,0,0,0,0,0,0]
[null,null,"Aandeel spits etmaal intensiteit",{"$f":"Invoer!E58","v":0.1}]
[null,null,"Omrekenfactor week-werkdag",{"$f":"Invoer!E59","v":1.1100000000000001},null,null,"Nieuwe situatie",null,null,null,null,"Kencijfers",null,null,null,null,"Resultaat",null,null,null,null,"Werkdag",null,null,null,"Ochtendspits",null,null,null,"Avondspits"]
[null,null,null,"In","Uit",null,null,null,null,null,null,"Verkeersgeneratie",null,"Parkeernorm",null,null,"Verkeersgeneratie",null,"Parkeernorm",null,null,"Etmaalintensiteit",null,"Drukste Spitsuur",null,"Wijk in",null,"Wijk uit",null,"Wijk in",null,"Wijk uit"]
[null,null,"Aandeel ochtendspits",{"$f":"Invoer!E61","v":0.25},{"$f":"Invoer!F61","v":0.75},null,"Functie","Stedelijkheid","Schil","Aantal",null,"Min","Max","Min","Max",null,"Min","Max","Min","Max",null,"Min","Max","Min","Max","Min","Max","Min","Max","Min","Max","Min","Max"]
[null,null,"Aandeel avondspits",{"$f":"Invoer!E62","v":0.7},{"$f":"Invoer!F62","v":0.3},null,{"$f":"IF(Invoer!B39=\"\",\"\",Invoer!B39)","v":"Koop, Vrijstaand"},{"$f":"IF(Invoer!G39=\"\",\"\",Invoer!G39)","v":"Matig"},{"$f":"IF(Invoer!H39=\"\",\"\",Invoer!H39)","v":"Schilcentrum"},{"$f":"IF(Invoer!I39=\"\",\"\",Invoer!I39)","v":20},null,{"$f":"IFERROR(Verkeersgeneratiemin(J28),\"\")","v":7.6},{"$f":"IFERROR(Verkeersgeneratiemax(J28),\"\")","v":8.4},{"$f":"IFERROR(parkeernormmin(J28),\"\")","v":1.5},{"$f":"IFERROR(Parkeernormmax(J28),\"\")","v":2.2999999999999998},null,{"$f":"IF(G28=\"\",\"\",L28*$J28)","v":152},{"$f":"IF(H28=\"\",\"\",M28*$J28)","v":168},{"$f":"IF(I28=\"\",\"\",N28*$J28)","v":30},46,null,{"$f":"IF($G28=\"\",\"\",MROUND(L28*$J28*Invoer!$E$59,Invoer!$E$64))","v":170},{"$f":"IF($G28=\"\",\"\",MROUND(M28*$J28*Invoer!$E$59,Invoer!$E$64))","v":185},{"$f":"IF($G28=\"\",\"\",V28*Invoer!$E$58)","v":17},{"$f":"IF($G28=\"\",\"\",W28*Invoer!$E$58)","v":18.5},{"$f":"IF($G28=\"\",\"\",Invoer!$E$61*X28)","v":4.25},{"$f":"IF($G28=\"\",\"\",Invoer!$E$61*Y28)","v":4.625},{"$f":"IF($G28=\"\",\"\",Invoer!$F$61*X28)","v":12.75},{"$f":"IF($G28=\"\",\"\",Invoer!$F$61*Y28)","v":13.875},{"$f":"IF($G28=\"\",\"\",Invoer!$E$62*X28)","v":11.899999999999999},{"$f":"IF($G28=\"\",\"\",Invoer!$E$62*Y28)","v":12.95},{"$f":"IF($G28=\"\",\"\",Invoer!$F$62*X28)","v":5.0999999999999996},{"$f":"IF($G28=\"\",\"\",Invoer!$F$62*Y28)","v":5.55}]
[null,null,null,null,null,null,{"$f":"IF(Invoer!B40=\"\",\"\",Invoer!B40)","v":"Buurtsupermarkt"},{"$f":"IF(Invoer!G40=\"\",\"\",Invoer!G40)","v":"Matig"},{"$f":"IF(Invoer!H40=\"\",\"\",Invoer!H40)","v":"Schilcentrum"},{"$f":"IF(Invoer!I40=\"\",\"\",Invoer!I40)","v":10},null,{"$f":"IFERROR(Verkeersgeneratiemin(J29),\"\")","v":43.7},{"$f":"IFERROR(Verkeersgeneratiemax(J29),\"\")","v":95.5},{"$f":"IFERROR(parkeernormmin(J29),\"\")","v":1.7},{"$f":"IFERROR(Parkeernormmax(J29),\"\")","v":3.7},null,{"$f":"IF(G29=\"\",\"\",L29*$J29)","v":437},955,17,37,null,{"$f":"IF($G29=\"\",\"\",MROUND(L29*$J29*Invoer!$E$59,Invoer!$E$64))","v":485},{"$f":"IF($G29=\"\",\"\",MROUND(M29*$J29*Invoer!$E$59,Invoer!$E$64))","v":1060},{"$f":"IF($G29=\"\",\"\",V29*Invoer!$E$58)","v":48.5},{"$f":"IF($G29=\"\",\"\",W29*Invoer!$E$58)","v":106},{"$f":"IF($G29=\"\",\"\",Invoer!$E$61*X29)","v":12.125},{"$f":"IF($G29=\"\",\"\",Invoer!$E$61*Y29)","v":26.5},{"$f":"IF($G29=\"\",\"\",Invoer!$F$61*X29)","v":36.375},{"$f":"IF($G29=\"\",\"\",Invoer!$F$61*Y29)","v":79.5},{"$f":"IF($G29=\"\",\"\",Invoer!$E$62*X29)","v":33.949999999999996},{"$f":"IF($G29=\"\",\"\",Invoer!$E$62*Y29)","v":74.199999999999989},{"$f":"IF($G29=\"\",\"\",Invoer!$F$62*X29)","v":14.549999999999999},{"$f":"IF($G29=\"\",\"\",Invoer!$F$62*Y29)","v":31.799999999999997}]
[null,null,"Afronden op meervoud van",{"$f":"Invoer!E64","v":5},null,null,{"$f":"IF(Invoer!B41=\"\",\"\",Invoer!B41)","v":""},{"$f":"IF(Invoer!G41=\"\",\"\",Invoer!G41)","v":""},{"$f":"IF(Invoer!H41=\"\",\"\",Invoer!H41)","v":""},{"$f":"IF(Invoer!I41=\"\",\"\",Invoer!I41)","v":""},null,{"$f":"IFERROR(Verkeersgeneratiemin(J30),\"\")","v":""},{"$f":"IFERROR(Verkeersgeneratiemax(J30),\"\")","v":""},{"$f":"IFERROR(parkeernormmin(J30),\"\")","v":""},{"$f":"IFERROR(Parkeernormmax(J30),\"\")","v":""},null,"","","","",null,{"$f":"IF($G30=\"\",\"\",MROUND(L30*$J30*Invoer!$E$59,Invoer!$E$64))","v":""},{"$f":"IF($G30=\"\",\"\",MROUND(M30*$J30*Invoer!$E$59,Invoer!$E$64))","v":""},{"$f":"IF($G30=\"\",\"\",V30*Invoer!$E$58)","v":""},{"$f":"IF($G30=\"\",\"\",W30*Invoer!$E$58)","v":""},{"$f":"IF($G30=\"\",\"\",Invoer!$E$61*X30)","v":""},{"$f":"IF($G30=\"\",\"\",Invoer!$E$61*Y30)","v":""},{"$f":"IF($G30=\"\",\"\",Invoer!$F$61*X30)","v":""},{"$f":"IF($G30=\"\",\"\",Invoer!$F$61*Y30)","v":""},{"$f":"IF($G30=\"\",\"\",Invoer!$E$62*X30)","v":""},{"$f":"IF($G30=\"\",\"\",Invoer!$E$62*Y30)","v":""},{"$f":"IF($G30=\"\",\"\",Invoer!$F$62*X30)","v":""},{"$f":"IF($G30=\"\",\"\",Invoer!$F$62*Y30)","v":""}]
[null,null,null,null,null,null,{"$f":"IF(Invoer!B42=\"\",\"\",Invoer!B42)","v":""},{"$f":"IF(Invoer!G42=\"\",\"\",Invoer!G42)","v":""},{"$f":"IF(Invoer!H42=\"\",\"\",Invoer!H42)","v":""},{"$f":"IF(Invoer!I42=\"\",\"\",Invoer!I42)","v":""},null,{"$f":"IFERROR(Verkeersgeneratiemin(J31),\"\")","v":""},{"$f":"IFERROR(Verkeersgeneratiemax(J31),\"\")","v":""},{"$f":"IFERROR(parkeernormmin(J31),\"\")","v":""},{"$f":"IFERROR(Parkeernormmax(J31),\"\")","v":""},null,"","","",{"$f":"IF(J31=\"\",\"\",O31*$J31)","v":""},null,{"$f":"IF($G31=\"\",\"\",MROUND(L31*$J31*Invoer!$E$59,Invoer!$E$64))","v":""},{"$f":"IF($G31=\"\",\"\",MROUND(M31*$J31*Invoer!$E$59,Invoer!$E$64))","v":""},{"$f":"IF($G31=\"\",\"\",V31*Invoer!$E$58)","v":""},{"$f":"IF($G31=\"\",\"\",W31*Invoer!$E$58)","v":""},{"$f":"IF($G31=\"\",\"\",Invoer!$E$61*X31)","v":""},{"$f":"IF($G31=\"\",\"\",Invoer!$E$61*Y31)","v":""},{"$f":"IF($G31=\"\",\"\",Invoer!$F$61*X31)","v":""},{"$f":"IF($G31=\"\",\"\",Invoer!$F$61*Y31)","v":""},{"$f":"IF($G31=\"\",\"\",Invoer!$E$62*X31)","v":""},{"$f":"IF($G31=\"\",\"\",Invoer!$E$62*Y31)","v":""},{"$f":"IF($G31=\"\",\"\",Invoer!$F$62*X31)","v":""},{"$f":"IF($G31=\"\",\"\",Invoer!$F$62*Y31)","v":""}]
[null,null,null,null,null,null,{"$f":"IF(Invoer!B43=\"\",\"\",Invoer!B43)","v":""},{"$f":"IF(Invoer!G43=\"\",\"\",Invoer!G43)","v":""},{"$f":"IF(Invoer!H43=\"\",\"\",Invoer!H43)","v":""},{"$f":"IF(Invoer!I43=\"\",\"\",Invoer!I43)","v":""},null,{"$f":"IFERROR(Verkeersgeneratiemin(J32),\"\")","v":""},{"$f":"IFERROR(Verkeersgeneratiemax(J32),\"\")","v":""},{"$f":"IFERROR(parkeernormmin(J32),\"\")","v":""},{"$f":"IFERROR(Parkeernormmax(J32),\"\")","v":""},null,"","",{"$f":"IF(I32=\"\",\"\",N32*$J32)","v":""},{"$f":"IF(J32=\"\",\"\",O32*$J32)","v":""},null,{"$f":"IF($G32=\"\",\"\",MROUND(L32*$J32*Invoer!$E$59,Invoer!$E$64))","v":""},{"$f":"IF($G32=\"\",\"\",MROUND(M32*$J32*Invoer!$E$59,Invoer!$E$64))","v":""},{"$f":"IF($G32=\"\",\"\",V32*Invoer!$E$58)","v":""},{"$f":"IF($G32=\"\",\"\",W32*Invoer!$E$58)","v":""},{"$f":"IF($G32=\"\",\"\",Invoer!$E$61*X32)","v":""},{"$f":"IF($G32=\"\",\"\",Invoer!$E$61*Y32)","v":""},{"$f":"IF($G32=\"\",\"\",Invoer!$F$61*X32)","v":""},{"$f":"IF($G32=\"\",\"\",Invoer!$F$61*Y32)","v":""},{"$f":"IF($G32=\"\",\"\",Invoer!$E$62*X32)","v":""},{"$f":"IF($G32=\"\",\"\",Invoer!$E$62*Y32)","v":""},{"$f":"IF($G32=\"\",\"\",Invoer!$F$62*X32)","v":""},{"$f":"IF($G32=\"\",\"\",Invoer!$F$62*Y32)","v":""}]
[null,null,null,null,null,null,{"$f":"IF(Invoer!B44=\"\",\"\",Invoer!B44)","v":""},{"$f":"IF(Invoer!G44=\"\",\"\",Invoer!G44)","v":""},{"$f":"IF(Invoer!H44=\"\",\"\",Invoer!H44)","v":""},{"$f":"IF(Invoer!I44=\"\",\"\",Invoer!I44)","v":""},null,{"$f":"IFERROR(Verkeersgeneratiemin(J33),\"\")","v":""},{"$f":"IFERROR(Verkeersgeneratiemax(J33),\"\")","v":""},{"$f":"IFERROR(parkeernormmin(J33),\"\")","v":""},{"$f":"IFERROR(Parkeernormmax(J33),\"\")","v":""},null,"","","","",null,{"$f":"IF($G33=\"\",\"\",MROUND(L33*$J33*Invoer!$E$59,Invoer!$E$64))","v":""},{"$f":"IF($G33=\"\",\"\",MROUND(M33*$J33*Invoer!$E$59,Invoer!$E$64))","v":""},{"$f":"IF($G33=\"\",\"\",V33*Invoer!$E$58)","v":""},{"$f":"IF($G33=\"\",\"\",W33*Invoer!$E$58)","v":""},{"$f":"IF($G33=\"\",\"\",Invoer!$E$61*X33)","v":""},{"$f":"IF($G33=\"\",\"\",Invoer!$E$61*Y33)","v":""},{"$f":"IF($G33=\"\",\"\",Invoer!$F$61*X33)","v":""},{"$f":"IF($G33=\"\",\"\",Invoer!$F$61*Y33)","v":""},{"$f":"IF($G33=\"\",\"\",Invoer!$E$62*X33)","v":""},{"$f":"IF($G33=\"\",\"\",Invoer!$E$62*Y33)","v":""},{"$f":"IF($G33=\"\",\"\",Invoer!$F$62*X33)","v":""},{"$f":"IF($G33=\"\",\"\",Invoer!$F$62*Y33)","v":""}]
[null,null,null,null,null,null,{"$f":"IF(Invoer!B45=\"\",\"\",Invoer!B45)","v":""},{"$f":"IF(Invoer!G45=\"\",\"\",Invoer!G45)","v":""},{"$f":"IF(Invoer!H45=\"\",\"\",Invoer!H45)","v":""},{"$f":"IF(Invoer!I45=\"\",\"\",Invoer!I45)","v":""},null,{"$f":"IFERROR(Verkeersgeneratiemin(J34),\"\")","v":""},{"$f":"IFERROR(Verkeersgeneratiemax(J34),\"\")","v":""},{"$f":"IFERROR(parkeernormmin(J34),\"\")","v":""},{"$f":"IFERROR(Parkeernormmax(J34),\"\")","v":""},null,"","","","",null,{"$f":"IF($G34=\"\",\"\",MROUND(L34*$J34*Invoer!$E$59,Invoer!$E$64))","v":""},{"$f":"IF($G34=\"\",\"\",MROUND(M34*$J34*Invoer!$E$59,Invoer!$E$64))","v":""},{"$f":"IF($G34=\"\",\"\",V34*Invoer!$E$58)","v":""},{"$f":"IF($G34=\"\",\"\",W34*Invoer!$E$58)","v":""},{"$f":"IF($G34=\"\",\"\",Invoer!$E$61*X34)","v":""},{"$f":"IF($G34=\"\",\"\",Invoer!$E$61*Y34)","v":""},{"$f":"IF($G34=\"\",\"\",Invoer!$F$61*X34)","v":""},{"$f":"IF($G34=\"\",\"\",Invoer!$F$61*Y34)","v":""},{"$f":"IF($G34=\"\",\"\",Invoer!$E$62*X34)","v":""},{"$f":"IF($G34=\"\",\"\",Invoer!$E$62*Y34)","v":""},{"$f":"IF($G34=\"\",\"\",Invoer!$F$62*X34)","v":""},{"$f":"IF($G34=\"\",\"\",Invoer!$F$62*Y34)","v":""}]
[null,null,null,null,null,null,{"$f":"IF(Invoer!B46=\"\",\"\",Invoer!B46)","v":""},{"$f":"IF(Invoer!G46=\"\",\"\",Invoer!G46)","v":""},{"$f":"IF(Invoer!H46=\"\",\"\",Invoer!H46)","v":""},{"$f":"IF(Invoer!I46=\"\",\"\",Invoer!I46)","v":""},null,{"$f":"IFERROR(Verkeersgeneratiemin(J35),\"\")","v":""},{"$f":"IFERROR(Verkeersgeneratiemax(J35),\"\")","v":""},{"$f":"IFERROR(parkeernormmin(J35),\"\")","v":""},{"$f":"IFERROR(Parkeernormmax(J35),\"\")","v":""},null,"","","","",null,{"$f":"IF($G35=\"\",\"\",MROUND(L35*$J35*Invoer!$E$59,Invoer!$E$64))","v":""},{"$f":"IF($G35=\"\",\"\",MROUND(M35*$J35*Invoer!$E$59,Invoer!$E$64))","v":""},{"$f":"IF($G35=\"\",\"\",V35*Invoer!$E$58)","v":""},{"$f":"IF($G35=\"\",\"\",W35*Invoer!$E$58)","v":""},{"$f":"IF($G35=\"\",\"\",Invoer!$E$61*X35)","v":""},{"$f":"IF($G35=\"\",\"\",Invoer!$E$61*Y35)","v":""},{"$f":"IF($G35=\"\",\"\",Invoer!$F$61*X35)","v":""},{"$f":"IF($G35=\"\",\"\",Invoer!$F$61*Y35)","v":""},{"$f":"IF($G35=\"\",\"\",Invoer!$E$62*X35)","v":""},{"$f":"IF($G35=\"\",\"\",Invoer!$E$62*Y35)","v":""},{"$f":"IF($G35=\"\",\"\",Invoer!$F$62*X35)","v":""},{"$f":"IF($G35=\"\",\"\",Invoer!$F$62*Y35)","v":""}]
[null,null,null,null,null,null,{"$f":"IF(Invoer!B47=\"\",\"\",Invoer!B47)","v":""},{"$f":"IF(Invoer!G47=\"\",\"\",Invoer!G47)","v":""},{"$f":"IF(Invoer!H47=\"\",\"\",Invoer!H47)","v":""},{"$f":"IF(Invoer!I47=\"\",\"\",Invoer!I47)","v":""},null,{"$f":"IFERROR(Verkeersgeneratiemin(J36),\"\")","v":""},{"$f":"IFERROR(Verkeersgeneratiemax(J36),\"\")","v":""},{"$f":"IFERROR(parkeernormmin(J36),\"\")","v":""},{"$f":"IFERROR(Parkeernormmax(J36),\"\")","v":""},null,"","","","",null,{"$f":"IF($G36=\"\",\"\",MROUND(L36*$J36*Invoer!$E$59,Invoer!$E$64))","v":""},{"$f":"IF($G36=\"\",\"\",MROUND(M36*$J36*Invoer!$E$59,Invoer!$E$64))","v":""},{"$f":"IF($G36=\"\",\"\",V36*Invoer!$E$58)","v":""},{"$f":"IF($G36=\"\",\"\",W36*Invoer!$E$58)","v":""},{"$f":"IF($G36=\"\",\"\",Invoer!$E$61*X36)","v":""},{"$f":"IF($G36=\"\",\"\",Invoer!$E$61*Y36)","v":""},{"$f":"IF($G36=\"\",\"\",Invoer!$F$61*X36)","v":""},{"$f":"IF($G36=\"\",\"\",Invoer!$F$61*Y36)","v":""},{"$f":"IF($G36=\"\",\"\",Invoer!$E$62*X36)","v":""},{"$f":"IF($G36=\"\",\"\",Invoer!$E$62*Y36)","v":""},{"$f":"IF($G36=\"\",\"\",Invoer!$F$62*X36)","v":""},{"$f":"IF($G36=\"\",\"\",Invoer!$F$62*Y36)","v":""}]
[null,null,null,null,null,null,{"$f":"IF(Invoer!B48=\"\",\"\",Invoer!B48)","v":""},{"$f":"IF(Invoer!G48=\"\",\"\",Invoer!G48)","v":""},{"$f":"IF(Invoer!H48=\"\",\"\",Invoer!H48)","v":""},{"$f":"IF(Invoer!I48=\"\",\"\",Invoer!I48)","v":""},null,{"$f":"IFERROR(Verkeersgeneratiemin(J37),\"\")","v":""},{"$f":"IFERROR(Verkeersgeneratiemax(J37),\"\")","v":""},{"$f":"IFERROR(parkeernormmin(J37),\"\")","v":""},{"$f":"IFERROR(Parkeernormmax(J37),\"\")","v":""},null,"","","","",null,{"$f":"IF($G37=\"\",\"\",MROUND(L37*$J37*Invoer!$E$59,Invoer!$E$64))","v":""},{"$f":"IF($G37=\"\",\"\",MROUND(M37*$J37*Invoer!$E$59,Invoer!$E$64))","v":""},{"$f":"IF($G37=\"\",\"\",V37*Invoer!$E$58)","v":""},{"$f":"IF($G37=\"\",\"\",W37*Invoer!$E$58)","v":""},{"$f":"IF($G37=\"\",\"\",Invoer!$E$61*X37)","v":""},{"$f":"IF($G37=\"\",\"\",Invoer!$E$61*Y37)","v":""},{"$f":"IF($G37=\"\",\"\",Invoer!$F$61*X37)","v":""},{"$f":"IF($G37=\"\",\"\",Invoer!$F$61*Y37)","v":""},{"$f":"IF($G37=\"\",\"\",Invoer!$E$62*X37)","v":""},{"$f":"IF($G37=\"\",\"\",Invoer!$E$62*Y37)","v":""},{"$f":"IF($G37=\"\",\"\",Invoer!$F$62*X37)","v":""},{"$f":"IF($G37=\"\",\"\",Invoer!$F$62*Y37)","v":""}]
[null,null,null,null,null,null,{"$f":"IF(Invoer!B49=\"\",\"\",Invoer!B49)","v":""},{"$f":"IF(Invoer!G49=\"\",\"\",Invoer!G49)","v":""},{"$f":"IF(Invoer!H49=\"\",\"\",Invoer!H49)","v":""},{"$f":"IF(Invoer!I49=\"\",\"\",Invoer!I49)","v":""},null,{"$f":"IFERROR(Verkeersgeneratiemin(J38),\"\")","v":""},{"$f":"IFERROR(Verkeersgeneratiemax(J38),\"\")","v":""},{"$f":"IFERROR(parkeernormmin(J38),\"\")","v":""},{"$f":"IFERROR(Parkeernormmax(J38),\"\")","v":""},null,"","","","",null,{"$f":"IF($G38=\"\",\"\",MROUND(L38*$J38*Invoer!$E$59,Invoer!$E$64))","v":""},{"$f":"IF($G38=\"\",\"\",MROUND(M38*$J38*Invoer!$E$59,Invoer!$E$64))","v":""},{"$f":"IF($G38=\"\",\"\",V38*Invoer!$E$58)","v":""},{"$f":"IF($G38=\"\",\"\",W38*Invoer!$E$58)","v":""},{"$f":"IF($G38=\"\",\"\",Invoer!$E$61*X38)","v":""},{"$f":"IF($G38=\"\",\"\",Invoer!$E$61*Y38)","v":""},{"$f":"IF($G38=\"\",\"\",Invoer!$F$61*X38)","v":""},{"$f":"IF($G38=\"\",\"\",Invoer!$F$61*Y38)","v":""},{"$f":"IF($G38=\"\",\"\",Invoer!$E$62*X38)","v":""},{"$f":"IF($G38=\"\",\"\",Invoer!$E$62*Y38)","v":""},{"$f":"IF($G38=\"\",\"\",Invoer!$F$62*X38)","v":""},{"$f":"IF($G38=\"\",\"\",Invoer!$F$62*Y38)","v":""}]
[null,null,null,null,null,null,null,null,null,null,"Gemiddeld",{"$f":"IFERROR(SUMPRODUCT($J$28:$J$38,L28:L38)/SUM($J$28:$J$38),\"\")","v":19.633333333333333},{"$f":"IFERROR(SUMPRODUCT($J$28:$J$38,M28:M38)/SUM($J$28:$J$38),\"\")","v":37.43333333333333},{"$f":"IFERROR(SUMPRODUCT($J$28:$J$38,N28:N38)/SUM($J$28:$J$38),\"\")","v":1.5666666666666667},{"$f":"IFERROR(SUMPRODUCT($J$28:$J$38,O28:O38)/SUM($J$28:$J$38),\"\")","v":2.7666666666666666},"Totaal",{"$f":"SUM(Q28:Q38)","v":589},{"$f":"SUM(R28:R38)","v":1123},47,83,"Totaal",{"$f":"SUM(V28:V38)","v":655},{"$f":"SUM(W28:W38)","v":1245},65.5,124.5,16.375,31.125,49.125,93.375,45.849999999999994,87.149999999999991,19.649999999999999,37.349999999999994]
[]
[]
[]
[null,null,null,null,null,null,"Verschil","Verkeersgeneratie",null,"Parkeernorm",null,"Etmaalintensiteit",null,"Drukste Spitsuur"]
[null,null,null,null,null,null,null,"Min","Max","Min","Max","Min","Max","Min","Max"]
[null,null,null,null,null,null,"Oude situatie",{"$f":"Q23","v":0},{"$f":"R23","v":0},{"$f":"S23","v":0},{"$f":"T23","v":0},{"$f":"V23","v":0},{"$f":"W23","v":0},{"$f":"X23","v":0},{"$f":"Y23","v":0}]
[null,null,null,null,null,null,"Nieuwe situatie",{"$f":"Q39","v":589},{"$f":"R39","v":1123},{"$f":"S39","v":47},{"$f":"T39","v":83},{"$f":"V39","v":655},{"$f":"W39","v":1245},{"$f":"X39","v":65.5},{"$f":"Y39","v":124.5}]
[null,null,null,null,null,null,"Absolute verschil",{"$f":"H46-H45","v":589},{"$f":"I46-I45","v":1123},47,83,655,1245,65.5,124.5]
[null,null,null,null,null,null,"Relatieve verschil",{"$f":"IFERROR(H46/H45-1,\"\")","v":""},{"$f":"IFERROR(I46/I45-1,\"\")","v":""},"","","","","",""]
[]
[null,null,null,null,null,null,null,"Ochtendspits",null,null,null,"Avondspits"]
[null,null,null,null,null,null,null,"Wijk in",null,"Wijk uit",null,"Wijk in",null,"Wijk uit"]
[null,null,null,null,null,null,null,"Min","Max","Min","Max","Min","Max","Min","Max"]
[null,null,null,null,null,null,"Oude situatie",{"$f":"Z23","v":0},0,0,0,0,0,0,0]
[null,null,null,null,null,null,"Nieuwe situatie",{"$f":"Z39","v":16.375},31.125,49.125,93.375,45.849999999999994,87.149999999999991,19.649999999999999,37.349999999999994]
[null,null,null,null,null,null,"Absolute verschil",{"$f":"H54-H53","v":16.375},31.125,49.125,93.375,45.849999999999994,87.149999999999991,19.649999999999999,37.349999999999994]
[null,null,null,null,null,null,"Relatieve verschil",{"$f":"IFERROR(H54/H53-1,\"\")","v":""},{"$f":"IFERROR(I54/I53-1,\"\")","v":""},"","","","","",""]

{"sheet":"Aanwezigheidspercentages","index":2,"n_rows":23,"n_cols":45,"rows_kept":23,"cut":false,"hidden":false,"merged":[[3,23,3,24],[4,23,4,24],[4,11,4,12],[3,15,3,16],[4,15,4,16],[3,19,3,20],[4,19,4,20],[3,27,3,28],[4,27,4,28],[3,31,3,32],[4,31,4,32],[3,43,3,44],[4,43,4,44],[3,35,3,36],[4,35,4,36],[3,39,3,40],[4,39,4,40]]}
[null,"Scroll naar rechts voor alle individuele cijfers",null,null,null,null,null,null,null,null,null,"Maatgevende periode "]
[null,null,"werkdagochtend","werkdagmiddag","werkdagavond","werkdagnacht","koopavond","zaterdagmiddag","zaterdagavond","zondagmiddag",null,"nieuwe situatie:",null,null,null,"werkochtend","werkochtend",null,null,"Werkdagmiddag","Werkdagmiddag",null,null,"Werkdagavond","Werkdagavond",null,null,"werkdagnacht","werkdagnacht",null,null,"koopavond","koopavond",null,null,"zaterdagmiddag","zaterdagmiddag",null,null,"zaterdagavond","zaterdagavond",null,null,"zondagmiddag","zondagmiddag"]
[null,"woningen bewoners",0.5,0.5,0.9,1,0.8,0.6,0.8,0.7,null,null,null,null,null,"NIEUWE SITATIE"]
[null,"woningen bezoekers",0.1,0.2,0.8,0,0.7,0.6,0.8,0.7,null,{"$f":"INDEX(P2:AS2,1,MATCH(MAX(P18:Q18,T18:U18,X18:Y18,AB18:AC18,AF18:AG18,AJ18:AK18,AN18:AO18,AR18:AS18),P18:AS18,0))","v":"koopavond"},null,null,null,"werkochtend",null,null,null,"Werkdagmiddag",null,null,null,"Werkdagavond",null,null,null,"werkdagnacht",null,null,null,"koopavond",null,null,null,"zaterdagmiddag",null,null,null,"zaterdagavond",null,null,null,"zondagmiddag"]
[null,"kantoor/bedrijven",1,1,0.05,0,0.05,0,0,0,null,"Parkeernorm",null,null,null,"Parkeernorm",null,null,null,"Parkeernorm",null,null,null,"Parkeernorm",null,null,null,"Parkeernorm",null,null,null,"Parkeernorm",null,null,null,"Parkeernorm",null,null,null,"Parkeernorm",null,null,null,"Parkeernorm"]
[null,"commerciële dienstverlening",1,1,0.05,0,0.75,0,0,0,null,"Min","Max",null,null,"Min","Max",null,null,"Min","Max",null,null,"Min","Max",null,null,"Min","Max",null,null,"Min","Max",null,null,"Min","Max",null,null,"Min","Max",null,null,"Min","Max"]
[null,"detailhandel",0.3,0.6,0.1,0,0.75,1,0,0,null,{"$f":"IF($L$4=$P$4,P7,IF($L$4=$T$4,T7,IF($L$4=$X$4,X7,IF($L$4=$AB$4,AB7,IF($L$4=$AF$4,AF7,IF($L$4=$AJ$4,AJ7,IF($L$4=$AN$4,AN7,IF($L$4=$AR$4,AR7,\"\"))))))))","v":23.400000000000002},{"$f":"IF($L$4=$P$4,Q7,IF($L$4=$T$4,U7,IF($L$4=$X$4,Y7,IF($L$4=$AB$4,AC7,IF($L$4=$AF$4,AG7,IF($L$4=$AJ$4,AK7,IF($L$4=$AN$4,AO7,IF($L$4=$AR$4,AS7,\"\"))))))))","v":36.200000000000003},null,null,{"$f":"IFERROR(IF(INDEX(Dropdownmenu!$H$3:$H$117,MATCH(Overzichtsberekening!$G28,Dropdownmenu!$A$3:$A$117,0))<>\"woningen bewoners\",Overzichtsberekening!S28*INDEX($C$3:$C$18,MATCH(INDEX(Dropdownmenu!$H$3:$H$117,MATCH(Overzichtsberekening!$G28,Dropdownmenu!$A$3:$A$117,0)),$B$3:$B$18,0)),(Overzichtsberekening!S28-INDEX(Dropdownmenu!$I$3:$I$16,MATCH(Overzichtsberekening!$G28,Dropdownmenu!$A$3:$A$16,0))*Overzichtsberekening!$J28)*$C$3+INDEX(Dropdownmenu!$I$3:$I$16,MATCH(Overzichtsberekening!$G28,Dropdownmenu!$A$3:$A$16,0))*Overzichtsberekening!$J28*$C$4),\"\")","v":12.6},{"$f":"IFERROR(IF(INDEX(Dropdownmenu!$H$3:$H$117,MATCH(Overzichtsberekening!$G28,Dropdownmenu!$A$3:$A$117,0))<>\"woningen bewoners\",Overzichtsberekening!T28*INDEX($C$3:$C$18,MATCH(INDEX(Dropdownmenu!$H$3:$H$117,MATCH(Overzichtsberekening!$G28,Dropdownmenu!$A$3:$A$117,0)),$B$3:$B$18,0)),(Overzichtsberekening!T28-INDEX(Dropdownmenu!$I$3:$I$16,MATCH(Overzichtsberekening!$G28,Dropdownmenu!$A$3:$A$16,0))*Overzichtsberekening!$J28)*$C$3+INDEX(Dropdownmenu!$I$3:$I$16,MATCH(Overzichtsberekening!$G28,Dropdownmenu!$A$3:$A$16,0))*Overzichtsberekening!$J28*$C$4),\"\")","v":20.6},null,null,{"$f":"IFERROR(IF(INDEX(Dropdownmenu!$H$3:$H$117,MATCH(Overzichtsberekening!$G28,Dropdownmenu!$A$3:$A$117,0))<>\"woningen bewoners\",Overzichtsberekening!S28*INDEX($D$3:$D$18,MATCH(INDEX(Dropdownmenu!$H$3:$H$117,MATCH(Overzichtsberekening!$G28,Dropdownmenu!$A$3:$A$117,0)),$B$3:$B$18,0)),(Overzichtsberekening!S28-INDEX(Dropdownmenu!$I$3:$I$16,MATCH(Overzichtsberekening!$G28,Dropdownmenu!$A$3:$A$16,0))*Overzichtsberekening!$J28)*$D$3+INDEX(Dropdownmenu!$I$3:$I$16,MATCH(Overzichtsberekening!$G28,Dropdownmenu!$A$3:$A$16,0))*Overzichtsberekening!$J28*$D$4),\"\")","v":13.2},{"$f":"IFERROR(IF(INDEX(Dropdownmenu!$H$3:$H$117,MATCH(Overzichtsberekening!$G28,Dropdownmenu!$A$3:$A$117,0))<>\"woningen bewoners\",Overzichtsberekening!T28*INDEX($D$3:$D$18,MATCH(INDEX(Dropdownmenu!$H$3:$H$117,MATCH(Overzichtsberekening!$G28,Dropdownmenu!$A$3:$A$117,0)),$B$3:$B$18,0)),(Overzichtsberekening!T28-INDEX(Dropdownmenu!$I$3:$I$16,MATCH(Overzichtsberekening!$G28,Dropdownmenu!$A$3:$A$16,0))*Overzichtsberekening!$J28)*$D$3+INDEX(Dropdownmenu!$I$3:$I$16,MATCH(Overzichtsberekening!$G28,Dropdownmenu!$A$3:$A$16,0))*Overzichtsberekening!$J28*$D$4),\"\")","v":21.2},null,null,{"$f":"IFERROR(IF(INDEX(Dropdownmenu!$H$3:$H$117,MATCH(Overzichtsberekening!$G28,Dropdownmenu!$A$3:$A$117,0))<>\"woningen bewoners\",Overzichtsberekening!S28*INDEX($E$3:$E$18,MATCH(INDEX(Dropdownmenu!$H$3:$H$117,MATCH(Overzichtsberekening!$G28,Dropdownmenu!$A$3:$A$117,0)),$B$3:$B$18,0)),(Overzichtsberekening!S28-INDEX(Dropdownmenu!$I$3:$I$16,MATCH(Overzichtsberekening!$G28,Dropdownmenu!$A$3:$A$16,0))*Overzichtsberekening!$J28)*$E$3+INDEX(Dropdownmenu!$I$3:$I$16,MATCH(Overzichtsberekening!$G28,Dropdownmenu!$A$3:$A$16,0))*Overzichtsberekening!$J28*$E$4),\"\")","v":26.400000000000002},{"$f":"IFERROR(IF(INDEX(Dropdownmenu!$H$3:$H$117,MATCH(Overzichtsberekening!$G28,Dropdownmenu!$A$3:$A$117,0))<>\"woningen bewoners\",Overzichtsberekening!T28*INDEX($E$3:$E$18,MATCH(INDEX(Dropdownmenu!$H$3:$H$117,MATCH(Overzichtsberekening!$G28,Dropdownmenu!$A$3:$A$117,0)),$B$3:$B$18,0)),(Overzichtsberekening!T28-INDEX(Dropdownmenu!$I$3:$I$16,MATCH(Overzichtsberekening!$G28,Dropdownmenu!$A$3:$A$16,0))*Overzichtsberekening!$J28)*$E$3+INDEX(Dropdownmenu!$I$3:$I$16,MATCH(Overzichtsberekening!$G28,Dropdownmenu!$A$3:$A$16,0))*Overzichtsberekening!$J28*$E$4),\"\")","v":40.799999999999997},null,null,{"$f":"IFERROR(IF(INDEX(Dropdownmenu!$H$3:$H$117,MATCH(Overzichtsberekening!$G28,Dropdownmenu!$A$3:$A$117,0))<>\"woningen bewoners\",Overzichtsberekening!S28*INDEX($F$3:$F$18,MATCH(INDEX(Dropdownmenu!$H$3:$H$117,MATCH(Overzichtsberekening!$G28,Dropdownmenu!$A$3:$A$117,0)),$B$3:$B$18,0)),(Overzichtsberekening!S28-INDEX(Dropdownmenu!$I$3:$I$16,MATCH(Overzichtsberekening!$G28,Dropdownmenu!$A$3:$A$16,0))*Overzichtsberekening!$J28)*$F$3+INDEX(Dropdownmenu!$I$3:$I$16,MATCH(Overzichtsberekening!$G28,Dropdownmenu!$A$3:$A$16,0))*Overzichtsberekening!$J28*$F$4),\"\")","v":24},{"$f":"IFERROR(IF(INDEX(Dropdownmenu!$H$3:$H$117,MATCH(Overzichtsberekening!$G28,Dropdownmenu!$A$3:$A$117,0))<>\"woningen bewoners\",Overzichtsberekening!T28*INDEX($F$3:$F$18,MATCH(INDEX(Dropdownmenu!$H$3:$H$117,MATCH(Overzichtsberekening!$G28,Dropdownmenu!$A$3:$A$117,0)),$B$3:$B$18,0)),(Overzichtsberekening!T28-INDEX(Dropdownmenu!$I$3:$I$16,MATCH(Overzichtsberekening!$G28,Dropdownmenu!$A$3:$A$16,0))*Overzichtsberekening!$J28)*$F$3+INDEX(Dropdownmenu!$I$3:$I$16,MATCH(Overzichtsberekening!$G28,Dropdownmenu!$A$3:$A$16,0))*Overzichtsberekening!$J28*$F$4),\"\")","v":40},null,null,{"$f":"IFERROR(IF(INDEX(Dropdownmenu!$H$3:$H$117,MATCH(Overzichtsberekening!$G28,Dropdownmenu!$A$3:$A$117,0))<>\"woningen bewoners\",Overzichtsberekening!S28*INDEX($G$3:$G$18,MATCH(INDEX(Dropdownmenu!$H$3:$H$117,MATCH(Overzichtsberekening!$G28,Dropdownmenu!$A$3:$A$117,0)),$B$3:$B$18,0)),(Overzichtsberekening!S28-INDEX(Dropdownmenu!$I$3:$I$16,MATCH(Overzichtsberekening!$G28,Dropdownmenu!$A$3:$A$16,0))*Overzichtsberekening!$J28)*$G$3+INDEX(Dropdownmenu!$I$3:$I$16,MATCH(Overzichtsberekening!$G28,Dropdownmenu!$A$3:$A$16,0))*Overzichtsberekening!$J28*$G$4),\"\")","v":23.400000000000002},{"$f":"IFERROR(IF(INDEX(Dropdownmenu!$H$3:$H$117,MATCH(Overzichtsberekening!$G28,Dropdownmenu!$A$3:$A$117,0))<>\"woningen bewoners\",Overzichtsberekening!T28*INDEX($G$3:$G$18,MATCH(INDEX(Dropdownmenu!$H$3:$H$117,MATCH(Overzichtsberekening!$G28,Dropdownmenu!$A$3:$A$117,0)),$B$3:$B$18,0)),(Overzichtsberekening!T28-INDEX(Dropdownmenu!$I$3:$I$16,MATCH(Overzichtsberekening!$G28,Dropdownmenu!$A$3:$A$16,0))*Overzichtsberekening!$J28)*$G$3+INDEX(Dropdownmenu!$I$3:$I$16,MATCH(Overzichtsberekening!$G28,Dropdownmenu!$A$3:$A$16,0))*Overzichtsberekening!$J28*$G$4),\"\")","v":36.200000000000003},null,null,{"$f":"IFERROR(IF(INDEX(Dropdownmenu!$H$3:$H$117,MATCH(Overzichtsberekening!$G28,Dropdownmenu!$A$3:$A$117,0))<>\"woningen bewoners\",Overzichtsberekening!S28*INDEX($H$3:$H$18,MATCH(INDEX(Dropdownmenu!$H$3:$H$117,MATCH(Overzichtsberekening!$G28,Dropdownmenu!$A$3:$A$117,0)),$B$3:$B$18,0)),(Overzichtsberekening!S28-INDEX(Dropdownmenu!$I$3:$I$16,MATCH(Overzichtsberekening!$G28,Dropdownmenu!$A$3:$A$16,0))*Overzichtsberekening!$J28)*$H$3+INDEX(Dropdownmenu!$I$3:$I$16,MATCH(Overzichtsberekening!$G28,Dropdownmenu!$A$3:$A$16,0))*Overzichtsberekening!$J28*$H$4),\"\")","v":18},{"$f":"IFERROR(IF(INDEX(Dropdownmenu!$H$3:$H$117,MATCH(Overzichtsberekening!$G28,Dropdownmenu!$A$3:$A$117,0))<>\"woningen bewoners\",Overzichtsberekening!T28*INDEX($H$3:$H$18,MATCH(INDEX(Dropdownmenu!$H$3:$H$117,MATCH(Overzichtsberekening!$G28,Dropdownmenu!$A$3:$A$117,0)),$B$3:$B$18,0)),(Overzichtsberekening!T28-INDEX(Dropdownmenu!$I$3:$I$16,MATCH(Overzichtsberekening!$G28,Dropdownmenu!$A$3:$A$16,0))*Overzichtsberekening!$J28)*$H$3+INDEX(Dropdownmenu!$I$3:$I$16,MATCH(Overzichtsberekening!$G28,Dropdownmenu!$A$3:$A$16,0))*Overzichtsberekening!$J28*$H$4),\"\")","v":27.6},null,null,{"$f":"IFERROR(IF(INDEX(Dropdownmenu!$H$3:$H$117,MATCH(Overzichtsberekening!$G28,Dropdownmenu!$A$3:$A$117,0))<>\"woningen bewoners\",Overzichtsberekening!S28*INDEX($I$3:$I$18,MATCH(INDEX(Dropdownmenu!$H$3:$H$117,MATCH(Overzichtsberekening!$G28,Dropdownmenu!$A$3:$A$117,0)),$B$3:$B$18,0)),(Overzichtsberekening!S28-INDEX(Dropdownmenu!$I$3:$I$16,MATCH(Overzichtsberekening!$G28,Dropdownmenu!$A$3:$A$16,0))*Overzichtsberekening!$J28)*$I$3+INDEX(Dropdownmenu!$I$3:$I$16,MATCH(Overzichtsberekening!$G28,Dropdownmenu!$A$3:$A$16,0))*Overzichtsberekening!$J28*$I$4),\"\")","v":24.000000000000004},{"$f":"IFERROR(IF(INDEX(Dropdownmenu!$H$3:$H$117,MATCH(Overzichtsberekening!$G28,Dropdownmenu!$A$3:$A$117,0))<>\"woningen bewoners\",Overzichtsberekening!T28*INDEX($I$3:$I$18,MATCH(INDEX(Dropdownmenu!$H$3:$H$117,MATCH(Overzichtsberekening!$G28,Dropdownmenu!$A$3:$A$117,0)),$B$3:$B$18,0)),(Overzichtsberekening!T28-INDEX(Dropdownmenu!$I$3:$I$16,MATCH(Overzichtsberekening!$G28,Dropdownmenu!$A$3:$A$16,0))*Overzichtsberekening!$J28)*$I$3+INDEX(Dropdownmenu!$I$3:$I$16,MATCH(Overzichtsberekening!$G28,Dropdownmenu!$A$3:$A$16,0))*Overzichtsberekening!$J28*$I$4),\"\")","v":36.799999999999997},null,null,{"$f":"IFERROR(IF(INDEX(Dropdownmenu!$H$3:$H$117,MATCH(Overzichtsberekening!$G28,Dropdownmenu!$A$3:$A$117,0))<>\"woningen bewoners\",Overzichtsberekening!S28*INDEX($J$3:$J$18,MATCH(INDEX(Dropdownmenu!$H$3:$H$117,MATCH(Overzichtsberekening!$G28,Dropdownmenu!$A$3:$A$117,0)),$B$3:$B$18,0)),(Overzichtsberekening!S28-INDEX(Dropdownmenu!$I$3:$I$16,MATCH(Overzichtsberekening!$G28,Dropdownmenu!$A$3:$A$16,0))*Overzichtsberekening!$J28)*$J$3+INDEX(Dropdownmenu!$I$3:$I$16,MATCH(Overzichtsberekening!$G28,Dropdownmenu!$A$3:$A$16,0))*Overzichtsberekening!$J28*$J$4),\"\")","v":20.999999999999996},{"$f":"IFERROR(IF(INDEX(Dropdownmenu!$H$3:$H$117,MATCH(Overzichtsberekening!$G28,Dropdownmenu!$A$3:$A$117,0))<>\"woningen bewoners\",Overzichtsberekening!T28*INDEX($J$3:$J$18,MATCH(INDEX(Dropdownmenu!$H$3:$H$117,MATCH(Overzichtsberekening!$G28,Dropdownmenu!$A$3:$A$117,0)),$B$3:$B$18,0)),(Overzichtsberekening!T28-INDEX(Dropdownmenu!$I$3:$I$16,MATCH(Overzichtsberekening!$G28,Dropdownmenu!$A$3:$A$16,0))*Overzichtsberekening!$J28)*$J$3+INDEX(Dropdownmenu!$I$3:$I$16,MATCH(Overzichtsberekening!$G28,Dropdownmenu!$A$3:$A$16,0))*Overzichtsberekening!$J28*$J$4),\"\")","v":32.200000000000003}]
[null,"grootschalige detailhandel",0.3,0.6,0.7,0,0.8,1,0,0,null,13.600000000000001,29.6,null,null,{"$f":"IFERROR(IF(INDEX(Dropdownmenu!$H$3:$H$117,MATCH(Overzichtsberekening!$G29,Dropdownmenu!$A$3:$A$117,0))<>\"woningen bewoners\",Overzichtsberekening!S29*INDEX($C$3:$C$18,MATCH(INDEX(Dropdownmenu!$H$3:$H$117,MATCH(Overzichtsberekening!$G29,Dropdownmenu!$A$3:$A$117,0)),$B$3:$B$18,0)),(Overzichtsberekening!S29-INDEX(Dropdownmenu!$I$3:$I$16,MATCH(Overzichtsberekening!$G29,Dropdownmenu!$A$3:$A$16,0))*Overzichtsberekening!$J29)*$C$3+INDEX(Dropdownmenu!$I$3:$I$16,MATCH(Overzichtsberekening!$G29,Dropdownmenu!$A$3:$A$16,0))*Overzichtsberekening!$J29*$C$4),\"\")","v":5.0999999999999996},{"$f":"IFERROR(IF(INDEX(Dropdownmenu!$H$3:$H$117,MATCH(Overzichtsberekening!$G29,Dropdownmenu!$A$3:$A$117,0))<>\"woningen bewoners\",Overzichtsberekening!T29*INDEX($C$3:$C$18,MATCH(INDEX(Dropdownmenu!$H$3:$H$117,MATCH(Overzichtsberekening!$G29,Dropdownmenu!$A$3:$A$117,0)),$B$3:$B$18,0)),(Overzichtsberekening!T29-INDEX(Dropdownmenu!$I$3:$I$16,MATCH(Overzichtsberekening!$G29,Dropdownmenu!$A$3:$A$16,0))*Overzichtsberekening!$J29)*$C$3+INDEX(Dropdownmenu!$I$3:$I$16,MATCH(Overzichtsberekening!$G29,Dropdownmenu!$A$3:$A$16,0))*Overzichtsberekening!$J29*$C$4),\"\")","v":11.1},null,null,{"$f":"IFERROR(IF(INDEX(Dropdownmenu!$H$3:$H$117,MATCH(Overzichtsberekening!$G29,Dropdownmenu!$A$3:$A$117,0))<>\"woningen bewoners\",Overzichtsberekening!S29*INDEX($D$3:$D$18,MATCH(INDEX(Dropdownmenu!$H$3:$H$117,MATCH(Overzichtsberekening!$G29,Dropdownmenu!$A$3:$A$117,0)),$B$3:$B$18,0)),(Overzichtsberekening!S29-INDEX(Dropdownmenu!$I$3:$I$16,MATCH(Overzichtsberekening!$G29,Dropdownmenu!$A$3:$A$16,0))*Overzichtsberekening!$J29)*$D$3+INDEX(Dropdownmenu!$I$3:$I$16,MATCH(Overzichtsberekening!$G29,Dropdownmenu!$A$3:$A$16,0))*Overzichtsberekening!$J29*$D$4),\"\")","v":10.199999999999999},{"$f":"IFERROR(IF(INDEX(Dropdownmenu!$H$3:$H$117,MATCH(Overzichtsberekening!$G29,Dropdownmenu!$A$3:$A$117,0))<>\"woningen bewoners\",Overzichtsberekening!T29*INDEX($D$3:$D$18,MATCH(INDEX(Dropdownmenu!$H$3:$H$117,MATCH(Overzichtsberekening!$G29,Dropdownmenu!$A$3:$A$117,0)),$B$3:$B$18,0)),(Overzichtsberekening!T29-INDEX(Dropdownmenu!$I$3:$I$16,MATCH(Overzichtsberekening!$G29,Dropdownmenu!$A$3:$A$16,0))*Overzichtsberekening!$J29)*$D$3+INDEX(Dropdownmenu!$I$3:$I$16,MATCH(Overzichtsberekening!$G29,Dropdownmenu!$A$3:$A$16,0))*Overzichtsberekening!$J29*$D$4),\"\")","v":22.2},null,null,{"$f":"IFERROR(IF(INDEX(Dropdownmenu!$H$3:$H$117,MATCH(Overzichtsberekening!$G29,Dropdownmenu!$A$3:$A$117,0))<>\"woningen bewoners\",Overzichtsberekening!S29*INDEX($E$3:$E$18,MATCH(INDEX(Dropdownmenu!$H$3:$H$117,MATCH(Overzichtsberekening!$G29,Dropdownmenu!$A$3:$A$117,0)),$B$3:$B$18,0)),(Overzichtsberekening!S29-INDEX(Dropdownmenu!$I$3:$I$16,MATCH(Overzichtsberekening!$G29,Dropdownmenu!$A$3:$A$16,0))*Overzichtsberekening!$J29)*$E$3+INDEX(Dropdownmenu!$I$3:$I$16,MATCH(Overzichtsberekening!$G29,Dropdownmenu!$A$3:$A$16,0))*Overzichtsberekening!$J29*$E$4),\"\")","v":6.8000000000000007},{"$f":"IFERROR(IF(INDEX(Dropdownmenu!$H$3:$H$117,MATCH(Overzichtsberekening!$G29,Dropdownmenu!$A$3:$A$117,0))<>\"woningen bewoners\",Overzichtsberekening!T29*INDEX($E$3:$E$18,MATCH(INDEX(Dropdownmenu!$H$3:$H$117,MATCH(Overzichtsberekening!$G29,Dropdownmenu!$A$3:$A$117,0)),$B$3:$B$18,0)),(Overzichtsberekening!T29-INDEX(Dropdownmenu!$I$3:$I$16,MATCH(Overzichtsberekening!$G29,Dropdownmenu!$A$3:$A$16,0))*Overzichtsberekening!$J29)*$E$3+INDEX(Dropdownmenu!$I$3:$I$16,MATCH(Overzichtsberekening!$G29,Dropdownmenu!$A$3:$A$16,0))*Overzichtsberekening!$J29*$E$4),\"\")","v":14.8},null,null,{"$f":"IFERROR(IF(INDEX(Dropdownmenu!$H$3:$H$117,MATCH(Overzichtsberekening!$G29,Dropdownmenu!$A$3:$A$117,0))<>\"woningen bewoners\",Overzichtsberekening!S29*INDEX($F$3:$F$18,MATCH(INDEX(Dropdownmenu!$H$3:$H$117,MATCH(Overzichtsberekening!$G29,Dropdownmenu!$A$3:$A$117,0)),$B$3:$B$18,0)),(Overzichtsberekening!S29-INDEX(Dropdownmenu!$I$3:$I$16,MATCH(Overzichtsberekening!$G29,Dropdownmenu!$A$3:$A$16,0))*Overzichtsberekening!$J29)*$F$3+INDEX(Dropdownmenu!$I$3:$I$16,MATCH(Overzichtsberekening!$G29,Dropdownmenu!$A$3:$A$16,0))*Overzichtsberekening!$J29*$F$4),\"\")","v":0},{"$f":"IFERROR(IF(INDEX(Dropdownmenu!$H$3:$H$117,MATCH(Overzichtsberekening!$G29,Dropdownmenu!$A$3:$A$117,0))<>\"woningen bewoners\",Overzichtsberekening!T29*INDEX($F$3:$F$18,MATCH(INDEX(Dropdownmenu!$H$3:$H$117,MATCH(Overzichtsberekening!$G29,Dropdownmenu!$A$3:$A$117,0)),$B$3:$B$18,0)),(Overzichtsberekening!T29-INDEX(Dropdownmenu!$I$3:$I$16,MATCH(Overzichtsberekening!$G29,Dropdownmenu!$A$3:$A$16,0))*Overzichtsberekening!$J29)*$F$3+INDEX(Dropdownmenu!$I$3:$I$16,MATCH(Overzichtsberekening!$G29,Dropdownmenu!$A$3:$A$16,0))*Overzichtsberekening!$J29*$F$4),\"\")","v":0},null,null,{"$f":"IFERROR(IF(INDEX(Dropdownmenu!$H$3:$H$117,MATCH(Overzichtsberekening!$G29,Dropdownmenu!$A$3:$A$117,0))<>\"woningen bewoners\",Overzichtsberekening!S29*INDEX($G$3:$G$18,MATCH(INDEX(Dropdownmenu!$H$3:$H$117,MATCH(Overzichtsberekening!$G29,Dropdownmenu!$A$3:$A$117,0)),$B$3:$B$18,0)),(Overzichtsberekening!S29-INDEX(Dropdownmenu!$I$3:$I$16,MATCH(Overzichtsberekening!$G29,Dropdownmenu!$A$3:$A$16,0))*Overzichtsberekening!$J29)*$G$3+INDEX(Dropdownmenu!$I$3:$I$16,MATCH(Overzichtsberekening!$G29,Dropdownmenu!$A$3:$A$16,0))*Overzichtsberekening!$J29*$G$4),\"\")","v":13.600000000000001},{"$f":"IFERROR(IF(INDEX(Dropdownmenu!$H$3:$H$117,MATCH(Overzichtsberekening!$G29,Dropdownmenu!$A$3:$A$117,0))<>\"woningen bewoners\",Overzichtsberekening!T29*INDEX($G$3:$G$18,MATCH(INDEX(Dropdownmenu!$H$3:$H$117,MATCH(Overzichtsberekening!$G29,Dropdownmenu!$A$3:$A$117,0)),$B$3:$B$18,0)),(Overzichtsberekening!T29-INDEX(Dropdownmenu!$I$3:$I$16,MATCH(Overzichtsberekening!$G29,Dropdownmenu!$A$3:$A$16,0))*Overzichtsberekening!$J29)*$G$3+INDEX(Dropdownmenu!$I$3:$I$16,MATCH(Overzichtsberekening!$G29,Dropdownmenu!$A$3:$A$16,0))*Overzichtsberekening!$J29*$G$4),\"\")","v":29.6},null,null,{"$f":"IFERROR(IF(INDEX(Dropdownmenu!$H$3:$H$117,MATCH(Overzichtsberekening!$G29,Dropdownmenu!$A$3:$A$117,0))<>\"woningen bewoners\",Overzichtsberekening!S29*INDEX($H$3:$H$18,MATCH(INDEX(Dropdownmenu!$H$3:$H$117,MATCH(Overzichtsberekening!$G29,Dropdownmenu!$A$3:$A$117,0)),$B$3:$B$18,0)),(Overzichtsberekening!S29-INDEX(Dropdownmenu!$I$3:$I$16,MATCH(Overzichtsberekening!$G29,Dropdownmenu!$A$3:$A$16,0))*Overzichtsberekening!$J29)*$H$3+INDEX(Dropdownmenu!$I$3:$I$16,MATCH(Overzichtsberekening!$G29,Dropdownmenu!$A$3:$A$16,0))*Overzichtsberekening!$J29*$H$4),\"\")","v":17},{"$f":"IFERROR(IF(INDEX(Dropdownmenu!$H$3:$H$117,MATCH(Overzichtsberekening!$G29,Dropdownmenu!$A$3:$A$117,0))<>\"woningen bewoners\",Overzichtsberekening!T29*INDEX($H$3:$H$18,MATCH(INDEX(Dropdownmenu!$H$3:$H$117,MATCH(Overzichtsberekening!$G29,Dropdownmenu!$A$3:$A$117,0)),$B$3:$B$18,0)),(Overzichtsberekening!T29-INDEX(Dropdownmenu!$I$3:$I$16,MATCH(Overzichtsberekening!$G29,Dropdownmenu!$A$3:$A$16,0))*Overzichtsberekening!$J29)*$H$3+INDEX(Dropdownmenu!$I$3:$I$16,MATCH(Overzichtsberekening!$G29,Dropdownmenu!$A$3:$A$16,0))*Overzichtsberekening!$J29*$H$4),\"\")","v":37},null,null,{"$f":"IFERROR(IF(INDEX(Dropdownmenu!$H$3:$H$117,MATCH(Overzichtsberekening!$G29,Dropdownmenu!$A$3:$A$117,0))<>\"woningen bewoners\",Overzichtsberekening!S29*INDEX($I$3:$I$18,MATCH(INDEX(Dropdownmenu!$H$3:$H$117,MATCH(Overzichtsberekening!$G29,Dropdownmenu!$A$3:$A$117,0)),$B$3:$B$18,0)),(Overzichtsberekening!S29-INDEX(Dropdownmenu!$I$3:$I$16,MATCH(Overzichtsberekening!$G29,Dropdownmenu!$A$3:$A$16,0))*Overzichtsberekening!$J29)*$I$3+INDEX(Dropdownmenu!$I$3:$I$16,MATCH(Overzichtsberekening!$G29,Dropdownmenu!$A$3:$A$16,0))*Overzichtsberekening!$J29*$I$4),\"\")","v":6.8000000000000007},{"$f":"IFERROR(IF(INDEX(Dropdownmenu!$H$3:$H$117,MATCH(Overzichtsberekening!$G29,Dropdownmenu!$A$3:$A$117,0))<>\"woningen bewoners\",Overzichtsberekening!T29*INDEX($I$3:$I$18,MATCH(INDEX(Dropdownmenu!$H$3:$H$117,MATCH(Overzichtsberekening!$G29,Dropdownmenu!$A$3:$A$117,0)),$B$3:$B$18,0)),(Overzichtsberekening!T29-INDEX(Dropdownmenu!$I$3:$I$16,MATCH(Overzichtsberekening!$G29,Dropdownmenu!$A$3:$A$16,0))*Overzichtsberekening!$J29)*$I$3+INDEX(Dropdownmenu!$I$3:$I$16,MATCH(Overzichtsberekening!$G29,Dropdownmenu!$A$3:$A$16,0))*Overzichtsberekening!$J29*$I$4),\"\")","v":14.8},null,null,{"$f":"IFERROR(IF(INDEX(Dropdownmenu!$H$3:$H$117,MATCH(Overzichtsberekening!$G29,Dropdownmenu!$A$3:$A$117,0))<>\"woningen bewoners\",Overzichtsberekening!S29*INDEX($J$3:$J$18,MATCH(INDEX(Dropdownmenu!$H$3:$H$117,MATCH(Overzichtsberekening!$G29,Dropdownmenu!$A$3:$A$117,0)),$B$3:$B$18,0)),(Overzichtsberekening!S29-INDEX(Dropdownmenu!$I$3:$I$16,MATCH(Overzichtsberekening!$G29,Dropdownmenu!$A$3:$A$16,0))*Overzichtsberekening!$J29)*$J$3+INDEX(Dropdownmenu!$I$3:$I$16,MATCH(Overzichtsberekening!$G29,Dropdownmenu!$A$3:$A$16,0))*Overzichtsberekening!$J29*$J$4),\"\")","v":0},{"$f":"IFERROR(IF(INDEX(Dropdownmenu!$H$3:$H$117,MATCH(Overzichtsberekening!$G29,Dropdownmenu!$A$3:$A$117,0))<>\"woningen bewoners\",Overzichtsberekening!T29*INDEX($J$3:$J$18,MATCH(INDEX(Dropdownmenu!$H$3:$H$117,MATCH(Overzichtsberekening!$G29,Dropdownmenu!$A$3:$A$117,0)),$B$3:$B$18,0)),(Overzichtsberekening!T29-INDEX(Dropdownmenu!$I$3:$I$16,MATCH(Overzichtsberekening!$G29,Dropdownmenu!$A$3:$A$16,0))*Overzichtsberekening!$J29)*$J$3+INDEX(Dropdownmenu!$I$3:$I$16,MATCH(Overzichtsberekening!$G29,Dropdownmenu!$A$3:$A$16,0))*Overzichtsberekening!$J29*$J$4),\"\")","v":0}]
[null,"supermarkt",0.3,0.6,0.4,0,0.8,1,0.4,0,null,"","",null,null,{"$f":"IFERROR(IF(INDEX(Dropdownmenu!$H$3:$H$117,MATCH(Overzichtsberekening!$G30,Dropdownmenu!$A$3:$A$117,0))<>\"woningen bewoners\",Overzichtsberekening!S30*INDEX($C$3:$C$18,MATCH(INDEX(Dropdownmenu!$H$3:$H$117,MATCH(Overzichtsberekening!$G30,Dropdownmenu!$A$3:$A$117,0)),$B$3:$B$18,0)),(Overzichtsberekening!S30-INDEX(Dropdownmenu!$I$3:$I$16,MATCH(Overzichtsberekening!$G30,Dropdownmenu!$A$3:$A$16,0))*Overzichtsberekening!$J30)*$C$3+INDEX(Dropdownmenu!$I$3:$I$16,MATCH(Overzichtsberekening!$G30,Dropdownmenu!$A$3:$A$16,0))*Overzichtsberekening!$J30*$C$4),\"\")","v":""},{"$f":"IFERROR(IF(INDEX(Dropdownmenu!$H$3:$H$117,MATCH(Overzichtsberekening!$G30,Dropdownmenu!$A$3:$A$117,0))<>\"woningen bewoners\",Overzichtsberekening!T30*INDEX($C$3:$C$18,MATCH(INDEX(Dropdownmenu!$H$3:$H$117,MATCH(Overzichtsberekening!$G30,Dropdownmenu!$A$3:$A$117,0)),$B$3:$B$18,0)),(Overzichtsberekening!T30-INDEX(Dropdownmenu!$I$3:$I$16,MATCH(Overzichtsberekening!$G30,Dropdownmenu!$A$3:$A$16,0))*Overzichtsberekening!$J30)*$C$3+INDEX(Dropdownmenu!$I$3:$I$16,MATCH(Overzichtsberekening!$G30,Dropdownmenu!$A$3:$A$16,0))*Overzichtsberekening!$J30*$C$4),\"\")","v":""},null,null,{"$f":"IFERROR(IF(INDEX(Dropdownmenu!$H$3:$H$117,MATCH(Overzichtsberekening!$G30,Dropdownmenu!$A$3:$A$117,0))<>\"woningen bewoners\",Overzichtsberekening!S30*INDEX($D$3:$D$18,MATCH(INDEX(Dropdownmenu!$H$3:$H$117,MATCH(Overzichtsberekening!$G30,Dropdownmenu!$A$3:$A$117,0)),$B$3:$B$18,0)),(Overzichtsberekening!S30-INDEX(Dropdownmenu!$I$3:$I$16,MATCH(Overzichtsberekening!$G30,Dropdownmenu!$A$3:$A$16,0))*Overzichtsberekening!$J30)*$D$3+INDEX(Dropdownmenu!$I$3:$I$16,MATCH(Overzichtsberekening!$G30,Dropdownmenu!$A$3:$A$16,0))*Overzichtsberekening!$J30*$D$4),\"\")","v":""},{"$f":"IFERROR(IF(INDEX(Dropdownmenu!$H$3:$H$117,MATCH(Overzichtsberekening!$G30,Dropdownmenu!$A$3:$A$117,0))<>\"woningen bewoners\",Overzichtsberekening!T30*INDEX($D$3:$D$18,MATCH(INDEX(Dropdownmenu!$H$3:$H$117,MATCH(Overzichtsberekening!$G30,Dropdownmenu!$A$3:$A$117,0)),$B$3:$B$18,0)),(Overzichtsberekening!T30-INDEX(Dropdownmenu!$I$3:$I$16,MATCH(Overzichtsberekening!$G30,Dropdownmenu!$A$3:$A$16,0))*Overzichtsberekening!$J30)*$D$3+INDEX(Dropdownmenu!$I$3:$I$16,MATCH(Overzichtsberekening!$G30,Dropdownmenu!$A$3:$A$16,0))*Overzichtsberekening!$J30*$D$4),\"\")","v":""},null,null,{"$f":"IFERROR(IF(INDEX(Dropdownmenu!$H$3:$H$117,MATCH(Overzichtsberekening!$G30,Dropdownmenu!$A$3:$A$117,0))<>\"woningen bewoners\",Overzichtsberekening!S30*INDEX($E$3:$E$18,MATCH(INDEX(Dropdownmenu!$H$3:$H$117,MATCH(Overzichtsberekening!$G30,Dropdownmenu!$A$3:$A$117,0)),$B$3:$B$18,0)),(Overzichtsberekening!S30-INDEX(Dropdownmenu!$I$3:$I$16,MATCH(Overzichtsberekening!$G30,Dropdownmenu!$A$3:$A$16,0))*Overzichtsberekening!$J30)*$E$3+INDEX(Dropdownmenu!$I$3:$I$16,MATCH(Overzichtsberekening!$G30,Dropdownmenu!$A$3:$A$16,0))*Overzichtsberekening!$J30*$E$4),\"\")","v":""},{"$f":"IFERROR(IF(INDEX(Dropdownmenu!$H$3:$H$117,MATCH(Overzichtsberekening!$G30,Dropdownmenu!$A$3:$A$117,0))<>\"woningen bewoners\",Overzichtsberekening!T30*INDEX($E$3:$E$18,MATCH(INDEX(Dropdownmenu!$H$3:$H$117,MATCH(Overzichtsberekening!$G30,Dropdownmenu!$A$3:$A$117,0)),$B$3:$B$18,0)),(Overzichtsberekening!T30-INDEX(Dropdownmenu!$I$3:$I$16,MATCH(Overzichtsberekening!$G30,Dropdownmenu!$A$3:$A$16,0))*Overzichtsberekening!$J30)*$E$3+INDEX(Dropdownmenu!$I$3:$I$16,MATCH(Overzichtsberekening!$G30,Dropdownmenu!$A$3:$A$16,0))*Overzichtsberekening!$J30*$E$4),\"\")","v":""},null,null,{"$f":"IFERROR(IF(INDEX(Dropdownmenu!$H$3:$H$117,MATCH(Overzichtsberekening!$G30,Dropdownmenu!$A$3:$A$117,0))<>\"woningen bewoners\",Overzichtsberekening!S30*INDEX($F$3:$F$18,MATCH(INDEX(Dropdownmenu!$H$3:$H$117,MATCH(Overzichtsberekening!$G30,Dropdownmenu!$A$3:$A$117,0)),$B$3:$B$18,0)),(Overzichtsberekening!S30-INDEX(Dropdownmenu!$I$3:$I$16,MATCH(Overzichtsberekening!$G30,Dropdownmenu!$A$3:$A$16,0))*Overzichtsberekening!$J30)*$F$3+INDEX(Dropdownmenu!$I$3:$I$16,MATCH(Overzichtsberekening!$G30,Dropdownmenu!$A$3:$A$16,0))*Overzichtsberekening!$J30*$F$4),\"\")","v":""},{"$f":"IFERROR(IF(INDEX(Dropdownmenu!$H$3:$H$117,MATCH(Overzichtsberekening!$G30,Dropdownmenu!$A$3:$A$117,0))<>\"woningen bewoners\",Overzichtsberekening!T30*INDEX($F$3:$F$18,MATCH(INDEX(Dropdownmenu!$H$3:$H$117,MATCH(Overzichtsberekening!$G30,Dropdownmenu!$A$3:$A$117,0)),$B$3:$B$18,0)),(Overzichtsberekening!T30-INDEX(Dropdownmenu!$I$3:$I$16,MATCH(Overzichtsberekening!$G30,Dropdownmenu!$A$3:$A$16,0))*Overzichtsberekening!$J30)*$F$3+INDEX(Dropdownmenu!$I$3:$I$16,MATCH(Overzichtsberekening!$G30,Dropdownmenu!$A$3:$A$16,0))*Overzichtsberekening!$J30*$F$4),\"\")","v":""},null,null,{"$f":"IFERROR(IF(INDEX(Dropdownmenu!$H$3:$H$117,MATCH(Overzichtsberekening!$G30,Dropdownmenu!$A$3:$A$117,0))<>\"woningen bewoners\",Overzichtsberekening!S30*INDEX($G$3:$G$18,MATCH(INDEX(Dropdownmenu!$H$3:$H$117,MATCH(Overzichtsberekening!$G30,Dropdownmenu!$A$3:$A$117,0)),$B$3:$B$18,0)),(Overzichtsberekening!S30-INDEX(Dropdownmenu!$I$3:$I$16,MATCH(Overzichtsberekening!$G30,Dropdownmenu!$A$3:$A$16,0))*Overzichtsberekening!$J30)*$G$3+INDEX(Dropdownmenu!$I$3:$I$16,MATCH(Overzichtsberekening!$G30,Dropdownmenu!$A$3:$A$16,0))*Overzichtsberekening!$J30*$G$4),\"\")","v":""},{"$f":"IFERROR(IF(INDEX(Dropdownmenu!$H$3:$H$117,MATCH(Overzichtsberekening!$G30,Dropdownmenu!$A$3:$A$117,0))<>\"woningen bewoners\",Overzichtsberekening!T30*INDEX($G$3:$G$18,MATCH(INDEX(Dropdownmenu!$H$3:$H$117,MATCH(Overzichtsberekening!$G30,Dropdownmenu!$A$3:$A$117,0)),$B$3:$B$18,0)),(Overzichtsberekening!T30-INDEX(Dropdownmenu!$I$3:$I$16,MATCH(Overzichtsberekening!$G30,Dropdownmenu!$A$3:$A$16,0))*Overzichtsberekening!$J30)*$G$3+INDEX(Dropdownmenu!$I$3:$I$16,MATCH(Overzichtsberekening!$G30,Dropdownmenu!$A$3:$A$16,0))*Overzichtsberekening!$J30*$G$4),\"\")","v":""},null,null,{"$f":"IFERROR(IF(INDEX(Dropdownmenu!$H$3:$H$117,MATCH(Overzichtsberekening!$G30,Dropdownmenu!$A$3:$A$117,0))<>\"woningen bewoners\",Overzichtsberekening!S30*INDEX($H$3:$H$18,MATCH(INDEX(Dropdownmenu!$H$3:$H$117,MATCH(Overzichtsberekening!$G30,Dropdownmenu!$A$3:$A$117,0)),$B$3:$B$18,0)),(Overzichtsberekening!S30-INDEX(Dropdownmenu!$I$3:$I$16,MATCH(Overzichtsberekening!$G30,Dropdownmenu!$A$3:$A$16,0))*Overzichtsberekening!$J30)*$H$3+INDEX(Dropdownmenu!$I$3:$I$16,MATCH(Overzichtsberekening!$G30,Dropdownmenu!$A$3:$A$16,0))*Overzichtsberekening!$J30*$H$4),\"\")","v":""},{"$f":"IFERROR(IF(INDEX(Dropdownmenu!$H$3:$H$117,MATCH(Overzichtsberekening!$G30,Dropdownmenu!$A$3:$A$117,0))<>\"woningen bewoners\",Overzichtsberekening!T30*INDEX($H$3:$H$18,MATCH(INDEX(Dropdownmenu!$H$3:$H$117,MATCH(Overzichtsberekening!$G30,Dropdownmenu!$A$3:$A$117,0)),$B$3:$B$18,0)),(Overzichtsberekening!T30-INDEX(Dropdownmenu!$I$3:$I$16,MATCH(Overzichtsberekening!$G30,Dropdownmenu!$A$3:$A$16,0))*Overzichtsberekening!$J30)*$H$3+INDEX(Dropdownmenu!$I$3:$I$16,MATCH(Overzichtsberekening!$G30,Dropdownmenu!$A$3:$A$16,0))*Overzichtsberekening!$J30*$H$4),\"\")","v":""},null,null,{"$f":"IFERROR(IF(INDEX(Dropdownmenu!$H$3:$H$117,MATCH(Overzichtsberekening!$G30,Dropdownmenu!$A$3:$A$117,0))<>\"woningen bewoners\",Overzichtsberekening!S30*INDEX($I$3:$I$18,MATCH(INDEX(Dropdownmenu!$H$3:$H$117,MATCH(Overzichtsberekening!$G30,Dropdownmenu!$A$3:$A$117,0)),$B$3:$B$18,0)),(Overzichtsberekening!S30-INDEX(Dropdownmenu!$I$3:$I$16,MATCH(Overzichtsberekening!$G30,Dropdownmenu!$A$3:$A$16,0))*Overzichtsberekening!$J30)*$I$3+INDEX(Dropdownmenu!$I$3:$I$16,MATCH(Overzichtsberekening!$G30,Dropdownmenu!$A$3:$A$16,0))*Overzichtsberekening!$J30*$I$4),\"\")","v":""},{"$f":"IFERROR(IF(INDEX(Dropdownmenu!$H$3:$H$117,MATCH(Overzichtsberekening!$G30,Dropdownmenu!$A$3:$A$117,0))<>\"woningen bewoners\",Overzichtsberekening!T30*INDEX($I$3:$I$18,MATCH(INDEX(Dropdownmenu!$H$3:$H$117,MATCH(Overzichtsberekening!$G30,Dropdownmenu!$A$3:$A$117,0)),$B$3:$B$18,0)),(Overzichtsberekening!T30-INDEX(Dropdownmenu!$I$3:$I$16,MATCH(Overzichtsberekening!$G30,Dropdownmenu!$A$3:$A$16,0))*Overzichtsberekening!$J30)*$I$3+INDEX(Dropdownmenu!$I$3:$I$16,MATCH(Overzichtsberekening!$G30,Dropdownmenu!$A$3:$A$16,0))*Overzichtsberekening!$J30*$I$4),\"\")","v":""},null,null,{"$f":"IFERROR(IF(INDEX(Dropdownmenu!$H$3:$H$117,MATCH(Overzichtsberekening!$G30,Dropdownmenu!$A$3:$A$117,0))<>\"woningen bewoners\",Overzichtsberekening!S30*INDEX($J$3:$J$18,MATCH(INDEX(Dropdownmenu!$H$3:$H$117,MATCH(Overzichtsberekening!$G30,Dropdownmenu!$A$3:$A$117,0)),$B$3:$B$18,0)),(Overzichtsberekening!S30-INDEX(Dropdownmenu!$I$3:$I$16,MATCH(Overzichtsberekening!$G30,Dropdownmenu!$A$3:$A$16,0))*Overzichtsberekening!$J30)*$J$3+INDEX(Dropdownmenu!$I$3:$I$16,MATCH(Overzichtsberekening!$G30,Dropdownmenu!$A$3:$A$16,0))*Overzichtsberekening!$J30*$J$4),\"\")","v":""},{"$f":"IFERROR(IF(INDEX(Dropdownmenu!$H$3:$H$117,MATCH(Overzichtsberekening!$G30,Dropdownmenu!$A$3:$A$117,0))<>\"woningen bewoners\",Overzichtsberekening!T30*INDEX($J$3:$J$18,MATCH(INDEX(Dropdownmenu!$H$3:$H$117,MATCH(Overzichtsberekening!$G30,Dropdownmenu!$A$3:$A$117,0)),$B$3:$B$18,0)),(Overzichtsberekening!T30-INDEX(Dropdownmenu!$I$3:$I$16,MATCH(Overzichtsberekening!$G30,Dropdownmenu!$A$3:$A$16,0))*Overzichtsberekening!$J30)*$J$3+INDEX(Dropdownmenu!$I$3:$I$16,MATCH(Overzichtsberekening!$G30,Dropdownmenu!$A$3:$A$16,0))*Overzichtsberekening!$J30*$J$4),\"\")","v":""}]
[null,"sportfuncties binnen",0.5,0.5,1,0,1,1,1,0.75,null,"","",null,null,{"$f":"IFERROR(IF(INDEX(Dropdownmenu!$H$3:$H$117,MATCH(Overzichtsberekening!$G31,Dropdownmenu!$A$3:$A$117,0))<>\"woningen bewoners\",Overzichtsberekening!S31*INDEX($C$3:$C$18,MATCH(INDEX(Dropdownmenu!$H$3:$H$117,MATCH(Overzichtsberekening!$G31,Dropdownmenu!$A$3:$A$117,0)),$B$3:$B$18,0)),(Overzichtsberekening!S31-INDEX(Dropdownmenu!$I$3:$I$16,MATCH(Overzichtsberekening!$G31,Dropdownmenu!$A$3:$A$16,0))*Overzichtsberekening!$J31)*$C$3+INDEX(Dropdownmenu!$I$3:$I$16,MATCH(Overzichtsberekening!$G31,Dropdownmenu!$A$3:$A$16,0))*Overzichtsberekening!$J31*$C$4),\"\")","v":""},{"$f":"IFERROR(IF(INDEX(Dropdownmenu!$H$3:$H$117,MATCH(Overzichtsberekening!$G31,Dropdownmenu!$A$3:$A$117,0))<>\"woningen bewoners\",Overzichtsberekening!T31*INDEX($C$3:$C$18,MATCH(INDEX(Dropdownmenu!$H$3:$H$117,MATCH(Overzichtsberekening!$G31,Dropdownmenu!$A$3:$A$117,0)),$B$3:$B$18,0)),(Overzichtsberekening!T31-INDEX(Dropdownmenu!$I$3:$I$16,MATCH(Overzichtsberekening!$G31,Dropdownmenu!$A$3:$A$16,0))*Overzichtsberekening!$J31)*$C$3+INDEX(Dropdownmenu!$I$3:$I$16,MATCH(Overzichtsberekening!$G31,Dropdownmenu!$A$3:$A$16,0))*Overzichtsberekening!$J31*$C$4),\"\")","v":""},null,null,{"$f":"IFERROR(IF(INDEX(Dropdownmenu!$H$3:$H$117,MATCH(Overzichtsberekening!$G31,Dropdownmenu!$A$3:$A$117,0))<>\"woningen bewoners\",Overzichtsberekening!S31*INDEX($D$3:$D$18,MATCH(INDEX(Dropdownmenu!$H$3:$H$117,MATCH(Overzichtsberekening!$G31,Dropdownmenu!$A$3:$A$117,0)),$B$3:$B$18,0)),(Overzichtsberekening!S31-INDEX(Dropdownmenu!$I$3:$I$16,MATCH(Overzichtsberekening!$G31,Dropdownmenu!$A$3:$A$16,0))*Overzichtsberekening!$J31)*$D$3+INDEX(Dropdownmenu!$I$3:$I$16,MATCH(Overzichtsberekening!$G31,Dropdownmenu!$A$3:$A$16,0))*Overzichtsberekening!$J31*$D$4),\"\")","v":""},{"$f":"IFERROR(IF(INDEX(Dropdownmenu!$H$3:$H$117,MATCH(Overzichtsberekening!$G31,Dropdownmenu!$A$3:$A$117,0))<>\"woningen bewoners\",Overzichtsberekening!T31*INDEX($D$3:$D$18,MATCH(INDEX(Dropdownmenu!$H$3:$H$117,MATCH(Overzichtsberekening!$G31,Dropdownmenu!$A$3:$A$117,0)),$B$3:$B$18,0)),(Overzichtsberekening!T31-INDEX(Dropdownmenu!$I$3:$I$16,MATCH(Overzichtsberekening!$G31,Dropdownmenu!$A$3:$A$16,0))*Overzichtsberekening!$J31)*$D$3+INDEX(Dropdownmenu!$I$3:$I$16,MATCH(Overzichtsberekening!$G31,Dropdownmenu!$A$3:$A$16,0))*Overzichtsberekening!$J31*$D$4),\"\")","v":""},null,null,{"$f":"IFERROR(IF(INDEX(Dropdownmenu!$H$3:$H$117,MATCH(Overzichtsberekening!$G31,Dropdownmenu!$A$3:$A$117,0))<>\"woningen bewoners\",Overzichtsberekening!S31*INDEX($E$3:$E$18,MATCH(INDEX(Dropdownmenu!$H$3:$H$117,MATCH(Overzichtsberekening!$G31,Dropdownmenu!$A$3:$A$117,0)),$B$3:$B$18,0)),(Overzichtsberekening!S31-INDEX(Dropdownmenu!$I$3:$I$16,MATCH(Overzichtsberekening!$G31,Dropdownmenu!$A$3:$A$16,0))*Overzichtsberekening!$J31)*$E$3+INDEX(Dropdownmenu!$I$3:$I$16,MATCH(Overzichtsberekening!$G31,Dropdownmenu!$A$3:$A$16,0))*Overzichtsberekening!$J31*$E$4),\"\")","v":""},{"$f":"IFERROR(IF(INDEX(Dropdownmenu!$H$3:$H$117,MATCH(Overzichtsberekening!$G31,Dropdownmenu!$A$3:$A$117,0))<>\"woningen bewoners\",Overzichtsberekening!T31*INDEX($E$3:$E$18,MATCH(INDEX(Dropdownmenu!$H$3:$H$117,MATCH(Overzichtsberekening!$G31,Dropdownmenu!$A$3:$A$117,0)),$B$3:$B$18,0)),(Overzichtsberekening!T31-INDEX(Dropdownmenu!$I$3:$I$16,MATCH(Overzichtsberekening!$G31,Dropdownmenu!$A$3:$A$16,0))*Overzichtsberekening!$J31)*$E$3+INDEX(Dropdownmenu!$I$3:$I$16,MATCH(Overzichtsberekening!$G31,Dropdownmenu!$A$3:$A$16,0))*Overzichtsberekening!$J31*$E$4),\"\")","v":""},null,null,{"$f":"IFERROR(IF(INDEX(Dropdownmenu!$H$3:$H$117,MATCH(Overzichtsberekening!$G31,Dropdownmenu!$A$3:$A$117,0))<>\"woningen bewoners\",Overzichtsberekening!S31*INDEX($F$3:$F$18,MATCH(INDEX(Dropdownmenu!$H$3:$H$117,MATCH(Overzichtsberekening!$G31,Dropdownmenu!$A$3:$A$117,0)),$B$3:$B$18,0)),(Overzichtsberekening!S31-INDEX(Dropdownmenu!$I$3:$I$16,MATCH(Overzichtsberekening!$G31,Dropdownmenu!$A$3:$A$16,0))*Overzichtsberekening!$J31)*$F$3+INDEX(Dropdownmenu!$I$3:$I$16,MATCH(Overzichtsberekening!$G31,Dropdownmenu!$A$3:$A$16,0))*Overzichtsberekening!$J31*$F$4),\"\")","v":""},{"$f":"IFERROR(IF(INDEX(Dropdownmenu!$H$3:$H$117,MATCH(Overzichtsberekening!$G31,Dropdownmenu!$A$3:$A$117,0))<>\"woningen bewoners\",Overzichtsberekening!T31*INDEX($F$3:$F$18,MATCH(INDEX(Dropdownmenu!$H$3:$H$117,MATCH(Overzichtsberekening!$G31,Dropdownmenu!$A$3:$A$117,0)),$B$3:$B$18,0)),(Overzichtsberekening!T31-INDEX(Dropdownmenu!$I$3:$I$16,MATCH(Overzichtsberekening!$G31,Dropdownmenu!$A$3:$A$16,0))*Overzichtsberekening!$J31)*$F$3+INDEX(Dropdownmenu!$I$3:$I$16,MATCH(Overzichtsberekening!$G31,Dropdownmenu!$A$3:$A$16,0))*Overzichtsberekening!$J31*$F$4),\"\")","v":""},null,null,{"$f":"IFERROR(IF(INDEX(Dropdownmenu!$H$3:$H$117,MATCH(Overzichtsberekening!$G31,Dropdownmenu!$A$3:$A$117,0))<>\"woningen bewoners\",Overzichtsberekening!S31*INDEX($G$3:$G$18,MATCH(INDEX(Dropdownmenu!$H$3:$H$117,MATCH(Overzichtsberekening!$G31,Dropdownmenu!$A$3:$A$117,0)),$B$3:$B$18,0)),(Overzichtsberekening!S31-INDEX(Dropdownmenu!$I$3:$I$16,MATCH(Overzichtsberekening!$G31,Dropdownmenu!$A$3:$A$16,0))*Overzichtsberekening!$J31)*$G$3+INDEX(Dropdownmenu!$I$3:$I$16,MATCH(Overzichtsberekening!$G31,Dropdownmenu!$A$3:$A$16,0))*Overzichtsberekening!$J31*$G$4),\"\")","v":""},{"$f":"IFERROR(IF(INDEX(Dropdownmenu!$H$3:$H$117,MATCH(Overzichtsberekening!$G31,Dropdownmenu!$A$3:$A$117,0))<>\"woningen bewoners\",Overzichtsberekening!T31*INDEX($G$3:$G$18,MATCH(INDEX(Dropdownmenu!$H$3:$H$117,MATCH(Overzichtsberekening!$G31,Dropdownmenu!$A$3:$A$117,0)),$B$3:$B$18,0)),(Overzichtsberekening!T31-INDEX(Dropdownmenu!$I$3:$I$16,MATCH(Overzichtsberekening!$G31,Dropdownmenu!$A$3:$A$16,0))*Overzichtsberekening!$J31)*$G$3+INDEX(Dropdownmenu!$I$3:$I$16,MATCH(Overzichtsberekening!$G31,Dropdownmenu!$A$3:$A$16,0))*Overzichtsberekening!$J31*$G$4),\"\")","v":""},null,null,{"$f":"IFERROR(IF(INDEX(Dropdownmenu!$H$3:$H$117,MATCH(Overzichtsberekening!$G31,Dropdownmenu!$A$3:$A$117,0))<>\"woningen bewoners\",Overzichtsberekening!S31*INDEX($H$3:$H$18,MATCH(INDEX(Dropdownmenu!$H$3:$H$117,MATCH(Overzichtsberekening!$G31,Dropdownmenu!$A$3:$A$117,0)),$B$3:$B$18,0)),(Overzichtsberekening!S31-INDEX(Dropdownmenu!$I$3:$I$16,MATCH(Overzichtsberekening!$G31,Dropdownmenu!$A$3:$A$16,0))*Overzichtsberekening!$J31)*$H$3+INDEX(Dropdownmenu!$I$3:$I$16,MATCH(Overzichtsberekening!$G31,Dropdownmenu!$A$3:$A$16,0))*Overzichtsberekening!$J31*$H$4),\"\")","v":""},{"$f":"IFERROR(IF(INDEX(Dropdownmenu!$H$3:$H$117,MATCH(Overzichtsberekening!$G31,Dropdownmenu!$A$3:$A$117,0))<>\"woningen bewoners\",Overzichtsberekening!T31*INDEX($H$3:$H$18,MATCH(INDEX(Dropdownmenu!$H$3:$H$117,MATCH(Overzichtsberekening!$G31,Dropdownmenu!$A$3:$A$117,0)),$B$3:$B$18,0)),(Overzichtsberekening!T31-INDEX(Dropdownmenu!$I$3:$I$16,MATCH(Overzichtsberekening!$G31,Dropdownmenu!$A$3:$A$16,0))*Overzichtsberekening!$J31)*$H$3+INDEX(Dropdownmenu!$I$3:$I$16,MATCH(Overzichtsberekening!$G31,Dropdownmenu!$A$3:$A$16,0))*Overzichtsberekening!$J31*$H$4),\"\")","v":""},null,null,{"$f":"IFERROR(IF(INDEX(Dropdownmenu!$H$3:$H$117,MATCH(Overzichtsberekening!$G31,Dropdownmenu!$A$3:$A$117,0))<>\"woningen bewoners\",Overzichtsberekening!S31*INDEX($I$3:$I$18,MATCH(INDEX(Dropdownmenu!$H$3:$H$117,MATCH(Overzichtsberekening!$G31,Dropdownmenu!$A$3:$A$117,0)),$B$3:$B$18,0)),(Overzichtsberekening!S31-INDEX(Dropdownmenu!$I$3:$I$16,MATCH(Overzichtsberekening!$G31,Dropdownmenu!$A$3:$A$16,0))*Overzichtsberekening!$J31)*$I$3+INDEX(Dropdownmenu!$I$3:$I$16,MATCH(Overzichtsberekening!$G31,Dropdownmenu!$A$3:$A$16,0))*Overzichtsberekening!$J31*$I$4),\"\")","v":""},{"$f":"IFERROR(IF(INDEX(Dropdownmenu!$H$3:$H$117,MATCH(Overzichtsberekening!$G31,Dropdownmenu!$A$3:$A$117,0))<>\"woningen bewoners\",Overzichtsberekening!T31*INDEX($I$3:$I$18,MATCH(INDEX(Dropdownmenu!$H$3:$H$117,MATCH(Overzichtsberekening!$G31,Dropdownmenu!$A$3:$A$117,0)),$B$3:$B$18,0)),(Overzichtsberekening!T31-INDEX(Dropdownmenu!$I$3:$I$16,MATCH(Overzichtsberekening!$G31,Dropdownmenu!$A$3:$A$16,0))*Overzichtsberekening!$J31)*$I$3+INDEX(Dropdownmenu!$I$3:$I$16,MATCH(Overzichtsberekening!$G31,Dropdownmenu!$A$3:$A$16,0))*Overzichtsberekening!$J31*$I$4),\"\")","v":""},null,null,{"$f":"IFERROR(IF(INDEX(Dropdownmenu!$H$3:$H$117,MATCH(Overzichtsberekening!$G31,Dropdownmenu!$A$3:$A$117,0))<>\"woningen bewoners\",Overzichtsberekening!S31*INDEX($J$3:$J$18,MATCH(INDEX(Dropdownmenu!$H$3:$H$117,MATCH(Overzichtsberekening!$G31,Dropdownmenu!$A$3:$A$117,0)),$B$3:$B$18,0)),(Overzichtsberekening!S31-INDEX(Dropdownmenu!$I$3:$I$16,MATCH(Overzichtsberekening!$G31,Dropdownmenu!$A$3:$A$16,0))*Overzichtsberekening!$J31)*$J$3+INDEX(Dropdownmenu!$I$3:$I$16,MATCH(Overzichtsberekening!$G31,Dropdownmenu!$A$3:$A$16,0))*Overzichtsberekening!$J31*$J$4),\"\")","v":""},{"$f":"IFERROR(IF(INDEX(Dropdownmenu!$H$3:$H$117,MATCH(Overzichtsberekening!$G31,Dropdownmenu!$A$3:$A$117,0))<>\"woningen bewoners\",Overzichtsberekening!T31*INDEX($J$3:$J$18,MATCH(INDEX(Dropdownmenu!$H$3:$H$117,MATCH(Overzichtsberekening!$G31,Dropdownmenu!$A$3:$A$117,0)),$B$3:$B$18,0)),(Overzichtsberekening!T31-INDEX(Dropdownmenu!$I$3:$I$16,MATCH(Overzichtsberekening!$G31,Dropdownmenu!$A$3:$A$16,0))*Overzichtsberekening!$J31)*$J$3+INDEX(Dropdownmenu!$I$3:$I$16,MATCH(Overzichtsberekening!$G31,Dropdownmenu!$A$3:$A$16,0))*Overzichtsberekening!$J31*$J$4),\"\")","v":""}]
[null,"sportfuncties buiten",0.25,0.25,0.5,0,0.5,1,0.25,1,null,"","",null,null,{"$f":"IFERROR(IF(INDEX(Dropdownmenu!$H$3:$H$117,MATCH(Overzichtsberekening!$G32,Dropdownmenu!$A$3:$A$117,0))<>\"woningen bewoners\",Overzichtsberekening!S32*INDEX($C$3:$C$18,MATCH(INDEX(Dropdownmenu!$H$3:$H$117,MATCH(Overzichtsberekening!$G32,Dropdownmenu!$A$3:$A$117,0)),$B$3:$B$18,0)),(Overzichtsberekening!S32-INDEX(Dropdownmenu!$I$3:$I$16,MATCH(Overzichtsberekening!$G32,Dropdownmenu!$A$3:$A$16,0))*Overzichtsberekening!$J32)*$C$3+INDEX(Dropdownmenu!$I$3:$I$16,MATCH(Overzichtsberekening!$G32,Dropdownmenu!$A$3:$A$16,0))*Overzichtsberekening!$J32*$C$4),\"\")","v":""},{"$f":"IFERROR(IF(INDEX(Dropdownmenu!$H$3:$H$117,MATCH(Overzichtsberekening!$G32,Dropdownmenu!$A$3:$A$117,0))<>\"woningen bewoners\",Overzichtsberekening!T32*INDEX($C$3:$C$18,MATCH(INDEX(Dropdownmenu!$H$3:$H$117,MATCH(Overzichtsberekening!$G32,Dropdownmenu!$A$3:$A$117,0)),$B$3:$B$18,0)),(Overzichtsberekening!T32-INDEX(Dropdownmenu!$I$3:$I$16,MATCH(Overzichtsberekening!$G32,Dropdownmenu!$A$3:$A$16,0))*Overzichtsberekening!$J32)*$C$3+INDEX(Dropdownmenu!$I$3:$I$16,MATCH(Overzichtsberekening!$G32,Dropdownmenu!$A$3:$A$16,0))*Overzichtsberekening!$J32*$C$4),\"\")","v":""},null,null,{"$f":"IFERROR(IF(INDEX(Dropdownmenu!$H$3:$H$117,MATCH(Overzichtsberekening!$G32,Dropdownmenu!$A$3:$A$117,0))<>\"woningen bewoners\",Overzichtsberekening!S32*INDEX($D$3:$D$18,MATCH(INDEX(Dropdownmenu!$H$3:$H$117,MATCH(Overzichtsberekening!$G32,Dropdownmenu!$A$3:$A$117,0)),$B$3:$B$18,0)),(Overzichtsberekening!S32-INDEX(Dropdownmenu!$I$3:$I$16,MATCH(Overzichtsberekening!$G32,Dropdownmenu!$A$3:$A$16,0))*Overzichtsberekening!$J32)*$D$3+INDEX(Dropdownmenu!$I$3:$I$16,MATCH(Overzichtsberekening!$G32,Dropdownmenu!$A$3:$A$16,0))*Overzichtsberekening!$J32*$D$4),\"\")","v":""},{"$f":"IFERROR(IF(INDEX(Dropdownmenu!$H$3:$H$117,MATCH(Overzichtsberekening!$G32,Dropdownmenu!$A$3:$A$117,0))<>\"woningen bewoners\",Overzichtsberekening!T32*INDEX($D$3:$D$18,MATCH(INDEX(Dropdownmenu!$H$3:$H$117,MATCH(Overzichtsberekening!$G32,Dropdownmenu!$A$3:$A$117,0)),$B$3:$B$18,0)),(Overzichtsberekening!T32-INDEX(Dropdownmenu!$I$3:$I$16,MATCH(Overzichtsberekening!$G32,Dropdownmenu!$A$3:$A$16,0))*Overzichtsberekening!$J32)*$D$3+INDEX(Dropdownmenu!$I$3:$I$16,MATCH(Overzichtsberekening!$G32,Dropdownmenu!$A$3:$A$16,0))*Overzichtsberekening!$J32*$D$4),\"\")","v":""},null,null,{"$f":"IFERROR(IF(INDEX(Dropdownmenu!$H$3:$H$117,MATCH(Overzichtsberekening!$G32,Dropdownmenu!$A$3:$A$117,0))<>\"woningen bewoners\",Overzichtsberekening!S32*INDEX($E$3:$E$18,MATCH(INDEX(Dropdownmenu!$H$3:$H$117,MATCH(Overzichtsberekening!$G32,Dropdownmenu!$A$3:$A$117,0)),$B$3:$B$18,0)),(Overzichtsberekening!S32-INDEX(Dropdownmenu!$I$3:$I$16,MATCH(Overzichtsberekening!$G32,Dropdownmenu!$A$3:$A$16,0))*Overzichtsberekening!$J32)*$E$3+INDEX(Dropdownmenu!$I$3:$I$16,MATCH(Overzichtsberekening!$G32,Dropdownmenu!$A$3:$A$16,0))*Overzichtsberekening!$J32*$E$4),\"\")","v":""},{"$f":"IFERROR(IF(INDEX(Dropdownmenu!$H$3:$H$117,MATCH(Overzichtsberekening!$G32,Dropdownmenu!$A$3:$A$117,0))<>\"woningen bewoners\",Overzichtsberekening!T32*INDEX($E$3:$E$18,MATCH(INDEX(Dropdownmenu!$H$3:$H$117,MATCH(Overzichtsberekening!$G32,Dropdownmenu!$A$3:$A$117,0)),$B$3:$B$18,0)),(Overzichtsberekening!T32-INDEX(Dropdownmenu!$I$3:$I$16,MATCH(Overzichtsberekening!$G32,Dropdownmenu!$A$3:$A$16,0))*Overzichtsberekening!$J32)*$E$3+INDEX(Dropdownmenu!$I$3:$I$16,MATCH(Overzichtsberekening!$G32,Dropdownmenu!$A$3:$A$16,0))*Overzichtsberekening!$J32*$E$4),\"\")","v":""},null,null,{"$f":"IFERROR(IF(INDEX(Dropdownmenu!$H$3:$H$117,MATCH(Overzichtsberekening!$G32,Dropdownmenu!$A$3:$A$117,0))<>\"woningen bewoners\",Overzichtsberekening!S32*INDEX($F$3:$F$18,MATCH(INDEX(Dropdownmenu!$H$3:$H$117,MATCH(Overzichtsberekening!$G32,Dropdownmenu!$A$3:$A$117,0)),$B$3:$B$18,0)),(Overzichtsberekening!S32-INDEX(Dropdownmenu!$I$3:$I$16,MATCH(Overzichtsberekening!$G32,Dropdownmenu!$A$3:$A$16,0))*Overzichtsberekening!$J32)*$F$3+INDEX(Dropdownmenu!$I$3:$I$16,MATCH(Overzichtsberekening!$G32,Dropdownmenu!$A$3:$A$16,0))*Overzichtsberekening!$J32*$F$4),\"\")","v":""},{"$f":"IFERROR(IF(INDEX(Dropdownmenu!$H$3:$H$117,MATCH(Overzichtsberekening!$G32,Dropdownmenu!$A$3:$A$117,0))<>\"woningen bewoners\",Overzichtsberekening!T32*INDEX($F$3:$F$18,MATCH(INDEX(Dropdownmenu!$H$3:$H$117,MATCH(Overzichtsberekening!$G32,Dropdownmenu!$A$3:$A$117,0)),$B$3:$B$18,0)),(Overzichtsberekening!T32-INDEX(Dropdownmenu!$I$3:$I$16,MATCH(Overzichtsberekening!$G32,Dropdownmenu!$A$3:$A$16,0))*Overzichtsberekening!$J32)*$F$3+INDEX(Dropdownmenu!$I$3:$I$16,MATCH(Overzichtsberekening!$G32,Dropdownmenu!$A$3:$A$16,0))*Overzichtsberekening!$J32*$F$4),\"\")","v":""},null,null,{"$f":"IFERROR(IF(INDEX(Dropdownmenu!$H$3:$H$117,MATCH(Overzichtsberekening!$G32,Dropdownmenu!$A$3:$A$117,0))<>\"woningen bewoners\",Overzichtsberekening!S32*INDEX($G$3:$G$18,MATCH(INDEX(Dropdownmenu!$H$3:$H$117,MATCH(Overzichtsberekening!$G32,Dropdownmenu!$A$3:$A$117,0)),$B$3:$B$18,0)),(Overzichtsberekening!S32-INDEX(Dropdownmenu!$I$3:$I$16,MATCH(Overzichtsberekening!$G32,Dropdownmenu!$A$3:$A$16,0))*Overzichtsberekening!$J32)*$G$3+INDEX(Dropdownmenu!$I$3:$I$16,MATCH(Overzichtsberekening!$G32,Dropdownmenu!$A$3:$A$16,0))*Overzichtsberekening!$J32*$G$4),\"\")","v":""},{"$f":"IFERROR(IF(INDEX(Dropdownmenu!$H$3:$H$117,MATCH(Overzichtsberekening!$G32,Dropdownmenu!$A$3:$A$117,0))<>\"woningen bewoners\",Overzichtsberekening!T32*INDEX($G$3:$G$18,MATCH(INDEX(Dropdownmenu!$H$3:$H$117,MATCH(Overzichtsberekening!$G32,Dropdownmenu!$A$3:$A$117,0)),$B$3:$B$18,0)),(Overzichtsberekening!T32-INDEX(Dropdownmenu!$I$3:$I$16,MATCH(Overzichtsberekening!$G32,Dropdownmenu!$A$3:$A$16,0))*Overzichtsberekening!$J32)*$G$3+INDEX(Dropdownmenu!$I$3:$I$16,MATCH(Overzichtsberekening!$G32,Dropdownmenu!$A$3:$A$16,0))*Overzichtsberekening!$J32*$G$4),\"\")","v":""},null,null,{"$f":"IFERROR(IF(INDEX(Dropdownmenu!$H$3:$H$117,MATCH(Overzichtsberekening!$G32,Dropdownmenu!$A$3:$A$117,0))<>\"woningen bewoners\",Overzichtsberekening!S32*INDEX($H$3:$H$18,MATCH(INDEX(Dropdownmenu!$H$3:$H$117,MATCH(Overzichtsberekening!$G32,Dropdownmenu!$A$3:$A$117,0)),$B$3:$B$18,0)),(Overzichtsberekening!S32-INDEX(Dropdownmenu!$I$3:$I$16,MATCH(Overzichtsberekening!$G32,Dropdownmenu!$A$3:$A$16,0))*Overzichtsberekening!$J32)*$H$3+INDEX(Dropdownmenu!$I$3:$I$16,MATCH(Overzichtsberekening!$G32,Dropdownmenu!$A$3:$A$16,0))*Overzichtsberekening!$J32*$H$4),\"\")","v":""},{"$f":"IFERROR(IF(INDEX(Dropdownmenu!$H$3:$H$117,MATCH(Overzichtsberekening!$G32,Dropdownmenu!$A$3:$A$117,0))<>\"woningen bewoners\",Overzichtsberekening!T32*INDEX($H$3:$H$18,MATCH(INDEX(Dropdownmenu!$H$3:$H$117,MATCH(Overzichtsberekening!$G32,Dropdownmenu!$A$3:$A$117,0)),$B$3:$B$18,0)),(Overzichtsberekening!T32-INDEX(Dropdownmenu!$I$3:$I$16,MATCH(Overzichtsberekening!$G32,Dropdownmenu!$A$3:$A$16,0))*Overzichtsberekening!$J32)*$H$3+INDEX(Dropdownmenu!$I$3:$I$16,MATCH(Overzichtsberekening!$G32,Dropdownmenu!$A$3:$A$16,0))*Overzichtsberekening!$J32*$H$4),\"\")","v":""},null,null,{"$f":"IFERROR(IF(INDEX(Dropdownmenu!$H$3:$H$117,MATCH(Overzichtsberekening!$G32,Dropdownmenu!$A$3:$A$117,0))<>\"woningen bewoners\",Overzichtsberekening!S32*INDEX($I$3:$I$18,MATCH(INDEX(Dropdownmenu!$H$3:$H$117,MATCH(Overzichtsberekening!$G32,Dropdownmenu!$A$3:$A$117,0)),$B$3:$B$18,0)),(Overzichtsberekening!S32-INDEX(Dropdownmenu!$I$3:$I$16,MATCH(Overzichtsberekening!$G32,Dropdownmenu!$A$3:$A$16,0))*Overzichtsberekening!$J32)*$I$3+INDEX(Dropdownmenu!$I$3:$I$16,MATCH(Overzichtsberekening!$G32,Dropdownmenu!$A$3:$A$16,0))*Overzichtsberekening!$J32*$I$4),\"\")","v":""},{"$f":"IFERROR(IF(INDEX(Dropdownmenu!$H$3:$H$117,MATCH(Overzichtsberekening!$G32,Dropdownmenu!$A$3:$A$117,0))<>\"woningen bewoners\",Overzichtsberekening!T32*INDEX($I$3:$I$18,MATCH(INDEX(Dropdownmenu!$H$3:$H$117,MATCH(Overzichtsberekening!$G32,Dropdownmenu!$A$3:$A$117,0)),$B$3:$B$18,0)),(Overzichtsberekening!T32-INDEX(Dropdownmenu!$I$3:$I$16,MATCH(Overzichtsberekening!$G32,Dropdownmenu!$A$3:$A$16,0))*Overzichtsberekening!$J32)*$I$3+INDEX(Dropdownmenu!$I$3:$I$16,MATCH(Overzichtsberekening!$G32,Dropdownmenu!$A$3:$A$16,0))*Overzichtsberekening!$J32*$I$4),\"\")","v":""},null,null,{"$f":"IFERROR(IF(INDEX(Dropdownmenu!$H$3:$H$117,MATCH(Overzichtsberekening!$G32,Dropdownmenu!$A$3:$A$117,0))<>\"woningen bewoners\",Overzichtsberekening!S32*INDEX($J$3:$J$18,MATCH(INDEX(Dropdownmenu!$H$3:$H$117,MATCH(Overzichtsberekening!$G32,Dropdownmenu!$A$3:$A$117,0)),$B$3:$B$18,0)),(Overzichtsberekening!S32-INDEX(Dropdownmenu!$I$3:$I$16,MATCH(Overzichtsberekening!$G32,Dropdownmenu!$A$3:$A$16,0))*Overzichtsberekening!$J32)*$J$3+INDEX(Dropdownmenu!$I$3:$I$16,MATCH(Overzichtsberekening!$G32,Dropdownmenu!$A$3:$A$16,0))*Overzichtsberekening!$J32*$J$4),\"\")","v":""},{"$f":"IFERROR(IF(INDEX(Dropdownmenu!$H$3:$H$117,MATCH(Overzichtsberekening!$G32,Dropdownmenu!$A$3:$A$117,0))<>\"woningen bewoners\",Overzichtsberekening!T32*INDEX($J$3:$J$18,MATCH(INDEX(Dropdownmenu!$H$3:$H$117,MATCH(Overzichtsberekening!$G32,Dropdownmenu!$A$3:$A$117,0)),$B$3:$B$18,0)),(Overzichtsberekening!T32-INDEX(Dropdownmenu!$I$3:$I$16,MATCH(Overzichtsberekening!$G32,Dropdownmenu!$A$3:$A$16,0))*Overzichtsberekening!$J32)*$J$3+INDEX(Dropdownmenu!$I$3:$I$16,MATCH(Overzichtsberekening!$G32,Dropdownmenu!$A$3:$A$16,0))*Overzichtsberekening!$J32*$J$4),\"\")","v":""}]
[null,"bioscoop/theater/podium/enzovoort",0.05,0.25,0.9,0,0.9,0.4,1,0.4,null,"","",null,null,{"$f":"IFERROR(IF(INDEX(Dropdownmenu!$H$3:$H$117,MATCH(Overzichtsberekening!$G33,Dropdownmenu!$A$3:$A$117,0))<>\"woningen bewoners\",Overzichtsberekening!S33*INDEX($C$3:$C$18,MATCH(INDEX(Dropdownmenu!$H$3:$H$117,MATCH(Overzichtsberekening!$G33,Dropdownmenu!$A$3:$A$117,0)),$B$3:$B$18,0)),(Overzichtsberekening!S33-INDEX(Dropdownmenu!$I$3:$I$16,MATCH(Overzichtsberekening!$G33,Dropdownmenu!$A$3:$A$16,0))*Overzichtsberekening!$J33)*$C$3+INDEX(Dropdownmenu!$I$3:$I$16,MATCH(Overzichtsberekening!$G33,Dropdownmenu!$A$3:$A$16,0))*Overzichtsberekening!$J33*$C$4),\"\")","v":""},{"$f":"IFERROR(IF(INDEX(Dropdownmenu!$H$3:$H$117,MATCH(Overzichtsberekening!$G33,Dropdownmenu!$A$3:$A$117,0))<>\"woningen bewoners\",Overzichtsberekening!T33*INDEX($C$3:$C$18,MATCH(INDEX(Dropdownmenu!$H$3:$H$117,MATCH(Overzichtsberekening!$G33,Dropdownmenu!$A$3:$A$117,0)),$B$3:$B$18,0)),(Overzichtsberekening!T33-INDEX(Dropdownmenu!$I$3:$I$16,MATCH(Overzichtsberekening!$G33,Dropdownmenu!$A$3:$A$16,0))*Overzichtsberekening!$J33)*$C$3+INDEX(Dropdownmenu!$I$3:$I$16,MATCH(Overzichtsberekening!$G33,Dropdownmenu!$A$3:$A$16,0))*Overzichtsberekening!$J33*$C$4),\"\")","v":""},null,null,{"$f":"IFERROR(IF(INDEX(Dropdownmenu!$H$3:$H$117,MATCH(Overzichtsberekening!$G33,Dropdownmenu!$A$3:$A$117,0))<>\"woningen bewoners\",Overzichtsberekening!S33*INDEX($D$3:$D$18,MATCH(INDEX(Dropdownmenu!$H$3:$H$117,MATCH(Overzichtsberekening!$G33,Dropdownmenu!$A$3:$A$117,0)),$B$3:$B$18,0)),(Overzichtsberekening!S33-INDEX(Dropdownmenu!$I$3:$I$16,MATCH(Overzichtsberekening!$G33,Dropdownmenu!$A$3:$A$16,0))*Overzichtsberekening!$J33)*$D$3+INDEX(Dropdownmenu!$I$3:$I$16,MATCH(Overzichtsberekening!$G33,Dropdownmenu!$A$3:$A$16,0))*Overzichtsberekening!$J33*$D$4),\"\")","v":""},{"$f":"IFERROR(IF(INDEX(Dropdownmenu!$H$3:$H$117,MATCH(Overzichtsberekening!$G33,Dropdownmenu!$A$3:$A$117,0))<>\"woningen bewoners\",Overzichtsberekening!T33*INDEX($D$3:$D$18,MATCH(INDEX(Dropdownmenu!$H$3:$H$117,MATCH(Overzichtsberekening!$G33,Dropdownmenu!$A$3:$A$117,0)),$B$3:$B$18,0)),(Overzichtsberekening!T33-INDEX(Dropdownmenu!$I$3:$I$16,MATCH(Overzichtsberekening!$G33,Dropdownmenu!$A$3:$A$16,0))*Overzichtsberekening!$J33)*$D$3+INDEX(Dropdownmenu!$I$3:$I$16,MATCH(Overzichtsberekening!$G33,Dropdownmenu!$A$3:$A$16,0))*Overzichtsberekening!$J33*$D$4),\"\")","v":""},null,null,{"$f":"IFERROR(IF(INDEX(Dropdownmenu!$H$3:$H$117,MATCH(Overzichtsberekening!$G33,Dropdownmenu!$A$3:$A$117,0))<>\"woningen bewoners\",Overzichtsberekening!S33*INDEX($E$3:$E$18,MATCH(INDEX(Dropdownmenu!$H$3:$H$117,MATCH(Overzichtsberekening!$G33,Dropdownmenu!$A$3:$A$117,0)),$B$3:$B$18,0)),(Overzichtsberekening!S33-INDEX(Dropdownmenu!$I$3:$I$16,MATCH(Overzichtsberekening!$G33,Dropdownmenu!$A$3:$A$16,0))*Overzichtsberekening!$J33)*$E$3+INDEX(Dropdownmenu!$I$3:$I$16,MATCH(Overzichtsberekening!$G33,Dropdownmenu!$A$3:$A$16,0))*Overzichtsberekening!$J33*$E$4),\"\")","v":""},{"$f":"IFERROR(IF(INDEX(Dropdownmenu!$H$3:$H$117,MATCH(Overzichtsberekening!$G33,Dropdownmenu!$A$3:$A$117,0))<>\"woningen bewoners\",Overzichtsberekening!T33*INDEX($E$3:$E$18,MATCH(INDEX(Dropdownmenu!$H$3:$H$117,MATCH(Overzichtsberekening!$G33,Dropdownmenu!$A$3:$A$117,0)),$B$3:$B$18,0)),(Overzichtsberekening!T33-INDEX(Dropdownmenu!$I$3:$I$16,MATCH(Overzichtsberekening!$G33,Dropdownmenu!$A$3:$A$16,0))*Overzichtsberekening!$J33)*$E$3+INDEX(Dropdownmenu!$I$3:$I$16,MATCH(Overzichtsberekening!$G33,Dropdownmenu!$A$3:$A$16,0))*Overzichtsberekening!$J33*$E$4),\"\")","v":""},null,null,{"$f":"IFERROR(IF(INDEX(Dropdownmenu!$H$3:$H$117,MATCH(Overzichtsberekening!$G33,Dropdownmenu!$A$3:$A$117,0))<>\"woningen bewoners\",Overzichtsberekening!S33*INDEX($F$3:$F$18,MATCH(INDEX(Dropdownmenu!$H$3:$H$117,MATCH(Overzichtsberekening!$G33,Dropdownmenu!$A$3:$A$117,0)),$B$3:$B$18,0)),(Overzichtsberekening!S33-INDEX(Dropdownmenu!$I$3:$I$16,MATCH(Overzichtsberekening!$G33,Dropdownmenu!$A$3:$A$16,0))*Overzichtsberekening!$J33)*$F$3+INDEX(Dropdownmenu!$I$3:$I$16,MATCH(Overzichtsberekening!$G33,Dropdownmenu!$A$3:$A$16,0))*Overzichtsberekening!$J33*$F$4),\"\")","v":""},{"$f":"IFERROR(IF(INDEX(Dropdownmenu!$H$3:$H$117,MATCH(Overzichtsberekening!$G33,Dropdownmenu!$A$3:$A$117,0))<>\"woningen bewoners\",Overzichtsberekening!T33*INDEX($F$3:$F$18,MATCH(INDEX(Dropdownmenu!$H$3:$H$117,MATCH(Overzichtsberekening!$G33,Dropdownmenu!$A$3:$A$117,0)),$B$3:$B$18,0)),(Overzichtsberekening!T33-INDEX(Dropdownmenu!$I$3:$I$16,MATCH(Overzichtsberekening!$G33,Dropdownmenu!$A$3:$A$16,0))*Overzichtsberekening!$J33)*$F$3+INDEX(Dropdownmenu!$I$3:$I$16,MATCH(Overzichtsberekening!$G33,Dropdownmenu!$A$3:$A$16,0))*Overzichtsberekening!$J33*$F$4),\"\")","v":""},null,null,{"$f":"IFERROR(IF(INDEX(Dropdownmenu!$H$3:$H$117,MATCH(Overzichtsberekening!$G33,Dropdownmenu!$A$3:$A$117,0))<>\"woningen bewoners\",Overzichtsberekening!S33*INDEX($G$3:$G$18,MATCH(INDEX(Dropdownmenu!$H$3:$H$117,MATCH(Overzichtsberekening!$G33,Dropdownmenu!$A$3:$A$117,0)),$B$3:$B$18,0)),(Overzichtsberekening!S33-INDEX(Dropdownmenu!$I$3:$I$16,MATCH(Overzichtsberekening!$G33,Dropdownmenu!$A$3:$A$16,0))*Overzichtsberekening!$J33)*$G$3+INDEX(Dropdownmenu!$I$3:$I$16,MATCH(Overzichtsberekening!$G33,Dropdownmenu!$A$3:$A$16,0))*Overzichtsberekening!$J33*$G$4),\"\")","v":""},{"$f":"IFERROR(IF(INDEX(Dropdownmenu!$H$3:$H$117,MATCH(Overzichtsberekening!$G33,Dropdownmenu!$A$3:$A$117,0))<>\"woningen bewoners\",Overzichtsberekening!T33*INDEX($G$3:$G$18,MATCH(INDEX(Dropdownmenu!$H$3:$H$117,MATCH(Overzichtsberekening!$G33,Dropdownmenu!$A$3:$A$117,0)),$B$3:$B$18,0)),(Overzichtsberekening!T33-INDEX(Dropdownmenu!$I$3:$I$16,MATCH(Overzichtsberekening!$G33,Dropdownmenu!$A$3:$A$16,0))*Overzichtsberekening!$J33)*$G$3+INDEX(Dropdownmenu!$I$3:$I$16,MATCH(Overzichtsberekening!$G33,Dropdownmenu!$A$3:$A$16,0))*Overzichtsberekening!$J33*$G$4),\"\")","v":""},null,null,{"$f":"IFERROR(IF(INDEX(Dropdownmenu!$H$3:$H$117,MATCH(Overzichtsberekening!$G33,Dropdownmenu!$A$3:$A$117,0))<>\"woningen bewoners\",Overzichtsberekening!S33*INDEX($H$3:$H$18,MATCH(INDEX(Dropdownmenu!$H$3:$H$117,MATCH(Overzichtsberekening!$G33,Dropdownmenu!$A$3:$A$117,0)),$B$3:$B$18,0)),(Overzichtsberekening!S33-INDEX(Dropdownmenu!$I$3:$I$16,MATCH(Overzichtsberekening!$G33,Dropdownmenu!$A$3:$A$16,0))*Overzichtsberekening!$J33)*$H$3+INDEX(Dropdownmenu!$I$3:$I$16,MATCH(Overzichtsberekening!$G33,Dropdownmenu!$A$3:$A$16,0))*Overzichtsberekening!$J33*$H$4),\"\")","v":""},{"$f":"IFERROR(IF(INDEX(Dropdownmenu!$H$3:$H$117,MATCH(Overzichtsberekening!$G33,Dropdownmenu!$A$3:$A$117,0))<>\"woningen bewoners\",Overzichtsberekening!T33*INDEX($H$3:$H$18,MATCH(INDEX(Dropdownmenu!$H$3:$H$117,MATCH(Overzichtsberekening!$G33,Dropdownmenu!$A$3:$A$117,0)),$B$3:$B$18,0)),(Overzichtsberekening!T33-INDEX(Dropdownmenu!$I$3:$I$16,MATCH(Overzichtsberekening!$G33,Dropdownmenu!$A$3:$A$16,0))*Overzichtsberekening!$J33)*$H$3+INDEX(Dropdownmenu!$I$3:$I$16,MATCH(Overzichtsberekening!$G33,Dropdownmenu!$A$3:$A$16,0))*Overzichtsberekening!$J33*$H$4),\"\")","v":""},null,null,{"$f":"IFERROR(IF(INDEX(Dropdownmenu!$H$3:$H$117,MATCH(Overzichtsberekening!$G33,Dropdownmenu!$A$3:$A$117,0))<>\"woningen bewoners\",Overzichtsberekening!S33*INDEX($I$3:$I$18,MATCH(INDEX(Dropdownmenu!$H$3:$H$117,MATCH(Overzichtsberekening!$G33,Dropdownmenu!$A$3:$A$117,0)),$B$3:$B$18,0)),(Overzichtsberekening!S33-INDEX(Dropdownmenu!$I$3:$I$16,MATCH(Overzichtsberekening!$G33,Dropdownmenu!$A$3:$A$16,0))*Overzichtsberekening!$J33)*$I$3+INDEX(Dropdownmenu!$I$3:$I$16,MATCH(Overzichtsberekening!$G33,Dropdownmenu!$A$3:$A$16,0))*Overzichtsberekening!$J33*$I$4),\"\")","v":""},{"$f":"IFERROR(IF(INDEX(Dropdownmenu!$H$3:$H$117,MATCH(Overzichtsberekening!$G33,Dropdownmenu!$A$3:$A$117,0))<>\"woningen bewoners\",Overzichtsberekening!T33*INDEX($I$3:$I$18,MATCH(INDEX(Dropdownmenu!$H$3:$H$117,MATCH(Overzichtsberekening!$G33,Dropdownmenu!$A$3:$A$117,0)),$B$3:$B$18,0)),(Overzichtsberekening!T33-INDEX(Dropdownmenu!$I$3:$I$16,MATCH(Overzichtsberekening!$G33,Dropdownmenu!$A$3:$A$16,0))*Overzichtsberekening!$J33)*$I$3+INDEX(Dropdownmenu!$I$3:$I$16,MATCH(Overzichtsberekening!$G33,Dropdownmenu!$A$3:$A$16,0))*Overzichtsberekening!$J33*$I$4),\"\")","v":""},null,null,{"$f":"IFERROR(IF(INDEX(Dropdownmenu!$H$3:$H$117,MATCH(Overzichtsberekening!$G33,Dropdownmenu!$A$3:$A$117,0))<>\"woningen bewoners\",Overzichtsberekening!S33*INDEX($J$3:$J$18,MATCH(INDEX(Dropdownmenu!$H$3:$H$117,MATCH(Overzichtsberekening!$G33,Dropdownmenu!$A$3:$A$117,0)),$B$3:$B$18,0)),(Overzichtsberekening!S33-INDEX(Dropdownmenu!$I$3:$I$16,MATCH(Overzichtsberekening!$G33,Dropdownmenu!$A$3:$A$16,0))*Overzichtsberekening!$J33)*$J$3+INDEX(Dropdownmenu!$I$3:$I$16,MATCH(Overzichtsberekening!$G33,Dropdownmenu!$A$3:$A$16,0))*Overzichtsberekening!$J33*$J$4),\"\")","v":""},{"$f":"IFERROR(IF(INDEX(Dropdownmenu!$H$3:$H$117,MATCH(Overzichtsberekening!$G33,Dropdownmenu!$A$3:$A$117,0))<>\"woningen bewoners\",Overzichtsberekening!T33*INDEX($J$3:$J$18,MATCH(INDEX(Dropdownmenu!$H$3:$H$117,MATCH(Overzichtsberekening!$G33,Dropdownmenu!$A$3:$A$117,0)),$B$3:$B$18,0)),(Overzichtsberekening!T33-INDEX(Dropdownmenu!$I$3:$I$16,MATCH(Overzichtsberekening!$G33,Dropdownmenu!$A$3:$A$16,0))*Overzichtsberekening!$J33)*$J$3+INDEX(Dropdownmenu!$I$3:$I$16,MATCH(Overzichtsberekening!$G33,Dropdownmenu!$A$3:$A$16,0))*Overzichtsberekening!$J33*$J$4),\"\")","v":""}]
[null,"sociaal medisch: arts/therapeut/consultatiebureau",1,0.75,0.1,0,0.1,0.1,0.1,0.1,null,"","",null,null,{"$f":"IFERROR(IF(INDEX(Dropdownmenu!$H$3:$H$117,MATCH(Overzichtsberekening!$G34,Dropdownmenu!$A$3:$A$117,0))<>\"woningen bewoners\",Overzichtsberekening!S34*INDEX($C$3:$C$18,MATCH(INDEX(Dropdownmenu!$H$3:$H$117,MATCH(Overzichtsberekening!$G34,Dropdownmenu!$A$3:$A$117,0)),$B$3:$B$18,0)),(Overzichtsberekening!S34-INDEX(Dropdownmenu!$I$3:$I$16,MATCH(Overzichtsberekening!$G34,Dropdownmenu!$A$3:$A$16,0))*Overzichtsberekening!$J34)*$C$3+INDEX(Dropdownmenu!$I$3:$I$16,MATCH(Overzichtsberekening!$G34,Dropdownmenu!$A$3:$A$16,0))*Overzichtsberekening!$J34*$C$4),\"\")","v":""},{"$f":"IFERROR(IF(INDEX(Dropdownmenu!$H$3:$H$117,MATCH(Overzichtsberekening!$G34,Dropdownmenu!$A$3:$A$117,0))<>\"woningen bewoners\",Overzichtsberekening!T34*INDEX($C$3:$C$18,MATCH(INDEX(Dropdownmenu!$H$3:$H$117,MATCH(Overzichtsberekening!$G34,Dropdownmenu!$A$3:$A$117,0)),$B$3:$B$18,0)),(Overzichtsberekening!T34-INDEX(Dropdownmenu!$I$3:$I$16,MATCH(Overzichtsberekening!$G34,Dropdownmenu!$A$3:$A$16,0))*Overzichtsberekening!$J34)*$C$3+INDEX(Dropdownmenu!$I$3:$I$16,MATCH(Overzichtsberekening!$G34,Dropdownmenu!$A$3:$A$16,0))*Overzichtsberekening!$J34*$C$4),\"\")","v":""},null,null,{"$f":"IFERROR(IF(INDEX(Dropdownmenu!$H$3:$H$117,MATCH(Overzichtsberekening!$G34,Dropdownmenu!$A$3:$A$117,0))<>\"woningen bewoners\",Overzichtsberekening!S34*INDEX($D$3:$D$18,MATCH(INDEX(Dropdownmenu!$H$3:$H$117,MATCH(Overzichtsberekening!$G34,Dropdownmenu!$A$3:$A$117,0)),$B$3:$B$18,0)),(Overzichtsberekening!S34-INDEX(Dropdownmenu!$I$3:$I$16,MATCH(Overzichtsberekening!$G34,Dropdownmenu!$A$3:$A$16,0))*Overzichtsberekening!$J34)*$D$3+INDEX(Dropdownmenu!$I$3:$I$16,MATCH(Overzichtsberekening!$G34,Dropdownmenu!$A$3:$A$16,0))*Overzichtsberekening!$J34*$D$4),\"\")","v":""},{"$f":"IFERROR(IF(INDEX(Dropdownmenu!$H$3:$H$117,MATCH(Overzichtsberekening!$G34,Dropdownmenu!$A$3:$A$117,0))<>\"woningen bewoners\",Overzichtsberekening!T34*INDEX($D$3:$D$18,MATCH(INDEX(Dropdownmenu!$H$3:$H$117,MATCH(Overzichtsberekening!$G34,Dropdownmenu!$A$3:$A$117,0)),$B$3:$B$18,0)),(Overzichtsberekening!T34-INDEX(Dropdownmenu!$I$3:$I$16,MATCH(Overzichtsberekening!$G34,Dropdownmenu!$A$3:$A$16,0))*Overzichtsberekening!$J34)*$D$3+INDEX(Dropdownmenu!$I$3:$I$16,MATCH(Overzichtsberekening!$G34,Dropdownmenu!$A$3:$A$16,0))*Overzichtsberekening!$J34*$D$4),\"\")","v":""},null,null,{"$f":"IFERROR(IF(INDEX(Dropdownmenu!$H$3:$H$117,MATCH(Overzichtsberekening!$G34,Dropdownmenu!$A$3:$A$117,0))<>\"woningen bewoners\",Overzichtsberekening!S34*INDEX($E$3:$E$18,MATCH(INDEX(Dropdownmenu!$H$3:$H$117,MATCH(Overzichtsberekening!$G34,Dropdownmenu!$A$3:$A$117,0)),$B$3:$B$18,0)),(Overzichtsberekening!S34-INDEX(Dropdownmenu!$I$3:$I$16,MATCH(Overzichtsberekening!$G34,Dropdownmenu!$A$3:$A$16,0))*Overzichtsberekening!$J34)*$E$3+INDEX(Dropdownmenu!$I$3:$I$16,MATCH(Overzichtsberekening!$G34,Dropdownmenu!$A$3:$A$16,0))*Overzichtsberekening!$J34*$E$4),\"\")","v":""},{"$f":"IFERROR(IF(INDEX(Dropdownmenu!$H$3:$H$117,MATCH(Overzichtsberekening!$G34,Dropdownmenu!$A$3:$A$117,0))<>\"woningen bewoners\",Overzichtsberekening!T34*INDEX($E$3:$E$18,MATCH(INDEX(Dropdownmenu!$H$3:$H$117,MATCH(Overzichtsberekening!$G34,Dropdownmenu!$A$3:$A$117,0)),$B$3:$B$18,0)),(Overzichtsberekening!T34-INDEX(Dropdownmenu!$I$3:$I$16,MATCH(Overzichtsberekening!$G34,Dropdownmenu!$A$3:$A$16,0))*Overzichtsberekening!$J34)*$E$3+INDEX(Dropdownmenu!$I$3:$I$16,MATCH(Overzichtsberekening!$G34,Dropdownmenu!$A$3:$A$16,0))*Overzichtsberekening!$J34*$E$4),\"\")","v":""},null,null,{"$f":"IFERROR(IF(INDEX(Dropdownmenu!$H$3:$H$117,MATCH(Overzichtsberekening!$G34,Dropdownmenu!$A$3:$A$117,0))<>\"woningen bewoners\",Overzichtsberekening!S34*INDEX($F$3:$F$18,MATCH(INDEX(Dropdownmenu!$H$3:$H$117,MATCH(Overzichtsberekening!$G34,Dropdownmenu!$A$3:$A$117,0)),$B$3:$B$18,0)),(Overzichtsberekening!S34-INDEX(Dropdownmenu!$I$3:$I$16,MATCH(Overzichtsberekening!$G34,Dropdownmenu!$A$3:$A$16,0))*Overzichtsberekening!$J34)*$F$3+INDEX(Dropdownmenu!$I$3:$I$16,MATCH(Overzichtsberekening!$G34,Dropdownmenu!$A$3:$A$16,0))*Overzichtsberekening!$J34*$F$4),\"\")","v":""},{"$f":"IFERROR(IF(INDEX(Dropdownmenu!$H$3:$H$117,MATCH(Overzichtsberekening!$G34,Dropdownmenu!$A$3:$A$117,0))<>\"woningen bewoners\",Overzichtsberekening!T34*INDEX($F$3:$F$18,MATCH(INDEX(Dropdownmenu!$H$3:$H$117,MATCH(Overzichtsberekening!$G34,Dropdownmenu!$A$3:$A$117,0)),$B$3:$B$18,0)),(Overzichtsberekening!T34-INDEX(Dropdownmenu!$I$3:$I$16,MATCH(Overzichtsberekening!$G34,Dropdownmenu!$A$3:$A$16,0))*Overzichtsberekening!$J34)*$F$3+INDEX(Dropdownmenu!$I$3:$I$16,MATCH(Overzichtsberekening!$G34,Dropdownmenu!$A$3:$A$16,0))*Overzichtsberekening!$J34*$F$4),\"\")","v":""},null,null,{"$f":"IFERROR(IF(INDEX(Dropdownmenu!$H$3:$H$117,MATCH(Overzichtsberekening!$G34,Dropdownmenu!$A$3:$A$117,0))<>\"woningen bewoners\",Overzichtsberekening!S34*INDEX($G$3:$G$18,MATCH(INDEX(Dropdownmenu!$H$3:$H$117,MATCH(Overzichtsberekening!$G34,Dropdownmenu!$A$3:$A$117,0)),$B$3:$B$18,0)),(Overzichtsberekening!S34-INDEX(Dropdownmenu!$I$3:$I$16,MATCH(Overzichtsberekening!$G34,Dropdownmenu!$A$3:$A$16,0))*Overzichtsberekening!$J34)*$G$3+INDEX(Dropdownmenu!$I$3:$I$16,MATCH(Overzichtsberekening!$G34,Dropdownmenu!$A$3:$A$16,0))*Overzichtsberekening!$J34*$G$4),\"\")","v":""},{"$f":"IFERROR(IF(INDEX(Dropdownmenu!$H$3:$H$117,MATCH(Overzichtsberekening!$G34,Dropdownmenu!$A$3:$A$117,0))<>\"woningen bewoners\",Overzichtsberekening!T34*INDEX($G$3:$G$18,MATCH(INDEX(Dropdownmenu!$H$3:$H$117,MATCH(Overzichtsberekening!$G34,Dropdownmenu!$A$3:$A$117,0)),$B$3:$B$18,0)),(Overzichtsberekening!T34-INDEX(Dropdownmenu!$I$3:$I$16,MATCH(Overzichtsberekening!$G34,Dropdownmenu!$A$3:$A$16,0))*Overzichtsberekening!$J34)*$G$3+INDEX(Dropdownmenu!$I$3:$I$16,MATCH(Overzichtsberekening!$G34,Dropdownmenu!$A$3:$A$16,0))*Overzichtsberekening!$J34*$G$4),\"\")","v":""},null,null,{"$f":"IFERROR(IF(INDEX(Dropdownmenu!$H$3:$H$117,MATCH(Overzichtsberekening!$G34,Dropdownmenu!$A$3:$A$117,0))<>\"woningen bewoners\",Overzichtsberekening!S34*INDEX($H$3:$H$18,MATCH(INDEX(Dropdownmenu!$H$3:$H$117,MATCH(Overzichtsberekening!$G34,Dropdownmenu!$A$3:$A$117,0)),$B$3:$B$18,0)),(Overzichtsberekening!S34-INDEX(Dropdownmenu!$I$3:$I$16,MATCH(Overzichtsberekening!$G34,Dropdownmenu!$A$3:$A$16,0))*Overzichtsberekening!$J34)*$H$3+INDEX(Dropdownmenu!$I$3:$I$16,MATCH(Overzichtsberekening!$G34,Dropdownmenu!$A$3:$A$16,0))*Overzichtsberekening!$J34*$H$4),\"\")","v":""},{"$f":"IFERROR(IF(INDEX(Dropdownmenu!$H$3:$H$117,MATCH(Overzichtsberekening!$G34,Dropdownmenu!$A$3:$A$117,0))<>\"woningen bewoners\",Overzichtsberekening!T34*INDEX($H$3:$H$18,MATCH(INDEX(Dropdownmenu!$H$3:$H$117,MATCH(Overzichtsberekening!$G34,Dropdownmenu!$A$3:$A$117,0)),$B$3:$B$18,0)),(Overzichtsberekening!T34-INDEX(Dropdownmenu!$I$3:$I$16,MATCH(Overzichtsberekening!$G34,Dropdownmenu!$A$3:$A$16,0))*Overzichtsberekening!$J34)*$H$3+INDEX(Dropdownmenu!$I$3:$I$16,MATCH(Overzichtsberekening!$G34,Dropdownmenu!$A$3:$A$16,0))*Overzichtsberekening!$J34*$H$4),\"\")","v":""},null,null,{"$f":"IFERROR(IF(INDEX(Dropdownmenu!$H$3:$H$117,MATCH(Overzichtsberekening!$G34,Dropdownmenu!$A$3:$A$117,0))<>\"woningen bewoners\",Overzichtsberekening!S34*INDEX($I$3:$I$18,MATCH(INDEX(Dropdownmenu!$H$3:$H$117,MATCH(Overzichtsberekening!$G34,Dropdownmenu!$A$3:$A$117,0)),$B$3:$B$18,0)),(Overzichtsberekening!S34-INDEX(Dropdownmenu!$I$3:$I$16,MATCH(Overzichtsberekening!$G34,Dropdownmenu!$A$3:$A$16,0))*Overzichtsberekening!$J34)*$I$3+INDEX(Dropdownmenu!$I$3:$I$16,MATCH(Overzichtsberekening!$G34,Dropdownmenu!$A$3:$A$16,0))*Overzichtsberekening!$J34*$I$4),\"\")","v":""},{"$f":"IFERROR(IF(INDEX(Dropdownmenu!$H$3:$H$117,MATCH(Overzichtsberekening!$G34,Dropdownmenu!$A$3:$A$117,0))<>\"woningen bewoners\",Overzichtsberekening!T34*INDEX($I$3:$I$18,MATCH(INDEX(Dropdownmenu!$H$3:$H$117,MATCH(Overzichtsberekening!$G34,Dropdownmenu!$A$3:$A$117,0)),$B$3:$B$18,0)),(Overzichtsberekening!T34-INDEX(Dropdownmenu!$I$3:$I$16,MATCH(Overzichtsberekening!$G34,Dropdownmenu!$A$3:$A$16,0))*Overzichtsberekening!$J34)*$I$3+INDEX(Dropdownmenu!$I$3:$I$16,MATCH(Overzichtsberekening!$G34,Dropdownmenu!$A$3:$A$16,0))*Overzichtsberekening!$J34*$I$4),\"\")","v":""},null,null,{"$f":"IFERROR(IF(INDEX(Dropdownmenu!$H$3:$H$117,MATCH(Overzichtsberekening!$G34,Dropdownmenu!$A$3:$A$117,0))<>\"woningen bewoners\",Overzichtsberekening!S34*INDEX($J$3:$J$18,MATCH(INDEX(Dropdownmenu!$H$3:$H$117,MATCH(Overzichtsberekening!$G34,Dropdownmenu!$A$3:$A$117,0)),$B$3:$B$18,0)),(Overzichtsberekening!S34-INDEX(Dropdownmenu!$I$3:$I$16,MATCH(Overzichtsberekening!$G34,Dropdownmenu!$A$3:$A$16,0))*Overzichtsberekening!$J34)*$J$3+INDEX(Dropdownmenu!$I$3:$I$16,MATCH(Overzichtsberekening!$G34,Dropdownmenu!$A$3:$A$16,0))*Overzichtsberekening!$J34*$J$4),\"\")","v":""},{"$f":"IFERROR(IF(INDEX(Dropdownmenu!$H$3:$H$117,MATCH(Overzichtsberekening!$G34,Dropdownmenu!$A$3:$A$117,0))<>\"woningen bewoners\",Overzichtsberekening!T34*INDEX($J$3:$J$18,MATCH(INDEX(Dropdownmenu!$H$3:$H$117,MATCH(Overzichtsberekening!$G34,Dropdownmenu!$A$3:$A$117,0)),$B$3:$B$18,0)),(Overzichtsberekening!T34-INDEX(Dropdownmenu!$I$3:$I$16,MATCH(Overzichtsberekening!$G34,Dropdownmenu!$A$3:$A$16,0))*Overzichtsberekening!$J34)*$J$3+INDEX(Dropdownmenu!$I$3:$I$16,MATCH(Overzichtsberekening!$G34,Dropdownmenu!$A$3:$A$16,0))*Overzichtsberekening!$J34*$J$4),\"\")","v":""}]
[null,"verpleeghuis/verzorgingstehuis",1,1,0.5,0.25,0.5,1,1,1,null,"","",null,null,{"$f":"IFERROR(IF(INDEX(Dropdownmenu!$H$3:$H$117,MATCH(Overzichtsberekening!$G35,Dropdownmenu!$A$3:$A$117,0))<>\"woningen bewoners\",Overzichtsberekening!S35*INDEX($C$3:$C$18,MATCH(INDEX(Dropdownmenu!$H$3:$H$117,MATCH(Overzichtsberekening!$G35,Dropdownmenu!$A$3:$A$117,0)),$B$3:$B$18,0)),(Overzichtsberekening!S35-INDEX(Dropdownmenu!$I$3:$I$16,MATCH(Overzichtsberekening!$G35,Dropdownmenu!$A$3:$A$16,0))*Overzichtsberekening!$J35)*$C$3+INDEX(Dropdownmenu!$I$3:$I$16,MATCH(Overzichtsberekening!$G35,Dropdownmenu!$A$3:$A$16,0))*Overzichtsberekening!$J35*$C$4),\"\")","v":""},{"$f":"IFERROR(IF(INDEX(Dropdownmenu!$H$3:$H$117,MATCH(Overzichtsberekening!$G35,Dropdownmenu!$A$3:$A$117,0))<>\"woningen bewoners\",Overzichtsberekening!T35*INDEX($C$3:$C$18,MATCH(INDEX(Dropdownmenu!$H$3:$H$117,MATCH(Overzichtsberekening!$G35,Dropdownmenu!$A$3:$A$117,0)),$B$3:$B$18,0)),(Overzichtsberekening!T35-INDEX(Dropdownmenu!$I$3:$I$16,MATCH(Overzichtsberekening!$G35,Dropdownmenu!$A$3:$A$16,0))*Overzichtsberekening!$J35)*$C$3+INDEX(Dropdownmenu!$I$3:$I$16,MATCH(Overzichtsberekening!$G35,Dropdownmenu!$A$3:$A$16,0))*Overzichtsberekening!$J35*$C$4),\"\")","v":""},null,null,{"$f":"IFERROR(IF(INDEX(Dropdownmenu!$H$3:$H$117,MATCH(Overzichtsberekening!$G35,Dropdownmenu!$A$3:$A$117,0))<>\"woningen bewoners\",Overzichtsberekening!S35*INDEX($D$3:$D$18,MATCH(INDEX(Dropdownmenu!$H$3:$H$117,MATCH(Overzichtsberekening!$G35,Dropdownmenu!$A$3:$A$117,0)),$B$3:$B$18,0)),(Overzichtsberekening!S35-INDEX(Dropdownmenu!$I$3:$I$16,MATCH(Overzichtsberekening!$G35,Dropdownmenu!$A$3:$A$16,0))*Overzichtsberekening!$J35)*$D$3+INDEX(Dropdownmenu!$I$3:$I$16,MATCH(Overzichtsberekening!$G35,Dropdownmenu!$A$3:$A$16,0))*Overzichtsberekening!$J35*$D$4),\"\")","v":""},{"$f":"IFERROR(IF(INDEX(Dropdownmenu!$H$3:$H$117,MATCH(Overzichtsberekening!$G35,Dropdownmenu!$A$3:$A$117,0))<>\"woningen bewoners\",Overzichtsberekening!T35*INDEX($D$3:$D$18,MATCH(INDEX(Dropdownmenu!$H$3:$H$117,MATCH(Overzichtsberekening!$G35,Dropdownmenu!$A$3:$A$117,0)),$B$3:$B$18,0)),(Overzichtsberekening!T35-INDEX(Dropdownmenu!$I$3:$I$16,MATCH(Overzichtsberekening!$G35,Dropdownmenu!$A$3:$A$16,0))*Overzichtsberekening!$J35)*$D$3+INDEX(Dropdownmenu!$I$3:$I$16,MATCH(Overzichtsberekening!$G35,Dropdownmenu!$A$3:$A$16,0))*Overzichtsberekening!$J35*$D$4),\"\")","v":""},null,null,{"$f":"IFERROR(IF(INDEX(Dropdownmenu!$H$3:$H$117,MATCH(Overzichtsberekening!$G35,Dropdownmenu!$A$3:$A$117,0))<>\"woningen bewoners\",Overzichtsberekening!S35*INDEX($E$3:$E$18,MATCH(INDEX(Dropdownmenu!$H$3:$H$117,MATCH(Overzichtsberekening!$G35,Dropdownmenu!$A$3:$A$117,0)),$B$3:$B$18,0)),(Overzichtsberekening!S35-INDEX(Dropdownmenu!$I$3:$I$16,MATCH(Overzichtsberekening!$G35,Dropdownmenu!$A$3:$A$16,0))*Overzichtsberekening!$J35)*$E$3+INDEX(Dropdownmenu!$I$3:$I$16,MATCH(Overzichtsberekening!$G35,Dropdownmenu!$A$3:$A$16,0))*Overzichtsberekening!$J35*$E$4),\"\")","v":""},{"$f":"IFERROR(IF(INDEX(Dropdownmenu!$H$3:$H$117,MATCH(Overzichtsberekening!$G35,Dropdownmenu!$A$3:$A$117,0))<>\"woningen bewoners\",Overzichtsberekening!T35*INDEX($E$3:$E$18,MATCH(INDEX(Dropdownmenu!$H$3:$H$117,MATCH(Overzichtsberekening!$G35,Dropdownmenu!$A$3:$A$117,0)),$B$3:$B$18,0)),(Overzichtsberekening!T35-INDEX(Dropdownmenu!$I$3:$I$16,MATCH(Overzichtsberekening!$G35,Dropdownmenu!$A$3:$A$16,0))*Overzichtsberekening!$J35)*$E$3+INDEX(Dropdownmenu!$I$3:$I$16,MATCH(Overzichtsberekening!$G35,Dropdownmenu!$A$3:$A$16,0))*Overzichtsberekening!$J35*$E$4),\"\")","v":""},null,null,{"$f":"IFERROR(IF(INDEX(Dropdownmenu!$H$3:$H$117,MATCH(Overzichtsberekening!$G35,Dropdownmenu!$A$3:$A$117,0))<>\"woningen bewoners\",Overzichtsberekening!S35*INDEX($F$3:$F$18,MATCH(INDEX(Dropdownmenu!$H$3:$H$117,MATCH(Overzichtsberekening!$G35,Dropdownmenu!$A$3:$A$117,0)),$B$3:$B$18,0)),(Overzichtsberekening!S35-INDEX(Dropdownmenu!$I$3:$I$16,MATCH(Overzichtsberekening!$G35,Dropdownmenu!$A$3:$A$16,0))*Overzichtsberekening!$J35)*$F$3+INDEX(Dropdownmenu!$I$3:$I$16,MATCH(Overzichtsberekening!$G35,Dropdownmenu!$A$3:$A$16,0))*Overzichtsberekening!$J35*$F$4),\"\")","v":""},{"$f":"IFERROR(IF(INDEX(Dropdownmenu!$H$3:$H$117,MATCH(Overzichtsberekening!$G35,Dropdownmenu!$A$3:$A$117,0))<>\"woningen bewoners\",Overzichtsberekening!T35*INDEX($F$3:$F$18,MATCH(INDEX(Dropdownmenu!$H$3:$H$117,MATCH(Overzichtsberekening!$G35,Dropdownmenu!$A$3:$A$117,0)),$B$3:$B$18,0)),(Overzichtsberekening!T35-INDEX(Dropdownmenu!$I$3:$I$16,MATCH(Overzichtsberekening!$G35,Dropdownmenu!$A$3:$A$16,0))*Overzichtsberekening!$J35)*$F$3+INDEX(Dropdownmenu!$I$3:$I$16,MATCH(Overzichtsberekening!$G35,Dropdownmenu!$A$3:$A$16,0))*Overzichtsberekening!$J35*$F$4),\"\")","v":""},null,null,{"$f":"IFERROR(IF(INDEX(Dropdownmenu!$H$3:$H$117,MATCH(Overzichtsberekening!$G35,Dropdownmenu!$A$3:$A$117,0))<>\"woningen bewoners\",Overzichtsberekening!S35*INDEX($G$3:$G$18,MATCH(INDEX(Dropdownmenu!$H$3:$H$117,MATCH(Overzichtsberekening!$G35,Dropdownmenu!$A$3:$A$117,0)),$B$3:$B$18,0)),(Overzichtsberekening!S35-INDEX(Dropdownmenu!$I$3:$I$16,MATCH(Overzichtsberekening!$G35,Dropdownmenu!$A$3:$A$16,0))*Overzichtsberekening!$J35)*$G$3+INDEX(Dropdownmenu!$I$3:$I$16,MATCH(Overzichtsberekening!$G35,Dropdownmenu!$A$3:$A$16,0))*Overzichtsberekening!$J35*$G$4),\"\")","v":""},{"$f":"IFERROR(IF(INDEX(Dropdownmenu!$H$3:$H$117,MATCH(Overzichtsberekening!$G35,Dropdownmenu!$A$3:$A$117,0))<>\"woningen bewoners\",Overzichtsberekening!T35*INDEX($G$3:$G$18,MATCH(INDEX(Dropdownmenu!$H$3:$H$117,MATCH(Overzichtsberekening!$G35,Dropdownmenu!$A$3:$A$117,0)),$B$3:$B$18,0)),(Overzichtsberekening!T35-INDEX(Dropdownmenu!$I$3:$I$16,MATCH(Overzichtsberekening!$G35,Dropdownmenu!$A$3:$A$16,0))*Overzichtsberekening!$J35)*$G$3+INDEX(Dropdownmenu!$I$3:$I$16,MATCH(Overzichtsberekening!$G35,Dropdownmenu!$A$3:$A$16,0))*Overzichtsberekening!$J35*$G$4),\"\")","v":""},null,null,{"$f":"IFERROR(IF(INDEX(Dropdownmenu!$H$3:$H$117,MATCH(Overzichtsberekening!$G35,Dropdownmenu!$A$3:$A$117,0))<>\"woningen bewoners\",Overzichtsberekening!S35*INDEX($H$3:$H$18,MATCH(INDEX(Dropdownmenu!$H$3:$H$117,MATCH(Overzichtsberekening!$G35,Dropdownmenu!$A$3:$A$117,0)),$B$3:$B$18,0)),(Overzichtsberekening!S35-INDEX(Dropdownmenu!$I$3:$I$16,MATCH(Overzichtsberekening!$G35,Dropdownmenu!$A$3:$A$16,0))*Overzichtsberekening!$J35)*$H$3+INDEX(Dropdownmenu!$I$3:$I$16,MATCH(Overzichtsberekening!$G35,Dropdownmenu!$A$3:$A$16,0))*Overzichtsberekening!$J35*$H$4),\"\")","v":""},{"$f":"IFERROR(IF(INDEX(Dropdownmenu!$H$3:$H$117,MATCH(Overzichtsberekening!$G35,Dropdownmenu!$A$3:$A$117,0))<>\"woningen bewoners\",Overzichtsberekening!T35*INDEX($H$3:$H$18,MATCH(INDEX(Dropdownmenu!$H$3:$H$117,MATCH(Overzichtsberekening!$G35,Dropdownmenu!$A$3:$A$117,0)),$B$3:$B$18,0)),(Overzichtsberekening!T35-INDEX(Dropdownmenu!$I$3:$I$16,MATCH(Overzichtsberekening!$G35,Dropdownmenu!$A$3:$A$16,0))*Overzichtsberekening!$J35)*$H$3+INDEX(Dropdownmenu!$I$3:$I$16,MATCH(Overzichtsberekening!$G35,Dropdownmenu!$A$3:$A$16,0))*Overzichtsberekening!$J35*$H$4),\"\")","v":""},null,null,{"$f":"IFERROR(IF(INDEX(Dropdownmenu!$H$3:$H$117,MATCH(Overzichtsberekening!$G35,Dropdownmenu!$A$3:$A$117,0))<>\"woningen bewoners\",Overzichtsberekening!S35*INDEX($I$3:$I$18,MATCH(INDEX(Dropdownmenu!$H$3:$H$117,MATCH(Overzichtsberekening!$G35,Dropdownmenu!$A$3:$A$117,0)),$B$3:$B$18,0)),(Overzichtsberekening!S35-INDEX(Dropdownmenu!$I$3:$I$16,MATCH(Overzichtsberekening!$G35,Dropdownmenu!$A$3:$A$16,0))*Overzichtsberekening!$J35)*$I$3+INDEX(Dropdownmenu!$I$3:$I$16,MATCH(Overzichtsberekening!$G35,Dropdownmenu!$A$3:$A$16,0))*Overzichtsberekening!$J35*$I$4),\"\")","v":""},{"$f":"IFERROR(IF(INDEX(Dropdownmenu!$H$3:$H$117,MATCH(Overzichtsberekening!$G35,Dropdownmenu!$A$3:$A$117,0))<>\"woningen bewoners\",Overzichtsberekening!T35*INDEX($I$3:$I$18,MATCH(INDEX(Dropdownmenu!$H$3:$H$117,MATCH(Overzichtsberekening!$G35,Dropdownmenu!$A$3:$A$117,0)),$B$3:$B$18,0)),(Overzichtsberekening!T35-INDEX(Dropdownmenu!$I$3:$I$16,MATCH(Overzichtsberekening!$G35,Dropdownmenu!$A$3:$A$16,0))*Overzichtsberekening!$J35)*$I$3+INDEX(Dropdownmenu!$I$3:$I$16,MATCH(Overzichtsberekening!$G35,Dropdownmenu!$A$3:$A$16,0))*Overzichtsberekening!$J35*$I$4),\"\")","v":""},null,null,{"$f":"IFERROR(IF(INDEX(Dropdownmenu!$H$3:$H$117,MATCH(Overzichtsberekening!$G35,Dropdownmenu!$A$3:$A$117,0))<>\"woningen bewoners\",Overzichtsberekening!S35*INDEX($J$3:$J$18,MATCH(INDEX(Dropdownmenu!$H$3:$H$117,MATCH(Overzichtsberekening!$G35,Dropdownmenu!$A$3:$A$117,0)),$B$3:$B$18,0)),(Overzichtsberekening!S35-INDEX(Dropdownmenu!$I$3:$I$16,MATCH(Overzichtsberekening!$G35,Dropdownmenu!$A$3:$A$16,0))*Overzichtsberekening!$J35)*$J$3+INDEX(Dropdownmenu!$I$3:$I$16,MATCH(Overzichtsberekening!$G35,Dropdownmenu!$A$3:$A$16,0))*Overzichtsberekening!$J35*$J$4),\"\")","v":""},{"$f":"IFERROR(IF(INDEX(Dropdownmenu!$H$3:$H$117,MATCH(Overzichtsberekening!$G35,Dropdownmenu!$A$3:$A$117,0))<>\"woningen bewoners\",Overzichtsberekening!T35*INDEX($J$3:$J$18,MATCH(INDEX(Dropdownmenu!$H$3:$H$117,MATCH(Overzichtsberekening!$G35,Dropdownmenu!$A$3:$A$117,0)),$B$3:$B$18,0)),(Overzichtsberekening!T35-INDEX(Dropdownmenu!$I$3:$I$16,MATCH(Overzichtsberekening!$G35,Dropdownmenu!$A$3:$A$16,0))*Overzichtsberekening!$J35)*$J$3+INDEX(Dropdownmenu!$I$3:$I$16,MATCH(Overzichtsberekening!$G35,Dropdownmenu!$A$3:$A$16,0))*Overzichtsberekening!$J35*$J$4),\"\")","v":""}]
[null,"ziekenhuis: patiënten inclusief bezoekers",0.6,1,0.6,0.05,0.6,0.6,0.6,0.6,null,"","",null,null,{"$f":"IFERROR(IF(INDEX(Dropdownmenu!$H$3:$H$117,MATCH(Overzichtsberekening!$G36,Dropdownmenu!$A$3:$A$117,0))<>\"woningen bewoners\",Overzichtsberekening!S36*INDEX($C$3:$C$18,MATCH(INDEX(Dropdownmenu!$H$3:$H$117,MATCH(Overzichtsberekening!$G36,Dropdownmenu!$A$3:$A$117,0)),$B$3:$B$18,0)),(Overzichtsberekening!S36-INDEX(Dropdownmenu!$I$3:$I$16,MATCH(Overzichtsberekening!$G36,Dropdownmenu!$A$3:$A$16,0))*Overzichtsberekening!$J36)*$C$3+INDEX(Dropdownmenu!$I$3:$I$16,MATCH(Overzichtsberekening!$G36,Dropdownmenu!$A$3:$A$16,0))*Overzichtsberekening!$J36*$C$4),\"\")","v":""},{"$f":"IFERROR(IF(INDEX(Dropdownmenu!$H$3:$H$117,MATCH(Overzichtsberekening!$G36,Dropdownmenu!$A$3:$A$117,0))<>\"woningen bewoners\",Overzichtsberekening!T36*INDEX($C$3:$C$18,MATCH(INDEX(Dropdownmenu!$H$3:$H$117,MATCH(Overzichtsberekening!$G36,Dropdownmenu!$A$3:$A$117,0)),$B$3:$B$18,0)),(Overzichtsberekening!T36-INDEX(Dropdownmenu!$I$3:$I$16,MATCH(Overzichtsberekening!$G36,Dropdownmenu!$A$3:$A$16,0))*Overzichtsberekening!$J36)*$C$3+INDEX(Dropdownmenu!$I$3:$I$16,MATCH(Overzichtsberekening!$G36,Dropdownmenu!$A$3:$A$16,0))*Overzichtsberekening!$J36*$C$4),\"\")","v":""},null,null,{"$f":"IFERROR(IF(INDEX(Dropdownmenu!$H$3:$H$117,MATCH(Overzichtsberekening!$G36,Dropdownmenu!$A$3:$A$117,0))<>\"woningen bewoners\",Overzichtsberekening!S36*INDEX($D$3:$D$18,MATCH(INDEX(Dropdownmenu!$H$3:$H$117,MATCH(Overzichtsberekening!$G36,Dropdownmenu!$A$3:$A$117,0)),$B$3:$B$18,0)),(Overzichtsberekening!S36-INDEX(Dropdownmenu!$I$3:$I$16,MATCH(Overzichtsberekening!$G36,Dropdownmenu!$A$3:$A$16,0))*Overzichtsberekening!$J36)*$D$3+INDEX(Dropdownmenu!$I$3:$I$16,MATCH(Overzichtsberekening!$G36,Dropdownmenu!$A$3:$A$16,0))*Overzichtsberekening!$J36*$D$4),\"\")","v":""},{"$f":"IFERROR(IF(INDEX(Dropdownmenu!$H$3:$H$117,MATCH(Overzichtsberekening!$G36,Dropdownmenu!$A$3:$A$117,0))<>\"woningen bewoners\",Overzichtsberekening!T36*INDEX($D$3:$D$18,MATCH(INDEX(Dropdownmenu!$H$3:$H$117,MATCH(Overzichtsberekening!$G36,Dropdownmenu!$A$3:$A$117,0)),$B$3:$B$18,0)),(Overzichtsberekening!T36-INDEX(Dropdownmenu!$I$3:$I$16,MATCH(Overzichtsberekening!$G36,Dropdownmenu!$A$3:$A$16,0))*Overzichtsberekening!$J36)*$D$3+INDEX(Dropdownmenu!$I$3:$I$16,MATCH(Overzichtsberekening!$G36,Dropdownmenu!$A$3:$A$16,0))*Overzichtsberekening!$J36*$D$4),\"\")","v":""},null,null,{"$f":"IFERROR(IF(INDEX(Dropdownmenu!$H$3:$H$117,MATCH(Overzichtsberekening!$G36,Dropdownmenu!$A$3:$A$117,0))<>\"woningen bewoners\",Overzichtsberekening!S36*INDEX($E$3:$E$18,MATCH(INDEX(Dropdownmenu!$H$3:$H$117,MATCH(Overzichtsberekening!$G36,Dropdownmenu!$A$3:$A$117,0)),$B$3:$B$18,0)),(Overzichtsberekening!S36-INDEX(Dropdownmenu!$I$3:$I$16,MATCH(Overzichtsberekening!$G36,Dropdownmenu!$A$3:$A$16,0))*Overzichtsberekening!$J36)*$E$3+INDEX(Dropdownmenu!$I$3:$I$16,MATCH(Overzichtsberekening!$G36,Dropdownmenu!$A$3:$A$16,0))*Overzichtsberekening!$J36*$E$4),\"\")","v":""},{"$f":"IFERROR(IF(INDEX(Dropdownmenu!$H$3:$H$117,MATCH(Overzichtsberekening!$G36,Dropdownmenu!$A$3:$A$117,0))<>\"woningen bewoners\",Overzichtsberekening!T36*INDEX($E$3:$E$18,MATCH(INDEX(Dropdownmenu!$H$3:$H$117,MATCH(Overzichtsberekening!$G36,Dropdownmenu!$A$3:$A$117,0)),$B$3:$B$18,0)),(Overzichtsberekening!T36-INDEX(Dropdownmenu!$I$3:$I$16,MATCH(Overzichtsberekening!$G36,Dropdownmenu!$A$3:$A$16,0))*Overzichtsberekening!$J36)*$E$3+INDEX(Dropdownmenu!$I$3:$I$16,MATCH(Overzichtsberekening!$G36,Dropdownmenu!$A$3:$A$16,0))*Overzichtsberekening!$J36*$E$4),\"\")","v":""},null,null,{"$f":"IFERROR(IF(INDEX(Dropdownmenu!$H$3:$H$117,MATCH(Overzichtsberekening!$G36,Dropdownmenu!$A$3:$A$117,0))<>\"woningen bewoners\",Overzichtsberekening!S36*INDEX($F$3:$F$18,MATCH(INDEX(Dropdownmenu!$H$3:$H$117,MATCH(Overzichtsberekening!$G36,Dropdownmenu!$A$3:$A$117,0)),$B$3:$B$18,0)),(Overzichtsberekening!S36-INDEX(Dropdownmenu!$I$3:$I$16,MATCH(Overzichtsberekening!$G36,Dropdownmenu!$A$3:$A$16,0))*Overzichtsberekening!$J36)*$F$3+INDEX(Dropdownmenu!$I$3:$I$16,MATCH(Overzichtsberekening!$G36,Dropdownmenu!$A$3:$A$16,0))*Overzichtsberekening!$J36*$F$4),\"\")","v":""},{"$f":"IFERROR(IF(INDEX(Dropdownmenu!$H$3:$H$117,MATCH(Overzichtsberekening!$G36,Dropdownmenu!$A$3:$A$117,0))<>\"woningen bewoners\",Overzichtsberekening!T36*INDEX($F$3:$F$18,MATCH(INDEX(Dropdownmenu!$H$3:$H$117,MATCH(Overzichtsberekening!$G36,Dropdownmenu!$A$3:$A$117,0)),$B$3:$B$18,0)),(Overzichtsberekening!T36-INDEX(Dropdownmenu!$I$3:$I$16,MATCH(Overzichtsberekening!$G36,Dropdownmenu!$A$3:$A$16,0))*Overzichtsberekening!$J36)*$F$3+INDEX(Dropdownmenu!$I$3:$I$16,MATCH(Overzichtsberekening!$G36,Dropdownmenu!$A$3:$A$16,0))*Overzichtsberekening!$J36*$F$4),\"\")","v":""},null,null,{"$f":"IFERROR(IF(INDEX(Dropdownmenu!$H$3:$H$117,MATCH(Overzichtsberekening!$G36,Dropdownmenu!$A$3:$A$117,0))<>\"woningen bewoners\",Overzichtsberekening!S36*INDEX($G$3:$G$18,MATCH(INDEX(Dropdownmenu!$H$3:$H$117,MATCH(Overzichtsberekening!$G36,Dropdownmenu!$A$3:$A$117,0)),$B$3:$B$18,0)),(Overzichtsberekening!S36-INDEX(Dropdownmenu!$I$3:$I$16,MATCH(Overzichtsberekening!$G36,Dropdownmenu!$A$3:$A$16,0))*Overzichtsberekening!$J36)*$G$3+INDEX(Dropdownmenu!$I$3:$I$16,MATCH(Overzichtsberekening!$G36,Dropdownmenu!$A$3:$A$16,0))*Overzichtsberekening!$J36*$G$4),\"\")","v":""},{"$f":"IFERROR(IF(INDEX(Dropdownmenu!$H$3:$H$117,MATCH(Overzichtsberekening!$G36,Dropdownmenu!$A$3:$A$117,0))<>\"woningen bewoners\",Overzichtsberekening!T36*INDEX($G$3:$G$18,MATCH(INDEX(Dropdownmenu!$H$3:$H$117,MATCH(Overzichtsberekening!$G36,Dropdownmenu!$A$3:$A$117,0)),$B$3:$B$18,0)),(Overzichtsberekening!T36-INDEX(Dropdownmenu!$I$3:$I$16,MATCH(Overzichtsberekening!$G36,Dropdownmenu!$A$3:$A$16,0))*Overzichtsberekening!$J36)*$G$3+INDEX(Dropdownmenu!$I$3:$I$16,MATCH(Overzichtsberekening!$G36,Dropdownmenu!$A$3:$A$16,0))*Overzichtsberekening!$J36*$G$4),\"\")","v":""},null,null,{"$f":"IFERROR(IF(INDEX(Dropdownmenu!$H$3:$H$117,MATCH(Overzichtsberekening!$G36,Dropdownmenu!$A$3:$A$117,0))<>\"woningen bewoners\",Overzichtsberekening!S36*INDEX($H$3:$H$18,MATCH(INDEX(Dropdownmenu!$H$3:$H$117,MATCH(Overzichtsberekening!$G36,Dropdownmenu!$A$3:$A$117,0)),$B$3:$B$18,0)),(Overzichtsberekening!S36-INDEX(Dropdownmenu!$I$3:$I$16,MATCH(Overzichtsberekening!$G36,Dropdownmenu!$A$3:$A$16,0))*Overzichtsberekening!$J36)*$H$3+INDEX(Dropdownmenu!$I$3:$I$16,MATCH(Overzichtsberekening!$G36,Dropdownmenu!$A$3:$A$16,0))*Overzichtsberekening!$J36*$H$4),\"\")","v":""},{"$f":"IFERROR(IF(INDEX(Dropdownmenu!$H$3:$H$117,MATCH(Overzichtsberekening!$G36,Dropdownmenu!$A$3:$A$117,0))<>\"woningen bewoners\",Overzichtsberekening!T36*INDEX($H$3:$H$18,MATCH(INDEX(Dropdownmenu!$H$3:$H$117,MATCH(Overzichtsberekening!$G36,Dropdownmenu!$A$3:$A$117,0)),$B$3:$B$18,0)),(Overzichtsberekening!T36-INDEX(Dropdownmenu!$I$3:$I$16,MATCH(Overzichtsberekening!$G36,Dropdownmenu!$A$3:$A$16,0))*Overzichtsberekening!$J36)*$H$3+INDEX(Dropdownmenu!$I$3:$I$16,MATCH(Overzichtsberekening!$G36,Dropdownmenu!$A$3:$A$16,0))*Overzichtsberekening!$J36*$H$4),\"\")","v":""},null,null,{"$f":"IFERROR(IF(INDEX(Dropdownmenu!$H$3:$H$117,MATCH(Overzichtsberekening!$G36,Dropdownmenu!$A$3:$A$117,0))<>\"woningen bewoners\",Overzichtsberekening!S36*INDEX($I$3:$I$18,MATCH(INDEX(Dropdownmenu!$H$3:$H$117,MATCH(Overzichtsberekening!$G36,Dropdownmenu!$A$3:$A$117,0)),$B$3:$B$18,0)),(Overzichtsberekening!S36-INDEX(Dropdownmenu!$I$3:$I$16,MATCH(Overzichtsberekening!$G36,Dropdownmenu!$A$3:$A$16,0))*Overzichtsberekening!$J36)*$I$3+INDEX(Dropdownmenu!$I$3:$I$16,MATCH(Overzichtsberekening!$G36,Dropdownmenu!$A$3:$A$16,0))*Overzichtsberekening!$J36*$I$4),\"\")","v":""},{"$f":"IFERROR(IF(INDEX(Dropdownmenu!$H$3:$H$117,MATCH(Overzichtsberekening!$G36,Dropdownmenu!$A$3:$A$117,0))<>\"woningen bewoners\",Overzichtsberekening!T36*INDEX($I$3:$I$18,MATCH(INDEX(Dropdownmenu!$H$3:$H$117,MATCH(Overzichtsberekening!$G36,Dropdownmenu!$A$3:$A$117,0)),$B$3:$B$18,0)),(Overzichtsberekening!T36-INDEX(Dropdownmenu!$I$3:$I$16,MATCH(Overzichtsberekening!$G36,Dropdownmenu!$A$3:$A$16,0))*Overzichtsberekening!$J36)*$I$3+INDEX(Dropdownmenu!$I$3:$I$16,MATCH(Overzichtsberekening!$G36,Dropdownmenu!$A$3:$A$16,0))*Overzichtsberekening!$J36*$I$4),\"\")","v":""},null,null,{"$f":"IFERROR(IF(INDEX(Dropdownmenu!$H$3:$H$117,MATCH(Overzichtsberekening!$G36,Dropdownmenu!$A$3:$A$117,0))<>\"woningen bewoners\",Overzichtsberekening!S36*INDEX($J$3:$J$18,MATCH(INDEX(Dropdownmenu!$H$3:$H$117,MATCH(Overzichtsberekening!$G36,Dropdownmenu!$A$3:$A$117,0)),$B$3:$B$18,0)),(Overzichtsberekening!S36-INDEX(Dropdownmenu!$I$3:$I$16,MATCH(Overzichtsberekening!$G36,Dropdownmenu!$A$3:$A$16,0))*Overzichtsberekening!$J36)*$J$3+INDEX(Dropdownmenu!$I$3:$I$16,MATCH(Overzichtsberekening!$G36,Dropdownmenu!$A$3:$A$16,0))*Overzichtsberekening!$J36*$J$4),\"\")","v":""},{"$f":"IFERROR(IF(INDEX(Dropdownmenu!$H$3:$H$117,MATCH(Overzichtsberekening!$G36,Dropdownmenu!$A$3:$A$117,0))<>\"woningen bewoners\",Overzichtsberekening!T36*INDEX($J$3:$J$18,MATCH(INDEX(Dropdownmenu!$H$3:$H$117,MATCH(Overzichtsberekening!$G36,Dropdownmenu!$A$3:$A$117,0)),$B$3:$B$18,0)),(Overzichtsberekening!T36-INDEX(Dropdownmenu!$I$3:$I$16,MATCH(Overzichtsberekening!$G36,Dropdownmenu!$A$3:$A$16,0))*Overzichtsberekening!$J36)*$J$3+INDEX(Dropdownmenu!$I$3:$I$16,MATCH(Overzichtsberekening!$G36,Dropdownmenu!$A$3:$A$16,0))*Overzichtsberekening!$J36*$J$4),\"\")","v":""}]
[null,"ziekenhuis medewerkers",0.75,1,0.4,0.25,0.4,0.4,0.4,0.4,null,"","",null,null,{"$f":"IFERROR(IF(INDEX(Dropdownmenu!$H$3:$H$117,MATCH(Overzichtsberekening!$G37,Dropdownmenu!$A$3:$A$117,0))<>\"woningen bewoners\",Overzichtsberekening!S37*INDEX($C$3:$C$18,MATCH(INDEX(Dropdownmenu!$H$3:$H$117,MATCH(Overzichtsberekening!$G37,Dropdownmenu!$A$3:$A$117,0)),$B$3:$B$18,0)),(Overzichtsberekening!S37-INDEX(Dropdownmenu!$I$3:$I$16,MATCH(Overzichtsberekening!$G37,Dropdownmenu!$A$3:$A$16,0))*Overzichtsberekening!$J37)*$C$3+INDEX(Dropdownmenu!$I$3:$I$16,MATCH(Overzichtsberekening!$G37,Dropdownmenu!$A$3:$A$16,0))*Overzichtsberekening!$J37*$C$4),\"\")","v":""},{"$f":"IFERROR(IF(INDEX(Dropdownmenu!$H$3:$H$117,MATCH(Overzichtsberekening!$G37,Dropdownmenu!$A$3:$A$117,0))<>\"woningen bewoners\",Overzichtsberekening!T37*INDEX($C$3:$C$18,MATCH(INDEX(Dropdownmenu!$H$3:$H$117,MATCH(Overzichtsberekening!$G37,Dropdownmenu!$A$3:$A$117,0)),$B$3:$B$18,0)),(Overzichtsberekening!T37-INDEX(Dropdownmenu!$I$3:$I$16,MATCH(Overzichtsberekening!$G37,Dropdownmenu!$A$3:$A$16,0))*Overzichtsberekening!$J37)*$C$3+INDEX(Dropdownmenu!$I$3:$I$16,MATCH(Overzichtsberekening!$G37,Dropdownmenu!$A$3:$A$16,0))*Overzichtsberekening!$J37*$C$4),\"\")","v":""},null,null,{"$f":"IFERROR(IF(INDEX(Dropdownmenu!$H$3:$H$117,MATCH(Overzichtsberekening!$G37,Dropdownmenu!$A$3:$A$117,0))<>\"woningen bewoners\",Overzichtsberekening!S37*INDEX($D$3:$D$18,MATCH(INDEX(Dropdownmenu!$H$3:$H$117,MATCH(Overzichtsberekening!$G37,Dropdownmenu!$A$3:$A$117,0)),$B$3:$B$18,0)),(Overzichtsberekening!S37-INDEX(Dropdownmenu!$I$3:$I$16,MATCH(Overzichtsberekening!$G37,Dropdownmenu!$A$3:$A$16,0))*Overzichtsberekening!$J37)*$D$3+INDEX(Dropdownmenu!$I$3:$I$16,MATCH(Overzichtsberekening!$G37,Dropdownmenu!$A$3:$A$16,0))*Overzichtsberekening!$J37*$D$4),\"\")","v":""},{"$f":"IFERROR(IF(INDEX(Dropdownmenu!$H$3:$H$117,MATCH(Overzichtsberekening!$G37,Dropdownmenu!$A$3:$A$117,0))<>\"woningen bewoners\",Overzichtsberekening!T37*INDEX($D$3:$D$18,MATCH(INDEX(Dropdownmenu!$H$3:$H$117,MATCH(Overzichtsberekening!$G37,Dropdownmenu!$A$3:$A$117,0)),$B$3:$B$18,0)),(Overzichtsberekening!T37-INDEX(Dropdownmenu!$I$3:$I$16,MATCH(Overzichtsberekening!$G37,Dropdownmenu!$A$3:$A$16,0))*Overzichtsberekening!$J37)*$D$3+INDEX(Dropdownmenu!$I$3:$I$16,MATCH(Overzichtsberekening!$G37,Dropdownmenu!$A$3:$A$16,0))*Overzichtsberekening!$J37*$D$4),\"\")","v":""},null,null,{"$f":"IFERROR(IF(INDEX(Dropdownmenu!$H$3:$H$117,MATCH(Overzichtsberekening!$G37,Dropdownmenu!$A$3:$A$117,0))<>\"woningen bewoners\",Overzichtsberekening!S37*INDEX($E$3:$E$18,MATCH(INDEX(Dropdownmenu!$H$3:$H$117,MATCH(Overzichtsberekening!$G37,Dropdownmenu!$A$3:$A$117,0)),$B$3:$B$18,0)),(Overzichtsberekening!S37-INDEX(Dropdownmenu!$I$3:$I$16,MATCH(Overzichtsberekening!$G37,Dropdownmenu!$A$3:$A$16,0))*Overzichtsberekening!$J37)*$E$3+INDEX(Dropdownmenu!$I$3:$I$16,MATCH(Overzichtsberekening!$G37,Dropdownmenu!$A$3:$A$16,0))*Overzichtsberekening!$J37*$E$4),\"\")","v":""},{"$f":"IFERROR(IF(INDEX(Dropdownmenu!$H$3:$H$117,MATCH(Overzichtsberekening!$G37,Dropdownmenu!$A$3:$A$117,0))<>\"woningen bewoners\",Overzichtsberekening!T37*INDEX($E$3:$E$18,MATCH(INDEX(Dropdownmenu!$H$3:$H$117,MATCH(Overzichtsberekening!$G37,Dropdownmenu!$A$3:$A$117,0)),$B$3:$B$18,0)),(Overzichtsberekening!T37-INDEX(Dropdownmenu!$I$3:$I$16,MATCH(Overzichtsberekening!$G37,Dropdownmenu!$A$3:$A$16,0))*Overzichtsberekening!$J37)*$E$3+INDEX(Dropdownmenu!$I$3:$I$16,MATCH(Overzichtsberekening!$G37,Dropdownmenu!$A$3:$A$16,0))*Overzichtsberekening!$J37*$E$4),\"\")","v":""},null,null,{"$f":"IFERROR(IF(INDEX(Dropdownmenu!$H$3:$H$117,MATCH(Overzichtsberekening!$G37,Dropdownmenu!$A$3:$A$117,0))<>\"woningen bewoners\",Overzichtsberekening!S37*INDEX($F$3:$F$18,MATCH(INDEX(Dropdownmenu!$H$3:$H$117,MATCH(Overzichtsberekening!$G37,Dropdownmenu!$A$3:$A$117,0)),$B$3:$B$18,0)),(Overzichtsberekening!S37-INDEX(Dropdownmenu!$I$3:$I$16,MATCH(Overzichtsberekening!$G37,Dropdownmenu!$A$3:$A$16,0))*Overzichtsberekening!$J37)*$F$3+INDEX(Dropdownmenu!$I$3:$I$16,MATCH(Overzichtsberekening!$G37,Dropdownmenu!$A$3:$A$16,0))*Overzichtsberekening!$J37*$F$4),\"\")","v":""},{"$f":"IFERROR(IF(INDEX(Dropdownmenu!$H$3:$H$117,MATCH(Overzichtsberekening!$G37,Dropdownmenu!$A$3:$A$117,0))<>\"woningen bewoners\",Overzichtsberekening!T37*INDEX($F$3:$F$18,MATCH(INDEX(Dropdownmenu!$H$3:$H$117,MATCH(Overzichtsberekening!$G37,Dropdownmenu!$A$3:$A$117,0)),$B$3:$B$18,0)),(Overzichtsberekening!T37-INDEX(Dropdownmenu!$I$3:$I$16,MATCH(Overzichtsberekening!$G37,Dropdownmenu!$A$3:$A$16,0))*Overzichtsberekening!$J37)*$F$3+INDEX(Dropdownmenu!$I$3:$I$16,MATCH(Overzichtsberekening!$G37,Dropdownmenu!$A$3:$A$16,0))*Overzichtsberekening!$J37*$F$4),\"\")","v":""},null,null,{"$f":"IFERROR(IF(INDEX(Dropdownmenu!$H$3:$H$117,MATCH(Overzichtsberekening!$G37,Dropdownmenu!$A$3:$A$117,0))<>\"woningen bewoners\",Overzichtsberekening!S37*INDEX($G$3:$G$18,MATCH(INDEX(Dropdownmenu!$H$3:$H$117,MATCH(Overzichtsberekening!$G37,Dropdownmenu!$A$3:$A$117,0)),$B$3:$B$18,0)),(Overzichtsberekening!S37-INDEX(Dropdownmenu!$I$3:$I$16,MATCH(Overzichtsberekening!$G37,Dropdownmenu!$A$3:$A$16,0))*Overzichtsberekening!$J37)*$G$3+INDEX(Dropdownmenu!$I$3:$I$16,MATCH(Overzichtsberekening!$G37,Dropdownmenu!$A$3:$A$16,0))*Overzichtsberekening!$J37*$G$4),\"\")","v":""},{"$f":"IFERROR(IF(INDEX(Dropdownmenu!$H$3:$H$117,MATCH(Overzichtsberekening!$G37,Dropdownmenu!$A$3:$A$117,0))<>\"woningen bewoners\",Overzichtsberekening!T37*INDEX($G$3:$G$18,MATCH(INDEX(Dropdownmenu!$H$3:$H$117,MATCH(Overzichtsberekening!$G37,Dropdownmenu!$A$3:$A$117,0)),$B$3:$B$18,0)),(Overzichtsberekening!T37-INDEX(Dropdownmenu!$I$3:$I$16,MATCH(Overzichtsberekening!$G37,Dropdownmenu!$A$3:$A$16,0))*Overzichtsberekening!$J37)*$G$3+INDEX(Dropdownmenu!$I$3:$I$16,MATCH(Overzichtsberekening!$G37,Dropdownmenu!$A$3:$A$16,0))*Overzichtsberekening!$J37*$G$4),\"\")","v":""},null,null,{"$f":"IFERROR(IF(INDEX(Dropdownmenu!$H$3:$H$117,MATCH(Overzichtsberekening!$G37,Dropdownmenu!$A$3:$A$117,0))<>\"woningen bewoners\",Overzichtsberekening!S37*INDEX($H$3:$H$18,MATCH(INDEX(Dropdownmenu!$H$3:$H$117,MATCH(Overzichtsberekening!$G37,Dropdownmenu!$A$3:$A$117,0)),$B$3:$B$18,0)),(Overzichtsberekening!S37-INDEX(Dropdownmenu!$I$3:$I$16,MATCH(Overzichtsberekening!$G37,Dropdownmenu!$A$3:$A$16,0))*Overzichtsberekening!$J37)*$H$3+INDEX(Dropdownmenu!$I$3:$I$16,MATCH(Overzichtsberekening!$G37,Dropdownmenu!$A$3:$A$16,0))*Overzichtsberekening!$J37*$H$4),\"\")","v":""},{"$f":"IFERROR(IF(INDEX(Dropdownmenu!$H$3:$H$117,MATCH(Overzichtsberekening!$G37,Dropdownmenu!$A$3:$A$117,0))<>\"woningen bewoners\",Overzichtsberekening!T37*INDEX($H$3:$H$18,MATCH(INDEX(Dropdownmenu!$H$3:$H$117,MATCH(Overzichtsberekening!$G37,Dropdownmenu!$A$3:$A$117,0)),$B$3:$B$18,0)),(Overzichtsberekening!T37-INDEX(Dropdownmenu!$I$3:$I$16,MATCH(Overzichtsberekening!$G37,Dropdownmenu!$A$3:$A$16,0))*Overzichtsberekening!$J37)*$H$3+INDEX(Dropdownmenu!$I$3:$I$16,MATCH(Overzichtsberekening!$G37,Dropdownmenu!$A$3:$A$16,0))*Overzichtsberekening!$J37*$H$4),\"\")","v":""},null,null,{"$f":"IFERROR(IF(INDEX(Dropdownmenu!$H$3:$H$117,MATCH(Overzichtsberekening!$G37,Dropdownmenu!$A$3:$A$117,0))<>\"woningen bewoners\",Overzichtsberekening!S37*INDEX($I$3:$I$18,MATCH(INDEX(Dropdownmenu!$H$3:$H$117,MATCH(Overzichtsberekening!$G37,Dropdownmenu!$A$3:$A$117,0)),$B$3:$B$18,0)),(Overzichtsberekening!S37-INDEX(Dropdownmenu!$I$3:$I$16,MATCH(Overzichtsberekening!$G37,Dropdownmenu!$A$3:$A$16,0))*Overzichtsberekening!$J37)*$I$3+INDEX(Dropdownmenu!$I$3:$I$16,MATCH(Overzichtsberekening!$G37,Dropdownmenu!$A$3:$A$16,0))*Overzichtsberekening!$J37*$I$4),\"\")","v":""},{"$f":"IFERROR(IF(INDEX(Dropdownmenu!$H$3:$H$117,MATCH(Overzichtsberekening!$G37,Dropdownmenu!$A$3:$A$117,0))<>\"woningen bewoners\",Overzichtsberekening!T37*INDEX($I$3:$I$18,MATCH(INDEX(Dropdownmenu!$H$3:$H$117,MATCH(Overzichtsberekening!$G37,Dropdownmenu!$A$3:$A$117,0)),$B$3:$B$18,0)),(Overzichtsberekening!T37-INDEX(Dropdownmenu!$I$3:$I$16,MATCH(Overzichtsberekening!$G37,Dropdownmenu!$A$3:$A$16,0))*Overzichtsberekening!$J37)*$I$3+INDEX(Dropdownmenu!$I$3:$I$16,MATCH(Overzichtsberekening!$G37,Dropdownmenu!$A$3:$A$16,0))*Overzichtsberekening!$J37*$I$4),\"\")","v":""},null,null,{"$f":"IFERROR(IF(INDEX(Dropdownmenu!$H$3:$H$117,MATCH(Overzichtsberekening!$G37,Dropdownmenu!$A$3:$A$117,0))<>\"woningen bewoners\",Overzichtsberekening!S37*INDEX($J$3:$J$18,MATCH(INDEX(Dropdownmenu!$H$3:$H$117,MATCH(Overzichtsberekening!$G37,Dropdownmenu!$A$3:$A$117,0)),$B$3:$B$18,0)),(Overzichtsberekening!S37-INDEX(Dropdownmenu!$I$3:$I$16,MATCH(Overzichtsberekening!$G37,Dropdownmenu!$A$3:$A$16,0))*Overzichtsberekening!$J37)*$J$3+INDEX(Dropdownmenu!$I$3:$I$16,MATCH(Overzichtsberekening!$G37,Dropdownmenu!$A$3:$A$16,0))*Overzichtsberekening!$J37*$J$4),\"\")","v":""},{"$f":"IFERROR(IF(INDEX(Dropdownmenu!$H$3:$H$117,MATCH(Overzichtsberekening!$G37,Dropdownmenu!$A$3:$A$117,0))<>\"woningen bewoners\",Overzichtsberekening!T37*INDEX($J$3:$J$18,MATCH(INDEX(Dropdownmenu!$H$3:$H$117,MATCH(Overzichtsberekening!$G37,Dropdownmenu!$A$3:$A$117,0)),$B$3:$B$18,0)),(Overzichtsberekening!T37-INDEX(Dropdownmenu!$I$3:$I$16,MATCH(Overzichtsberekening!$G37,Dropdownmenu!$A$3:$A$16,0))*Overzichtsberekening!$J37)*$J$3+INDEX(Dropdownmenu!$I$3:$I$16,MATCH(Overzichtsberekening!$G37,Dropdownmenu!$A$3:$A$16,0))*Overzichtsberekening!$J37*$J$4),\"\")","v":""}]
[null,"dagonderwijs",1,1,0,0,0,0,0,0,null,"","",null,null,{"$f":"IFERROR(IF(INDEX(Dropdownmenu!$H$3:$H$117,MATCH(Overzichtsberekening!$G38,Dropdownmenu!$A$3:$A$117,0))<>\"woningen bewoners\",Overzichtsberekening!S38*INDEX($C$3:$C$18,MATCH(INDEX(Dropdownmenu!$H$3:$H$117,MATCH(Overzichtsberekening!$G38,Dropdownmenu!$A$3:$A$117,0)),$B$3:$B$18,0)),(Overzichtsberekening!S38-INDEX(Dropdownmenu!$I$3:$I$16,MATCH(Overzichtsberekening!$G38,Dropdownmenu!$A$3:$A$16,0))*Overzichtsberekening!$J38)*$C$3+INDEX(Dropdownmenu!$I$3:$I$16,MATCH(Overzichtsberekening!$G38,Dropdownmenu!$A$3:$A$16,0))*Overzichtsberekening!$J38*$C$4),\"\")","v":""},{"$f":"IFERROR(IF(INDEX(Dropdownmenu!$H$3:$H$117,MATCH(Overzichtsberekening!$G38,Dropdownmenu!$A$3:$A$117,0))<>\"woningen bewoners\",Overzichtsberekening!T38*INDEX($C$3:$C$18,MATCH(INDEX(Dropdownmenu!$H$3:$H$117,MATCH(Overzichtsberekening!$G38,Dropdownmenu!$A$3:$A$117,0)),$B$3:$B$18,0)),(Overzichtsberekening!T38-INDEX(Dropdownmenu!$I$3:$I$16,MATCH(Overzichtsberekening!$G38,Dropdownmenu!$A$3:$A$16,0))*Overzichtsberekening!$J38)*$C$3+INDEX(Dropdownmenu!$I$3:$I$16,MATCH(Overzichtsberekening!$G38,Dropdownmenu!$A$3:$A$16,0))*Overzichtsberekening!$J38*$C$4),\"\")","v":""},null,null,{"$f":"IFERROR(IF(INDEX(Dropdownmenu!$H$3:$H$117,MATCH(Overzichtsberekening!$G38,Dropdownmenu!$A$3:$A$117,0))<>\"woningen bewoners\",Overzichtsberekening!S38*INDEX($D$3:$D$18,MATCH(INDEX(Dropdownmenu!$H$3:$H$117,MATCH(Overzichtsberekening!$G38,Dropdownmenu!$A$3:$A$117,0)),$B$3:$B$18,0)),(Overzichtsberekening!S38-INDEX(Dropdownmenu!$I$3:$I$16,MATCH(Overzichtsberekening!$G38,Dropdownmenu!$A$3:$A$16,0))*Overzichtsberekening!$J38)*$D$3+INDEX(Dropdownmenu!$I$3:$I$16,MATCH(Overzichtsberekening!$G38,Dropdownmenu!$A$3:$A$16,0))*Overzichtsberekening!$J38*$D$4),\"\")","v":""},{"$f":"IFERROR(IF(INDEX(Dropdownmenu!$H$3:$H$117,MATCH(Overzichtsberekening!$G38,Dropdownmenu!$A$3:$A$117,0))<>\"woningen bewoners\",Overzichtsberekening!T38*INDEX($D$3:$D$18,MATCH(INDEX(Dropdownmenu!$H$3:$H$117,MATCH(Overzichtsberekening!$G38,Dropdownmenu!$A$3:$A$117,0)),$B$3:$B$18,0)),(Overzichtsberekening!T38-INDEX(Dropdownmenu!$I$3:$I$16,MATCH(Overzichtsberekening!$G38,Dropdownmenu!$A$3:$A$16,0))*Overzichtsberekening!$J38)*$D$3+INDEX(Dropdownmenu!$I$3:$I$16,MATCH(Overzichtsberekening!$G38,Dropdownmenu!$A$3:$A$16,0))*Overzichtsberekening!$J38*$D$4),\"\")","v":""},null,null,{"$f":"IFERROR(IF(INDEX(Dropdownmenu!$H$3:$H$117,MATCH(Overzichtsberekening!$G38,Dropdownmenu!$A$3:$A$117,0))<>\"woningen bewoners\",Overzichtsberekening!S38*INDEX($E$3:$E$18,MATCH(INDEX(Dropdownmenu!$H$3:$H$117,MATCH(Overzichtsberekening!$G38,Dropdownmenu!$A$3:$A$117,0)),$B$3:$B$18,0)),(Overzichtsberekening!S38-INDEX(Dropdownmenu!$I$3:$I$16,MATCH(Overzichtsberekening!$G38,Dropdownmenu!$A$3:$A$16,0))*Overzichtsberekening!$J38)*$E$3+INDEX(Dropdownmenu!$I$3:$I$16,MATCH(Overzichtsberekening!$G38,Dropdownmenu!$A$3:$A$16,0))*Overzichtsberekening!$J38*$E$4),\"\")","v":""},{"$f":"IFERROR(IF(INDEX(Dropdownmenu!$H$3:$H$117,MATCH(Overzichtsberekening!$G38,Dropdownmenu!$A$3:$A$117,0))<>\"woningen bewoners\",Overzichtsberekening!T38*INDEX($E$3:$E$18,MATCH(INDEX(Dropdownmenu!$H$3:$H$117,MATCH(Overzichtsberekening!$G38,Dropdownmenu!$A$3:$A$117,0)),$B$3:$B$18,0)),(Overzichtsberekening!T38-INDEX(Dropdownmenu!$I$3:$I$16,MATCH(Overzichtsberekening!$G38,Dropdownmenu!$A$3:$A$16,0))*Overzichtsberekening!$J38)*$E$3+INDEX(Dropdownmenu!$I$3:$I$16,MATCH(Overzichtsberekening!$G38,Dropdownmenu!$A$3:$A$16,0))*Overzichtsberekening!$J38*$E$4),\"\")","v":""},null,null,{"$f":"IFERROR(IF(INDEX(Dropdownmenu!$H$3:$H$117,MATCH(Overzichtsberekening!$G38,Dropdownmenu!$A$3:$A$117,0))<>\"woningen bewoners\",Overzichtsberekening!S38*INDEX($F$3:$F$18,MATCH(INDEX(Dropdownmenu!$H$3:$H$117,MATCH(Overzichtsberekening!$G38,Dropdownmenu!$A$3:$A$117,0)),$B$3:$B$18,0)),(Overzichtsberekening!S38-INDEX(Dropdownmenu!$I$3:$I$16,MATCH(Overzichtsberekening!$G38,Dropdownmenu!$A$3:$A$16,0))*Overzichtsberekening!$J38)*$F$3+INDEX(Dropdownmenu!$I$3:$I$16,MATCH(Overzichtsberekening!$G38,Dropdownmenu!$A$3:$A$16,0))*Overzichtsberekening!$J38*$F$4),\"\")","v":""},{"$f":"IFERROR(IF(INDEX(Dropdownmenu!$H$3:$H$117,MATCH(Overzichtsberekening!$G38,Dropdownmenu!$A$3:$A$117,0))<>\"woningen bewoners\",Overzichtsberekening!T38*INDEX($F$3:$F$18,MATCH(INDEX(Dropdownmenu!$H$3:$H$117,MATCH(Overzichtsberekening!$G38,Dropdownmenu!$A$3:$A$117,0)),$B$3:$B$18,0)),(Overzichtsberekening!T38-INDEX(Dropdownmenu!$I$3:$I$16,MATCH(Overzichtsberekening!$G38,Dropdownmenu!$A$3:$A$16,0))*Overzichtsberekening!$J38)*$F$3+INDEX(Dropdownmenu!$I$3:$I$16,MATCH(Overzichtsberekening!$G38,Dropdownmenu!$A$3:$A$16,0))*Overzichtsberekening!$J38*$F$4),\"\")","v":""},null,null,{"$f":"IFERROR(IF(INDEX(Dropdownmenu!$H$3:$H$117,MATCH(Overzichtsberekening!$G38,Dropdownmenu!$A$3:$A$117,0))<>\"woningen bewoners\",Overzichtsberekening!S38*INDEX($G$3:$G$18,MATCH(INDEX(Dropdownmenu!$H$3:$H$117,MATCH(Overzichtsberekening!$G38,Dropdownmenu!$A$3:$A$117,0)),$B$3:$B$18,0)),(Overzichtsberekening!S38-INDEX(Dropdownmenu!$I$3:$I$16,MATCH(Overzichtsberekening!$G38,Dropdownmenu!$A$3:$A$16,0))*Overzichtsberekening!$J38)*$G$3+INDEX(Dropdownmenu!$I$3:$I$16,MATCH(Overzichtsberekening!$G38,Dropdownmenu!$A$3:$A$16,0))*Overzichtsberekening!$J38*$G$4),\"\")","v":""},{"$f":"IFERROR(IF(INDEX(Dropdownmenu!$H$3:$H$117,MATCH(Overzichtsberekening!$G38,Dropdownmenu!$A$3:$A$117,0))<>\"woningen bewoners\",Overzichtsberekening!T38*INDEX($G$3:$G$18,MATCH(INDEX(Dropdownmenu!$H$3:$H$117,MATCH(Overzichtsberekening!$G38,Dropdownmenu!$A$3:$A$117,0)),$B$3:$B$18,0)),(Overzichtsberekening!T38-INDEX(Dropdownmenu!$I$3:$I$16,MATCH(Overzichtsberekening!$G38,Dropdownmenu!$A$3:$A$16,0))*Overzichtsberekening!$J38)*$G$3+INDEX(Dropdownmenu!$I$3:$I$16,MATCH(Overzichtsberekening!$G38,Dropdownmenu!$A$3:$A$16,0))*Overzichtsberekening!$J38*$G$4),\"\")","v":""},null,null,{"$f":"IFERROR(IF(INDEX(Dropdownmenu!$H$3:$H$117,MATCH(Overzichtsberekening!$G38,Dropdownmenu!$A$3:$A$117,0))<>\"woningen bewoners\",Overzichtsberekening!S38*INDEX($H$3:$H$18,MATCH(INDEX(Dropdownmenu!$H$3:$H$117,MATCH(Overzichtsberekening!$G38,Dropdownmenu!$A$3:$A$117,0)),$B$3:$B$18,0)),(Overzichtsberekening!S38-INDEX(Dropdownmenu!$I$3:$I$16,MATCH(Overzichtsberekening!$G38,Dropdownmenu!$A$3:$A$16,0))*Overzichtsberekening!$J38)*$H$3+INDEX(Dropdownmenu!$I$3:$I$16,MATCH(Overzichtsberekening!$G38,Dropdownmenu!$A$3:$A$16,0))*Overzichtsberekening!$J38*$H$4),\"\")","v":""},{"$f":"IFERROR(IF(INDEX(Dropdownmenu!$H$3:$H$117,MATCH(Overzichtsberekening!$G38,Dropdownmenu!$A$3:$A$117,0))<>\"woningen bewoners\",Overzichtsberekening!T38*INDEX($H$3:$H$18,MATCH(INDEX(Dropdownmenu!$H$3:$H$117,MATCH(Overzichtsberekening!$G38,Dropdownmenu!$A$3:$A$117,0)),$B$3:$B$18,0)),(Overzichtsberekening!T38-INDEX(Dropdownmenu!$I$3:$I$16,MATCH(Overzichtsberekening!$G38,Dropdownmenu!$A$3:$A$16,0))*Overzichtsberekening!$J38)*$H$3+INDEX(Dropdownmenu!$I$3:$I$16,MATCH(Overzichtsberekening!$G38,Dropdownmenu!$A$3:$A$16,0))*Overzichtsberekening!$J38*$H$4),\"\")","v":""},null,null,{"$f":"IFERROR(IF(INDEX(Dropdownmenu!$H$3:$H$117,MATCH(Overzichtsberekening!$G38,Dropdownmenu!$A$3:$A$117,0))<>\"woningen bewoners\",Overzichtsberekening!S38*INDEX($I$3:$I$18,MATCH(INDEX(Dropdownmenu!$H$3:$H$117,MATCH(Overzichtsberekening!$G38,Dropdownmenu!$A$3:$A$117,0)),$B$3:$B$18,0)),(Overzichtsberekening!S38-INDEX(Dropdownmenu!$I$3:$I$16,MATCH(Overzichtsberekening!$G38,Dropdownmenu!$A$3:$A$16,0))*Overzichtsberekening!$J38)*$I$3+INDEX(Dropdownmenu!$I$3:$I$16,MATCH(Overzichtsberekening!$G38,Dropdownmenu!$A$3:$A$16,0))*Overzichtsberekening!$J38*$I$4),\"\")","v":""},{"$f":"IFERROR(IF(INDEX(Dropdownmenu!$H$3:$H$117,MATCH(Overzichtsberekening!$G38,Dropdownmenu!$A$3:$A$117,0))<>\"woningen bewoners\",Overzichtsberekening!T38*INDEX($I$3:$I$18,MATCH(INDEX(Dropdownmenu!$H$3:$H$117,MATCH(Overzichtsberekening!$G38,Dropdownmenu!$A$3:$A$117,0)),$B$3:$B$18,0)),(Overzichtsberekening!T38-INDEX(Dropdownmenu!$I$3:$I$16,MATCH(Overzichtsberekening!$G38,Dropdownmenu!$A$3:$A$16,0))*Overzichtsberekening!$J38)*$I$3+INDEX(Dropdownmenu!$I$3:$I$16,MATCH(Overzichtsberekening!$G38,Dropdownmenu!$A$3:$A$16,0))*Overzichtsberekening!$J38*$I$4),\"\")","v":""},null,null,{"$f":"IFERROR(IF(INDEX(Dropdownmenu!$H$3:$H$117,MATCH(Overzichtsberekening!$G38,Dropdownmenu!$A$3:$A$117,0))<>\"woningen bewoners\",Overzichtsberekening!S38*INDEX($J$3:$J$18,MATCH(INDEX(Dropdownmenu!$H$3:$H$117,MATCH(Overzichtsberekening!$G38,Dropdownmenu!$A$3:$A$117,0)),$B$3:$B$18,0)),(Overzichtsberekening!S38-INDEX(Dropdownmenu!$I$3:$I$16,MATCH(Overzichtsberekening!$G38,Dropdownmenu!$A$3:$A$16,0))*Overzichtsberekening!$J38)*$J$3+INDEX(Dropdownmenu!$I$3:$I$16,MATCH(Overzichtsberekening!$G38,Dropdownmenu!$A$3:$A$16,0))*Overzichtsberekening!$J38*$J$4),\"\")","v":""},{"$f":"IFERROR(IF(INDEX(Dropdownmenu!$H$3:$H$117,MATCH(Overzichtsberekening!$G38,Dropdownmenu!$A$3:$A$117,0))<>\"woningen bewoners\",Overzichtsberekening!T38*INDEX($J$3:$J$18,MATCH(INDEX(Dropdownmenu!$H$3:$H$117,MATCH(Overzichtsberekening!$G38,Dropdownmenu!$A$3:$A$117,0)),$B$3:$B$18,0)),(Overzichtsberekening!T38-INDEX(Dropdownmenu!$I$3:$I$16,MATCH(Overzichtsberekening!$G38,Dropdownmenu!$A$3:$A$16,0))*Overzichtsberekening!$J38)*$J$3+INDEX(Dropdownmenu!$I$3:$I$16,MATCH(Overzichtsberekening!$G38,Dropdownmenu!$A$3:$A$16,0))*Overzichtsberekening!$J38*$J$4),\"\")","v":""}]
[null,"avondonderwijs",0,0,1,0,1,0,0,0,null,{"$f":"SUM(L7:L17)","v":37},{"$f":"SUM(M7:M17)","v":65.800000000000011},null,null,{"$f":"SUM(P7:P17)","v":17.7},31.700000000000003,null,null,{"$f":"SUM(T7:T17)","v":23.4},{"$f":"SUM(U7:U17)","v":43.4},null,null,{"$f":"SUM(X7:X17)","v":33.200000000000003},{"$f":"SUM(Y7:Y17)","v":55.599999999999994},null,null,{"$f":"SUM(AB7:AB17)","v":24},{"$f":"SUM(AC7:AC17)","v":40},null,null,{"$f":"SUM(AF7:AF17)","v":37},{"$f":"SUM(AG7:AG17)","v":65.800000000000011},null,null,{"$f":"SUM(AJ7:AJ17)","v":35},{"$f":"SUM(AK7:AK17)","v":64.599999999999994},null,null,{"$f":"SUM(AN7:AN17)","v":30.800000000000004},{"$f":"SUM(AO7:AO17)","v":51.599999999999994},null,null,{"$f":"SUM(AR7:AR17)","v":20.999999999999996},{"$f":"SUM(AS7:AS17)","v":32.200000000000003}]
[]
[null,"1) Indien sprake van een traditionele koopavond"]
[null,"2) Indien op zaterdag open: 100%"]
[null,"3) Indien 's avonds open: 70%"]
[null,"4) Indien koopzondag: 100%"]

{"sheet":"Gegevensvalidatie","index":3,"n_rows":922,"n_cols":20,"rows_kept":922,"cut":false,"hidden":false,"merged":[[114,0,114,19]]}
["Kencijfers verkeersgeneratie van CROW publicatie 381 (2018)"]
["Woningen"]
["Functie",null,"Parkeernorm",null,null,null,null,null,null,null,null,null,"Verkeergeneratie"]
[null,null,"Centrum",null,"Schil centrum",null,"Rest bebouwde kom",null,"Buitengebied",null,null,null,"Centrum",null,"Schil centrum",null,"Rest bebouwde kom",null,"Buitengebied"]
["Koop, Vrijstaand",null,"Min","Max","Min","Max","Min","Max","Min","Max",null,null,"min.","max.","min.","max.","min.","max.","min.","max."]
[null,"Zeer sterk stedelijk",1.1000000000000001,1.9,1.3,2.1,1.6,2.4,1.9,2.7,null,"Zeer sterk stedelijk",5.9,6.7,6.4,7.2,7.3,8.1,7.8,8.6]
[null,"Sterk stedelijk",1.2,2,1.4,2.2000000000000002,1.7,2.5,2,2.8,null,"Sterk stedelijk",6.4,7.2,7.3,8.1,7.8,8.6,7.8,8.6]
[null,"Matig stedelijk",1.4,2.2000000000000002,1.5,2.2999999999999998,1.8,2.6,2,2.8,null,"Matig stedelijk",7.3,8.1,7.6,8.4,7.8,8.6,7.8,8.6]
[null,"Weinig stedelijk",1.4,2.2000000000000002,1.7,2.5,1.9,2.7,2,2.8,null,"Weinig stedelijk",7.5,8.3000000000000007,7.7,8.5,7.8,8.6,7.8,8.6]
[null,"Niet stedelijk",1.4,2.2000000000000002,1.7,2.5,1.9,2.7,2,2.8,null,"Niet stedelijk",7.5,8.3000000000000007,7.7,8.5,7.8,8.6,7.8,8.6]
[]
["koop, twee onder een kap",null,"Centrum",null,"Schil centrum",null,"Rest bebouwde kom",null,"Buitengebied",null,null,null,"Centrum",null,"Schil centrum",null,"Rest bebouwde kom",null,"Buitengebied"]
[null,null,"min.","max.","min.","max.","min.","max.","min.","max.",null,null,"min.","max.","min.","max.","min.","max.","min.","max."]
[null,"Zeer sterk stedelijk",1,1.8,1.2,2,1.5,2.2999999999999998,1.7,2.5,null,"Zeer sterk stedelijk",5,5.8,5.9,6.7,6.9,7.7,7.4,8.1999999999999993]
[null,"Sterk stedelijk",1.1000000000000001,1.9,1.3,2.1,1.6,2.4,1.8,2.6,null,"Sterk stedelijk",5.9,6.7,6.9,7.7,7.4,8.1999999999999993,7.4,8.1999999999999993]
[null,"Matig stedelijk",1.3,2.1,1.4,2.2000000000000002,1.7,2.5,1.8,2.6,null,"Matig stedelijk",6.9,7.7,7.2,8,7.4,8.1999999999999993,7.4,8.1999999999999993]
[null,"Weinig stedelijk",1.3,2.1,1.6,2.4,1.8,2.6,1.8,2.6,null,"Weinig stedelijk",7.2,8,7.3,8.1,7.4,8.1999999999999993,7.4,8.1999999999999993]
[null,"Niet stedelijk",1.3,2.1,1.6,2.4,1.8,2.6,1.8,2.6,null,"Niet stedelijk",7.2,8,7.3,8.1,7.4,8.1999999999999993,7.4,8.1999999999999993]
[]
["Koop, tussen/hoek",null,"Centrum",null,"Schil centrum",null,"Rest bebouwde kom",null,"Buitengebied",null,null,null,"Centrum",null,"Schil centrum",null,"Rest bebouwde kom",null,"Buitengebied"]
[null,null,"min.","max.","min.","max.","min.","max.","min.","max.",null,null,"min.","max.","min.","max.","min.","max.","min.","max."]
[null,"Zeer sterk stedelijk",0.9,1.7,1.1000000000000001,1.9,1.3,2.1,1.5,2.2999999999999998,null,"Zeer sterk stedelijk",4.5,5.3,5.4,6.2,6.4,7.2,7,7.8]
[null,"Sterk stedelijk",1,1.8,1.2,2,1.4,2.2000000000000002,1.6,2.4,null,"Sterk stedelijk",5.4,6.2,6.4,7.2,6.7,7.5,7,7.8]
[null,"Matig stedelijk",1.1000000000000001,1.9,1.3,2.1,1.5,2.2999999999999998,1.6,2.4,null,"Matig stedelijk",6.4,7.2,6.5,7.3,6.7,7.5,7,7.8]
[null,"Weinig stedelijk",1.1000000000000001,1.9,1.4,2.2000000000000002,1.6,2.4,1.6,2.4,null,"Weinig stedelijk",6.8,7.6,6.9,7.7,7,7.8,7,7.8]
[null,"Niet stedelijk",1.1000000000000001,1.9,1.4,2.2000000000000002,1.6,2.4,1.6,2.4,null,"Niet stedelijk",6.8,7.6,6.9,7.7,7,7.8,7,7.8]
[]
["Koop, appartement, duur ",null,"Centrum",null,"Schil centrum",null,"Rest bebouwde kom",null,"Buitengebied",null,null,null,"Centrum",null,"Schil centrum",null,"Rest bebouwde kom",null,"Buitengebied"]
[null,null,"min.","max.","min.","max.","min.","max.","min.","max.",null,null,"min.","max.","min.","max.","min.","max.","min.","max."]
[null,"Zeer sterk stedelijk",0.9,1.7,1.1000000000000001,1.9,1.4,2.2000000000000002,1.6,2.4,null,"Zeer sterk stedelijk",4.5,5.3,5.4,6.2,6.4,7.2,7,7.8]
[null,"Sterk stedelijk",1,1.8,1.2,2,1.5,2.2999999999999998,1.7,2.5,null,"Sterk stedelijk",5.4,6.2,6.4,7.2,6.7,7.5,7,7.8]
[null,"Matig stedelijk",1.2,2,1.3,2.1,1.6,2.4,1.7,2.5,null,"Matig stedelijk",6.4,7.2,6.5,7.3,6.7,7.5,7,7.8]
[null,"Weinig stedelijk",1.2,2,1.5,2.2999999999999998,1.7,2.5,1.7,2.5,null,"Weinig stedelijk",6.8,7.6,6.9,7.7,7,7.8,7,7.8]
[null,"Niet stedelijk",1.2,2,1.5,2.2999999999999998,1.7,2.5,1.7,2.5,null,"Niet stedelijk",6.8,7.6,6.9,7.7,7,7.8,7,7.8]
[]
["Koop, appartement, Midden",null,"Centrum",null,"Schil centrum",null,"Rest bebouwde kom",null,"Buitengebied",null,null,null,"Centrum",null,"Schil centrum",null,"Rest bebouwde kom",null,"Buitengebied"]
[null,null,"min.","max.","min.","max.","min.","max.","min.","max.",null,null,"min.","max.","min.","max.","min.","max.","min.","max."]
[null,"Zeer sterk stedelijk",0.8,1.6,1,1.8,1.2,2,1.4,2.2000000000000002,null,"Zeer sterk stedelijk",2.9,3.7,3.7,4.5,4.7,5.5,5.6,6.4]
[null,"Sterk stedelijk",0.9,1.7,1.1000000000000001,1.9,1.3,2.1,1.5,2.2999999999999998,null,"Sterk stedelijk",3.7,4.5,4.7,5.5,5.2,6,5.6,6.4]
[null,"Matig stedelijk",1,1.8,1.2,2,1.4,2.2000000000000002,1.5,2.2999999999999998,null,"Matig stedelijk",4.7,5.5,5,5.8,5.2,6,5.6,6.4]
[null,"Weinig stedelijk",1,1.8,1.3,2.1,1.5,2.2999999999999998,1.5,2.2999999999999998,null,"Weinig stedelijk",5.4,6.2,5.5,6.3,5.6,6.4,5.6,6.4]
[null,"Niet stedelijk",1,1.8,1.3,2.1,1.5,2.2999999999999998,1.5,2.2999999999999998,null,"Niet stedelijk",5.4,6.2,5.5,6.3,5.6,6.4,5.6,6.4]
[]
["Koop, appartement, goedkoop",null,"Centrum",null,"Schil centrum",null,"Rest bebouwde kom",null,"Buitengebied",null,null,null,"Centrum",null,"Schil centrum",null,"Rest bebouwde kom",null,"Buitengebied"]
[null,null,"min.","max.","min.","max.","min.","max.","min.","max.",null,null,"min.","max.","min.","max.","min.","max.","min.","max."]
[null,"Zeer sterk stedelijk",0.7,1.5,0.8,1.6,0.9,1.7,1.1000000000000001,1.9,null,"Zeer sterk stedelijk",1.2,2,2.8,3.6,3.9,4.7,5.2,6]
[null,"Sterk stedelijk",0.8,1.6,0.9,1.7,1.1000000000000001,1.9,1.2,2,null,"Sterk stedelijk",2.8,3.6,3.9,4.7,4.5,5.3,5.2,6]
[null,"Matig stedelijk",0.9,1.7,1,1.8,1.2,2,1.2,2,null,"Matig stedelijk",3.9,4.7,4.2,5,4.5,5.3,5.2,6]
[null,"Weinig stedelijk",0.9,1.7,1,1.8,1.2,2,1.2,2,null,"Weinig stedelijk",4.8,5.6,5,5.8,5.2,6,5.2,6]
[null,"Niet stedelijk",0.9,1.7,1,1.8,1.2,2,1.2,2,null,"Niet stedelijk",4.8,5.6,5,5.8,5.2,6,5.2,6]
[]
["Huurhuis, vrije sector",null,"Centrum",null,"Schil centrum",null,"Rest bebouwde kom",null,"Buitengebied",null,null,null,"Centrum",null,"Schil centrum",null,"Rest bebouwde kom",null,"Buitengebied"]
[null,null,"min.","max.","min.","max.","min.","max.","min.","max.",null,null,"min.","max.","min.","max.","min.","max.","min.","max."]
[null,"Zeer sterk stedelijk",0.9,1.7,1.1000000000000001,1.9,1.3,2.1,1.5,2.2999999999999998,null,"Zeer sterk stedelijk",4.5,5.3,5.4,6.2,6.4,7.2,7,7.8]
[null,"Sterk stedelijk",1,1.8,1.2,2,1.4,2.2000000000000002,1.6,2.4,null,"Sterk stedelijk",5.4,6.2,6.4,7.2,6.7,7.5,7,7.8]
[null,"Matig stedelijk",1.1000000000000001,1.9,1.3,2.1,1.5,2.2999999999999998,1.6,2.4,null,"Matig stedelijk",6.4,7.2,6.5,7.3,6.7,7.5,7,7.8]
[null,"Weinig stedelijk",1.1000000000000001,1.9,1.4,2.2000000000000002,1.6,2.4,1.6,2.4,null,"Weinig stedelijk",6.8,7.6,6.9,7.7,7,7.8,7,7.8]
[null,"Niet stedelijk",1.1000000000000001,1.9,1.4,2.2000000000000002,1.6,2.4,1.6,2.4,null,"Niet stedelijk",6.8,7.6,6.9,7.7,7,7.8,7,7.8]
[]
["Huurhuis, sociaal huur",null,"Centrum",null,"Schil centrum",null,"Rest bebouwde kom",null,"Buitengebied",null,null,null,"Centrum",null,"Schil centrum",null,"Rest bebouwde kom",null,"Buitengebied"]
[null,null,"min.","max.","min.","max.","min.","max.","min.","max.",null,null,"min.","max.","min.","max.","min.","max.","min.","max."]
[null,"Zeer sterk stedelijk",0.7,1.5,0.8,1.6,0.9,1.7,1.1000000000000001,1.9,null,"Zeer sterk stedelijk",1.2,2,2.8,3.6,3.9,4.7,5.2,6]
[null,"Sterk stedelijk",0.8,1.6,0.9,1.7,1.1000000000000001,1.9,1.2,2,null,"Sterk stedelijk",2.8,3.6,3.9,4.7,4.5,5.3,5.2,6]
[null,"Matig stedelijk",0.9,1.7,1,1.8,1.2,2,1.2,2,null,"Matig stedelijk",3.9,4.7,4.2,5,4.5,5.3,5.2,6]
[null,"Weinig stedelijk",0.9,1.7,1,1.8,1.2,2,1.2,2,null,"Weinig stedelijk",4.8,5.6,5,5.8,5.2,6,5.2,6]
[null,"Niet stedelijk",0.9,1.7,1,1.8,1.2,2,1.2,2,null,"Niet stedelijk",4.8,5.6,5,5.8,5.2,6,5.2,6]
[]
["Huur, appartement, duur",null,"Centrum",null,"Schil centrum",null,"Rest bebouwde kom",null,"Buitengebied",null,null,null,"Centrum",null,"Schil centrum",null,"Rest bebouwde kom",null,"Buitengebied"]
[null,null,"min.","max.","min.","max.","min.","max.","min.","max.",null,null,"min.","max.","min.","max.","min.","max.","min.","max."]
[null,"Zeer sterk stedelijk",0.8,1.6,1,1.8,1.2,2,1.4,2.2000000000000002,null,"Zeer sterk stedelijk",2.9,3.7,3.7,4.5,4.7,5.5,5.6,6.4]
[null,"Sterk stedelijk",0.9,1.7,1.1000000000000001,1.9,1.3,2.1,1.5,2.2999999999999998,null,"Sterk stedelijk",3.7,4.5,4.7,5.5,5.2,6,5.6,6.4]
[null,"Matig stedelijk",1,1.8,1.2,2,1.4,2.2000000000000002,1.5,2.2999999999999998,null,"Matig stedelijk",4.7,5.5,5,5.8,5.2,6,5.6,6.4]
[null,"Weinig stedelijk",1,1.8,1.3,2.1,1.5,2.2999999999999998,1.5,2.2999999999999998,null,"Weinig stedelijk",5.4,6.2,5.5,6.3,5.6,6.4,5.6,6.4]
[null,"Niet stedelijk","1.0",1.8,1.3,2.1,1.5,2.2999999999999998,1.5,2.2999999999999998,null,"Niet stedelijk",5.4,6.2,5.5,6.3,5.6,6.4,5.6,6.4]
[]
["Huur, appartement, midden/goedkoop",null,"Centrum",null,"Schil centrum",null,"Rest bebouwde kom",null,"Buitengebied",null,null,null,"Centrum",null,"Schil centrum",null,"Rest bebouwde kom",null,"Buitengebied"]
[null,null,"min.","max.","min.","max.","min.","max.","min.","max.",null,null,"min.","max.","min.","max.","min.","max.","min.","max."]
[null,"Zeer sterk stedelijk",0.5,1.3,0.6,1.4,0.7,1.5,0.9,1.7,null,"Zeer sterk stedelijk",0.8,1.6,1.8,2.6,2.8,3.6,3.7,4.5]
[null,"Sterk stedelijk",0.6,1.4,0.7,1.5,0.9,1.7,1,1.8,null,"Sterk stedelijk",1.8,2.6,2.8,3.6,3.2,4,3.7,4.5]
[null,"Matig stedelijk",0.7,1.5,0.8,1.6,1,1.8,1,1.8,null,"Matig stedelijk",2.8,3.6,3,3.8,3.2,4,3.7,4.5]
[null,"Weinig stedelijk","0.7",1.5,0.8,1.6,1,1.8,1,1.8,null,"Weinig stedelijk",3.7,4.5,3.7,4.5,3.7,4.5,3.7,4.5]
[null,"Niet stedelijk",0.7,1.5,0.8,1.6,1,1.8,1,1.8,null,"Niet stedelijk",3.7,4.5,3.7,4.5,3.7,4.5,3.7,4.5]
[]
["Kamerverhuur, zelfstandig (niet student)",null,"Centrum",null,"Schil centrum",null,"Rest bebouwde kom",null,"Buitengebied",null,null,null,"Centrum",null,"Schil centrum",null,"Rest bebouwde kom",null,"Buitengebied"]
[null,null,"min.","max.","min.","max.","min.","max.","min.","max.",null,null,"min.","max.","min.","max.","min.","max.","min.","max."]
[null,"Zeer sterk stedelijk",0.4,0.4,0.4,0.5,0.5,0.6,0.5,0.7,null,"Zeer sterk stedelijk",1.5,1.5,1.5,1.8,1.8,2.1,1.8,2.4]
[null,"Sterk stedelijk",0.5,0.5,0.5,0.6,0.6,0.7,0.6,0.8,null,"Sterk stedelijk",1.5,1.5,1.5,1.8,1.8,2.1,1.8,2.4]
[null,"Matig stedelijk",0.5,0.6,0.6,0.7,0.6,0.8,0.6,0.8,null,"Matig stedelijk",1.5,1.8,1.8,2.1,1.8,2.4,1.8,2.4]
[null,"Weinig stedelijk",0.5,0.6,0.6,0.7,0.6,0.8,0.6,0.8,null,"Weinig stedelijk",1.5,1.8,1.8,2.1,1.8,2.4,1.8,2.4]
[null,"Niet stedelijk",0.5,0.6,0.6,0.7,0.6,0.8,0.6,0.8,null,"Niet stedelijk",1.5,1.8,1.8,2.1,1.8,2.4,1.8,2.4]
[]
["Kamerverhuur, student, niet-zelfstandig",null,"Centrum",null,"Schil centrum",null,"Rest bebouwde kom",null,"Buitengebied",null,null,null,"Centrum",null,"Schil centrum",null,"Rest bebouwde kom",null,"Buitengebied"]
[null,null,"min.","max.","min.","max.","min.","max.","min.","max.",null,null,"min.","max.","min.","max.","min.","max.","min.","max."]
[null,"Zeer sterk stedelijk",0.1,0.2,0.1,0.2,0.1,0.2,0.1,0.2,null,"Zeer sterk stedelijk",0.8,1.2,0.8,1.2,0.8,1.2,0.8,1.2]
[null,"Sterk stedelijk",0.2,0.3,0.2,0.3,0.2,0.3,0.2,0.3,null,"Sterk stedelijk",0.8,1.2,0.8,1.2,0.8,1.2,0.8,1.2]
[null,"Matig stedelijk",0.2,0.3,0.2,0.3,0.2,0.3,0.2,0.3,null,"Matig stedelijk",0.8,1.2,0.8,1.2,0.8,1.2,0.8,1.2]
[null,"Weinig stedelijk",0.2,0.3,0.2,0.3,0.2,0.3,0.2,0.3,null,"Weinig stedelijk",0.8,1.2,0.8,1.2,0.8,1.2,0.8,1.2]
[null,"Niet stedelijk",0.2,0.3,0.2,0.3,0.2,0.3,0.2,0.3,null,"Niet stedelijk",0.8,1.2,0.8,1.2,0.8,1.2,0.8,1.2]
[]
["Serviceflat",null,"Centrum",null,"Schil centrum",null,"Rest bebouwde kom",null,"Buitengebied",null,null,null,"Centrum",null,"Schil centrum",null,"Rest bebouwde kom",null,"Buitengebied"]
[null,null,"min.","max.","min.","max.","min.","max.","min.","max.",null,null,"min.","max.","min.","max.","min.","max.","min.","max."]
[null,"Zeer sterk stedelijk",0.1,0.5,0.1,0.5,0.7,1.2,0.9,1.3,null,"Zeer sterk stedelijk",0.4,1.2,0.4,1.2,2,2.7,2.2000000000000002,3]
[null,"Sterk stedelijk",0.2,0.6,0.8,1.3,0.9,1.3,1,1.4,null,"Sterk stedelijk",0.4,1.2,2,2.7,2.1,2.8,2.2000000000000002,3]
[null,"Matig stedelijk",0.8,1.3,0.9,1.3,0.9,1.3,1,1.4,null,"Matig stedelijk",2,2.7,2,2.7,2.1,2.8,2.2000000000000002,3]
[null,"Weinig stedelijk",0.8,1.3,0.9,1.3,1,1.4,1,1.4,null,"Weinig stedelijk",2,2.7,2.1,2.8,2.2000000000000002,3,2.2000000000000002,3]
[null,"Niet stedelijk",0.8,1.3,0.9,1.3,1,1.4,1,1.4,null,"Niet stedelijk",2,2.7,2.1,2.8,2.2000000000000002,3,2.2000000000000002,3]
[]
["Kleine eenpersoonswoning (tiny house, meestal grondgebonden)",null,"Centrum",null,"Schil centrum",null,"Rest bebouwde kom",null,"Buitengebied",null,null,null,"Centrum",null,"Schil centrum",null,"Rest bebouwde kom",null,"Buitengebied"]
[null,null,"min.","max.","min.","max.","min.","max.","min.","max.",null,null,"min.","max.","min.","max.","min.","max.","min.","max."]
[null,"Zeer sterk stedelijk",0.4,0.4,0.4,0.5,0.5,0.6,0.5,0.7,null,"Zeer sterk stedelijk",1.5,1.5,1.5,1.8,1.8,2.1,1.8,2.4]
[null,"Sterk stedelijk",0.5,0.5,0.5,0.6,0.6,0.7,0.6,0.8,null,"Sterk stedelijk",1.5,1.5,1.5,1.8,1.8,2.1,1.8,2.4]
[null,"Matig stedelijk",0.5,0.6,0.6,0.7,0.6,0.8,0.6,0.8,null,"Matig stedelijk",1.5,1.8,1.8,2.1,1.8,2.4,1.8,2.4]
[null,"Weinig stedelijk",0.5,0.6,0.6,0.7,0.6,0.8,0.6,0.8,null,"Weinig stedelijk",1.5,1.8,1.8,2.1,1.8,2.4,1.8,2.4]
[null,"Niet stedelijk",0.5,0.6,0.6,0.7,0.6,0.8,0.6,0.8,null,"Niet stedelijk",1.5,1.8,1.8,2.1,1.8,2.4,1.8,2.4]
["Kencijfers verkeersgeneratie; Werk en recreatie locaties"]
["Kantoor (zonder baliefunctie)",null,"Centrum",null,"Schil centrum",null,"Rest bebouwde kom",null,"Buitengebied",null,null,null,"Centrum",null,"Schil centrum",null,"Rest bebouwde kom",null,"Buitengebied"]
[null,null,"Min","Max","Min","Max","Min","Max","Min","Max",null,null,"Min","Max","Min","Max","Min","Max","Min ","Max"]
[null,"Zeer sterk stedelijk",0.6,1.1000000000000001,0.9,1.4,0.9,1.4,2.2999999999999998,2.8,null,"Zeer sterk stedelijk",2.1,3.8,3,4.7,3.2,4.9000000000000004,7.9,9.6]
[null,"Sterk stedelijk",0.9,1.4,1.3,1.8,1.4,1.9,2.2999999999999998,2.8,null,"Sterk stedelijk",3.2,4.9000000000000004,4.4000000000000004,6.2,4.7,6.5,7.9,9.6]
[null,"Matig stedelijk",1.3,1.8,1.7,2.2000000000000002,1.8,2.2999999999999998,2.2999999999999998,2.8,null,"Matig stedelijk",4.3,6.1,5.9,7.7,6.3,8.1,7.9,9.6]
[null,"Weinig stedelijk",1.6,2.1,2.1,2.6,2.2999999999999998,2.8,2.2999999999999998,2.8,null,"Niet stedelijk",5.5,7.2,7.4,9.1999999999999993,7.9,9.6,7.9,9.6]
[null,"Niet stedelijk",1.6,2.1,2.1,2.6,2.2999999999999998,2.8,2.2999999999999998,2.8,null,"Weinig stedelijk",5.5,7.2,7.4,9.1999999999999993,7.9,9.6,7.9,9.6]
[]
["Commerciële dienstverlening (met baliefunctie)",null,"Centrum",null,"Schil centrum",null,"Rest bebouwde kom",null,"Buitengebied",null,null,null,"Centrum",null,"Schil centrum",null,"Rest bebouwde kom",null,"Buitengebied"]
[null,null,"Min","Max","Min","Max","Min","Max","Min","Max",null,null,"Min","Max","Min","Max","Min","Max","Min ","Max"]
[null,"Zeer sterk stedelijk",0.9,1.4,1.1000000000000001,1.6,1.4,1.9,3.3,3.8,null,"Zeer sterk stedelijk",4.2,6.6,5.0999999999999996,7.5,6.5,8.8000000000000007,15.4,17.7]
[null,"Sterk stedelijk",1.3,1.8,1.6,2.1,2,2.5,3.3,3.8,null,"Sterk stedelijk",6.3,8.6,7.5,9.9,9.4,11.8,15.4,17.7]
[null,"Matig stedelijk",1.8,2.2999999999999998,2.1,2.6,2.6,3.1,3.3,3.8,null,"Matig stedelijk",8.4,10.8,10,12.4,12.4,14.8,15.4,17.7]
[null,"Weinig stedelijk",2.2000000000000002,2.7,2.7,3.2,3.3,3.8,3.3,3.8,null,"Weinig stedelijk",10.5,12.9,12.5,14.8,15.4,17.7,15.4,17.7]
[null,"Niet stedelijk",2.2000000000000002,2.7,2.7,3.2,3.3,3.8,3.3,3.8,null,"Niet stedelijk",10.5,12.9,12.5,14.8,15.4,17.7,15.4,17.7]
[]
["Bedrijf arbeidsintensief/bezoerkersextensief (industire, laboratorium, werkplaats)",null,"Centrum",null,"Schil centrum",null,"Rest bebouwde kom",null,"Buitengebied",null,null,null,"Centrum",null,"Schil centrum",null,"Rest bebouwde kom",null,"Buitengebied"]
[null,null,"Min","Max","Min","Max","Min","Max","Min","Max",null,null,"Min","Max","Min","Max","Min","Max","Min ","Max"]
[null,"Zeer sterk stedelijk",1,1.5,1.3,1.8,1.6,2.1,2.1,2.6,null,"Zeer sterk stedelijk",5.2,7,6.4,8.1,7.5,9.1999999999999993,9.1,10.9]
[null,"Sterk stedelijk",1.1000000000000001,1.6,1.5,2,1.9,2.4,2.1,2.6,null,"Sterk stedelijk",5.8,7.5,7,8.8000000000000007,8.3000000000000007,10.1,9.1,10.9]
[null,"Matig stedelijk",1.3,1.8,1.7,2.2000000000000002,2.1,2.6,2.1,2.6,null,"Matig stedelijk",6.3,8,7.7,9.4,9.1,10.9,9.1,10.9]
[null,"Weinig stedelijk",1.3,1.8,1.7,2.2000000000000002,2.1,2.6,2.1,2.6,null,"Weinig stedelijk",6.3,8,7.7,9.4,9.1,10.9,9.1,10.9]
[null,"Niet stedelijk",1.3,1.8,1.7,2.2000000000000002,2.1,2.6,2.1,2.6,null,"Niet stedelijk",6.3,8,7.7,9.4,9.1,10.9,9.1,10.9]
[]
["Bedrijf arbeidsextensief/bezoekersextensief (loods, opslag, transportbedrijf)",null,"Centrum",null,"Schil centrum",null,"Rest bebouwde kom",null,"Buitengebied",null,null,null,"Centrum",null,"Schil centrum",null,"Rest bebouwde kom",null,"Buitengebied"]
[null,null,"Min","Max","Min","Max","Min","Max","Min","Max",null,null,"Min","Max","Min","Max","Min","Max","Min ","Max"]
[null,"Zeer sterk stedelijk",0.3,0.8,0.5,1,0.6,1.1000000000000001,0.8,1.3,null,"Zeer sterk stedelijk",2.2000000000000002,3.9,2.7,4.4000000000000004,3.2,4.9000000000000004,3.9,5.7]
[null,"Sterk stedelijk",0.4,0.9,0.5,1,0.7,1.2,0.8,1.3,null,"Sterk stedelijk",2.4,4.0999999999999996,3,4.7,3.6,5.3,3.9,5.7]
[null,"Matig stedelijk",0.4,0.9,0.6,1.1000000000000001,0.8,1.3,0.8,1.3,null,"Matig stedelijk",2.6,4.4000000000000004,3.3,5,3.9,5.7,3.9,5.7]
[null,"Weinig stedelijk",0.4,0.9,0.6,1.1000000000000001,0.8,1.3,0.8,1.3,null,"Weinig stedelijk",2.6,4.4000000000000004,3.3,5,3.9,5.7,3.9,5.7]
[null,"Niet stedelijk",0.4,0.9,0.6,1.1000000000000001,0.8,1.3,0.8,1.3,null,"Niet stedelijk",2.6,4.4000000000000004,3.3,5,3.9,5.7,3.9,5.7]
[]
["Bedrijfverzamelgebouw",null,"Centrum",null,"Schil centrum",null,"Rest bebouwde kom",null,"Buitengebied",null,null,null,"Centrum",null,"Schil centrum",null,"Rest bebouwde kom",null,"Buitengebied"]
[null,null,"Min","Max","Min","Max","Min","Max","Min","Max",null,null,"Min","Max","Min","Max","Min","Max","Min ","Max"]
[null,"Zeer sterk stedelijk",0.6,1.1000000000000001,0.9,1.4,1.1000000000000001,1.6,1.7,2.2000000000000002,null,"Zeer sterk stedelijk",3.2,4.9000000000000004,4,5.7,4.5999999999999996,6.4,7,8.6999999999999993]
[null,"Sterk stedelijk",0.8,1.3,1.1000000000000001,1.6,1.3,1.8,1.7,2.2000000000000002,null,"Sterk stedelijk",3.8,5.5,4.8,6.5,5.5,7.3,7,8.6999999999999993]
[null,"Matig stedelijk",1,1.5,1.3,1.8,1.6,2.1,1.7,2.2000000000000002,null,"Matig stedelijk",4.4000000000000004,6.2,5.6,7.4,6.5,8.1999999999999993,7,8.6999999999999993]
[null,"Weinig stedelijk",1.1000000000000001,1.6,1.5,2,1.7,2.2000000000000002,1.7,2.2000000000000002,null,"Weinig stedelijk",4.8,6.5,6.1,7.9,7,8.6999999999999993,7,8.6999999999999993]
[null,"Niet stedelijk",1.1000000000000001,1.6,1.5,2,1.7,2.2000000000000002,1.7,2.2000000000000002,null,"Niet stedelijk",4.8,6.5,6.1,7.9,7,8.6999999999999993,7,8.6999999999999993]
[]
["Buurtsupermarkt",null,"Centrum",null,"Schil centrum",null,"Rest bebouwde kom",null,"Buitengebied",null,null,null,"Centrum",null,"Schil centrum",null,"Rest bebouwde kom",null,"Buitengebied"]
[null,null,"Min","Max","Min","Max","Min","Max","Min","Max",null,null,"Min","Max","Min","Max","Min","Max","Min ","Max"]
[null,"Zeer sterk stedelijk",0.4,2.4,1,3,1.6,3.6,"n.v.t.","n.v.t.",null,"Zeer sterk stedelijk",11.5,63.4,26.5,78.400000000000006,41.6,93.4,"n.v.t.","n.v.t."]
[null,"Sterk stedelijk",0.9,2.9,1.7,3.7,2.4,4.4000000000000004,"n.v.t.","n.v.t.",null,"Sterk stedelijk",23.5,75.400000000000006,43.3,95.2,63.1,115,"n.v.t.","n.v.t."]
[null,"Matig stedelijk",0.9,2.9,1.7,3.7,2.5,4.5,"n.v.t.","n.v.t.",null,"Matig stedelijk",23.8,75.599999999999994,43.7,95.5,63.6,115.4,"n.v.t.","n.v.t."]
[null,"Weinig stedelijk",1.3,3.3,2.2000000000000002,4.2,3.1,5.0999999999999996,"n.v.t.","n.v.t.",null,"Weinig stedelijk",32.6,84.4,56,107.8,79.400000000000006,131.19999999999999,"n.v.t.","n.v.t."]
[null,"Niet stedelijk",1.4,3.4,2.2999999999999998,4.3,3.3,5.3,"n.v.t.","n.v.t.",null,"Niet stedelijk",35.6,87.5,60.2,112.1,84.9,136.69999999999999,"n.v.t.","n.v.t."]
[]
["Fullservice-supermarkt",null,"Centrum",null,"Schil centrum",null,"Rest bebouwde kom",null,"Buitengebied",null,null,null,"Centrum",null,"Schil centrum",null,"Rest bebouwde kom",null,"Buitengebied"]
[null,null,"Min","Max","Min","Max","Min","Max","Min","Max",null,null,"Min","Max","Min","Max","Min","Max","Min ","Max"]
[null,"Zeer sterk stedelijk",1.5,3.8,2.2000000000000002,4.7,2.9,5.4,"n.v.t.","n.v.t.",null,"Zeer sterk stedelijk",31.1,72.7,57,98.6,70,111.6,"n.v.t.","n.v.t."]
[null,"Sterk stedelijk",2.1,4.5,3,5.6,3.9,6.4,"n.v.t.","n.v.t.",null,"Sterk stedelijk",43.6,85.2,75.8,117.4,91.9,133.5,"n.v.t.","n.v.t."]
[null,"Matig stedelijk",2.1,4.5999999999999996,3.1,5.7,4,6.4,"n.v.t.","n.v.t.",null,"Matig stedelijk",43.9,85.4,76.2,117.8,92.3,133.9,"n.v.t.","n.v.t."]
[null,"Weinig stedelijk",2.6,5.0999999999999996,3.6,6.3,4.5999999999999996,7.2,"n.v.t.","n.v.t.",null,"Weinig stedelijk",53,94.6,89.9,131.5,108.4,149.9,"n.v.t.","n.v.t."]
[null,"Niet stedelijk",2.7,5.2,3.8,6.6,4.8,7.5,"n.v.t.","n.v.t.",null,"Niet stedelijk",56.2,97.8,94.7,136.30000000000001,113.9,155.5,"n.v.t.","n.v.t."]
[]
["Grote supermarkt (XL)",null,"Centrum",null,"Schil centrum",null,"Rest bebouwde kom",null,"Buitengebied",null,null,null,"Centrum",null,"Schil centrum",null,"Rest bebouwde kom",null,"Buitengebied"]
[null,null,"Min","Max","Min","Max","Min","Max","Min","Max",null,null,"Min","Max","Min","Max","Min","Max","Min ","Max"]
[null,"zeer sterk stedelijk",4.0999999999999996,6.1,4.8,6.8,5.6,7.6,"n.v.t.","n.v.t.",null,"zeer sterk stedelijk",63.2,94.2,75.099999999999994,106.1,86.5,117.5,"n.v.t.","n.v.t."]
[null,"sterk stedelijk",4.9000000000000004,6.9,5.8,7.8,6.7,8.6999999999999993,"n.v.t.","n.v.t.",null,"sterk stedelijk",76.7,107.7,90.6,121.6,104,134.9,"n.v.t.","n.v.t."]
[null,"matig stedelijk",5,7,5.9,7.9,6.7,8.6999999999999993,"n.v.t.","n.v.t.",null,"matig stedelijk",77,108,90.9,121.9,104.3,135.30000000000001,"n.v.t.","n.v.t."]
[null,"weinig stedelijk",5.6,7.6,6.6,8.6,7.6,9.6,"n.v.t.","n.v.t.",null,"weinig stedelijk",86.8,117.8,102.3,133.30000000000001,117.1,148.1,"n.v.t.","n.v.t."]
[null,"niet stedelijk",5.8,7.8,6.9,8.9,7.8,9.8000000000000007,"n.v.t.","n.v.t.",null,"niet stedelijk",90.2,121.2,106.2,137.19999999999999,121.5,152.5,"n.v.t.","n.v.t."]
[]
["Groothandel specialist",null,"Centrum",null,"Schil centrum",null,"Rest bebouwde kom",null,"Buitengebied",null,null,null,"Centrum",null,"Schil centrum",null,"Rest bebouwde kom",null,"Buitengebied"]
[null,null,"Min","Max","Min","Max","Min","Max","Min","Max",null,null,"Min","Max","Min","Max","Min","Max","Min ","Max"]
[null,"zeer sterk stedelijk","n.v.t.","n.v.t.","3.9","5.4","4.1","6.0","n.v.t.","n.v.t.",null,"zeer sterk stedelijk","n.v.t.","n.v.t.",27.1,39.299999999999997,27.4,39.6,"n.v.t.","n.v.t."]
[null,"sterk stedelijk","n.v.t.","n.v.t.","4.9","6.4","4.9","6.9","n.v.t.","n.v.t.",null,"sterk stedelijk","n.v.t.","n.v.t.",32.799999999999997,45,33.1,45.4,"n.v.t.","n.v.t."]
[null,"matig stedelijk","n.v.t.","n.v.t.","4.9","6.4","4.9","6.9","n.v.t.","n.v.t.",null,"matig stedelijk","n.v.t.","n.v.t.",32.9,45.1,33.299999999999997,45.5,"n.v.t.","n.v.t."]
[null,"weinig stedelijk","n.v.t.","n.v.t.","5.6","7.1","5.6","7.9","n.v.t.","n.v.t.",null,"weinig stedelijk","n.v.t.","n.v.t.",37,49.3,37.4,49.7,"n.v.t.","n.v.t."]
[null,"niet stedelijk","n.v.t.","n.v.t.","5.6","7.3","5.6","7.9","n.v.t.","n.v.t.",null,"niet stedelijk","n.v.t.","n.v.t.",38.5,50.7,38.9,51.1,"n.v.t.","n.v.t."]
[]
["Groothandel algemeen",null,"Centrum",null,"Schil centrum",null,"Rest bebouwde kom",null,"Buitengebied",null,null,null,"Centrum",null,"Schil centrum",null,"Rest bebouwde kom",null,"Buitengebied"]
[null,null,"Min","Max","Min","Max","Min","Max","Min","Max",null,null,"Min","Max","Min","Max","Min","Max","Min ","Max"]
[null,"zeer sterk stedelijk","n.v.t.","n.v.t.",4.4000000000000004,6.4,4.5,6.5,"n.v.t.","n.v.t.",null,"zeer sterk stedelijk","n.v.t.","n.v.t.",27.1,39.299999999999997,27.4,39.6,"n.v.t.","n.v.t."]
[null,"sterk stedelijk","n.v.t.","n.v.t.",5.4,7.4,5.4,7.4,"n.v.t.","n.v.t.",null,"sterk stedelijk","n.v.t.","n.v.t.",32.799999999999997,45,33.1,45.4,"n.v.t.","n.v.t."]
[null,"matig stedelijk","n.v.t.","n.v.t.",5.4,7.4,5.4,7.4,"n.v.t.","n.v.t.",null,"matig stedelijk","n.v.t.","n.v.t.",32.9,45.1,33.299999999999997,45.5,"n.v.t.","n.v.t."]
[null,"weinig stedelijk","n.v.t.","n.v.t.",6.1,8.1,6.1,8.1,"n.v.t.","n.v.t.",null,"weinig stedelijk","n.v.t.","n.v.t.",37,49.3,37.4,49.7,"n.v.t.","n.v.t."]
[null,"niet stedelijk","n.v.t.","n.v.t.",6.3,8.3000000000000007,6.4,8.4,"n.v.t.","n.v.t.",null,"niet stedelijk","n.v.t.","n.v.t.",38.5,50.7,38.9,51.1,"n.v.t.","n.v.t."]
[]
["Binnenstad of hoofdwinkel (stads)centrum 20,000-30,000 inwoners",null,"Centrum",null,"Schil centrum",null,"Rest bebouwde kom",null,"Buitengebied",null,null,null,"Centrum",null,"Schil centrum",null,"Rest bebouwde kom",null,"Buitengebied"]
[null,null,"Min","Max","Min","Max","Min","Max","Min","Max",null,null,"Min","Max","Min","Max","Min","Max","Min ","Max"]
[null,"zeer sterk stedelijk",2.5,3.5,"n.v.t.","n.v.t.","n.v.t.","n.v.t.","n.v.t.","n.v.t.",null,"zeer sterk stedelijk",23,32.200000000000003,"n.v.t.","n.v.t.","n.v.t.","n.v.t.","n.v.t.","n.v.t."]
[null,"sterk stedelijk",2.8,3.8,"n.v.t.","n.v.t.","n.v.t.","n.v.t.","n.v.t.","n.v.t.",null,"sterk stedelijk",26,35.200000000000003,"n.v.t.","n.v.t.","n.v.t.","n.v.t.","n.v.t.","n.v.t."]
[null,"matig stedelijk",2.8,4.0999999999999996,"n.v.t.","n.v.t.","n.v.t.","n.v.t.","n.v.t.","n.v.t.",null,"matig stedelijk",26.1,35.200000000000003,"n.v.t.","n.v.t.","n.v.t.","n.v.t.","n.v.t.","n.v.t."]
[null,"weinig stedelijk",3.1,4.0999999999999996,"n.v.t.","n.v.t.","n.v.t.","n.v.t.","n.v.t.","n.v.t.",null,"weinig stedelijk",28.2,37.4,"n.v.t.","n.v.t.","n.v.t.","n.v.t.","n.v.t.","n.v.t."]
[null,"niet stedelijk",3.2,4.2,"n.v.t.","n.v.t.","n.v.t.","n.v.t.","n.v.t.","n.v.t.",null,"niet stedelijk",29,38.200000000000003,"n.v.t.","n.v.t.","n.v.t.","n.v.t.","n.v.t.","n.v.t."]
[]
["Binnenstad of hoofdwinkel(stadscentrum 30,000-50,000 inwoners",null,"Centrum",null,"Schil centrum",null,"Rest bebouwde kom",null,"Buitengebied",null,null,null,"Centrum",null,"Schil centrum",null,"Rest bebouwde kom",null,"Buitengebied"]
[null,null,"Min","Max","Min","Max","Min","Max","Min","Max",null,null,"Min","Max","Min","Max","Min","Max","Min ","Max"]
[null,"zeer sterk stedelijk",2.6,3.6,"n.v.t.","n.v.t.","n.v.t.","n.v.t.","n.v.t.","n.v.t.",null,"zeer sterk stedelijk",20.399999999999999,28.2,"n.v.t.","n.v.t.","n.v.t.","n.v.t.","n.v.t.","n.v.t."]
[null,"sterk stedelijk",2.9,3.9,"n.v.t.","n.v.t.","n.v.t.","n.v.t.","n.v.t.","n.v.t.",null,"sterk stedelijk",23,30.8,"n.v.t.","n.v.t.","n.v.t.","n.v.t.","n.v.t.","n.v.t."]
[null,"matig stedelijk",3,4,"n.v.t.","n.v.t.","n.v.t.","n.v.t.","n.v.t.","n.v.t.",null,"matig stedelijk",23.1,30.9,"n.v.t.","n.v.t.","n.v.t.","n.v.t.","n.v.t.","n.v.t."]
[null,"weinig stedelijk",3.2,4.2,"n.v.t.","n.v.t.","n.v.t.","n.v.t.","n.v.t.","n.v.t.",null,"weinig stedelijk",25,32.799999999999997,"n.v.t.","n.v.t.","n.v.t.","n.v.t.","n.v.t.","n.v.t."]
[null,"niet stedelijk",3.3,4.3,"n.v.t.","n.v.t.","n.v.t.","n.v.t.","n.v.t.","n.v.t.",null,"niet stedelijk",25.7,33.5,"n.v.t.","n.v.t.","n.v.t.","n.v.t.","n.v.t.","n.v.t."]
[]
["Binnenstad of hoofdwinkel(stads)centrum 50,000-100,000",null,"Centrum",null,"Schil centrum",null,"Rest bebouwde kom",null,"Buitengebied",null,null,null,"Centrum",null,"Schil centrum",null,"Rest bebouwde kom",null,"Buitengebied"]
[null,null,"Min","Max","Min","Max","Min","Max","Min","Max",null,null,"Min","Max","Min","Max","Min","Max","Min ","Max"]
[null,"zeer sterk stedelijk",2.9,3.9,"n.v.t.","n.v.t.","n.v.t.","n.v.t.","n.v.t.","n.v.t.",null,"zeer sterk stedelijk",21.3,28.6,"n.v.t.","n.v.t.","n.v.t.","n.v.t.","n.v.t.","n.v.t."]
[null,"sterk stedelijk",3.3,4.3,"n.v.t.","n.v.t.","n.v.t.","n.v.t.","n.v.t.","n.v.t.",null,"sterk stedelijk",23.9,31.3,"n.v.t.","n.v.t.","n.v.t.","n.v.t.","n.v.t.","n.v.t."]
[null,"matig stedelijk",3.3,4.3,"n.v.t.","n.v.t.","n.v.t.","n.v.t.","n.v.t.","n.v.t.",null,"matig stedelijk",24,31.3,"n.v.t.","n.v.t.","n.v.t.","n.v.t.","n.v.t.","n.v.t."]
[null,"weinig stedelijk",3.5,4.5,"n.v.t.","n.v.t.","n.v.t.","n.v.t.","n.v.t.","n.v.t.",null,"weinig stedelijk",26,33.299999999999997,"n.v.t.","n.v.t.","n.v.t.","n.v.t.","n.v.t.","n.v.t."]
[null,"niet stedelijk",3.6,4.5999999999999996,"n.v.t.","n.v.t.","n.v.t.","n.v.t.","n.v.t.","n.v.t.",null,"niet stedelijk",26.7,34,"n.v.t.","n.v.t.","n.v.t.","n.v.t.","n.v.t.","n.v.t."]
[]
["Binnenstad of hoofdwinkel(stads)centrum 1000,000-175,000",null,"Centrum",null,"Schil centrum",null,"Rest bebouwde kom",null,"Buitengebied",null,null,null,"Centrum",null,"Schil centrum",null,"Rest bebouwde kom",null,"Buitengebied"]
[null,null,"Min","Max","Min","Max","Min","Max","Min","Max",null,null,"Min","Max","Min","Max","Min","Max","Min ","Max"]
[null,"zeer sterk stedelijk",3,4,"n.v.t.","n.v.t.","n.v.t.","n.v.t.","n.v.t.","n.v.t.",null,"zeer sterk stedelijk",19.899999999999999,26.6,"n.v.t.","n.v.t.","n.v.t.","n.v.t.","n.v.t.","n.v.t."]
[null,"sterk stedelijk",3.4,4.4000000000000004,"n.v.t.","n.v.t.","n.v.t.","n.v.t.","n.v.t.","n.v.t.",null,"sterk stedelijk",22.4,29.1,"n.v.t.","n.v.t.","n.v.t.","n.v.t.","n.v.t.","n.v.t."]
[null,"matig stedelijk",3.4,4.4000000000000004,"n.v.t.","n.v.t.","n.v.t.","n.v.t.","n.v.t.","n.v.t.",null,"matig stedelijk",22.5,29.1,"n.v.t.","n.v.t.","n.v.t.","n.v.t.","n.v.t.","n.v.t."]
[null,"weinig stedelijk",3.7,4.7,"n.v.t.","n.v.t.","n.v.t.","n.v.t.","n.v.t.","n.v.t.",null,"weinig stedelijk",24.3,31,"n.v.t.","n.v.t.","n.v.t.","n.v.t.","n.v.t.","n.v.t."]
[null,"niet stedelijk",3.7,4.7,"n.v.t.","n.v.t.","n.v.t.","n.v.t.","n.v.t.","n.v.t.",null,"niet stedelijk",24.9,31.6,"n.v.t.","n.v.t.","n.v.t.","n.v.t.","n.v.t.","n.v.t."]
[]
["Binnenstad of hoofdwinkel(stads)centrum >175,000",null,"Centrum",null,"Schil centrum",null,"Rest bebouwde kom",null,"Buitengebied",null,null,null,"Centrum",null,"Schil centrum",null,"Rest bebouwde kom",null,"Buitengebied"]
[null,null,"Min","Max","Min","Max","Min","Max","Min","Max",null,null,"Min","Max","Min","Max","Min","Max","Min ","Max"]
[null,"zeer sterk stedelijk",2.7,3.7,"n.v.t.","n.v.t.","n.v.t.","n.v.t.","n.v.t.","n.v.t.",null,"zeer sterk stedelijk",14.2,19.3,"n.v.t.","n.v.t.","n.v.t.","n.v.t.","n.v.t.","n.v.t."]
[null,"sterk stedelijk",3.1,4.0999999999999996,"n.v.t.","n.v.t.","n.v.t.","n.v.t.","n.v.t.","n.v.t.",null,"sterk stedelijk",16,21.1,"n.v.t.","n.v.t.","n.v.t.","n.v.t.","n.v.t.","n.v.t."]
[null,"matig stedelijk",3.1,4.0999999999999996,"n.v.t.","n.v.t.","n.v.t.","n.v.t.","n.v.t.","n.v.t.",null,"matig stedelijk",16,21.2,"n.v.t.","n.v.t.","n.v.t.","n.v.t.","n.v.t.","n.v.t."]
[null,"weinig stedelijk",3.4,4.4000000000000004,"n.v.t.","n.v.t.","n.v.t.","n.v.t.","n.v.t.","n.v.t.",null,"weinig stedelijk",17.3,22.5,"n.v.t.","n.v.t.","n.v.t.","n.v.t.","n.v.t.","n.v.t."]
[null,"niet stedelijk",3.4,4.4000000000000004,"n.v.t.","n.v.t.","n.v.t.","n.v.t.","n.v.t.","n.v.t.",null,"niet stedelijk",17.8,22.9,"n.v.t.","n.v.t.","n.v.t.","n.v.t.","n.v.t.","n.v.t."]
[]
["Buurt- en dorpscentrum",null,"Centrum",null,"Schil centrum",null,"Rest bebouwde kom",null,"Buitengebied",null,null,null,"Centrum",null,"Schil centrum",null,"Rest bebouwde kom",null,"Buitengebied"]
[null,null,"Min","Max","Min","Max","Min","Max","Min","Max",null,null,"Min","Max","Min","Max","Min","Max","Min ","Max"]
[null,"zeer sterk stedelijk","n.v.t.","n.v.t.",1.8,3.8,2.4,4.4000000000000004,"n.v.t.","n.v.t.",null,"zeer sterk stedelijk","n.v.t.","n.v.t.",28,59.2,36.799999999999997,68.099999999999994,"n.v.t.","n.v.t."]
[null,"sterk stedelijk","n.v.t.","n.v.t.",2.1,4.0999999999999996,2.7,4.7,"n.v.t.","n.v.t.",null,"sterk stedelijk","n.v.t.","n.v.t.",32.700000000000003,63.9,42.4,73.7,"n.v.t.","n.v.t."]
[null,"matig stedelijk","n.v.t.","n.v.t.",2.1,4.0999999999999996,2.7,4.7,"n.v.t.","n.v.t.",null,"matig stedelijk","n.v.t.","n.v.t.",32.799999999999997,64,42.6,73.8,"n.v.t.","n.v.t."]
[null,"weinig stedelijk","n.v.t.","n.v.t.",2.2999999999999998,4.3,3,5,"n.v.t.","n.v.t.",null,"weinig stedelijk","n.v.t.","n.v.t.",36.200000000000003,67.5,46.7,78,"n.v.t.","n.v.t."]
[null,"niet stedelijk","2.4.","4.4.",2.4,4.4000000000000004,3.1,5.0999999999999996,"n.v.t.","n.v.t.",null,"niet stedelijk","n.v.t.","n.v.t.",37.4,68.7,48.1,79.400000000000006,"n.v.t.","n.v.t."]
[]
["Wijkcentrum klein",null,"Centrum",null,"Schil centrum",null,"Rest bebouwde kom",null,"Buitengebied",null,null,null,"Centrum",null,"Schil centrum",null,"Rest bebouwde kom",null,"Buitengebied"]
[null,null,"Min","Max","Min","Max","Min","Max","Min","Max",null,null,"Min","Max","Min","Max","Min","Max","Min ","Max"]
[null,"zeer sterk stedelijk","n.v.t.","n.v.t.",2.2999999999999998,4.3,3.1,5.0999999999999996,"n.v.t.","n.v.t.",null,"eer sterk stedelijk","n.v.t.","n.v.t.",31.6,58.6,41.7,68.7,"n.v.t.","n.v.t."]
[null,"sterk stedelijk","n.v.t.","n.v.t.",2.7,4.7,3.5,5.5,"n.v.t.","n.v.t.",null,"sterk stedelijk","n.v.t.","n.v.t.",36.4,63.5,47.6,74.7,"n.v.t.","n.v.t."]
[null,"matig stedelijk","n.v.t.","n.v.t.",2.7,4.7,3.5,5.5,"n.v.t.","n.v.t.",null,"matig stedelijk","n.v.t.","n.v.t.",36.5,63.6,47.7,74.8,"n.v.t.","n.v.t."]
[null,"weinig stedelijk","n.v.t.","n.v.t.",3,5,3.9,5.9,"n.v.t.","n.v.t.",null,"weinig stedelijk","n.v.t.","n.v.t.",40.1,67.2,52.1,79.2,"n.v.t.","n.v.t."]
[null,"niet stedelijk","n.v.t.","n.v.t.",3.1,5.0999999999999996,4,6,"n.v.t.","n.v.t.",null,"niet stedelijk","n.v.t.","n.v.t.",41.3,68.400000000000006,53.6,80.7,"n.v.t.","n.v.t."]
[]
["Wijkcentrum (gemiddeld)",null,"Centrum",null,"Schil centrum",null,"Rest bebouwde kom",null,"Buitengebied",null,null,null,"Centrum",null,"Schil centrum",null,"Rest bebouwde kom",null,"Buitengebied"]
[null,null,"Min","Max","Min","Max","Min","Max","Min","Max",null,null,"Min","Max","Min","Max","Min","Max","Min ","Max"]
[null,"zeer sterk stedelijk","n.v.t.","n.v.t.",2.9,4.9000000000000004,3.6,5.6,"n.v.t.","n.v.t.",null,"zeer sterk stedelijk","n.v.t.","n.v.t.",34.799999999999997,58.5,43.2,67,"n.v.t.","n.v.t."]
[null,"sterk stedelijk","n.v.t.","n.v.t.",3.3,5.3,4.0999999999999996,6.1,"n.v.t.","n.v.t.",null,"sterk stedelijk","n.v.t.","n.v.t.",39.799999999999997,63.6,49.2,73,"n.v.t.","n.v.t."]
[null,"matig stedelijk","n.v.t.","n.v.t.",3.4,5.4,4.0999999999999996,6.1,"n.v.t.","n.v.t.",null,"matig stedelijk","n.v.t.","n.v.t.",39.9,63.7,49.3,73.099999999999994,"n.v.t.","n.v.t."]
[null,"weinig stedelijk","n.v.t.","n.v.t.",3.7,5.7,4.5,6.5,"n.v.t.","n.v.t.",null,"weinig stedelijk","n.v.t.","n.v.t.",43.6,67.400000000000006,53.7,77.400000000000006,"n.v.t.","n.v.t."]
[null,"niet stedelijk","n.v.t.","n.v.t.",3.8,5.8,4.5999999999999996,6.6,"n.v.t.","n.v.t.",null,"niet stedelijk","n.v.t.","n.v.t.",44.9,68.599999999999994,55.2,79,"n.v.t.","n.v.t."]
[]
["Wijkcentrum (groot)",null,"Centrum",null,"Schil centrum",null,"Rest bebouwde kom",null,"Buitengebied",null,null,null,"Centrum",null,"Schil centrum",null,"Rest bebouwde kom",null,"Buitengebied"]
[null,null,"Min","Max","Min","Max","Min","Max","Min","Max",null,null,"Min","Max","Min","Max","Min","Max","Min ","Max"]
[null,"zeer sterk stedelijk","n.v.t.","n.v.t.",3.3,5.3,4.0999999999999996,6.1,"n.v.t.","n.v.t.",null,"zeer sterk stedelijk","n.v.t.","n.v.t.",35.200000000000003,56.6,43.9,65.3,"n.v.t.","n.v.t."]
[null,"sterk stedelijk","n.v.t.","n.v.t.",3.8,5.8,4.7,6.7,"n.v.t.","n.v.t.",null,"sterk stedelijk","n.v.t.","n.v.t.",40.1,61.5,49.8,71.2,"n.v.t.","n.v.t."]
[null,"matig stedelijk","n.v.t.","n.v.t.",3.8,5.8,4.7,6.7,"n.v.t.","n.v.t.",null,"matig stedelijk","n.v.t.","n.v.t.",40.200000000000003,61.6,49.9,71.3,"n.v.t.","n.v.t."]
[null,"weinig stedelijk","n.v.t.","n.v.t.",4.0999999999999996,6.1,5.0999999999999996,7.1,"n.v.t.","n.v.t.",null,"weinig stedelijk","n.v.t.","n.v.t.",43.9,65.3,54.2,75.599999999999994,"n.v.t.","n.v.t."]
[null,"niet stedelijk","n.v.t.","n.v.t.",4.2,6.2,5.2,7.2,"n.v.t.","n.v.t.",null,"niet stedelijk","n.v.t.","n.v.t.",45.1,66.5,55.7,77.099999999999994,"n.v.t.","n.v.t."]
[]
["Stadsdeelcentrum",null,"Centrum",null,"Schil centrum",null,"Rest bebouwde kom",null,"Buitengebied",null,null,null,"Centrum",null,"Schil centrum",null,"Rest bebouwde kom",null,"Buitengebied"]
[null,null,"Min","Max","Min","Max","Min","Max","Min","Max",null,null,"Min","Max","Min","Max","Min","Max","Min ","Max"]
[null,"zeer sterk stedelijk","n.v.t.","n.v.t.",3.7,5.7,4.7,6.7,"n.v.t.","n.v.t.",null,"zeer sterk stedelijk","n.v.t.","n.v.t.",32.200000000000003,49.5,40.6,57.9,"n.v.t.","n.v.t."]
[null,"sterk stedelijk","n.v.t.","n.v.t.",4.2,6.2,5.3,7.3,"n.v.t.","n.v.t.",null,"sterk stedelijk","n.v.t.","n.v.t.",36.6,53.9,45.9,63.2,"n.v.t.","n.v.t."]
[null,"matig stedelijk","n.v.t.","n.v.t.",4.2,6.2,5.3,7.3,"n.v.t.","n.v.t.",null,"matig stedelijk","n.v.t.","n.v.t.",36.700000000000003,54,46,63.3,"n.v.t.","n.v.t."]
[null,"weinig stedelijk","n.v.t.","n.v.t.",4.5999999999999996,6.6,5.8,7.8,"n.v.t.","n.v.t.",null,"weinig stedelijk","n.v.t.","n.v.t.",39.9,57.2,49.9,67.2,"n.v.t.","n.v.t."]
[null,"niet stedelijk","n.v.t.","n.v.t.",4.7,6.7,5.9,7.9,"n.v.t.","n.v.t.",null,"niet stedelijk","n.v.t.","n.v.t.",41,58.3,51.2,68.5,"n.v.t.","n.v.t."]
[]
["Weekmarkt (bij klein wijk, buurt en dorpscentrum)",null,"Centrum",null,"Schil centrum",null,"Rest bebouwde kom",null,"Buitengebied",null,null,null,"Centrum",null,"Schil centrum",null,"Rest bebouwde kom",null,"Buitengebied"]
[null,null,"Min","Max","Min","Max","Min","Max","Min","Max",null,null,"Min","Max","Min","Max","Min","Max","Min ","Max"]
[null,"zeer sterk stedelijk",0.15,0.24,0.15,0.24,0.15,0.24,"n.v.t.","n.v.t.",null,"zeer sterk stedelijk","n.v.t.","n.v.t.","n.v.t.","n.v.t.","n.v.t.","n.v.t.","n.v.t.","n.v.t."]
[null,"sterk stedelijk",0.15,0.24,0.15,0.24,0.15,0.24,"n.v.t.","n.v.t.",null,"sterk stedelijk","n.v.t.","n.v.t.","n.v.t.","n.v.t.","n.v.t.","n.v.t.","n.v.t.","n.v.t."]
[null,"matig stedelijk",0.15,0.24,0.15,0.24,0.15,0.24,"n.v.t.","n.v.t.",null,"matig stedelijk","n.v.t.","n.v.t.","n.v.t.","n.v.t.","n.v.t.","n.v.t.","n.v.t.","n.v.t."]
[null,"weinig stedelijk",0.18,0.27,0.18,0.27,0.18,0.27,"n.v.t.","n.v.t.",null,"weinig stedelijk","n.v.t.","n.v.t.","n.v.t.","n.v.t.","n.v.t.","n.v.t.","n.v.t.","n.v.t."]
[null,"niet stedelijk",0.18,0.27,0.18,0.27,0.18,0.27,"n.v.t.","n.v.t.",null,"niet stedelijk","n.v.t.","n.v.t.","n.v.t.","n.v.t.","n.v.t.","n.v.t.","n.v.t.","n.v.t."]
[]
["Kringloopwinkel",null,"Centrum",null,"Schil centrum",null,"Rest bebouwde kom",null,"Buitengebied",null,null,null,"Centrum",null,"Schil centrum",null,"Rest bebouwde kom",null,"Buitengebied"]
[null,null,"Min","Max","Min","Max","Min","Max","Min","Max",null,null,"Min","Max","Min","Max","Min","Max","Min ","Max"]
[null,"zeer sterk stedelijk","n.v.t.","n.v.t.",0.6,1.1000000000000001,1.1000000000000001,1.6,2,2.5,null,"zeer sterk stedelijk","n.v.t.","n.v.t.",6.9,12.2,11.6,17,21.6,26.9]
[null,"sterk stedelijk","n.v.t.","n.v.t.",0.9,1.4,1.4,1.9,2,2.5,null,"sterk stedelijk","n.v.t.","n.v.t.",9.4,14.7,15.4,20.7,21.6,26.9]
[null,"matig stedelijk","n.v.t.","n.v.t.",1,1.5,1.6,2.1,2,2.5,null,"matig stedelijk","n.v.t.","n.v.t.",10.199999999999999,15.5,16.600000000000001,22,21.6,26.9]
[null,"weinig stedelijk","n.v.t.","n.v.t.",1,1.5,1.7,2.2000000000000002,2,2.5,null,"weinig stedelijk","n.v.t.","n.v.t.",10.9,16.3,17.7,23,21.6,26.9]
[null,"niet stedelijk","n.v.t.","n.v.t.",1,1.5,1.7,2.2000000000000002,2,2.5,null,"niet stedelijk","n.v.t.","n.v.t.",10.9,16.2,17.7,23,21.6,26.9]
[]
["Bruin- en  witgoedzaken",null,"Centrum",null,"Schil centrum",null,"Rest bebouwde kom",null,"Buitengebied",null,null,null,"Centrum",null,"Schil centrum",null,"Rest bebouwde kom",null,"Buitengebied"]
[null,null,"Min","Max","Min","Max","Min","Max","Min","Max",null,null,"Min","Max","Min","Max","Min","Max","Min ","Max"]
[null,"zeer sterk stedelijk",2.2999999999999998,3.8,3.8,5.3,5.4,6.9,8.5,10,null,"zeer sterk stedelijk",27.7,45.7,46,64,64.3,82.3,102.4,120.4]
[null,"sterk stedelijk",2.9,4.4000000000000004,4.8,6.3,6.6,8.1,8.5,10,null,"sterk stedelijk",35.299999999999997,53.3,57.4,75.400000000000006,79.599999999999994,97.6,102.4,120.4]
[null,"matig stedelijk",3.2,4.7,5.0999999999999996,6.6,7.1,8.6,8.5,10,null,"matig stedelijk",37.9,55.9,61.3,79.3,84.7,102.7,102.4,120.4]
[null,"weinig stedelijk",3.3,4.8,5.4,6.9,7.4,8.9,8.5,10,null,"weinig stedelijk",40.1,58,64.599999999999994,82.6,89.1,107.1,102.4,120.4]
[null,"niet stedelijk",3.3,4.8,5.4,6.9,7.4,8.9,8.5,10,null,"niet stedelijk",40,58,64.5,82.5,89,106.9,102.4,120.4]
[]
["Woonwarenhuis/woonwinkel",null,"Centrum",null,"Schil centrum",null,"Rest bebouwde kom",null,"Buitengebied",null,null,null,"Centrum",null,"Schil centrum",null,"Rest bebouwde kom",null,"Buitengebied"]
[null,null,"Min","Max","Min","Max","Min","Max","Min","Max",null,null,"Min","Max","Min","Max","Min","Max","Min ","Max"]
[null,"Zeer sterk stedelijk",0.6,1.1000000000000001,1,1.5,1.1000000000000001,1.6,1.7,2.2000000000000002,null,"zeer sterk stedelijk",3.3,5.8,4.9000000000000004,7.5,5.6,8.1,8.5,11]
[null,"sterk stedelijk",0.9,1.4,1.3,1.8,1.4,1.9,1.7,2.2000000000000002,null,"sterk stedelijk",4.5,7,6.6,9.1,7.4,9.9,8.5,11]
[null,"matig stedelijk",1,1.5,1.4,1.9,1.6,2.1,1.7,2.2000000000000002,null,"matig stedelijk",4.9000000000000004,7.4,7.1,9.6999999999999993,8,10.5,8.5,11]
[null,"weinig stedelijk",1,1.5,1.5,2,1.7,2.2000000000000002,1.7,2.2000000000000002,null,"weinig stedelijk",5.2,7.8,7.6,10.1,8.5,11,8.5,11]
[null,"niet stedelijk",1,1.5,1.5,2,1.7,2.2000000000000002,1.7,2.2000000000000002,null,"niet stedelijk",5.2,7.8,7.6,10.1,8.5,11,8.5,11]
[]
["Woonwarenhuis (zeer groot)",null,"Centrum",null,"Schil centrum",null,"Rest bebouwde kom",null,"Buitengebied",null,null,null,"Centrum",null,"Schil centrum",null,"Rest bebouwde kom",null,"Buitengebied"]
[null,null,"Min","Max","Min","Max","Min","Max","Min","Max",null,null,"Min","Max","Min","Max","Min","Max","Min ","Max"]
[null,"zeer sterk stedelijk","n.v.t.","n.v.t.","n.v.t.","n.v.t.",3.4,4.9000000000000004,4.4000000000000004,5.9,null,"zeer sterk stedelijk","n.v.t.","n.v.t.","n.v.t.","n.v.t.",13.3,19.2,17.5,23.3]
[null,"sterk stedelijk","n.v.t.","n.v.t.","n.v.t.","n.v.t.",4,5.5,4.4000000000000004,5.9,null,"sterk stedelijk","n.v.t.","n.v.t.","n.v.t.","n.v.t.",15.9,21.7,17.5,23.3]
[null,"matig stedelijk","n.v.t.","n.v.t.","n.v.t.","n.v.t.",4.3,5.8,4.4000000000000004,5.9,null,"matig stedelijk","n.v.t.","n.v.t.","n.v.t.","n.v.t.",16.7,22.6,17.5,23.3]
[null,"weinig stedelijk","n.v.t.","n.v.t.","n.v.t.","n.v.t.",4.4000000000000004,5.9,4.4000000000000004,5.9,null,"weinig stedelijk","n.v.t.","n.v.t.","n.v.t.","n.v.t.",17.5,23.4,17.5,23.3]
[null,"niet stedelijk","n.v.t.","n.v.t.","n.v.t.","n.v.t.",4.4000000000000004,5.9,4.4000000000000004,5.9,null,"niet stedelijk","n.v.t.","n.v.t.","n.v.t.","n.v.t.",17.5,23.3,17.5,23.3]
[]
["Meubelboulevard/ woonhboulevard",null,"Centrum",null,"Schil centrum",null,"Rest bebouwde kom",null,"Buitengebied",null,null,null,"Centrum",null,"Schil centrum",null,"Rest bebouwde kom",null,"Buitengebied"]
[null,null,"Min","Max","Min","Max","Min","Max","Min","Max",null,null,"Min","Max","Min","Max","Min","Max","Min ","Max"]
[null,"zeer sterk stedelijk","n.v.t.","n.v.t.",1.2,1.7,1.5,2,"n.v.t.","n.v.t.",null,"zeer sterk stedelijk","n.v.t.","n.v.t.",4.5999999999999996,6.5,5.6,7.4,"n.v.t.","n.v.t."]
[null,"sterk stedelijk","n.v.t.","n.v.t.",1.6,2.1,2,2.5,"n.v.t.","n.v.t.",null,"sterk stedelijk","n.v.t.","n.v.t.",6,7.9,7.3,9.1,"n.v.t.","n.v.t."]
[null,"matig stedelijk","n.v.t.","n.v.t.",1.8,2.2999999999999998,2.1,2.6,"n.v.t.","n.v.t.",null,"matig stedelijk","n.v.t.","n.v.t.",6.5,8.4,7.9,9.6999999999999993,"n.v.t.","n.v.t."]
[null,"weinig stedelijk","n.v.t.","n.v.t.",1.9,2.4,2.2999999999999998,2.8,"n.v.t.","n.v.t.",null,"weinig stedelijk","n.v.t.","n.v.t.",6.9,8.8000000000000007,8.4,10.199999999999999,"n.v.t.","n.v.t."]
[null,"niet stedelijk","n.v.t.","n.v.t.",1.9,2.4,2.2000000000000002,2.7,"n.v.t.","n.v.t.",null,"niet stedelijk","n.v.t.","n.v.t.",6.9,8.8000000000000007,8.3000000000000007,10.199999999999999,"n.v.t.","n.v.t."]
[]
["Winkelboulevard",null,"Centrum",null,"Schil centrum",null,"Rest bebouwde kom",null,"Buitengebied",null,null,null,"Centrum",null,"Schil centrum",null,"Rest bebouwde kom",null,"Buitengebied"]
[null,null,"Min","Max","Min","Max","Min","Max","Min","Max",null,null,"Min","Max","Min","Max","Min","Max","Min ","Max"]
[null,"zeer sterk stedelijk","n.v.t.","n.v.t.",2.5,3,2.9,3.4,"n.v.t.","n.v.t.",null,"Zeer sterk stedelijk","n.v.t.","n.v.t.",13.2,15.8,15.1,17.7,"n.v.t.","n.v.t."]
[null,"sterk stedelijk","n.v.t.","n.v.t.",3.2,3.7,3.7,4.2,"n.v.t.","n.v.t.",null,"sterk stedelijk","n.v.t.","n.v.t.",16.899999999999999,19.600000000000001,19.3,22,"n.v.t.","n.v.t."]
[null,"matig stedelijk","n.v.t.","n.v.t.",3.5,4,3.9,4.4000000000000004,"n.v.t.","n.v.t.",null,"matig stedelijk","n.v.t.","n.v.t.",18.2,20.9,20.8,23.4,"n.v.t.","n.v.t."]
[null,"weinig stedelijk","n.v.t.","n.v.t.",3.7,4.2,4.2,4.7,"n.v.t.","n.v.t.",null,"weinig stedelijk","n.v.t.","n.v.t.",19.3,21.9,22,24.6,"n.v.t.","n.v.t."]
[null,"niet stedelijk","n.v.t.","n.v.t.",3.6,4.0999999999999996,4.2,4.7,"n.v.t.","n.v.t.",null,"niet stedelijk","n.v.t.","n.v.t.",19.3,21.9,22,24.6,"n.v.t.","n.v.t."]
[]
["Outletcentrum",null,"Centrum",null,"Schil centrum",null,"Rest bebouwde kom",null,"Buitengebied",null,null,null,"Centrum",null,"Schil centrum",null,"Rest bebouwde kom",null,"Buitengebied"]
[null,null,"Min","Max","Min","Max","Min","Max","Min","Max",null,null,"Min","Max","Min","Max","Min","Max","Min ","Max"]
[null,"zeer sterk stedelijk","n.v.t.","n.v.t.",6.6,8.6,7.3,9.3000000000000007,9.4,11.4,null,"zeer sterk stedelijk","n.v.t.","n.v.t.",16.7,21.8,18.600000000000001,23.7,24,29.1]
[null,"sterk stedelijk","n.v.t.","n.v.t.",7.8,9.8000000000000007,8.6,10.6,9.4,11.4,null,"sterk stedelijk","n.v.t.","n.v.t.",19.8,24.9,21.9,27,24,29.1]
[null,"matig stedelijk","n.v.t.","n.v.t.",8.1999999999999993,10.199999999999999,9.1,11.1,9.4,11.4,null,"matig stedelijk","n.v.t.","n.v.t.",20.8,25.9,23.1,28.2,24,29.1]
[null,"weinig stedelijk","n.v.t.","n.v.t.",8.5,10.5,9.4,11.4,9.4,11.4,null,"weinig stedelijk","n.v.t.","n.v.t.",21.7,26.8,24,29.1,24,29.1]
[null,"niet stedelijk","n.v.t.","n.v.t.",8.5,10.5,9.4,11.4,9.4,11.4,null,"niet stedelijk","n.v.t.","n.v.t.",21.7,26.8,24,29.1,24,29.1]
[]
["Bouwmarkt",null,"Centrum",null,"Schil centrum",null,"Rest bebouwde kom",null,"Buitengebied",null,null,null,"Centrum",null,"Schil centrum",null,"Rest bebouwde kom",null,"Buitengebied"]
[null,null,"Min","Max","Min","Max","Min","Max","Min","Max",null,null,"Min","Max","Min","Max","Min","Max","Min ","Max"]
[null,"zeer sterk stedelijk","n.v.t.","n.v.t.",1.2,1.7,1.7,2.2000000000000002,2.2000000000000002,2.7,null,"zeer sterk stedelijk","n.v.t.","n.v.t.",16.399999999999999,23.1,22,28.6,29.5,36.1]
[null,"sterk stedelijk","n.v.t.","n.v.t.",1.5,2,2,2.5,2.2000000000000002,2.7,null,"sterk stedelijk","n.v.t.","n.v.t.",19.600000000000001,26.2,26,32.700000000000003,29.5,36.1]
[null,"matig stedelijk","n.v.t.","n.v.t.",1.6,2.1,2.1,2.6,2.2000000000000002,2.7,null,"matig stedelijk","n.v.t.","n.v.t.",20.6,27.3,27.4,34,29.5,36.1]
[null,"weinig stedelijk","n.v.t.","n.v.t.",1.6,2.1,2.2000000000000002,2.7,2.2000000000000002,2.7,null,"weinig stedelijk","n.v.t.","n.v.t.",21.5,28.2,28.6,35.200000000000003,29.5,36.1]
[null,"niet stedelijk","n.v.t.","n.v.t.",1.6,2.1,2.1,2.6,2.2000000000000002,2.7,null,"niet stedelijk","n.v.t.","n.v.t.",21.5,28.1,28.5,35.200000000000003,29.5,36.1]
[]
["Tuincentrum",null,"Centrum",null,"Schil centrum",null,"Rest bebouwde kom",null,"Buitengebied",null,null,null,"Centrum",null,"Schil centrum",null,"Rest bebouwde kom",null,"Buitengebied"]
[null,null,"Min","Max","Min","Max","Min","Max","Min","Max",null,null,"Min","Max","Min","Max","Min","Max","Min ","Max"]
[null,"zeer sterk stedelijk","n.v.t.","n.v.t.",1.8,2.2999999999999998,2,2.5,2.6,3.1,null,"zeer sterk stedelijk","n.v.t.","n.v.t.",10.4,13.4,12,15,15.1,18]
[null,"sterk stedelijk","n.v.t.","n.v.t.",2,2.5,2.2999999999999998,2.8,2.6,3.1,null,"sterk stedelijk","n.v.t.","n.v.t.",11.5,14.5,13.3,16.2,15.1,18]
[null,"matig stedelijk","n.v.t.","n.v.t.",2,2.5,2.2999999999999998,2.8,2.6,3.1,null,"matig stedelijk","n.v.t.","n.v.t.",11.9,14.9,13.7,16.7,15.1,18]
[null,"weinig stedelijk","n.v.t.","n.v.t.",2.1,2.6,2.4,2.9,2.6,3.1,null,"weinig stedelijk","n.v.t.","n.v.t.",12.2,15.2,14.1,17,15.1,18]
[null,"niet stedelijk","n.v.t.","n.v.t.",2.1,2.6,2.4,2.9,2.6,3.1,null,"niet stedelijk","n.v.t.","n.v.t.",12.2,15.2,14.1,17,15.1,18]
[]
["Groencentrum",null,"Centrum",null,"Schil centrum",null,"Rest bebouwde kom",null,"Buitengebied",null,null,null,"Centrum",null,"Schil centrum",null,"Rest bebouwde kom",null,"Buitengebied"]
[null,null,"Min","Max","Min","Max","Min","Max","Min","Max",null,null,"Min","Max","Min","Max","Min","Max","Min ","Max"]
[null,"zeer sterk stedelijk","n.v.t.","n.v.t.",1.8,2.2999999999999998,2.1,2.6,"2.6",3.1,null,"zeer sterk stedelijk","n.v.t.","n.v.t.",8.9,11.4,10.199999999999999,12.7,12.8,15.3]
[null,"sterk stedelijk","n.v.t.","n.v.t.",2,2.5,2.2999999999999998,2.8,"2.6",3.1,null,"sterk stedelijk","n.v.t.","n.v.t.",9.8000000000000007,12.3,11.3,13.8,12.8,15.3]
[null,"matig stedelijk","n.v.t.","n.v.t.",2,2.5,2.2999999999999998,2.8,"2.6",3.1,null,"matig stedelijk","n.v.t.","n.v.t.",10.1,12.6,11.7,14.1,12.8,15.3]
[null,"weinig stedelijk","n.v.t.","n.v.t.",2.1,2.6,2.4,2.9,"2.6",3.1,null,"weinig stedelijk","n.v.t.","n.v.t.",10.4,12.9,12,14.5,12.8,15.3]
[null,"niet stedelijk","n.v.t.","n.v.t.",2.1,2.6,2.4,2.9,"2.6",3.1,null,"niet stedelijk","n.v.t.","n.v.t.",10.4,12.9,12,14.4,12.8,15.3]
[]
["Bibliotheek",null,"Centrum",null,"Schil centrum",null,"Rest bebouwde kom",null,"Buitengebied",null,null,null,"Centrum",null,"Schil centrum",null,"Rest bebouwde kom",null,"Buitengebied"]
[null,null,"Min","Max","Min","Max","Min","Max","Min","Max",null,null,"Min","Max","Min","Max","Min","Max","Min ","Max"]
[null,"Zeer sterk stedelijk",0.1,0.6,0.4,0.9,0.6,1.1000000000000001,1.1000000000000001,1.6,null,"Zeer sterk stedelijk",1.1000000000000001,5.9,3.4,8.1999999999999993,5.7,10.5,10.5,15.3]
[null,"Sterk stedelijk",0.2,0.7,0.5,1,0.8,1.3,1.1000000000000001,1.6,null,"Sterk stedelijk",2.1,6.9,5,9.8000000000000007,8,12.8,10.5,15.3]
[null,"Matig stedelijk",0.2,0.7,0.5,1,0.9,1.4,1.1000000000000001,1.6,null,"Matig stedelijk",2.2000000000000002,7,5.0999999999999996,9.9,8.1999999999999993,13,10.5,15.3]
[null,"Weinig stedelijk",0.2,0.7,0.5,1,0.9,1.4,1.1000000000000001,1.6,null,"Weinig stedelijk",2.2000000000000002,7,5.0999999999999996,9.9,8.1999999999999993,13,10.5,15.3]
[null,"Niet stedelijk",0.2,0.7,0.5,1,0.9,1.4,1.1000000000000001,1.6,null,"Niet stedelijk",2.2000000000000002,7,5.0999999999999996,9.9,8.1999999999999993,13,10.5,15.3]
[]
["Museum",null,"Centrum",null,"Schil centrum",null,"Rest bebouwde kom",null,"Buitengebied",null,null,null,"Centrum",null,"Schil centrum",null,"Rest bebouwde kom",null,"Buitengebied"]
[null,null,"Min","Max","Min","Max","Min","Max","Min","Max",null,null,"Min","Max","Min","Max","Min","Max","Min ","Max"]
[null,"Zeer sterk stedelijk",0.3,0.5,0.5,0.7,0.9,1,"n.v.t.","n.v.t.",null,"Zeer sterk stedelijk","n.v.t.","n.v.t.","n.v.t.","n.v.t.","n.v.t.","n.v.t.","n.v.t.","n.v.t."]
[null,"Sterk stedelijk",0.3,0.5,0.5,0.7,0.9,1,"n.v.t.","n.v.t.",null,"Sterk stedelijk","n.v.t.","n.v.t.","n.v.t.","n.v.t.","n.v.t.","n.v.t.","n.v.t.","n.v.t."]
[null,"Matig stedelijk",0.5,0.7,0.7,0.9,1,1.2,"n.v.t.","n.v.t.",null,"Matig stedelijk","n.v.t.","n.v.t.","n.v.t.","n.v.t.","n.v.t.","n.v.t.","n.v.t.","n.v.t."]
[null,"Weinig stedelijk",0.5,0.7,0.7,0.9,1,1.2,"n.v.t.","n.v.t.",null,"Weinig stedelijk","n.v.t.","n.v.t.","n.v.t.","n.v.t.","n.v.t.","n.v.t.","n.v.t.","n.v.t."]
[null,"Niet stedelijk",0.5,0.7,0.7,0.9,1,1.2,"n.v.t.","n.v.t.",null,"Niet stedelijk","n.v.t.","n.v.t.","n.v.t.","n.v.t.","n.v.t.","n.v.t.","n.v.t.","n.v.t."]
[]
["Bioscoop",null,"Centrum",null,"Schil centrum",null,"Rest bebouwde kom",null,"Buitengebied",null,null,null,"Centrum",null,"Schil centrum",null,"Rest bebouwde kom",null,"Buitengebied"]
[null,null,"Min","Max","Min","Max","Min","Max","Min","Max",null,null,"Min","Max","Min","Max","Min","Max","Min ","Max"]
[null,"Zeer sterk stedelijk",1.6,3.6,5.5,7.5,8.1,10.1,12.7,14.7,null,"Zeer sterk stedelijk",2.6,5.8,8.8000000000000007,12,13,16.2,20.399999999999999,23.7]
[null,"Sterk stedelijk",2.2000000000000002,4.2,6.9,8.9,10,12,12.7,14.7,null,"Sterk stedelijk",3.5,6.7,11,14.2,16.100000000000001,19.3,20.399999999999999,23.7]
[null,"Matig stedelijk",2.2000000000000002,4.2,7,9,10.199999999999999,12.2,12.7,14.7,null,"Matig stedelijk",3.5,6.7,11.2,14.4,16.399999999999999,19.600000000000001,20.399999999999999,23.7]
[null,"Weinig stedelijk",2.2000000000000002,4.2,7,9,10.199999999999999,12.2,12.7,14.7,null,"Weinig stedelijk",3.5,6.7,11.2,14.4,16.399999999999999,19.600000000000001,20.399999999999999,23.7]
[null,"Niet stedelijk",2.2000000000000002,4.2,7,9,10.199999999999999,12.2,12.7,14.7,null,"Niet stedelijk",3.5,6.7,11.2,14.4,16.399999999999999,19.600000000000001,20.399999999999999,23.7]
[]
["Filmtheater/ filmhuis",null,"Centrum",null,"Schil centrum",null,"Rest bebouwde kom",null,"Buitengebied",null,null,null,"Centrum",null,"Schil centrum",null,"Rest bebouwde kom",null,"Buitengebied"]
[null,null,"Min","Max","Min","Max","Min","Max","Min","Max",null,null,"Min","Max","Min","Max","Min","Max","Min ","Max"]
[null,"Zeer sterk stedelijk",1,3,3,5,5,7,8.9,10.9,null,"Zeer sterk stedelijk",2.7,8.1,8.1999999999999993,13.6,13.6,19,24.1,29.5]
[null,"Sterk stedelijk",1.6,3.6,4.2,6.2,6.7,8.6999999999999993,8.9,10.9,null,"Sterk stedelijk",4.3,9.6999999999999993,11.2,16.600000000000001,18.2,23.6,24.1,29.5]
[null,"Matig stedelijk",1.6,3.6,4.3,6.3,6.9,8.9,8.9,10.9,null,"Matig stedelijk",4.4000000000000004,9.8000000000000007,11.5,16.899999999999999,18.600000000000001,24,24.1,29.5]
[null,"Weinig stedelijk",1.6,3.6,4.3,6.3,6.9,8.9,8.9,10.9,null,"Weinig stedelijk",4.4000000000000004,9.8000000000000007,11.5,16.899999999999999,18.600000000000001,24,24.1,29.5]
[null,"Niet stedelijk",1.6,3.6,4.3,6.3,6.9,8.9,8.9,10.9,null,"Niet stedelijk",4.4000000000000004,9.8000000000000007,11.5,16.899999999999999,18.600000000000001,24,24.1,29.5]
[]
["Theater/ schouwburg",null,"Centrum",null,"Schil centrum",null,"Rest bebouwde kom",null,"Buitengebied",null,null,null,"Centrum",null,"Schil centrum",null,"Rest bebouwde kom",null,"Buitengebied"]
[null,null,"Min","Max","Min","Max","Min","Max","Min","Max",null,null,"Min","Max","Min","Max","Min","Max","Min ","Max"]
[null,"Zeer sterk stedelijk",5.2,8.1999999999999993,5.7,8.6999999999999993,7.4,10.4,10.5,13.5,null,"Zeer sterk stedelijk",6.9,10.8,7.6,11.6,9.8000000000000007,13.8,14,17.899999999999999]
[null,"Sterk stedelijk",5.8,8.8000000000000007,6.4,9.4,8.3000000000000007,11.3,10.5,13.5,null,"Sterk stedelijk",7.7,11.7,8.5,12.5,11,15,14,17.899999999999999]
[null,"Matig stedelijk",5.9,8.9,6.5,9.5,8.3000000000000007,11.3,10.5,13.5,null,"Matig stedelijk",7.8,11.8,8.6,12.6,11.1,15.1,14,17.899999999999999]
[null,"Weinig stedelijk",5.9,8.9,6.5,9.5,8.3000000000000007,11.3,10.5,13.5,null,"Weinig stedelijk",7.8,11.8,8.6,12.6,11.1,15.1,14,17.899999999999999]
[null,"Niet stedelijk",5.9,8.9,6.5,9.5,8.3000000000000007,11.3,10.5,13.5,null,"Niet stedelijk",7.8,11.8,8.6,12.6,11.1,15.1,14,17.899999999999999]
[]
["Musicaltheater",null,"Centrum",null,"Schil centrum",null,"Rest bebouwde kom",null,"Buitengebied",null,null,null,"Centrum",null,"Schil centrum",null,"Rest bebouwde kom",null,"Buitengebied"]
[null,null,"Min","Max","Min","Max","Min","Max","Min","Max",null,null,"Min","Max","Min","Max","Min","Max","Min ","Max"]
[null,"Zeer sterk stedelijk",2.1,3.1,2.5,3.5,3,4,4.5999999999999996,5.6,null,"Zeer sterk stedelijk",4.9000000000000004,7.2,6,8.3000000000000007,7.1,9.4,11,13.4]
[null,"Sterk stedelijk",2.4,3.4,2.9,3.9,3.4,4.4000000000000004,4.5999999999999996,5.6,null,"Sterk stedelijk",5.7,8,6.9,9.1999999999999993,8.1,10.5,11,13.4]
[null,"Matig stedelijk",2.4,3.4,2.9,3.9,3.5,4.5,4.5999999999999996,5.6,null,"Matig stedelijk",5.7,8.1,7,9.3000000000000007,8.1999999999999993,10.6,11,13.4]
[null,"Weinig stedelijk",2.4,3.4,2.9,3.9,3.5,4.5,4.5999999999999996,5.6,null,"Weinig stedelijk",5.7,8.1,7,9.3000000000000007,8.1999999999999993,10.6,11,13.4]
[null,"Niet stedelijk",2.4,3.4,2.9,3.9,3.5,4.5,4.5999999999999996,5.6,null,"Niet stedelijk",5.7,8.1,7,9.3000000000000007,8.1999999999999993,10.6,11,13.4]
[]
["Casino",null,"Centrum",null,"Schil centrum",null,"Rest bebouwde kom",null,"Buitengebied",null,null,null,"Centrum",null,"Schil centrum",null,"Rest bebouwde kom",null,"Buitengebied"]
[null,null,"Min","Max","Min","Max","Min","Max","Min","Max",null,null,"Min","Max","Min","Max","Min","Max","Min ","Max"]
[null,"Zeer sterk stedelijk",4.8,5.8,5.2,6.2,5.6,6.6,7.5,8.5,null,"Zeer sterk stedelijk",11.9,14.4,12.9,15.3,13.8,16.3,18.5,20.9]
[null,"Sterk stedelijk",5.2,6.2,5.6,6.6,6,7,7.5,8.5,null,"Sterk stedelijk",12.7,15.2,13.7,16.2,14.7,17.2,18.5,20.9]
[null,"Matig stedelijk",5.2,6.2,5.6,6.6,6,7,7.5,8.5,null,"Matig stedelijk",12.8,15.2,13.8,16.3,14.8,17.3,18.5,20.9]
[null,"Weinig stedelijk",5.2,6.2,5.6,6.6,6,7,7.5,8.5,null,"Weinig stedelijk",12.8,15.2,13.8,16.3,14.8,17.3,18.5,20.9]
[null,"Niet stedelijk",5.2,6.2,5.6,6.6,6,7,7.5,8.5,null,"Niet stedelijk",12.8,15.2,13.8,16.3,14.8,17.3,18.5,20.9]
[]
["Bowlingcentrum",null,"Centrum",null,"Schil centrum",null,"Rest bebouwde kom",null,"Buitengebied",null,null,null,"Centrum",null,"Schil centrum",null,"Rest bebouwde kom",null,"Buitengebied"]
[null,null,"Min","Max","Min","Max","Min","Max","Min","Max",null,null,"Min","Max","Min","Max","Min","Max","Min ","Max"]
[null,"Zeer sterk stedelijk",0.7,1.7,1.2,2.2000000000000002,1.7,2.7,2.2999999999999998,3.3,null,"Zeer sterk stedelijk",4.3,10.1,7.2,13,9.6999999999999993,15.5,13.5,19.3]
[null,"Sterk stedelijk",1.1000000000000001,2.1,1.7,2.7,2.2999999999999998,3.3,2.2999999999999998,3.3,null,"Sterk stedelijk",6.4,12.2,10,15.8,13.2,19,13.5,19.3]
[null,"Matig stedelijk",1.1000000000000001,2.1,1.8,2.8,2.2999999999999998,3.3,2.2999999999999998,3.3,null,"Matig stedelijk",6.6,12.4,10.199999999999999,16,13.5,19.3,13.5,19.3]
[null,"Weinig stedelijk",1.1000000000000001,2.1,1.8,2.8,2.2999999999999998,3.3,2.2999999999999998,3.3,null,"Weinig stedelijk",6.6,12.4,10.199999999999999,16,13.5,19.3,13.5,19.3]
[null,"nNiet stedelijk",1.1000000000000001,2.1,1.8,2.8,2.2999999999999998,3.3,2.2999999999999998,3.3,null,"Niet stedelijk",6.6,12.4,10.199999999999999,16,13.5,19.3,13.5,19.3]
[]
["Biljart-/snookercentrum",null,"Centrum",null,"Schil centrum",null,"Rest bebouwde kom",null,"Buitengebied",null,null,null,"Centrum",null,"Schil centrum",null,"Rest bebouwde kom",null,"Buitengebied"]
[null,null,"Min","Max","Min","Max","Min","Max","Min","Max",null,null,"Min","Max","Min","Max","Min","Max","Min ","Max"]
[null,"Zeer sterk stedelijk",0.4,0.9,0.6,1.1000000000000001,0.8,1.3,1.5,2,null,"Zeer sterk stedelijk",2.8,6.3,4.3,7.8,5.8,9.3000000000000007,10.6,14.2]
[null,"Sterk stedelijk",0.6,1.1000000000000001,0.8,1.3,1.1000000000000001,1.6,1.5,2,null,"Sterk stedelijk",4,7.6,6,9.5,7.9,11.4,10.6,14.2]
[null,"Matig stedelijk",0.6,1.1000000000000001,0.9,1.4,1.1000000000000001,1.6,1.5,2,null,"Matig stedelijk",4.0999999999999996,7.7,6.1,9.6999999999999993,8.1,11.6,10.6,14.2]
[null,"Weinig stedelijk",0.6,1.1000000000000001,0.9,1.4,1.1000000000000001,1.6,1.5,2,null,"Weinig stedelijk",4.0999999999999996,7.7,6.1,9.6999999999999993,8.1,11.6,10.6,14.2]
[null,"Niet stedelijk",0.6,1.1000000000000001,0.9,1.4,1.1000000000000001,1.6,1.5,2,null,"Niet stedelijk",4.0999999999999996,7.7,6.1,9.6999999999999993,8.1,11.6,10.6,14.2]
[]
["Dansstudio",null,"Centrum",null,"Schil centrum",null,"Rest bebouwde kom",null,"Buitengebied",null,null,null,"Centrum",null,"Schil centrum",null,"Rest bebouwde kom",null,"Buitengebied"]
[null,null,"Min","Max","Min","Max","Min","Max","Min","Max",null,null,"Min","Max","Min","Max","Min","Max","Min ","Max"]
[null,"Zeer sterk stedelijk",0.7,1.7,2.5,3.5,3.7,4.7,6.9,7.9,null,"Zeer sterk stedelijk",2.6,6.4,9.3000000000000007,13.1,13.9,17.7,25.9,29.7]
[null,"Sterk stedelijk",1,2,3.3,4.3,4.9000000000000004,5.9,6.9,7.9,null,"Sterk stedelijk",3.9,7.7,12.5,16.3,18.3,22.1,25.9,29.7]
[null,"Matig stedelijk",1.1000000000000001,2.1,3.4,4.4000000000000004,5,6,6.9,7.9,null,"Matig stedelijk",4,7.8,12.8,16.600000000000001,18.7,22.5,25.9,29.7]
[null,"Weinig stedelijk",1.1000000000000001,2.1,3.4,4.4000000000000004,5,6,6.9,7.9,null,"Weinig stedelijk",4,7.8,12.8,16.600000000000001,18.7,22.5,25.9,29.7]
[null,"Niet stedelijk",1.1000000000000001,2.1,3.4,4.4000000000000004,5,6,6.9,7.9,null,"Niet stedelijk",4,7.8,12.8,16.600000000000001,18.7,22.5,25.9,29.7]
[]
["Fitnessstudio/sportsschool",null,"Centrum",null,"Schil centrum",null,"Rest bebouwde kom",null,"Buitengebied",null,null,null,"Centrum",null,"Schil centrum",null,"Rest bebouwde kom",null,"Buitengebied"]
[null,null,"Min","Max","Min","Max","Min","Max","Min","Max",null,null,"Min","Max","Min","Max","Min","Max","Min ","Max"]
[null,"Zeer sterk stedelijk",0.6,1.6,2.1,3.1,3.2,4.2,6,7,null,"Zeer sterk stedelijk",4,11.1,15.2,22.3,22.7,29.8,42.7,49.9]
[null,"Sterk stedelijk",0.9,1.9,2.9,3.9,4.2,5.2,6,7,null,"Sterk stedelijk",6.1,13.2,20.5,27.6,30.1,37.299999999999997,42.7,49.9]
[null,"Matig stedelijk",0.9,1.9,2.9,3.9,4.3,5.3,6,7,null,"Matig stedelijk",6.3,13.4,20.9,28.1,30.8,37.9,42.7,49.9]
[null,"Weinig stedelijk",0.9,1.9,2.9,3.9,4.3,5.3,6,7,null,"Weinig stedelijk",6.3,13.4,20.9,28.1,30.8,37.9,42.7,49.9]
[null,"Niet stedelijk",0.9,1.9,2.9,3.9,4.3,5.3,6,7,null,"Niet stedelijk",6.3,13.4,20.9,28.1,30.8,37.9,42.7,49.9]
[]
["Fitnesscentrum",null,"Centrum",null,"Schil centrum",null,"Rest bebouwde kom",null,"Buitengebied",null,null,null,"Centrum",null,"Schil centrum",null,"Rest bebouwde kom",null,"Buitengebied"]
[null,null,"Min","Max","Min","Max","Min","Max","Min","Max",null,null,"Min","Max","Min","Max","Min","Max","Min ","Max"]
[null,"Zeer sterk stedelijk",0.8,1.8,2.9,3.9,4.3,5.3,6.9,7.9,null,"Zeer sterk stedelijk",4.5999999999999996,10,16,21.5,23.5,29,37.799999999999997,43.2]
[null,"Sterk stedelijk",1.2,2.2000000000000002,3.9,4.9000000000000004,5.7,6.7,6.9,7.9,null,"Sterk stedelijk",6.6,12.1,21.3,26.8,31,36.4,37.799999999999997,43.2]
[null,"Matig stedelijk",1.2,2.2000000000000002,4,5,5.8,6.8,6.9,7.9,null,"Matig stedelijk",6.8,12.3,21.7,27.2,31.6,37.1,37.799999999999997,43.2]
[null,"Weinig stedelijk",1.2,2.2000000000000002,4,5,5.8,6.8,6.9,7.9,null,"Weinig stedelijk",6.8,12.3,21.7,27.2,31.6,37.1,37.799999999999997,43.2]
[null,"Niet stedelijk",1.2,2.2000000000000002,4,5,5.8,6.8,6.9,7.9,null,"Niet stedelijk",6.8,12.3,21.7,27.2,31.6,37.1,37.799999999999997,43.2]
[]
["Wellnesscentrum (thermen, kuurcentrum,beautycentrum)",null,"Centrum",null,"Schil centrum",null,"Rest bebouwde kom",null,"Buitengebied",null,null,null,"Centrum",null,"Schil centrum",null,"Rest bebouwde kom",null,"Buitengebied"]
[null,null,"Min","Max","Min","Max","Min","Max","Min","Max",null,null,"Min","Max","Min","Max","Min","Max","Min ","Max"]
[null,"Zeer sterk stedelijk","n.v.t.","n.v.t.","n.v.t.","n.v.t.",8.3000000000000007,9.3000000000000007,9.8000000000000007,10.8,null,"Zeer sterk stedelijk","n.v.t.","n.v.t.","n.v.t.","n.v.t.",8.6999999999999993,9.8000000000000007,10.4,11.4]
[null,"Sterk stedelijk","n.v.t.","n.v.t.","n.v.t.","n.v.t.",8.8000000000000007,9.8000000000000007,9.8000000000000007,10.8,null,"Sterk stedelijk","n.v.t.","n.v.t.","n.v.t.","n.v.t.",9.3000000000000007,10.3,10.4,11.4]
[null,"Matig stedelijk","n.v.t.","n.v.t.","n.v.t.","n.v.t.",8.8000000000000007,9.8000000000000007,9.8000000000000007,10.8,null,"Matig stedelijk","n.v.t.","n.v.t.","n.v.t.","n.v.t.",9.3000000000000007,10.4,10.4,11.4]
[null,"Weinig stedelijk","n.v.t.","n.v.t.","n.v.t.","n.v.t.",8.8000000000000007,9.8000000000000007,9.8000000000000007,10.8,null,"Weinig stedelijk","n.v.t.","n.v.t.","n.v.t.","n.v.t.",9.3000000000000007,10.4,10.4,11.4]
[null,"Niet stedelijk","n.v.t.","n.v.t.","n.v.t.","n.v.t.",8.8000000000000007,9.8000000000000007,9.8000000000000007,10.8,null,"Niet stedelijk","n.v.t.","n.v.t.","n.v.t.","n.v.t.",9.3000000000000007,10.4,10.4,11.4]
[]
["Sauna, Hammam",null,"Centrum",null,"Schil centrum",null,"Rest bebouwde kom",null,"Buitengebied",null,null,null,"Centrum",null,"Schil centrum",null,"Rest bebouwde kom",null,"Buitengebied"]
[null,null,"Min","Max","Min","Max","Min","Max","Min","Max",null,null,"Min","Max","Min","Max","Min","Max","Min ","Max"]
[null,"Zeer sterk stedelijk",1.6,2.6,3.3,4.3,5,6,6.8,7.8,null,"Zeer sterk stedelijk",2.8,4.5,5.8,7.6,8.8000000000000007,10.6,11.8,13.6]
[null,"Sterk stedelijk",2,3,4.0999999999999996,5.0999999999999996,6.1,7.1,6.8,7.8,null,"Sterk stedelijk",3.5,5.3,7.1,8.9,10.8,12.5,11.8,13.6]
[null,"Matig stedelijk",2,3,4.0999999999999996,5.0999999999999996,6.2,7.2,6.8,7.8,null,"Matig stedelijk",3.6,5.3,7.3,9,10.9,12.7,11.8,13.6]
[null,"Weinig stedelijk",2,3,4.0999999999999996,5.0999999999999996,6.2,7.2,6.8,7.8,null,"Weinig stedelijk",3.6,5.3,7.3,9,10.9,12.7,11.8,13.6]
[null,"Niet stedelijk",2,3,4.0999999999999996,5.0999999999999996,6.2,7.2,6.8,7.8,null,"Niet stedelijk",3.6,5.3,7.3,9,10.9,12.7,11.8,13.6]
[]
["Sporthal",null,"Centrum",null,"Schil centrum",null,"Rest bebouwde kom",null,"Buitengebied",null,null,null,"Centrum",null,"Schil centrum",null,"Rest bebouwde kom",null,"Buitengebied"]
[null,null,"Min","Max","Min","Max","Min","Max","Min","Max",null,null,"Min","Max","Min","Max","Min","Max","Min ","Max"]
[null,"Zeer sterk stedelijk",1.2,1.7,1.8,2.2999999999999998,2.4,2.9,3.2,3.7,null,"Zeer sterk stedelijk",4.2,6,6.3,8.1,8.5,10.3,11.2,12.9]
[null,"Sterk stedelijk",1.2,1.7,1.8,2.2999999999999998,2.4,2.9,3.2,3.7,null,"Sterk stedelijk",4.2,6,6.3,8.1,8.6,10.3,11.2,12.9]
[null,"Matig stedelijk",1.3,1.8,1.9,2.4,2.6,3.1,3.2,3.7,null,"Matig stedelijk",4.5,6.3,6.7,8.5,9.1,10.8,11.2,12.9]
[null,"Weinig stedelijk",1.3,1.8,1.9,2.4,2.6,3.1,3.2,3.7,null,"Weinig stedelijk",4.5,6.3,6.8,8.6,9.1999999999999993,10.9,11.2,12.9]
[null,"Niet stedelijk",1.3,1.8,1.9,2.4,2.6,3.1,3.2,3.7,null,"Niet stedelijk",4.5,6.3,6.8,8.6,9.1999999999999993,10.9,11.2,12.9]
[]
["Sportzaal",null,"Centrum",null,"Schil centrum",null,"Rest bebouwde kom",null,"Buitengebied",null,null,null,"Centrum",null,"Schil centrum",null,"Rest bebouwde kom",null,"Buitengebied"]
[null,null,"Min","Max","Min","Max","Min","Max","Min","Max",null,null,"Min","Max","Min","Max","Min","Max","Min ","Max"]
[null,"Zeer sterk stedelijk",0.8,1.3,1.6,2.1,2.4,2.9,3.3,3.8,null,"Zeer sterk stedelijk",3.7,6.1,7.5,9.8000000000000007,11.1,13.5,15.5,17.8]
[null,"Sterk stedelijk",0.8,1.3,1.6,2.1,2.4,2.9,3.3,3.8,null,"Sterk stedelijk",3.8,6.1,7.5,9.8000000000000007,11.2,13.5,15.5,17.8]
[null,"Matig stedelijk",0.9,1.4,1.7,2.2000000000000002,2.5,3,3.3,3.8,null,"Matig stedelijk",4,6.3,8,10.3,11.8,14.2,15.5,17.8]
[null,"Weinig stedelijk",0.9,1.4,1.7,2.2000000000000002,2.6,3.1,3.3,3.8,null,"Weinig stedelijk",4.0999999999999996,6.4,8.1,10.4,12,14.3,15.5,17.8]
[null,"Niet stedelijk",0.9,1.4,1.7,2.2000000000000002,2.6,3.1,3.3,3.8,null,"Niet stedelijk",4.0999999999999996,6.4,8.1,10.4,12,14.3,15.5,17.8]
[]
["Tennishal",null,"Centrum",null,"Schil centrum",null,"Rest bebouwde kom",null,"Buitengebied",null,null,null,"Centrum",null,"Schil centrum",null,"Rest bebouwde kom",null,"Buitengebied"]
[null,null,"Min","Max","Min","Max","Min","Max","Min","Max",null,null,"Min","Max","Min","Max","Min","Max","Min ","Max"]
[null,"Zeer sterk stedelijk",0.2,0.4,0.3,0.5,0.3,0.5,0.4,0.6,null,"Zeer sterk stedelijk",1.2,2.8,2.2000000000000002,3.8,2.6,4.0999999999999996,3.4,4.9000000000000004]
[null,"Sterk stedelijk",0.2,0.4,0.3,0.5,0.4,0.6,0.4,0.6,null,"Sterk stedelijk",1.3,2.8,2.2999999999999998,3.9,2.7,4.3,3.4,4.9000000000000004]
[null,"Matig stedelijk",0.2,0.4,0.3,0.5,0.4,0.6,0.4,0.6,null,"Matig stedelijk",1.3,2.8,2.2999999999999998,3.9,2.7,4.3,3.4,4.9000000000000004]
[null,"Weinig stedelijk",0.2,0.4,0.3,0.5,0.4,0.6,0.4,0.6,null,"Weinig stedelijk",1.3,2.8,2.2999999999999998,3.9,2.7,4.3,3.4,4.9000000000000004]
[null,"Niet stedelijk",0.2,0.4,0.3,0.5,0.4,0.6,0.4,0.6,null,"Niet stedelijk",1.3,2.8,2.2999999999999998,3.9,2.7,4.3,3.4,4.9000000000000004]
[]
["Squashhal",null,"Centrum",null,"Schil centrum",null,"Rest bebouwde kom",null,"Buitengebied",null,null,null,"Centrum",null,"Schil centrum",null,"Rest bebouwde kom",null,"Buitengebied"]
[null,null,"Min","Max","Min","Max","Min","Max","Min","Max",null,null,"Min","Max","Min","Max","Min","Max","Min ","Max"]
[null,"Zeer sterk stedelijk",1.4,1.6,2.2000000000000002,2.4,2.5,2.7,3.1,3.3,null,"Zeer sterk stedelijk",13.4,15.3,20.6,22.5,23.5,25.4,28.8,30.7]
[null,"Sterk stedelijk",1.5,1.7,2.2999999999999998,2.5,2.6,2.8,3.1,3.3,null,"Sterk stedelijk",13.9,15.8,21.4,23.2,24.4,26.2,28.8,30.7]
[null,"Matig stedelijk",1.5,1.7,2.2999999999999998,2.5,2.6,2.8,3.1,3.3,null,"Matig stedelijk",13.9,15.8,21.4,23.2,24.4,26.2,28.8,30.7]
[null,"Weinig stedelijk",1.5,1.7,2.2999999999999998,2.5,2.6,2.8,3.1,3.3,null,"Weinig stedelijk",13.9,15.8,21.4,23.2,24.4,26.2,28.8,30.7]
[null,"Niet stedelijk",1.5,1.7,2.2999999999999998,2.5,2.6,2.8,3.1,3.3,null,"Niet stedelijk",13.9,15.8,21.4,23.2,24.4,26.2,28.8,30.7]
[]
["Zwembad overdekt",null,"Centrum",null,"Schil centrum",null,"Rest bebouwde kom",null,"Buitengebied",null,null,null,"Centrum",null,"Schil centrum",null,"Rest bebouwde kom",null,"Buitengebied"]
[null,null,"Min","Max","Min","Max","Min","Max","Min","Max",null,null,"Min","Max","Min","Max","Min","Max","Min ","Max"]
[null,"Zeer sterk stedelijk","n.v.t.","n.v.t.",8.8000000000000007,10.8,9.6,11.6,12.3,14.3,null,"Zeer sterk stedelijk","n.v.t.","n.v.t.",24,29.4,26.2,31.6,33.6,39.1]
[null,"Sterk stedelijk","n.v.t.","n.v.t.",9.6999999999999993,11.7,10.5,12.5,12.3,14.3,null,"Sterk stedelijk","n.v.t.","n.v.t.",26.4,31.8,28.8,34.200000000000003,33.6,39.1]
[null,"Matig stedelijk","n.v.t.","n.v.t.",9.6999999999999993,11.7,10.5,12.5,12.3,14.3,null,"Matig stedelijk","n.v.t.","n.v.t.",26.4,31.8,28.8,34.200000000000003,33.6,39.1]
[null,"Weinig stedelijk","n.v.t.","n.v.t.",9.6999999999999993,11.7,10.5,12.5,12.3,14.3,null,"Weinig stedelijk","n.v.t.","n.v.t.",26.4,31.8,28.8,34.200000000000003,33.6,39.1]
[null,"Niet stedelijk","n.v.t.","n.v.t.",9.6999999999999993,11.7,10.5,12.5,12.3,14.3,null,"Niet stedelijk","n.v.t.","n.v.t.",26.4,31.8,28.8,34.200000000000003,33.6,39.1]
[]
["Zwembad openlucht",null,"Centrum",null,"Schil centrum",null,"Rest bebouwde kom",null,"Buitengebied",null,null,null,"Centrum",null,"Schil centrum",null,"Rest bebouwde kom",null,"Buitengebied"]
[null,null,"Min","Max","Min","Max","Min","Max","Min","Max",null,null,"Min","Max","Min","Max","Min","Max","Min ","Max"]
[null,"Zeer sterk stedelijk","n.v.t.","n.v.t.",8,10,10.5,12.5,14.8,16.8,null,"Zeer sterk stedelijk","n.v.t.","n.v.t.",8.6,10.8,11.5,13.6,16.3,18.5]
[null,"Sterk stedelijk","n.v.t.","n.v.t.",9.1,11.1,11.9,13.9,14.8,16.8,null,"Sterk stedelijk","n.v.t.","n.v.t.",9.8000000000000007,12.2,12.7,15.3,16.3,18.5]
[null,"Matig stedelijk","n.v.t.","n.v.t.",9.1,11.1,11.9,13.9,14.8,16.8,null,"Matig stedelijk","n.v.t.","n.v.t.",9.8000000000000007,12.2,13,15.4,16.3,18.5]
[null,"Weinig stedelijk","n.v.t.","n.v.t.",9.1,11.1,11.9,13.9,14.8,16.8,null,"Weinig stedelijk","n.v.t.","n.v.t.",9.8000000000000007,12.2,13,15.4,16.3,18.5]
[null,"Niet stedelijk","n.v.t.","n.v.t.",9.1,11.1,11.9,13.9,14.8,16.8,null,"Niet stedelijk","n.v.t.","n.v.t.",9.8000000000000007,12.2,13,15.4,16.3,18.5]
[]
["Zwemparadijs",null,"Centrum",null,"Schil centrum",null,"Rest bebouwde kom",null,"Buitengebied",null,null,null,"Centrum",null,"Schil centrum",null,"Rest bebouwde kom",null,"Buitengebied"]
[null,null,"Min","Max","Min","Max","Min","Max","Min","Max",null,null,"Min","Max","Min","Max","Min","Max","Min ","Max"]
[null,"Zeer sterk stedelijk","n.v.t.","n.v.t.","n.v.t.","n.v.t.",3,5,3,5,null,"Zeer sterk stedelijk","n.v.t.","n.v.t.","n.v.t.","n.v.t.",10,15,"n.v.t.","n.v.t."]
[null,"Sterk stedelijk","n.v.t.","n.v.t.","n.v.t.","n.v.t.",3,5,3,5,null,"Sterk stedelijk","n.v.t.","n.v.t.","n.v.t.","n.v.t.",10,15,"n.v.t.","n.v.t."]
[null,"Matig stedelijk","n.v.t.","n.v.t.","n.v.t.","n.v.t.",3,5,3,5,null,"Matig stedelijk","n.v.t.","n.v.t.","n.v.t.","n.v.t.",10,15,"n.v.t.","n.v.t."]
[null,"Weinig stedelijk","n.v.t.","n.v.t.","n.v.t.","n.v.t.",3,5,3,5,null,"Weinig stedelijk","n.v.t.","n.v.t.","n.v.t.","n.v.t.",10,15,"n.v.t.","n.v.t."]
[null,"Niet stedelijk","n.v.t.","n.v.t.","n.v.t.","n.v.t.",3,5,3,5,null,"Niet stedelijk","n.v.t.","n.v.t.","n.v.t.","n.v.t.",10,15,"n.v.t.","n.v.t."]
[]
["Sportveld",null,"Centrum",null,"Schil centrum",null,"Rest bebouwde kom",null,"Buitengebied",null,null,null,"Centrum",null,"Schil centrum",null,"Rest bebouwde kom",null,"Buitengebied"]
[null,null,"Min","Max","Min","Max","Min","Max","Min","Max",null,null,"Min","Max","Min","Max","Min","Max","Min ","Max"]
[null,"Zeer sterk stedelijk",13,27,13,27,13,27,13,27,null,"zeer sterk stedelijk","n.v.t.","n.v.t.","n.v.t.","n.v.t.","n.v.t.","n.v.t.","n.v.t.","n.v.t."]
[null,"Sterk stedelijk",13,27,13,27,13,27,13,27,null,"sterk stedelijk","n.v.t.","n.v.t.","n.v.t.","n.v.t.","n.v.t.","n.v.t.","n.v.t.","n.v.t."]
[null,"Matig stedelijk",13,27,13,27,13,27,13,27,null,"matig stedelijk","n.v.t.","n.v.t.","n.v.t.","n.v.t.","n.v.t.","n.v.t.","n.v.t.","n.v.t."]
[null,"Weinig stedelijk",13,27,13,27,13,27,13,27,null,"weinig stedelijk","n.v.t.","n.v.t.","n.v.t.","n.v.t.","n.v.t.","n.v.t.","n.v.t.","n.v.t."]
[null,"Niet stedelijk",13,27,13,27,13,27,13,27,null,"niet stedelijk","n.v.t.","n.v.t.","n.v.t.","n.v.t.","n.v.t.","n.v.t.","n.v.t.","n.v.t."]
[]
["Stadion",null,"Centrum",null,"Schil centrum",null,"Rest bebouwde kom",null,"Buitengebied",null,null,null,"Centrum",null,"Schil centrum",null,"Rest bebouwde kom",null,"Buitengebied"]
[null,null,"Min","Max","Min","Max","Min","Max","Min","Max",null,null,"Min","Max","Min","Max","Min","Max","Min ","Max"]
[null,"Zeer sterk stedelijk",0.04,0.2,0.04,0.2,0.04,0.2,"n.v.t.","n.v.t.",null,"zeer sterk stedelijk","n.v.t.","n.v.t.","n.v.t.","n.v.t.","n.v.t.","n.v.t.","n.v.t.","n.v.t."]
[null,"Sterk stedelijk",0.04,0.2,0.04,0.2,0.04,0.2,"n.v.t.","n.v.t.",null,"sterk stedelijk","n.v.t.","n.v.t.","n.v.t.","n.v.t.","n.v.t.","n.v.t.","n.v.t.","n.v.t."]
[null,"Matig stedelijk",0.04,0.2,0.04,0.2,0.04,0.2,"n.v.t.","n.v.t.",null,"matig stedelijk","n.v.t.","n.v.t.","n.v.t.","n.v.t.","n.v.t.","n.v.t.","n.v.t.","n.v.t."]
[null,"Weinig stedelijk",0.04,0.2,0.04,0.2,0.04,0.2,"n.v.t.","n.v.t.",null,"weinig stedelijk","n.v.t.","n.v.t.","n.v.t.","n.v.t.","n.v.t.","n.v.t.","n.v.t.","n.v.t."]
[null,"Niet stedelijk",0.04,0.2,0.04,0.2,0.04,0.2,"n.v.t.","n.v.t.",null,"niet stedelijk","n.v.t.","n.v.t.","n.v.t.","n.v.t.","n.v.t.","n.v.t.","n.v.t.","n.v.t."]
[]
["Kunstijsbaan (kleiner dan 400 meter)",null,"Centrum",null,"Schil centrum",null,"Rest bebouwde kom",null,"Buitengebied",null,null,null,"Centrum",null,"Schil centrum",null,"Rest bebouwde kom",null,"Buitengebied"]
[null,null,"Min","Max","Min","Max","Min","Max","Min","Max",null,null,"Min","Max","Min","Max","Min","Max","Min ","Max"]
[null,"Zeer sterk stedelijk",0.9,1.4,1.1000000000000001,1.6,1.4,1.9,1.8,2.2999999999999998,null,"Zeer sterk stedelijk",1.8,2.8,2.4,3.4,3,4,4,5]
[null,"Sterk stedelijk",0.9,1.4,1.1000000000000001,1.6,1.4,1.9,1.8,2.2999999999999998,null,"Sterk stedelijk",1.8,3,2.4,3.4,3,4,4,5]
[null,"Matig stedelijk",1,1.5,1.3,1.8,1.6,2.1,1.8,2.2999999999999998,null,"Matig stedelijk",2.2000000000000002,3.2,2.8,3.8,3.4,4.4000000000000004,4,5]
[null,"Weinig stedelijk",1,1.5,1.3,1.8,1.6,2.1,1.8,2.2999999999999998,null,"Weinig stedelijk",2.2000000000000002,3.2,2.8,3.8,3.4,4.5999999999999996,4,5]
[null,"Niet stedelijk",1,1.5,1.3,1.8,1.6,2.1,1.8,2.2999999999999998,null,"Niet stedelijk",2.2000000000000002,3.2,2.8,3.8,3.4,4.5999999999999996,4,5]
[]
["Kunstijsbaan (400 meter)",null,"Centrum",null,"Schil centrum",null,"Rest bebouwde kom",null,"Buitengebied",null,null,null,"Centrum",null,"Schil centrum",null,"Rest bebouwde kom",null,"Buitengebied"]
[null,null,"Min","Max","Min","Max","Min","Max","Min","Max",null,null,"Min","Max","Min","Max","Min","Max","Min ","Max"]
[null,"Zeer sterk stedelijk","n.v.t.","n.v.t.",1.8,2.2999999999999998,2.1,2.6,2.5,3,null,"Zeer sterk stedelijk","n.v.t.","n.v.t.",3.8,4.8,4.4000000000000004,5.4,5.4,6.4]
[null,"Sterk stedelijk","n.v.t.","n.v.t.",1.8,2.2999999999999998,2.1,2.6,2.5,3,null,"Sterk stedelijk","n.v.t.","n.v.t.",3.8,4.8,4.4000000000000004,5.4,5.4,6.4]
[null,"Matig stedelijk","n.v.t.","n.v.t.",2,2.5,2.2999999999999998,2.8,2.5,3,null,"Matig stedelijk","n.v.t.","n.v.t.",4.2,5.2,4.8,5.8,5.4,6.4]
[null,"Weinig stedelijk","n.v.t.","n.v.t.",2,2.5,2.2999999999999998,2.8,2.5,3,null,"Weinig stedelijk","n.v.t.","n.v.t.",4.2,5.4,4.8,6,5.4,6.4]
[null,"Niet stedelijk","n.v.t.","n.v.t.",2,2.5,2.2999999999999998,2.8,2.5,3,null,"Niet stedelijk","n.v.t.","n.v.t.",4.2,5.4,4.8,6,5.4,6.4]
[]
["Ski-snowboardhal",null,"Centrum",null,"Schil centrum",null,"Rest bebouwde kom",null,"Buitengebied",null,null,null,"Centrum",null,"Schil centrum",null,"Rest bebouwde kom",null,"Buitengebied"]
[null,null,"Min","Max","Min","Max","Min","Max","Min","Max",null,null,"Min","Max","Min","Max","Min","Max","Min ","Max"]
[null,"Zeer sterk stedelijk","n.v.t.","n.v.t.","n.v.t.","n.v.t.",2.1,2.6,"n.v.t.","n.v.t.",null,"Zeer sterk stedelijk","n.v.t.","n.v.t.","n.v.t.","n.v.t.",4,8,"n.v.t.","n.v.t."]
[null,"Sterk stedelijk","n.v.t.","n.v.t.","n.v.t.","n.v.t.",2.1,2.6,"n.v.t.","n.v.t.",null,"Sterk stedelijk","n.v.t.","n.v.t.","n.v.t.","n.v.t.",4,8,"n.v.t.","n.v.t."]
[null,"Matig stedelijk","n.v.t.","n.v.t.","n.v.t.","n.v.t.",2.2999999999999998,2.8,"n.v.t.","n.v.t.",null,"Matig stedelijk","n.v.t.","n.v.t.","n.v.t.","n.v.t.",4,8,"n.v.t.","n.v.t."]
[null,"Weinig stedelijk","n.v.t.","n.v.t.","n.v.t.","n.v.t.",2.2999999999999998,2.8,"n.v.t.","n.v.t.",null,"Weinig stedelijk","n.v.t.","n.v.t.","n.v.t.","n.v.t.",4,8,"n.v.t.","n.v.t."]
[null,"Niet stedelijk","n.v.t.","n.v.t.","n.v.t.","n.v.t.",2.2999999999999998,2.8,"n.v.t.","n.v.t.",null,"Niet stedelijk","n.v.t.","n.v.t.","n.v.t.","n.v.t.",4,8,"n.v.t.","n.v.t."]
[]
["Jachthaven",null,"Centrum",null,"Schil centrum",null,"Rest bebouwde kom",null,"Buitengebied",null,null,null,"Centrum",null,"Schil centrum",null,"Rest bebouwde kom",null,"Buitengebied"]
[null,null,"Min","Max","Min","Max","Min","Max","Min","Max",null,null,"Min","Max","Min","Max","Min","Max","Min ","Max"]
[null,"Zeer sterk stedelijk",0.5,0.7,0.5,0.7,0.5,0.7,0.5,0.7,null,"Zeer sterk stedelijk","n.v.t.","n.v.t.","n.v.t.","n.v.t.",26.6,26.6,26.6,26.6]
[null,"Sterk stedelijk",0.5,0.7,0.5,0.7,0.5,0.7,0.5,0.7,null,"Sterk stedelijk","n.v.t.","n.v.t.","n.v.t.","n.v.t.",26.6,26.6,26.6,26.6]
[null,"Matig stedelijk",0.5,0.7,0.5,0.7,0.5,0.7,0.5,0.7,null,"Matig stedelijk","n.v.t.","n.v.t.","n.v.t.","n.v.t.",26.6,26.6,26.6,26.6]
[null,"Weinig stedelijk",0.5,0.7,0.5,0.7,0.5,0.7,0.5,0.7,null,"Weinig stedelijk","n.v.t.","n.v.t.","n.v.t.","n.v.t.",26.6,26.6,26.6,26.6]
[null,"Niet stedelijk",0.5,0.7,0.5,0.7,0.5,0.7,0.5,0.7,null,"Niet stedelijk","n.v.t.","n.v.t.","n.v.t.","n.v.t.",26.6,26.6,26.6,26.6]
[]
["Golfoefencentrum",null,"Centrum",null,"Schil centrum",null,"Rest bebouwde kom",null,"Buitengebied",null,null,null,"Centrum",null,"Schil centrum",null,"Rest bebouwde kom",null,"Buitengebied"]
[null,null,"Min","Max","Min","Max","Min","Max","Min","Max",null,null,"Min","Max","Min","Max","Min","Max","Min ","Max"]
[null,"Zeer sterk stedelijk","n.v.t.","n.v.t.","n.v.t.","n.v.t.",44.1,48.1,54.2,58.2,null,"Zeer sterk stedelijk","n.v.t.","n.v.t.","n.v.t.","n.v.t.",344.3,375.5,423,454.2]
[null,"Sterk stedelijk","n.v.t.","n.v.t.","n.v.t.","n.v.t.",48.7,52.7,54.2,58.2,null,"Sterk stedelijk","n.v.t.","n.v.t.","n.v.t.","n.v.t.",380.1,411.3,423,454.2]
[null,"Matig stedelijk","n.v.t.","n.v.t.","n.v.t.","n.v.t.",49.1,53.1,54.2,58.2,null,"Matig stedelijk","n.v.t.","n.v.t.","n.v.t.","n.v.t.",383.1,414.4,423,454.2]
[null,"Weinig stedelijk","n.v.t.","n.v.t.","n.v.t.","n.v.t.",49.1,53.1,54.2,58.2,null,"Weinig stedelijk","n.v.t.","n.v.t.","n.v.t.","n.v.t.",383.1,414.4,423,454.2]
[null,"Niet stedelijk","n.v.t.","n.v.t.","n.v.t.","n.v.t.",49.1,53.1,54.2,58.2,null,"Niet stedelijk","n.v.t.","n.v.t.","n.v.t.","n.v.t.",383.1,414.4,423,454.2]
[]
["Golfbaan (18 holes)",null,"Centrum",null,"Schil centrum",null,"Rest bebouwde kom",null,"Buitengebied",null,null,null,"Centrum",null,"Schil centrum",null,"Rest bebouwde kom",null,"Buitengebied"]
[null,null,"Min","Max","Min","Max","Min","Max","Min","Max",null,null,"Min","Max","Min","Max","Min","Max","Min ","Max"]
[null,"Zeer sterk stedelijk","n.v.t.","n.v.t.","n.v.t.","n.v.t.",80.099999999999994,100.1,108.3,128.30000000000001,null,"Zeer sterk stedelijk","n.v.t.","n.v.t.","n.v.t.","n.v.t.",132.1,165.1,178.5,211.5]
[null,"Sterk stedelijk","n.v.t.","n.v.t.","n.v.t.","n.v.t.",85.6,105.6,108.3,128.30000000000001,null,"Sterk stedelijk","n.v.t.","n.v.t.","n.v.t.","n.v.t.",141.1,174.1,178.5,211.5]
[null,"Matig stedelijk","n.v.t.","n.v.t.","n.v.t.","n.v.t.",86,106,108.3,128.30000000000001,null,"Matig stedelijk","n.v.t.","n.v.t.","n.v.t.","n.v.t.",141.9,174.8,178.5,211.5]
[null,"Weinig stedelijk","n.v.t.","n.v.t.","n.v.t.","n.v.t.",86,106,108.3,128.30000000000001,null,"Weinig stedelijk","n.v.t.","n.v.t.","n.v.t.","n.v.t.",141.9,174.8,178.5,211.5]
[null,"Niet stedelijk","n.v.t.","n.v.t.","n.v.t.","n.v.t.",86,106,108.3,128.30000000000001,null,"Niet stedelijk","n.v.t.","n.v.t.","n.v.t.","n.v.t.",141.9,174.8,178.5,211.5]
[]
["Indoorspeeltuin (kinderspeelhal), gemiddeld en kleiner",null,"Centrum",null,"Schil centrum",null,"Rest bebouwde kom",null,"Buitengebied",null,null,null,"Centrum",null,"Schil centrum",null,"Rest bebouwde kom",null,"Buitengebied"]
[null,null,"Min","Max","Min","Max","Min","Max","Min","Max",null,null,"Min","Max","Min","Max","Min","Max","Min ","Max"]
[null,"Zeer sterk stedelijk",0.4,5.4,1.2,6.2,1.9,6.9,2.6,7.6,null,"Zeer sterk stedelijk",0.8,9.1999999999999993,2,10.5,3.3,11.7,4.4000000000000004,12.9]
[null,"Sterk stedelijk",0.4,5.4,1.2,6.2,1.9,6.9,2.6,7.6,null,"Sterk stedelijk",0.8,9.3000000000000007,2,10.5,3.3,11.8,4.4000000000000004,12.9]
[null,"Matig stedelijk",0.6,5.6,1.4,6.4,2.2000000000000002,7.2,2.6,7.6,null,"Matig stedelijk",1,9.5,2.4,10.9,3.7,12.2,4.4000000000000004,12.9]
[null,"Weinig stedelijk",0.6,5.6,1.4,6.4,2.2000000000000002,7.2,2.6,7.6,null,"Weinig stedelijk",1.1000000000000001,9.6,2.4,10.9,3.7,12.2,4.4000000000000004,12.9]
[null,"Niet stedelijk",0.6,5.6,1.4,6.4,2.2000000000000002,7.2,2.6,7.6,null,"Niet stedelijk",1.1000000000000001,9.6,2.4,10.9,3.7,12.2,4.4000000000000004,12.9]
[]
["Indoorspeeltuin (kinderspeelhal), groot",null,"Centrum",null,"Schil centrum",null,"Rest bebouwde kom",null,"Buitengebied",null,null,null,"Centrum",null,"Schil centrum",null,"Rest bebouwde kom",null,"Buitengebied"]
[null,null,"Min","Max","Min","Max","Min","Max","Min","Max",null,null,"Min","Max","Min","Max","Min","Max","Min ","Max"]
[null,"Zeer sterk stedelijk",1,6,1.8,6.8,2.8,7.8,3.6,8.6,null,"Zeer sterk stedelijk",1.2,7.3,2.2000000000000002,8.3000000000000007,3.4,9.5,4.4000000000000004,10.5]
[null,"Sterk stedelijk",1,6,1.8,6.8,2.8,7.8,3.6,8.6,null,"Sterk stedelijk",1.2,7.3,2.2000000000000002,8.4,3.4,9.5,4.4000000000000004,10.5]
[null,"Matig stedelijk",1.2,6.2,2.1,7.1,3.1,8.1,3.6,8.6,null,"Matig stedelijk",1.4,7.5,2.5,8.6,3.7,9.9,4.4000000000000004,10.5]
[null,"Weinig stedelijk",1.2,6.2,2.1,7.1,3.1,8.1,3.6,8.6,null,"Weinig stedelijk",1.5,7.6,2.6,8.6999999999999993,3.8,9.9,4.4000000000000004,10.5]
[null,"Niet stedelijk",1.2,6.2,2.1,7.1,3.1,8.1,3.6,8.6,null,"Niet stedelijk",1.5,7.6,2.6,8.6999999999999993,3.8,9.9,4.4000000000000004,10.5]
[]
["Indoorspeeltuing (kinderspeelhal, zeer groot",null,"Centrum",null,"Schil centrum",null,"Rest bebouwde kom",null,"Buitengebied",null,null,null,"Centrum",null,"Schil centrum",null,"Rest bebouwde kom",null,"Buitengebied"]
[null,null,"Min","Max","Min","Max","Min","Max","Min","Max",null,null,"Min","Max","Min","Max","Min","Max","Min ","Max"]
[null,"Zeer sterk stedelijk",2.2000000000000002,5.2,3.1,6.1,4,7,4.9000000000000004,7.9,null,"Zeer sterk stedelijk",2.1,5,3,5.9,3.9,6.7,4.7,7.5]
[null,"Sterk stedelijk",2.2000000000000002,5.2,3.1,6.1,4,7,4.9000000000000004,7.9,null,"Sterk stedelijk",2.1,5,3,5.9,3.9,6.7,4.7,7.5]
[null,"Matig stedelijk",2.4,5.4,3.4,6.4,4.3,7.3,4.9000000000000004,7.9,null,"Matig stedelijk",2.2999999999999998,5.2,3.2,6.1,4.2,7,4.7,7.5]
[null,"Weinig stedelijk",2.5,5.5,3.4,6.4,4.4000000000000004,7.4,4.9000000000000004,7.9,null,"Weinig stedelijk",2.4,5.2,3.3,6.1,4.2,7.1,4.7,7.5]
[null,"Niet stedelijk",2.5,5.5,3.4,6.4,4.4000000000000004,7.4,4.9000000000000004,7.9,null,"Niet stedelijk",2.4,5.2,3.3,6.1,4.2,7.1,4.7,7.5]
[]
["Kinderboerderij (stadsboerderij)",null,"Centrum",null,"Schil centrum",null,"Rest bebouwde kom",null,"Buitengebied",null,null,null,"Centrum",null,"Schil centrum",null,"Rest bebouwde kom",null,"Buitengebied"]
[null,null,"Min","Max","Min","Max","Min","Max","Min","Max",null,null,"Min","Max","Min","Max","Min","Max","Min ","Max"]
[null,"Zeer sterk stedelijk",0.4,5.4,1.2,6.2,1.9,6.9,2.6,7.6,null,"Zeer sterk stedelijk","n.v.t","n.v.t",18.8,18.8,22.5,22.5,"n.v.t.","n.v.t."]
[null,"Sterk stedelijk",0.4,5.4,1.2,6.2,1.9,6.9,2.6,7.6,null,"Sterk stedelijk","n.v.t.","n.v.t.",18.8,18.8,22.5,22.5,"n.v.t.","n.v.t."]
[null,"Matig stedelijk",0.6,5.6,1.4,6.4,2.2000000000000002,7.2,2.6,7.6,null,"Matig stedelijk","n.v.t.","n.v.t.",18.8,18.8,22.5,22.5,"n.v.t.","n.v.t."]
[null,"Weinig stedelijk",0.6,5.6,1.4,6.4,2.2000000000000002,7.2,2.6,7.6,null,"Weinig stedelijk","n.v.t.","n.v.t.",18.8,18.8,22.5,22.5,"n.v.t.","n.v.t."]
[null,"Niet stedelijk",0.6,5.6,1.4,6.4,2.2000000000000002,7.2,2.6,7.6,null,"Niet stedelijk","n.v.t.","n.v.t.",18.8,18.8,22.5,22.5,"n.v.t.","n.v.t."]
[]
["Manage (paardenhouderij)",null,"Centrum",null,"Schil centrum",null,"Rest bebouwde kom",null,"Buitengebied",null,null,null,"Centrum",null,"Schil centrum",null,"Rest bebouwde kom",null,"Buitengebied"]
[null,null,"Min","Max","Min","Max","Min","Max","Min","Max",null,null,"Min","Max","Min","Max","Min","Max","Min ","Max"]
[null,"Zeer sterk stedelijk","n.v.t.","n.v.t.","n.v.t.","n.v.t.","n.v.t.","n.v.t.",0.3,0.5,null,"Zeer sterk stedelijk","n.v.t.","n.v.t.","n.v.t.","n.v.t.",3,3,4,4]
[null,"Sterk stedelijk","n.v.t.","n.v.t.","n.v.t.","n.v.t.","n.v.t.","n.v.t.",0.3,0.5,null,"Sterk stedelijk","n.v.t.","n.v.t.","n.v.t.","n.v.t.",3,3,4,4]
[null,"Matig stedelijk","n.v.t.","n.v.t.","n.v.t.","n.v.t.","n.v.t.","n.v.t.",0.3,0.5,null,"Matig stedelijk","n.v.t.","n.v.t.","n.v.t.","n.v.t.",3,3,4,4]
[null,"Weinig stedelijk","n.v.t.","n.v.t.","n.v.t.","n.v.t.","n.v.t.","n.v.t.",0.3,0.5,null,"Weinig stedelijk","n.v.t.","n.v.t.","n.v.t.","n.v.t.",3,3,4,4]
[null,"Niet stedelijk","n.v.t.","n.v.t.","n.v.t.","n.v.t.","n.v.t.","n.v.t.",0.3,0.5,null,"Niet stedelijk","n.v.t.","n.v.t.","n.v.t.","n.v.t.",3,3,4,4]
[]
["Dierenpark",null,"Centrum",null,"Schil centrum",null,"Rest bebouwde kom",null,"Buitengebied",null,null,null,"Centrum",null,"Schil centrum",null,"Rest bebouwde kom",null,"Buitengebied"]
[null,null,"Min","Max","Min","Max","Min","Max","Min","Max",null,null,"Min","Max","Min","Max","Min","Max","Min ","Max"]
[null,"Zeer sterk stedelijk",4,12,4,12,4,12,4,12,null,"Zeer sterk stedelijk","n.v.t.","n.v.t.","n.v.t.","n.v.t.",535.79999999999995,535.79999999999995,535.79999999999995,535.79999999999995]
[null,"Sterk stedelijk",4,12,4,12,4,12,4,12,null,"Sterk stedelijk","n.v.t.","n.v.t.","n.v.t.","n.v.t.",535.79999999999995,535.79999999999995,535.79999999999995,535.79999999999995]
[null,"Matig stedelijk",4,12,4,12,4,12,4,12,null,"Matig stedelijk","n.v.t.","n.v.t.","n.v.t.","n.v.t.",535.79999999999995,535.79999999999995,535.79999999999995,535.79999999999995]
[null,"Weinig stedelijk",4,12,4,12,4,12,4,12,null,"Weinig stedelijk","n.v.t.","n.v.t.","n.v.t.","n.v.t.",535.79999999999995,535.79999999999995,535.79999999999995,535.79999999999995]
[null,"Niet stedelijk",4,12,4,12,4,12,4,12,null,"Niet stedelijk","n.v.t.","n.v.t.","n.v.t.","n.v.t.",535.79999999999995,535.79999999999995,535.79999999999995,535.79999999999995]
[]
["Attractie- en pretpark",null,"Centrum",null,"Schil centrum",null,"Rest bebouwde kom",null,"Buitengebied",null,null,null,"Centrum",null,"Schil centrum",null,"Rest bebouwde kom",null,"Buitengebied"]
[null,null,"Min","Max","Min","Max","Min","Max","Min","Max",null,null,"Min","Max","Min","Max","Min","Max","Min ","Max"]
[null,"Zeer sterk stedelijk","n.v.t","n.v.t.","n.v.t.","n.v.t.",4,12,4,12,null,"Zeer sterk stedelijk","n.v.t.","n.v.t.","n.v.t.","n.v.t.",350,1050,350,1050]
[null,"Sterk stedelijk","n.v.t.","n.v.t.","n.v.t.","n.v.t.",4,12,4,12,null,"Sterk stedelijk","n.v.t.","n.v.t.","n.v.t.","n.v.t.",350,1050,350,1050]
[null,"Matig stedelijk","n.v.t.","n.v.t.","n.v.t.","n.v.t.",4,12,4,12,null,"Matig stedelijk","n.v.t.","n.v.t.","n.v.t.","n.v.t.",350,1050,350,1050]
[null,"Weinig stedelijk","n.v.t.","n.v.t.","n.v.t.","n.v.t.",4,12,4,12,null,"Weinig stedelijk","n.v.t.","n.v.t.","n.v.t.","n.v.t.",350,1050,350,1050]
[null,"Niet stedelijk","n.v.t.","n.v.t.","n.v.t.","n.v.t.",4,12,4,12,null,"Niet stedelijk","n.v.t.","n.v.t.","n.v.t.","n.v.t.",350,1050,350,1050]
[]
["Volkstuin",null,"Centrum",null,"Schil centrum",null,"Rest bebouwde kom",null,"Buitengebied",null,null,null,"Centrum",null,"Schil centrum",null,"Rest bebouwde kom",null,"Buitengebied"]
[null,null,"Min","Max","Min","Max","Min","Max","Min","Max",null,null,"Min","Max","Min","Max","Min","Max","Min ","Max"]
[null,"Zeer sterk stedelijk","n.v.t.","n.v.t.",0.9,1.2,1,1.3,1.3,1.6,null,"Zeer sterk stedelijk","n.v.t.","n.v.t.",0.7,1,0.8,1.1000000000000001,1.1000000000000001,1.4]
[null,"Sterk stedelijk","n.v.t.","n.v.t.",1.1000000000000001,1.4,1.2,1.5,1.3,1.6,null,"Sterk stedelijk","n.v.t.","n.v.t.",0.9,1.2,1,1.3,1.1000000000000001,1.4]
[null,"Matig stedelijk","n.v.t.","n.v.t.",1.1000000000000001,1.4,1.2,1.5,1.3,1.6,null,"Matig stedelijk","n.v.t.","n.v.t.",0.9,1.2,1.1000000000000001,1.3,1.1000000000000001,1.4]
[null,"Weinig stedelijk","n.v.t.","n.v.t.",1.1000000000000001,1.4,1.2,1.5,1.3,1.6,null,"Weinig stedelijk","n.v.t.","n.v.t.",0.9,1.2,1.1000000000000001,1.3,1.1000000000000001,1.4]
[null,"Niet stedelijk","n.v.t.","n.v.t.",1.1000000000000001,1.4,1.2,1.5,1.3,1.6,null,"Niet stedelijk","n.v.t.","n.v.t.",0.9,1.2,1.1000000000000001,1.3,1.1000000000000001,1.4]
[]
["Plantentuin (botanische tuin)",null,"Centrum",null,"Schil centrum",null,"Rest bebouwde kom",null,"Buitengebied",null,null,null,"Centrum",null,"Schil centrum",null,"Rest bebouwde kom",null,"Buitengebied"]
[null,null,"Min","Max","Min","Max","Min","Max","Min","Max",null,null,"Min","Max","Min","Max","Min","Max","Min ","Max"]
[null,"Zeer sterk stedelijk","n.v.t.","n.v.t.",5,10,8,13,11,16,null,"Zeer sterk stedelijk","n.v.t.","n.v.t.",20,30,25,35,30,40]
[null,"Sterk stedelijk","n.v.t.","n.v.t.",5,10,8,13,11,16,null,"Sterk stedelijk","n.v.t.","n.v.t.",20,30,25,35,30,40]
[null,"Matig stedelijk","n.v.t.","n.v.t.",5,10,8,13,11,16,null,"Matig stedelijk","n.v.t.","n.v.t.",20,30,25,35,30,40]
[null,"Weinig stedelijk","n.v.t.","n.v.t.",5,10,8,13,11,16,null,"Weinig stedelijk","n.v.t.","n.v.t.",20,30,25,35,30,40]
[null,"Niet stedelijk","n.v.t.","n.v.t.",5,10,8,13,11,16,null,"Niet stedelijk","n.v.t.","n.v.t.",20,30,25,35,30,40]
[]
["Camping (kampeerterrein)",null,"Centrum",null,"Schil centrum",null,"Rest bebouwde kom",null,"Buitengebied",null,null,null,"Centrum",null,"Schil centrum",null,"Rest bebouwde kom",null,"Buitengebied"]
[null,null,"Min","Max","Min","Max","Min","Max","Min","Max",null,null,"Min","Max","Min","Max","Min","Max","Min ","Max"]
[null,"Z eer sterk stedelijk","n.v.t.","n.v.t.","n.v.t.","n.v.t.","n.v.t.","n.v.t.",1.1000000000000001,1.3,null,"Z eer sterk stedelijk","n.v.t.","n.v.t.","n.v.t.","n.v.t.","n.v.t.","n.v.t.",0.4,0.4]
[null,"S terk stedelijk","n.v.t.","n.v.t.","n.v.t.","n.v.t.","n.v.t.","n.v.t.",1.1000000000000001,1.3,null,"S terk stedelijk","n.v.t.","n.v.t.","n.v.t.","n.v.t.","n.v.t.","n.v.t.",0.4,0.4]
[null,"M atig stedelijk","n.v.t.","n.v.t.","n.v.t.","n.v.t.","n.v.t.","n.v.t.",1.1000000000000001,1.3,null,"M atig stedelijk","n.v.t.","n.v.t.","n.v.t.","n.v.t.","n.v.t.","n.v.t.",0.4,0.4]
[null,"W einig stedelijk","n.v.t.","n.v.t.","n.v.t.","n.v.t.","n.v.t.","n.v.t.",1.1000000000000001,1.3,null,"W einig stedelijk","n.v.t.","n.v.t.","n.v.t.","n.v.t.","n.v.t.","n.v.t.",0.4,0.4]
[null,"N iet stedelijk","n.v.t.","n.v.t.","n.v.t.","n.v.t.","n.v.t.","n.v.t.",1.1000000000000001,1.3,null,"N iet stedelijk","n.v.t.","n.v.t.","n.v.t.","n.v.t.","n.v.t.","n.v.t.",0.4,0.4]
[]
["Bungalowparkt (huisjescomplex)",null,"Centrum",null,"Schil centrum",null,"Rest bebouwde kom",null,"Buitengebied",null,null,null,"Centrum",null,"Schil centrum",null,"Rest bebouwde kom",null,"Buitengebied"]
[null,null,"Min","Max","Min","Max","Min","Max","Min","Max",null,null,"Min","Max","Min","Max","Min","Max","Min ","Max"]
[null,"Z eer sterk stedelijk","n.v.t.","n.v.t.","n.v.t.","n.v.t.",1.5,1.7,2,2.2000000000000002,null,"Z eer sterk stedelijk","n.v.t.","n.v.t.","n.v.t.","n.v.t.",1.9,2.2000000000000002,2.6,2.8]
[null,"S terk stedelijk","n.v.t.","n.v.t.","n.v.t.","n.v.t.",1.5,1.7,2,2.2000000000000002,null,"S terk stedelijk","n.v.t.","n.v.t.","n.v.t.","n.v.t.",1.9,2.2000000000000002,2.6,2.8]
[null,"M atig stedelijk","n.v.t.","n.v.t.","n.v.t.","n.v.t.",1.6,1.8,2,2.2000000000000002,null,"M atig stedelijk","n.v.t.","n.v.t.","n.v.t.","n.v.t.",2.1,2.2999999999999998,2.6,2.8]
[null,"W einig stedelijk","n.v.t.","n.v.t.","n.v.t.","n.v.t.",1.6,1.8,2,2.2000000000000002,null,"W einig stedelijk","n.v.t.","n.v.t.","n.v.t.","n.v.t.",2.1,2.2999999999999998,2.6,2.8]
[null,"N iet stedelijk","n.v.t.","n.v.t.","n.v.t.","n.v.t.",1.6,1.8,2,2.2000000000000002,null,"N iet stedelijk","n.v.t.","n.v.t.","n.v.t.","n.v.t.",2.1,2.2999999999999998,2.6,2.8]
[]
["1 ster hotel",null,"Centrum",null,"Schil centrum",null,"Rest bebouwde kom",null,"Buitengebied",null,null,null,"Centrum",null,"Schil centrum",null,"Rest bebouwde kom",null,"Buitengebied"]
[null,null,"Min","Max","Min","Max","Min","Max","Min","Max",null,null,"Min","Max","Min","Max","Min","Max","Min ","Max"]
[null,"Z eer sterk stedelijk","n.v.t.","n.v.t.","n.v.t.","n.v.t.",1.9,2.2000000000000002,2.6,2.8,null,"Z eer sterk stedelijk",0.8,1.3,1.8,2.2999999999999998,5.9,6.5,12.1,12.7]
[null,"S terk stedelijk","n.v.t.","n.v.t.","n.v.t.","n.v.t.",1.9,2.2000000000000002,2.6,2.8,null,"S terk stedelijk",0.8,1.3,1.8,2.2999999999999998,5.9,6.5,12.1,12.7]
[null,"M atig stedelijk","n.v.t.","n.v.t.","n.v.t.","n.v.t.",2.1,2.2999999999999998,2.6,2.8,null,"M atig stedelijk",0.8,1.4,1.9,2.4,6.2,6.8,12.1,12.7]
[null,"W einig stedelijk","n.v.t.","n.v.t.","n.v.t.","n.v.t.",2.1,2.2999999999999998,2.6,2.8,null,"W einig stedelijk",0.9,1.4,2,2.5,6.5,7.1,12.1,12.7]
[null,"N iet stedelijk","n.v.t.","n.v.t.","n.v.t.","n.v.t.",2.1,2.2999999999999998,2.6,2.8,null,"N iet stedelijk",0.9,1.4,2,2.5,6.5,7.1,12.1,12.7]
[]
["2 ster hotel",null,"Centrum",null,"Schil centrum",null,"Rest bebouwde kom",null,"Buitengebied",null,null,null,"Centrum",null,"Schil centrum",null,"Rest bebouwde kom",null,"Buitengebied"]
[null,null,"Min","Max","Min","Max","Min","Max","Min","Max",null,null,"Min","Max","Min","Max","Min","Max","Min ","Max"]
[null,"Z eer sterk stedelijk",1.1000000000000001,1.6,1.9,2.4,3.6,4.0999999999999996,6,6.5,null,"Z eer sterk stedelijk",2.7,4,4.8,6.1,9.3000000000000007,10.5,15.3,16.5]
[null,"S terk stedelijk",1.1000000000000001,1.6,1.9,2.4,3.6,4.0999999999999996,6,6.5,null,"S terk stedelijk",2.7,4,4.8,6.1,9.3000000000000007,10.5,15.3,16.5]
[null,"M atig stedelijk",1.1000000000000001,1.6,2,2.5,3.8,4.3,6,6.5,null,"M atig stedelijk",2.9,4.2,5.0999999999999996,6.4,9.8000000000000007,11,15.3,16.5]
[null,"W einig stedelijk",1.2,1.7,2.1,2.6,4,4.5,6,6.5,null,"W einig stedelijk",3.1,4.3,5.3,6.6,10.199999999999999,11.4,15.3,16.5]
[null,"N iet stedelijk",1.2,1.7,2.1,2.6,4,4.5,6,6.5,null,"N iet stedelijk",3.1,4.3,5.3,6.6,10.199999999999999,11.5,15.3,16.5]
[]
["3 ster hotel",null,"Centrum",null,"Schil centrum",null,"Rest bebouwde kom",null,"Buitengebied",null,null,null,"Centrum",null,"Schil centrum",null,"Rest bebouwde kom",null,"Buitengebied"]
[null,null,"Min","Max","Min","Max","Min","Max","Min","Max",null,null,"Min","Max","Min","Max","Min","Max","Min ","Max"]
[null,"Z eer sterk stedelijk",1.5,2.5,2.6,3.6,4.2,5.2,6.3,7.3,null,"Z eer sterk stedelijk",4.3,7.2,7.5,10.3,12.2,15.1,18,20.9]
[null,"S terk stedelijk",1.5,2.5,2.6,3.6,4.2,5.2,6.3,7.3,null,"St erk stedelijk",4.3,7.2,7.5,10.3,12.2,15.1,18,20.9]
[null,"M atig stedelijk",1.6,2.6,2.8,3.8,4.5,5.5,6.3,7.3,null,"M atig stedelijk",4.5999999999999996,7.5,7.9,10.8,12.9,15.8,18,20.9]
[null,"W einig stedelijk",1.7,2.7,2.9,3.9,4.7,5.7,6.3,7.3,null,"W einig stedelijk",4.9000000000000004,7.7,8.3000000000000007,11.2,13.5,16.399999999999999,18,20.9]
[null,"N iet stedelijk",1.7,2.7,2.9,3.9,4.7,5.7,6.3,7.3,null,"Ni et stedelijk",4.9000000000000004,7.8,8.3000000000000007,11.2,13.5,16.399999999999999,18,20.9]
[]
["4 ster hotel",null,"Centrum",null,"Schil centrum",null,"Rest bebouwde kom",null,"Buitengebied",null,null,null,"Centrum",null,"Schil centrum",null,"Rest bebouwde kom",null,"Buitengebied"]
[null,null,"Min","Max","Min","Max","Min","Max","Min","Max",null,null,"Min","Max","Min","Max","Min","Max","Min ","Max"]
[null,"Z eer sterk stedelijk",2.7,3.7,4.4000000000000004,5.4,6.3,7.3,8.5,9.5,null,"Z eer sterk stedelijk",7.8,10.7,12.6,15.5,18.399999999999999,21.2,24.7,27.6]
[null,"St erk stedelijk",2.7,3.7,4.4000000000000004,5.4,6.3,7.3,8.5,9.5,null,"S terk stedelijk",7.8,10.7,12.6,15.5,18.399999999999999,21.2,24.7,27.6]
[null,"M atig stedelijk",2.9,3.9,4.5999999999999996,5.6,6.7,7.7,8.5,9.5,null,"M atig stedelijk",8.3000000000000007,11.2,13.4,16.2,19.399999999999999,22.3,24.7,27.6]
[null,"W einig stedelijk",3,4,4.8,5.8,7,8,8.5,9.5,null,"W einig stedelijk",8.6999999999999993,11.6,13.9,16.8,20.2,23.1,24.7,27.6]
[null,"N iet stedelijk",3,4,4.8,5.8,7,8,8.5,9.5,null,"N iet stedelijk",8.6999999999999993,11.6,14,16.899999999999999,20.3,23.1,24.7,27.6]
[]
["5 ster hotel",null,"Centrum",null,"Schil centrum",null,"Rest bebouwde kom",null,"Buitengebied",null,null,null,"Centrum",null,"Schil centrum",null,"Rest bebouwde kom",null,"Buitengebied"]
[null,null,"Min","Max","Min","Max","Min","Max","Min","Max",null,null,"Min","Max","Min","Max","Min","Max","Min ","Max"]
[null,"Z eer sterk stedelijk",4.2,5.8,6.8,8.4,9.3000000000000007,10.9,11.8,13.4,null,"Z eer sterk stedelijk",12.3,16.899999999999999,19.5,24.2,26.8,31.5,34.1,38.799999999999997]
[null,"S terk stedelijk",4.2,5.8,6.8,8.4,9.3000000000000007,10.9,11.8,13.4,null,"S terk stedelijk",12.3,16.899999999999999,19.5,24.2,26.8,31.5,34.1,38.799999999999997]
[null,"M atig stedelijk",4.5,6.1,7.1,8.6999999999999993,9.8000000000000007,11.4,11.8,13.4,null,"M atig stedelijk",13,17.600000000000001,20.7,25.3,28.3,33,34.1,38.799999999999997]
[null,"W einig stedelijk",4.7,6.3,7.5,9.1,10.199999999999999,11.8,11.8,13.4,null,"W einig stedelijk",13.6,18.2,21.6,26.2,29.5,34.200000000000003,34.1,38.799999999999997]
[null,"N iet stedelijk",4.7,6.3,7.5,9.1,10.199999999999999,11.8,11.8,13.4,null,"N iet stedelijk",13.7,18.3,21.6,26.3,29.6,34.299999999999997,34.1,38.799999999999997]
[]
["Café/ bar/ cafetaria",null,"Centrum",null,"Schil centrum",null,"Rest bebouwde kom",null,"Buitengebied",null,null,null,"Centrum",null,"Schil centrum",null,"Rest bebouwde kom",null,"Buitengebied"]
[null,null,"Min","Max","Min","Max","Min","Max","Min","Max",null,null,"Min","Max","Min","Max","Min","Max","Min ","Max"]
[null,"Z eer sterk stedelijk",4,6,4,6,5,7,"n.v.t.","n.v.t.",null,"Zeer sterk","n.v.t.","n.v.t.","n.v.t.","n.v.t.","n.v.t.","n.v.t.","n.v.t.","n.v.t."]
[null,"S terk stedelijk",4,6,4,6,5,7,"n.v.t.","n.v.t.",null,"Sterk","n.v.t.","n.v.t.","n.v.t.","n.v.t.","n.v.t.","n.v.t.","n.v.t.","n.v.t."]
[null,"M atig stedelijk",4,6,4,6,5,7,"n.v.t.","n.v.t.",null,"Matig","n.v.t.","n.v.t.","n.v.t.","n.v.t.","n.v.t.","n.v.t.","n.v.t.","n.v.t."]
[null,"W einig stedelijk",5,7,5,7,6,8,"n.v.t.","n.v.t.",null,"Weinig","n.v.t.","n.v.t.","n.v.t.","n.v.t.","n.v.t.","n.v.t.","n.v.t.","n.v.t."]
[null,"N iet stedelijk",5,7,5,7,6,8,"n.v.t.","n.v.t.",null,"Niet","n.v.t.","n.v.t.","n.v.t.","n.v.t.","n.v.t.","n.v.t.","n.v.t.","n.v.t."]
[]
["Restaurant",null,"Centrum",null,"Schil centrum",null,"Rest bebouwde kom",null,"Buitengebied",null,null,null,"Centrum",null,"Schil centrum",null,"Rest bebouwde kom",null,"Buitengebied"]
[null,null,"Min","Max","Min","Max","Min","Max","Min","Max",null,null,"Min","Max","Min","Max","Min","Max","Min ","Max"]
[null,"Z eer sterk stedelijk",8,10,8,10,12,14,"n.v.t.","n.v.t.",null,"Zeer sterk","n.v.t.","n.v.t.","n.v.t.","n.v.t.","n.v.t.","n.v.t.","n.v.t.","n.v.t."]
[null,"S terk stedelijk",8,10,8,10,12,14,"n.v.t.","n.v.t.",null,"Sterk","n.v.t.","n.v.t.","n.v.t.","n.v.t.","n.v.t.","n.v.t.","n.v.t.","n.v.t."]
[null,"M atig stedelijk",8,10,8,10,12,14,"n.v.t.","n.v.t.",null,"Matig","n.v.t.","n.v.t.","n.v.t.","n.v.t.","n.v.t.","n.v.t.","n.v.t.","n.v.t."]
[null,"W einig stedelijk",10,12,10,12,14,16,"n.v.t.","n.v.t.",null,"Weinig","n.v.t.","n.v.t.","n.v.t.","n.v.t.","n.v.t.","n.v.t.","n.v.t.","n.v.t."]
[null,"N iet stedelijk",10,12,10,12,14,16,"n.v.t.","n.v.t.",null,"Niet","n.v.t.","n.v.t.","n.v.t.","n.v.t.","n.v.t.","n.v.t.","n.v.t.","n.v.t."]
[]
["Fastfoodrestaurant",null,"Centrum",null,"Schil centrum",null,"Rest bebouwde kom",null,"Buitengebied",null,null,null,"Centrum",null,"Schil centrum",null,"Rest bebouwde kom",null,"Buitengebied"]
[null,null,"Min","Max","Min","Max","Min","Max","Min","Max",null,null,"Min","Max","Min","Max","Min","Max","Min ","Max"]
[null,"Z eer sterk stedelijk","n.v.t.","n.v.t.","n.v.t.","n.v.t.",2285,2285,"n.v.t.","n.v.t.",null,"Zeer sterk","n.v.t.","n.v.t.","n.v.t.","n.v.t.","n.v.t.","n.v.t.","n.v.t.","n.v.t."]
[null,"S terk stedelijk","n.v.t.","n.v.t.","n.v.t.","n.v.t.",2285,2285,"n.v.t.","n.v.t.",null,"Sterk","n.v.t.","n.v.t.","n.v.t.","n.v.t.","n.v.t.","n.v.t.","n.v.t.","n.v.t."]
[null,"M atig stedelijk","n.v.t.","n.v.t.","n.v.t.","n.v.t.",2285,2285,"n.v.t.","n.v.t.",null,"Matig","n.v.t.","n.v.t.","n.v.t.","n.v.t.","n.v.t.","n.v.t.","n.v.t.","n.v.t."]
[null,"W einig stedelijk","n.v.t.","n.v.t.","n.v.t.","n.v.t.",2285,2285,"n.v.t.","n.v.t.",null,"Weinig","n.v.t.","n.v.t.","n.v.t.","n.v.t.","n.v.t.","n.v.t.","n.v.t.","n.v.t."]
[null,"N iet stedelijk","n.v.t.","n.v.t.","n.v.t.","n.v.t.",2285,2285,"n.v.t.","n.v.t",null,"Niet","n.v.t.","n.v.t.","n.v.t.","n.v.t.","n.v.t.","n.v.t.","n.v.t.","n.v.t."]
[]
["Discotheek",null,"Centrum",null,"Schil centrum",null,"Rest bebouwde kom",null,"Buitengebied",null,null,null,"Centrum",null,"Schil centrum",null,"Rest bebouwde kom",null,"Buitengebied"]
[null,null,"Min","Max","Min","Max","Min","Max","Min","Max",null,null,"Min","Max","Min","Max","Min","Max","Min ","Max"]
[null,"Z eer sterk stedelijk",1.6,5.6,5.2,9.1999999999999993,8.6999999999999993,12.7,18.8,22.8,null,"Z eer sterk stedelijk",1.4,5.0999999999999996,4.7,8.4,8,11.6,17.2,20.8]
[null,"St erk stedelijk",4.0999999999999996,8.1,10.3,14.3,16.399999999999999,20.399999999999999,18.8,22.8,null,"S terk stedelijk",3.8,7.4,9.4,13,15,18.600000000000001,17.2,20.8]
[null,"M atig stedelijk",4.9000000000000004,8.9,11.9,15.9,18.8,22.8,18.8,22.8,null,"M atig stedelijk",4.5,8.1,10.8,14.5,17.2,20.8,17.2,20.8]
[null,"W einig stedelijk",5,9,11.9,15.9,18.899999999999999,22.9,18.8,22.8,null,"W einig stedelijk",4.5,8.1999999999999993,10.9,14.5,17.2,20.9,17.2,20.8]
[null,"N iet stedelijk",4.9000000000000004,8.9,11.9,15.9,18.8,22.8,18.8,22.8,null,"N iet stedelijk",4.5,8.1,10.8,14.5,17.2,20.8,17.2,20.8]
[]
["Evenementenhal/ beursgebouw/ congresgebouw",null,"Centrum",null,"Schil centrum",null,"Rest bebouwde kom",null,"Buitengebied",null,null,null,"Centrum",null,"Schil centrum",null,"Rest bebouwde kom",null,"Buitengebied"]
[null,null,"Min","Max","Min","Max","Min","Max","Min","Max",null,null,"Min","Max","Min","Max","Min","Max","Min ","Max"]
[null,"Z eer sterk stedelijk",3,5,4,7,5,10,"n.v.t.","n.v.t.",null,"Zeer sterk","n.v.t.","n.v.t.","n.v.t.","n.v.t.","n.v.t.","n.v.t.","n.v.t.","n.v.t."]
[null,"S terk stedelijk",3,5,4,7,5,10,"n.v.t.","n.v.t.",null,"Sterk","n.v.t.","n.v.t.","n.v.t.","n.v.t.","n.v.t.","n.v.t.","n.v.t.","n.v.t."]
[null,"M atig stedelijk",4,7,5,8,6,11,"n.v.t.","n.v.t.",null,"Matig","n.v.t.","n.v.t.","n.v.t.","n.v.t.","n.v.t.","n.v.t.","n.v.t.","n.v.t."]
[null,"W einig stedelijk",4,7,5,8,6,11,"n.v.t.","n.v.t.",null,"Weinig","n.v.t.","n.v.t.","n.v.t.","n.v.t.","n.v.t.","n.v.t.","n.v.t.","n.v.t."]
[null,"N iet stedelijk",4,7,5,8,6,11,"n.v.t.","n.v.t.",null,"Niet","n.v.t.","n.v.t.","n.v.t.","n.v.t.","n.v.t.","n.v.t.","n.v.t.","n.v.t."]
[]
["Huisartsenpraktijk (centrum)",null,"Centrum",null,"Schil centrum",null,"Rest bebouwde kom",null,"Buitengebied",null,null,null,"Centrum",null,"Schil centrum",null,"Rest bebouwde kom",null,"Buitengebied"]
[null,null,"Min","Max","Min","Max","Min","Max","Min","Max",null,null,"Min","Max","Min","Max","Min","Max","Min ","Max"]
[null,"Zeer sterk stedelijk",1.4,1.9,1.7,2.2000000000000002,2.1,2.6,3,3.5,null,"Zeer sterk stedelijk",12.3,16.8,15.2,19.600000000000001,18.100000000000001,22.5,26.7,31.1]
[null,"Sterk stedelijk",1.8,2.2999999999999998,2.2000000000000002,2.7,2.7,3.2,3,3.5,null,"Sterk stedelijk",16,20.5,19.600000000000001,24.1,23.3,27.7,26.7,31.1]
[null,"Matig stedelijk",1.8,2.2999999999999998,2.2000000000000002,2.7,2.7,3.2,3,3.5,null,"Matig stedelijk",16,20.6,19.7,24.1,23.4,27.8,26.7,31.1]
[null,"Weinig stedelijk",2,2.5,2.5,3,3,3.5,3,3.5,null,"Weinig stedelijk",18,22.5,22,26.4,26.1,30.5,26.7,31.1]
[null,"Niet stedelijk",2,2.5,2.5,3,3,3.5,3,3.5,null,"Niet stedelijk",18.5,23,22.6,27,26.7,31.1,26.7,31.1]
[]
["Apotheek",null,"Centrum",null,"Schil centrum",null,"Rest bebouwde kom",null,"Buitengebied",null,null,null,"Centrum",null,"Schil centrum",null,"Rest bebouwde kom",null,"Buitengebied"]
[null,null,"Min","Max","Min","Max","Min","Max","Min","Max",null,null,"Min","Max","Min","Max","Min","Max","Min ","Max"]
[null,"Zeer sterk stedelijk",1.8,2.2999999999999998,"2, 3",2.8,2.7,3.2,"n.v.t.","n.v.t.",null,"Zeer sterk stedelijk",78.8,100.1,96.5,117.8,114.1,135.5,"n.v.t.","n.v.t."]
[null,"Sterk stedelijk",2,2.5,2.5,3,2.9,3.4,"n.v.t.","n.v.t.",null,"Sterk stedelijk",86.8,108.2,106.1,127.4,125.4,146.69999999999999,"n.v.t.","n.v.t."]
[null,"Matig stedelijk",2,2.5,2.5,3,2.9,3.4,"n.v.t.","n.v.t.",null,"Matig stedelijk",86.9,108.2,106.2,127.5,125.4,146.80000000000001,"n.v.t.","n.v.t."]
[null,"Weinig stedelijk",2.1,2.6,2.6,3.1,3.1,3.6,"n.v.t.","n.v.t.",null,"Weinig stedelijk",91.1,112.5,111.2,132.6,131.30000000000001,152.69999999999999,"n.v.t.","n.v.t."]
[null,"Niet stedelijk",2.2000000000000002,2.7,2.6,3.1,3.1,3.6,"n.v.t.","n.v.t.",null,"Niet stedelijk",92.1,113.5,112.4,133.80000000000001,132.69999999999999,154.1,"n.v.t.","n.v.t."]
[]
["Fysiotherapiepraktijk (centrum)",null,"Centrum",null,"Schil centrum",null,"Rest bebouwde kom",null,"Buitengebied",null,null,null,"Centrum",null,"Schil centrum",null,"Rest bebouwde kom",null,"Buitengebied"]
[null,null,"Min","Max","Min","Max","Min","Max","Min","Max",null,null,"Min","Max","Min","Max","Min","Max","Min ","Max"]
[null,"Zeer sterk stedelijk",0.7,1.2,0.9,1.4,1.1000000000000001,1.6,1.7,2.2000000000000002,null,"Zeer sterk stedelijk",6.8,11.6,8.6999999999999993,13.3,10.6,15.2,16.100000000000001,20.7]
[null,"Sterk stedelijk",1,1.5,1.2,1.7,1.5,2,1.7,2.2000000000000002,null,"Sterk stedelijk",9.1999999999999993,13.9,11.5,16.2,13.9,18.5,16.100000000000001,20.7]
[null,"Matig stedelijk",1,1.5,1.2,1.7,1.5,2,1.7,2.2000000000000002,null,"Matig stedelijk",9.1999999999999993,14,11.5,16.2,13.9,18.5,16.100000000000001,20.7]
[null,"Weinig stedelijk",1.1000000000000001,1.6,1.4,1.9,1.7,2.2000000000000002,1.7,2.2000000000000002,null,"Weinig stedelijk",10.4,15.2,13,17.7,15.6,20.3,16.100000000000001,20.7]
[null,"Niet stedelijk",1.1000000000000001,1.6,1.4,1.9,1.7,2.2000000000000002,1.7,2.2000000000000002,null,"Niet stedelijk",10.7,15.5,13.4,18,16.100000000000001,20.7,16.100000000000001,20.7]
[]
["consultatiebureau",null,"Centrum",null,"Schil centrum",null,"Rest bebouwde kom",null,"Buitengebied",null,null,null,"Centrum",null,"Schil centrum",null,"Rest bebouwde kom",null,"Buitengebied"]
[null,null,"Min","Max","Min","Max","Min","Max","Min","Max",null,null,"Min","Max","Min","Max","Min","Max","Min ","Max"]
[null,"Zeer sterk stedelijk",0.8,1.3,1,1.5,1.2,1.7,1.9,2.4,null,"Zeer sterk stedelijk",5.4,8.9,6.8,10.199999999999999,8.3000000000000007,11.7,12.7,16]
[null,"Sterk stedelijk",1,1.5,1.3,1.8,1.6,2.1,1.9,2.4,null,"Sterk stedelijk",7.3,10.7,9,12.4,10.9,14.2,12.7,16]
[null,"Matig stedelijk",1.1000000000000001,1.6,1.3,1.8,1.6,2.1,1.9,2.4,null,"Matig stedelijk",7.3,10.7,9,12.4,10.9,14.2,12.7,16]
[null,"Weinig stedelijk",1.2,1.7,1.5,2,1.8,2.2999999999999998,1.9,2.4,null,"Weinig stedelijk",8.1999999999999993,11.7,10.199999999999999,13.6,12.3,15.6,12.7,16]
[null,"Niet stedelijk",1.2,1.7,1.5,2,1.9,2.4,1.9,2.4,null,"Niet stedelijk",8.5,11.9,10.5,13.8,12.6,15.9,12.7,16]
[]
["Consultatiebureau voor ouderen",null,"Centrum",null,"Schil centrum",null,"Rest bebouwde kom",null,"Buitengebied",null,null,null,"Centrum",null,"Schil centrum",null,"Rest bebouwde kom",null,"Buitengebied"]
[null,null,"Min","Max","Min","Max","Min","Max","Min","Max",null,null,"Min","Max","Min","Max","Min","Max","Min ","Max"]
[null,"Zeer sterk stedelijk",1.1000000000000001,1.3,1.4,1.6,1.8,2,2.1,2.2999999999999998,null,"Zeer sterk stedelijk",5.2,6.1,6.7,7.6,8.1999999999999993,9.1,10,11]
[null,"Sterk stedelijk",1.2,1.4,1.5,1.7,1.8,2,2.1,2.2999999999999998,null,"Sterk stedelijk",5.5,6.4,7,7.9,8.6,9.5,10,11]
[null,"Matig stedelijk",1.2,1.4,1.5,1.7,1.8,2,2.1,2.2999999999999998,null,"Matig stedelijk",5.5,6.4,7,7.9,8.6,9.5,10,11]
[null,"Weinig stedelijk",1.2,1.4,1.5,1.7,1.9,2.1,2.1,2.2999999999999998,null,"Weinig stedelijk",5.6,6.5,7.1,8.1,8.8000000000000007,9.6999999999999993,10,11]
[null,"Niet stedelijk",1.2,1.4,1.5,1.7,1.9,2.1,2.1,2.2999999999999998,null,"Niet stedelijk",5.6,6.6,7.2,8.1,8.8000000000000007,9.8000000000000007,10,11]
[]
["Tandartsenpraktijk (centrum)",null,"Centrum",null,"Schil centrum",null,"Rest bebouwde kom",null,"Buitengebied",null,null,null,"Centrum",null,"Schil centrum",null,"Rest bebouwde kom",null,"Buitengebied"]
[null,null,"Min","Max","Min","Max","Min","Max","Min","Max",null,null,"Min","Max","Min","Max","Min","Max","Min ","Max"]
[null,"Zeer sterk stedelijk",1.1000000000000001,1.6,1.4,1.9,1.7,2.2000000000000002,2.4,2.9,null,"Zeer sterk stedelijk",13.5,19.899999999999999,17.8,24.2,21.9,28.3,31.3,37.700000000000003]
[null,"Sterk stedelijk",1.3,1.8,1.7,2.2000000000000002,2.1,2.6,2.4,2.9,null,"Sterk stedelijk",16.8,23.2,21.9,28.3,26.9,33.299999999999997,31.3,37.700000000000003]
[null,"Matig stedelijk",1.3,1.8,1.7,2.2000000000000002,2.1,2.6,2.4,2.9,null,"Matig stedelijk",16.8,23.2,21.9,28.3,26.9,33.299999999999997,31.3,37.700000000000003]
[null,"Weinig stedelijk",1.4,1.9,1.9,2.4,2.2999999999999998,2.8,2.4,2.9,null,"Weinig stedelijk",18.600000000000001,25,24.1,30.5,29.5,35.9,31.3,37.700000000000003]
[null,"Niet stedelijk",1.5,2,1.9,2.4,2.2999999999999998,2.8,2.4,2.9,null,"Niet stedelijk",19,25.4,24.6,31,30.1,36.5,31.3,37.700000000000003]
[]
["Gezondheidscentrum",null,"Centrum",null,"Schil centrum",null,"Rest bebouwde kom",null,"Buitengebied",null,null,null,"Centrum",null,"Schil centrum",null,"Rest bebouwde kom",null,"Buitengebied"]
[null,null,"Min","Max","Min","Max","Min","Max","Min","Max",null,null,"Min","Max","Min","Max","Min","Max","Min ","Max"]
[null,"Zeer sterk stedelijk",1,1.5,1.2,1.7,1.5,2,2.2000000000000002,2.7,null,"Zeer sterk stedelijk",8.1999999999999993,12.4,10.199999999999999,14.4,12.3,16.5,18.5,22.6]
[null,"Sterk stedelijk",1.3,1.8,1.6,2.1,1.9,2.4,2.2000000000000002,2.7,null,"Sterk stedelijk",10.8,15.1,13.4,17.600000000000001,16,20.2,18.5,22.6]
[null,"Matig stedelijk",1.3,1.8,1.6,2.1,1.9,2.4,2.2000000000000002,2.7,null,"Matig stedelijk",10.8,15.1,13.4,17.600000000000001,16.100000000000001,20.2,18.5,22.6]
[null,"Weinig stedelijk",1.4,1.9,1.8,2.2999999999999998,2.2000000000000002,2.7,2.2000000000000002,2.7,null,"Weinig stedelijk",12.2,16.5,15.1,19.2,18,22.1,18.5,22.6]
[null,"Niet stedelijk",1.5,2,1.8,2.2999999999999998,2.2000000000000002,2.7,2.2000000000000002,2.7,null,"Niet stedelijk",12.5,16.8,15.5,19.600000000000001,18.5,22.6,18.5,22.6]
[]
["Ziekenhuis",null,"Centrum",null,"Schil centrum",null,"Rest bebouwde kom",null,"Buitengebied",null,null,null,"Centrum",null,"Schil centrum",null,"Rest bebouwde kom",null,"Buitengebied"]
[null,null,"Min","Max","Min","Max","Min","Max","Min","Max",null,null,"Min","Max","Min","Max","Min","Max","Min ","Max"]
[null,"Zeer sterk stedelijk",1.1000000000000001,1.3,1.2,1.4,1.4,1.6,1.9,2.1,null,"Zeer sterk stedelijk",4.8,5.6,5.3,6.2,5.9,6.8,8.1999999999999993,9]
[null,"Sterk stedelijk",1.3,1.5,1.5,1.7,1.6,1.8,1.9,2.1,null,"Sterk stedelijk",5.7,6.5,6.3,7.1,7,7.8,8.1999999999999993,9]
[null,"Matig stedelijk",1.3,1.5,1.5,1.7,1.6,1.8,1.9,2.1,null,"Matig stedelijk",5.7,6.5,6.3,7.1,7,7.8,8.1999999999999993,9]
[null,"Weinig stedelijk",1.4,1.6,1.6,1.8,1.8,2,1.9,2.1,null,"Weinig stedelijk",6.1,7,6.8,7.6,7.5,8.4,8.1999999999999993,9]
[null,"Niet stedelijk",1.4,1.6,1.6,1.8,1.8,2,1.9,2.1,null,"Niet stedelijk",6.2,7.1,6.9,7.8,7.7,8.5,8.1999999999999993,9]
[]
["Crematorium",null,"Centrum",null,"Schil centrum",null,"Rest bebouwde kom",null,"Buitengebied",null,null,null,"Centrum",null,"Schil centrum",null,"Rest bebouwde kom",null,"Buitengebied"]
[null,null,"Min","Max","Min","Max","Min","Max","Min","Max",null,null,"Min","Max","Min","Max","Min","Max","Min ","Max"]
[null,"Zeer sterk stedelijk","n.v.t.","n.v.t.","n.v.t.","n.v.t.",25.1,35.1,25.1,35.1,null,"Zeer sterk stedelijk","n.v.t.","n.v.t.","n.v.t.","n.v.t.",34.799999999999997,48.6,34.799999999999997,48.6]
[null,"Sterk stedelijk","n.v.t.","n.v.t.","n.v.t.","n.v.t.",25.1,35.1,25.1,35.1,null,"Sterk stedelijk","n.v.t.","n.v.t.","n.v.t.","n.v.t.",34.799999999999997,48.6,34.799999999999997,48.6]
[null,"Matig stedelijk","n.v.t.","n.v.t.","n.v.t.","n.v.t.",25.1,35.1,25.1,35.1,null,"Matig stedelijk","n.v.t.","n.v.t.","n.v.t.","n.v.t.",34.799999999999997,48.6,34.799999999999997,48.6]
[null,"Weinig stedelijk","n.v.t.","n.v.t.","n.v.t.","n.v.t.",25.1,35.1,25.1,35.1,null,"Weinig stedelijk","n.v.t.","n.v.t.","n.v.t.","n.v.t.",34.799999999999997,48.6,34.799999999999997,48.6]
[null,"Niet stedelijk","n.v.t.","n.v.t.","n.v.t.","n.v.t.",25.1,35.1,25.1,35.1,null,"Niet stedelijk","n.v.t.","n.v.t.","n.v.t.","n.v.t.",34.799999999999997,48.6,34.799999999999997,48.6]
[]
["Begraafplaats",null,"Centrum",null,"Schil centrum",null,"Rest bebouwde kom",null,"Buitengebied",null,null,null,"Centrum",null,"Schil centrum",null,"Rest bebouwde kom",null,"Buitengebied"]
[null,null,"Min","Max","Min","Max","Min","Max","Min","Max",null,null,"Min","Max","Min","Max","Min","Max","Min ","Max"]
[null,"Zeer sterk stedelijk","n.v.t.","n.v.t.","n.v.t.","n.v.t.",26.6,36.6,26.6,36.6,null,"Zeer sterk stedelijk","n.v.t.","n.v.t.","n.v.t.","n.v.t.",37.4,51.4,37.4,51.4]
[null,"Sterk stedelijk","n.v.t.","n.v.t.","n.v.t.","n.v.t.",26.6,36.6,26.6,36.6,null,"Sterk stedelijk","n.v.t.","n.v.t.","n.v.t.","n.v.t.",37.4,51.4,37.4,51.4]
[null,"Matig stedelijk","n.v.t.","n.v.t.","n.v.t.","n.v.t.",26.6,36.6,26.6,36.6,null,"Matig stedelijk","n.v.t.","n.v.t.","n.v.t.","n.v.t.",37.4,51.4,37.4,51.4]
[null,"Weinig stedelijk","n.v.t.","n.v.t.","n.v.t.","n.v.t.",26.6,36.6,26.6,36.6,null,"Weinig stedelijk","n.v.t.","n.v.t.","n.v.t.","n.v.t.",37.4,51.4,37.4,51.4]
[null,"Niet stedelijk","n.v.t.","n.v.t.","n.v.t.","n.v.t.",26.6,36.6,26.6,36.6,null,"Niet stedelijk","n.v.t.","n.v.t.","n.v.t.","n.v.t.",37.4,51.4,37.4,51.4]
[]
["Penitentiaire inrichting",null,"Centrum",null,"Schil centrum",null,"Rest bebouwde kom",null,"Buitengebied",null,null,null,"Centrum",null,"Schil centrum",null,"Rest bebouwde kom",null,"Buitengebied"]
[null,null,"Min","Max","Min","Max","Min","Max","Min","Max",null,null,"Min","Max","Min","Max","Min","Max","Min ","Max"]
[null,"Zeer sterk stedelijk",1.4,1.9,1.9,2.4,3,3.5,3.4,3.9,null,"Zeer sterk stedelijk",3.6,5,5.0999999999999996,6.5,7.9,9.3000000000000007,9,10.4]
[null,"Sterk stedelijk",1.4,1.9,1.9,2.4,3,3.5,3.4,3.9,null,"Sterk stedelijk",3.6,5,5.0999999999999996,6.5,7.9,9.3000000000000007,9,10.4]
[null,"Matig stedelijk",1.4,1.9,1.9,2.4,3,3.5,3.4,3.9,null,"Matig stedelijk",3.6,5,5.0999999999999996,6.5,7.9,9.3000000000000007,9,10.4]
[null,"Weinig stedelijk",1.4,1.9,1.9,2.4,3,3.5,3.4,3.9,null,"Weinig stedelijk",3.6,5,5.0999999999999996,6.5,7.9,9.3000000000000007,9,10.4]
[null,"Niet stedelijk",1.4,1.9,1.9,2.4,3,3.5,3.4,3.9,null,"Niet stedelijk",3.6,5,5.0999999999999996,6.5,7.9,9.3000000000000007,9,10.4]
[]
["Religiegebouw",null,"Centrum",null,"Schil centrum",null,"Rest bebouwde kom",null,"Buitengebied",null,null,null,"Centrum",null,"Schil centrum",null,"Rest bebouwde kom",null,"Buitengebied"]
[null,null,"Min","Max","Min","Max","Min","Max","Min","Max",null,null,"Min","Max","Min","Max","Min","Max","Min ","Max"]
[null,"Zeer sterk stedelijk",0.1,0.2,0.1,0.2,0.1,0.2,"n.v.t.","n.v.t.",null,"Zeer sterk","n.v.t.","n.v.t.","n.v.t.","n.v.t.","n.v.t.","n.v.t.","n.v.t.","n.v.t."]
[null,"Sterk stedelijk",0.1,0.2,0.1,0.2,0.1,0.2,"n.v.t.","n.v.t.",null,"Sterk","n.v.t.","n.v.t.","n.v.t.","n.v.t.","n.v.t.","n.v.t.","n.v.t.","n.v.t."]
[null,"Matig stedelijk",0.1,0.2,0.1,0.2,0.1,0.2,"n.v.t.","n.v.t.",null,"Matig","n.v.t.","n.v.t.","n.v.t.","n.v.t.","n.v.t.","n.v.t.","n.v.t.","n.v.t."]
[null,"Weinig stedelijk",0.1,0.2,0.1,0.2,0.1,0.2,"n.v.t.","n.v.t.",null,"Weinig","n.v.t.","n.v.t.","n.v.t.","n.v.t.","n.v.t.","n.v.t.","n.v.t.","n.v.t."]
[null,"Niet stedelijk",0.1,0.2,0.1,0.2,0.1,0.2,"n.v.t.","n.v.t.",null,"Niet","n.v.t.","n.v.t.","n.v.t.","n.v.t.","n.v.t.","n.v.t.","n.v.t.","n.v.t."]
[]
["Verpleeg- en verzorgingshuis",null,"Centrum",null,"Schil centrum",null,"Rest bebouwde kom",null,"Buitengebied",null,null,null,"Centrum",null,"Schil centrum",null,"Rest bebouwde kom",null,"Buitengebied"]
[null,null,"Min","Max","Min","Max","Min","Max","Min","Max",null,null,"Min","Max","Min","Max","Min","Max","Min ","Max"]
[null,"Zeer sterk stedelijk",0.5,0.7,0.5,0.7,0.5,0.7,"n.v.t.","n.v.t.",null,"Zeer sterk","n.v.t.","n.v.t.","n.v.t.","n.v.t.","n.v.t.","n.v.t.","n.v.t.","n.v.t."]
[null,"Sterk stedelijk",0.5,0.7,0.5,0.7,0.5,0.7,"n.v.t.","n.v.t.",null,"Sterk","n.v.t.","n.v.t.","n.v.t.","n.v.t.","n.v.t.","n.v.t.","n.v.t.","n.v.t."]
[null,"Matig stedelijk",0.5,0.7,0.5,0.7,0.5,0.7,"n.v.t.","n.v.t.",null,"Matig","n.v.t.","n.v.t.","n.v.t.","n.v.t.","n.v.t.","n.v.t.","n.v.t.","n.v.t."]
[null,"Weinig stedelijk",0.5,0.7,0.5,0.7,0.5,0.7,"n.v.t.","n.v.t.",null,"Weinig","n.v.t.","n.v.t.","n.v.t.","n.v.t.","n.v.t.","n.v.t.","n.v.t.","n.v.t."]
[null,"Niet stedelijk",0.5,0.7,0.5,0.7,0.5,0.7,"n.v.t.","n.v.t.",null,"Niet","n.v.t.","n.v.t.","n.v.t.","n.v.t.","n.v.t.","n.v.t.","n.v.t.","n.v.t."]
[]
["Kinderdagverblijf (créche)",null,"Centrum",null,"Schil centrum",null,"Rest bebouwde kom",null,"Buitengebied",null,null,null,"Centrum",null,"Schil centrum",null,"Rest bebouwde kom",null,"Buitengebied"]
[null,null,"Min","Max","Min","Max","Min","Max","Min","Max",null,null,"Min","Max","Min","Max","Min","Max","Min ","Max"]
[null,"Zeer sterk stedelijk",0.7,0.9,0.9,1.1000000000000001,1,1.2,1.4,1.6,null,"Zeer sterk stedelijk",17.7,22.7,21.6,26.7,25.7,30.8,34.9,39.9]
[null,"Sterk stedelijk",0.8,1,1,1.2,1.1000000000000001,1.3,1.4,1.6,null,"Sterk stedelijk",19.8,24.9,24.2,29.3,28.7,33.700000000000003,34.9,39.9]
[null,"Matig stedelijk",0.9,1.1000000000000001,1.1000000000000001,1.3,1.3,1.5,1.4,1.6,null,"Matig stedelijk",22.6,27.7,27.5,32.6,32.6,33.700000000000003,34.9,39.9]
[null,"Weinig stedelijk",0.9,1.1000000000000001,1.1000000000000001,1.3,1.3,1.5,1.4,1.6,null,"Weinig stedelijk",22.9,27.9,27.9,32.9,33,38,34.9,39.9]
[null,"Niet stedelijk",0.9,1.1000000000000001,1.1000000000000001,1.3,1.3,1.5,1.4,1.6,null,"Niet stedelijk",23,28,28,33.1,33.1,38.200000000000003,34.9,39.9]
[]
["Basisonderwijs",null,"Centrum",null,"Schil centrum",null,"Rest bebouwde kom",null,"Buitengebied",null,null,null,"Centrum",null,"Schil centrum",null,"Rest bebouwde kom",null,"Buitengebied"]
[null,null,"Min","Max","Min","Max","Min","Max","Min","Max",null,null,"Min","Max","Min","Max","Min","Max","Min ","Max"]
[null,"Zeer sterk stedelijk",0.5,1,0.5,1,0.5,1,0.5,1,null,"Zeer sterk stedelijk","n.v.t.","n.v.t.","n.v.t.","n.v.t.","n.v.t.","n.v.t.","n.v.t.","n.v.t."]
[null,"Sterk stedelijk",0.5,1,0.5,1,0.5,1,0.5,1,null,"Sterk stedelijk","n.v.t.","n.v.t.","n.v.t.","n.v.t.","n.v.t.","n.v.t.","n.v.t.","n.v.t."]
[null,"Matig stedelijk",0.5,1,0.5,1,0.5,1,0.5,1,null,"Matig stedelijk","n.v.t.","n.v.t.","n.v.t.","n.v.t.","n.v.t.","n.v.t.","n.v.t.","n.v.t."]
[null,"Weinig stedelijk",0.5,1,0.5,1,0.5,1,0.5,1,null,"Weinig stedelijk","n.v.t.","n.v.t.","n.v.t.","n.v.t.","n.v.t.","n.v.t.","n.v.t.","n.v.t."]
[null,"Niet stedelijk",0.5,1,0.5,1,0.5,1,0.5,1,null,"Niet stedelijk","n.v.t.","n.v.t.","n.v.t.","n.v.t.","n.v.t.","n.v.t.","n.v.t.","n.v.t."]
[]
["Middelbare school",null,"Centrum",null,"Schil centrum",null,"Rest bebouwde kom",null,"Buitengebied",null,null,null,"Centrum",null,"Schil centrum",null,"Rest bebouwde kom",null,"Buitengebied"]
[null,null,"Min","Max","Min","Max","Min","Max","Min","Max",null,null,"Min","Max","Min","Max","Min","Max","Min ","Max"]
[null,"Zeer sterk stedelijk",2,4,2.6,4.5999999999999996,2.9,4.9000000000000004,3.9,5.9,null,"Zeer sterk stedelijk",6.9,13.9,8.8000000000000007,15.4,9.6,16.3,13,19.7]
[null,"Sterk stedelijk",2.2999999999999998,4.3,3,5,3.3,5.3,3.9,5.9,null,"Sterk stedelijk",8,15,10,16.7,11,17.600000000000001,13,19.7]
[null,"Matig stedelijk",2.7,4.7,3.5,5.5,3.9,5.9,3.9,5.9,null,"Matig stedelijk",9.4,16.399999999999999,11.7,18.3,12.8,19.399999999999999,13,19.7]
[null,"Weinig stedelijk",2.7,4.7,3.6,5.6,3.9,5.9,3.9,5.9,null,"Weinig stedelijk",9.5,16.5,11.9,18.5,13,19.600000000000001,13,19.7]
[null,"Niet stedelijk",2.7,4.7,3.6,5.6,3.9,5.9,3.9,5.9,null,"Niet stedelijk",9.6,16.600000000000001,11.9,18.600000000000001,13,19.7,13,19.7]
[]
["ROC",null,"Centrum",null,"Schil centrum",null,"Rest bebouwde kom",null,"Buitengebied",null,null,null,"Centrum",null,"Schil centrum",null,"Rest bebouwde kom",null,"Buitengebied"]
[null,null,"Min","Max","Min","Max","Min","Max","Min","Max",null,null,"Min","Max","Min","Max","Min","Max","Min ","Max"]
[null,"Zeer sterk stedelijk",2.8,4.8,3.3,5.3,3.7,5.7,4.9000000000000004,6.9,null,"Zeer sterk stedelijk",7,12,8,12.8,8.8000000000000007,13.6,11.8,16.600000000000001]
[null,"Sterk stedelijk",3.2,5.2,3.8,5.8,4.2,6.2,4.9000000000000004,6.9,null,"Sterk stedelijk",8,13,9,13.9,10,14.8,11.8,16.600000000000001]
[null,"Matig stedelijk",3.7,5.7,4.4000000000000004,6.4,4.8,6.8,4.9000000000000004,6.9,null,"Matig stedelijk",9.3000000000000007,14.3,10.5,15.3,11.6,16.399999999999999,11.8,16.600000000000001]
[null,"Weinig stedelijk",3.8,5.8,4.4000000000000004,6.4,4.9000000000000004,6.9,4.9000000000000004,6.9,null,"Weinig stedelijk",9.5,14.4,10.6,15.4,11.7,16.5,11.8,16.600000000000001]
[null,"Niet stedelijk",3.8,5.8,4.4000000000000004,6.4,4.9000000000000004,6.9,4.9000000000000004,6.9,null,"Niet stedelijk",9.5,14.5,10.7,15.5,11.8,16.600000000000001,11.8,16.600000000000001]
[]
["Hogeschool",null,"Centrum",null,"Schil centrum",null,"Rest bebouwde kom",null,"Buitengebied",null,null,null,"Centrum",null,"Schil centrum",null,"Rest bebouwde kom",null,"Buitengebied"]
[null,null,"Min","Max","Min","Max","Min","Max","Min","Max",null,null,"Min","Max","Min","Max","Min","Max","Min ","Max"]
[null,"Zeer sterk stedelijk",5.5,9.5,6.1,10.1,6.6,10.6,8.9,12.9,null,"Zeer sterk stedelijk",8.1999999999999993,14.2,9.1,15.1,9.9,15.9,13.4,19.399999999999999]
[null,"Sterk stedelijk",6.3,10.3,6.9,10.9,7.5,11.5,8.9,12.9,null,"Sterk stedelijk",9.4,15.4,10.4,16.399999999999999,11.3,17.3,13.4,19.399999999999999]
[null,"Matig stedelijk",7.3,11.3,8,12,8.6999999999999993,12.7,8.9,12.9,null,"Matig stedelijk",11,17,12,18,13.1,19.100000000000001,13.4,19.399999999999999]
[null,"Weinig stedelijk",7.4,11.4,8.1,12.1,8.9,12.9,8.9,12.9,null,"Weinig stedelijk",11.1,17.100000000000001,12.2,18.2,13.3,19.3,13.4,19.399999999999999]
[null,"Niet stedelijk",7.4,11.4,8.1999999999999993,12.2,8.9,12.9,8.9,12.9,null,"Niet stedelijk",11.2,17.2,12.3,18.3,13.3,19.399999999999999,13.4,19.399999999999999]
[]
["Universiteit",null,"Centrum",null,"Schil centrum",null,"Rest bebouwde kom",null,"Buitengebied",null,null,null,"Centrum",null,"Schil centrum",null,"Rest bebouwde kom",null,"Buitengebied"]
[null,null,"Min","Max","Min","Max","Min","Max","Min","Max",null,null,"Min","Max","Min","Max","Min","Max","Min ","Max"]
[null,"Zeer sterk stedelijk",8.6,12.6,10.199999999999999,14.2,11.3,15.3,14.8,18.8,null,"Zeer sterk stedelijk",14,20.5,16.600000000000001,23.1,18.3,24.8,24,30.5]
[null,"Sterk stedelijk",9.6999999999999993,13.7,11.5,15.5,12.7,16.7,14.8,18.8,null,"Sterk stedelijk",15.8,22.3,18.7,25.2,20.6,27.1,24,30.5]
[null,"Matig stedelijk",11.2,15.2,13.2,17.2,14.5,18.5,14.8,18.8,null,"Matig stedelijk",18.2,24.7,21.4,27.9,23.6,30.1,24,30.5]
[null,"Weinig stedelijk",11.4,15.4,13.4,17.399999999999999,14.7,18.7,14.8,18.8,null,"Weinig stedelijk",18.5,25,21.7,28.2,23.9,30.4,24,30.5]
[null,"Niet stedelijk",11.4,15.4,13.4,17.399999999999999,14.8,18.8,14.8,18.8,null,"Niet stedelijk",18.600000000000001,25,21.8,28.3,24,30.5,24,30.5]
[]
["Avondonderwijs",null,"Centrum",null,"Schil centrum",null,"Rest bebouwde kom",null,"Buitengebied",null,null,null,"Centrum",null,"Schil centrum",null,"Rest bebouwde kom",null,"Buitengebied"]
[null,null,"Min","Max","Min","Max","Min","Max","Min","Max",null,null,"Min","Max","Min","Max","Min","Max","Min ","Max"]
[null,"Zeer sterk stedelijk",2.6,4.5999999999999996,3.5,5.5,4.4000000000000004,6.4,9.5,11.5,null,"Zeer sterk stedelijk",3.8,6.6,5,7.9,6.3,9.1999999999999993,13.6,16.399999999999999]
[null,"Sterk stedelijk",3,5,4,6,5,7,9.5,11.5,null,"Sterk stedelijk",4.3,7.2,5.7,8.6,7.2,10,13.6,16.399999999999999]
[null,"Matig stedelijk",3.5,5.5,4.5999999999999996,6.6,5.8,7.8,9.5,11.5,null,"Matig stedelijk",5,7.9,6.6,9.5,8.1999999999999993,11.1,13.6,16.399999999999999]
[null,"Weinig stedelijk",3.6,5.6,4.7,6.7,5.8,7.8,9.5,11.5,null,"Weinig stedelijk",5.0999999999999996,7.9,6.7,9.6,8.3000000000000007,11.2,13.6,16.399999999999999]
[null,"Niet stedelijk",3.6,5.6,4.7,6.7,5.9,7.9,9.5,11.5,null,"Niet stedelijk",5.0999999999999996,8,6.7,9.6,8.4,11.2,13.6,16.399999999999999]

{"sheet":"Projectgebied","index":4,"n_rows":0,"n_cols":0,"rows_kept":0,"cut":false,"hidden":false,"merged":[]}

{"sheet":"Dropdownmenu","index":5,"n_rows":117,"n_cols":10,"rows_kept":117,"cut":false,"hidden":false,"merged":[]}
["Functies","Stedelijkheidsgraad","Schil",null,null,"Eenheid Parkeernorm","Eenheid Verkeersgeneratie","Eenheid Aanwezigheidspercentages","Bezoekers pp (alleen voor woningen en ziekenhuis)"]
["<Selecteer>","<Selecteer>","<Selecteer>",null,"<Selecteer>"]
["Koop, Vrijstaand","Zeer sterk","Centrum",null,1,"Per woning","Per woning","woningen bewoners",0.3]
["koop, twee onder een kap","Sterk","Schilcentrum",null,5,"Per woning","Per woning","woningen bewoners",0.3]
["Koop, tussen/hoek","Matig","Rest. Bebouwde kom",null,10,"Per woning","Per woning","woningen bewoners",0.3]
["Koop, appartement, duur ","Weinig","Buitengebied",null,null,"Per woning","Per woning","woningen bewoners",0.3]
["Koop, appartement, Midden","Niet",null,null,null,"Per woning","Per woning","woningen bewoners",0.3]
["Koop, appartement, goedkoop",null,null,null,null,"Per woning","Per woning","woningen bewoners",0.3]
["Huurhuis, vrije sector",null,null,null,null,"Per woning","Per woning","woningen bewoners",0.3]
["Huurhuis, sociaal huur",null,null,null,null,"Per woning","Per woning","woningen bewoners",0.3]
["Huur, appartement, duur",null,null,null,null,"Per woning","Per woning","woningen bewoners",0.3]
["Huur, appartement, midden/goedkoop",null,null,null,null,"Per woning","Per woning","woningen bewoners",0.3]
["Kamerverhuur, zelfstandig (niet student)",null,null,null,null,"Per woning","Per woning","woningen bewoners",0.2]
["Kamerverhuur, student, niet-zelfstandig",null,null,null,null,"Per woning","Per woning","woningen bewoners",0.2]
["Serviceflat",null,null,null,null,"Per woning","Per woning","woningen bewoners",0.3]
["Kleine eenpersoonswoning (tiny house, meestal grondgebonden)",null,null,null,null,"Per 100m2 bvo","Per 100m2 bvo","woningen bewoners",0.3]
["Kantoor (zonder baliefunctie)",null,null,null,null,"Per 100m2 bvo","Per 100m2 bvo","kantoor/bedrijven"]
["Commerciële dienstverlening (met baliefunctie)",null,null,null,null,"Per 100m2 bvo","Per 100m2 bvo","commerciële dienstverlening"]
["Bedrijf arbeidsintensief/bezoerkersextensief (industire, laboratorium, werkplaats)",null,null,null,null,"Per 100m2 bvo","Per 100m2 bvo","kantoor/bedrijven"]
["Bedrijf arbeidsextensief/bezoekersextensief (loods, opslag, transportbedrijf)",null,null,null,null,"Per 100m2 bvo","Per 100m2 bvo","kantoor/bedrijven"]
["Bedrijfverzamelgebouw",null,null,null,null,"Per 100m2 bvo","Per 100m2 bvo","kantoor/bedrijven"]
["Buurtsupermarkt",null,null,null,null,"Per 100m2 bvo","Per 100m2 bvo","supermarkt"]
["Fullservice-supermarkt",null,null,null,null,"Per 100m2 bvo","Per 100m2 bvo","supermarkt"]
["Grote supermarkt (XL)",null,null,null,null,"Per 100m2 bvo","Per 100m2 bvo","supermarkt"]
["Groothandel specialist",null,null,null,null,"Per 100m2 bvo","Per 100m2 bvo","grootschalige detailhandel"]
["Groothandel algemeen",null,null,null,null,"Per 100m2 bvo","Per 100m2 bvo","grootschalige detailhandel"]
["Binnenstad of hoofdwinkel (stads)centrum 20,000-30,000 inwoners",null,null,null,null,"Per 100m2 bvo","Per 100m2 bvo"]
["Binnenstad of hoofdwinkel(stadscentrum 30,000-50,000 inwoners",null,null,null,null,"Per 100m2 bvo","Per 100m2 bvo"]
["Binnenstad of hoofdwinkel(stads)centrum 50,000-100,000",null,null,null,null,"Per 100m2 bvo","Per 100m2 bvo"]
["Binnenstad of hoofdwinkel(stads)centrum 1000,000-175,000",null,null,null,null,"Per 100m2 bvo","Per 100m2 bvo"]
["Binnenstad of hoofdwinkel(stads)centrum >175,000",null,null,null,null,"Per 100m2 bvo","Per 100m2 bvo"]
["Buurt- en dorpscentrum",null,null,null,null,"Per 100m2 bvo","Per 100m2 bvo"]
["Wijkcentrum klein",null,null,null,null,"Per 100m2 bvo","Per 100m2 bvo"]
["Wijkcentrum (gemiddeld)",null,null,null,null,"Per 100m2 bvo","Per 100m2 bvo"]
["Wijkcentrum (groot)",null,null,null,null,"Per 100m2 bvo","Per 100m2 bvo"]
["Stadsdeelcentrum",null,null,null,null,"Per 100m2 bvo","Per 100m2 bvo"]
["Weekmarkt (bij klein wijk, buurt en dorpscentrum)",null,null,null,null,"Per 100m2 bvo","Per 100m2 bvo"]
["Kringloopwinkel",null,null,null,null,"Per 100m2 bvo","Per 100m2 bvo","detailhandel"]
["Bruin- en  witgoedzaken",null,null,null,null,"Per 100m2 bvo","Per 100m2 bvo","detailhandel"]
["Woonwarenhuis/woonwinkel",null,null,null,null,"Per 100m2 bvo","Per 100m2 bvo","detailhandel"]
["Woonwarenhuis (zeer groot)",null,null,null,null,"Per 100m2 bvo","Per 100m2 bvo","grootschalige detailhandel"]
["Meubelboulevard/ woonhboulevard",null,null,null,null,"Per 100m2 bvo","Per 100m2 bvo","grootschalige detailhandel"]
["Winkelboulevard",null,null,null,null,"Per 100m2 bvo","Per 100m2 bvo","grootschalige detailhandel"]
["Outletcentrum",null,null,null,null,"Per 100m2 bvo","Per 100m2 bvo","grootschalige detailhandel"]
["Bouwmarkt",null,null,null,null,"Per 100m2 bvo","Per 100m2 bvo","grootschalige detailhandel"]
["Tuincentrum",null,null,null,null,"Per 100m2 bvo","Per 100m2 bvo","grootschalige detailhandel"]
["Groencentrum",null,null,null,null,"Per 100m2 bvo","Per 100m2 bvo","grootschalige detailhandel"]
["Bibliotheek",null,null,null,null,"Per 100m2 bvo","Per 100m2 bvo","bioscoop/theater/podium/enzovoort"]
["Museum",null,null,null,null,"Per 100m2 bvo","Per 100m2 bvo","bioscoop/theater/podium/enzovoort"]
["Bioscoop",null,null,null,null,"Per 100m2 bvo","Per 100m2 bvo","bioscoop/theater/podium/enzovoort"]
["Filmtheater/ filmhuis",null,null,null,null,"Per 100m2 bvo","Per 100m2 bvo","bioscoop/theater/podium/enzovoort"]
["Theater/ schouwburg",null,null,null,null,"Per 100m2 bvo","Per 100m2 bvo","bioscoop/theater/podium/enzovoort"]
["Musicaltheater",null,null,null,null,"Per 100m2 bvo","Per 100m2 bvo","bioscoop/theater/podium/enzovoort"]
["Casino",null,null,null,null,"Per 100m2 bvo","Per 100m2 bvo","bioscoop/theater/podium/enzovoort"]
["Bowlingcentrum",null,null,null,null,"Per bowlingbaan","Per bowlingbaan","bioscoop/theater/podium/enzovoort"]
["Biljart-/snookercentrum",null,null,null,null,"Per tafel","Per tafel","bioscoop/theater/podium/enzovoort"]
["Dansstudio",null,null,null,null,"Per 100m2 bvo","Per 100m2 bvo","sportfuncties binnen"]
["Fitnessstudio/sportsschool",null,null,null,null,"Per 100m2 bvo","Per 100m2 bvo","sportfuncties binnen"]
["Fitnesscentrum",null,null,null,null,"Per 100m2 bvo","Per 100m2 bvo","sportfuncties binnen"]
["Wellnesscentrum (thermen, kuurcentrum,beautycentrum)",null,null,null,null,"Per 100m2 bvo","Per 100m2 bvo","sportfuncties binnen"]
["Sauna, Hammam",null,null,null,null,"Per 100m2 bvo","Per 100m2 bvo","sportfuncties binnen"]
["Sporthal",null,null,null,null,"Per 100m2 bvo","Per 100m2 bvo","sportfuncties binnen"]
["Sportzaal",null,null,null,null,"Per 100m2 bvo","Per 100m2 bvo","sportfuncties binnen"]
["Tennishal",null,null,null,null,"Per 100m2 bvo","Per 100m2 bvo","sportfuncties binnen"]
["Squashhal",null,null,null,null,"Per 100m2 bvo","Per 100m2 bvo","sportfuncties binnen"]
["Zwembad overdekt",null,null,null,null,"Per 100m2 bvo","Per 100m2 bvo","sportfuncties binnen"]
["Zwembad openlucht",null,null,null,null,"Per 100m2 bvo","Per 100m2 bvo","sportfuncties buiten"]
["Zwemparadijs",null,null,null,null,"Per 100m2 bvo","Per 100m2 bvo","sportfuncties buiten"]
["Sportveld",null,null,null,null,"Per hectare netto terrein","Per hectare netto terrein","sportfuncties buiten"]
["Stadion",null,null,null,null,"Per zitplaats","Per zitplaats","sportfuncties buiten"]
["Kunstijsbaan (kleiner dan 400 meter)",null,null,null,null,"Per 100m2 bvo","Per 100m2 bvo","sportfuncties buiten"]
["Kunstijsbaan (400 meter)",null,null,null,null,"Per 100m2 bvo","Per 100m2 bvo","sportfuncties buiten"]
["Ski-snowboardhal",null,null,null,null,"Per 100m2 sneeuw (exclusief oefenpistes)","Per 100m2 bvo","sportfuncties binnen"]
["Jachthaven",null,null,null,null,"Per ligplaats (verk.gen. Per 100 ligplaatsen)","Per 100 ligplaatsen","bioscoop/theater/podium/enzovoort"]
["Golfoefencentrum",null,null,null,null,"Per centrum","Per centrum","sportfuncties buiten"]
["Golfbaan (18 holes)",null,null,null,null,"Per 18 holes, 60 ha","Per 18 holes, 60 ha","sportfuncties buiten"]
["Indoorspeeltuin (kinderspeelhal), gemiddeld en kleiner",null,null,null,null,"Per 100m2 bvo","Per 100m2 bvo","sportfuncties binnen"]
["Indoorspeeltuin (kinderspeelhal), groot",null,null,null,null,"Per 100m2 bvo","Per 100m2 bvo","sportfuncties binnen"]
["Indoorspeeltuing (kinderspeelhal, zeer groot",null,null,null,null,"Per 100m2 bvo","Per 100m2 bvo","sportfuncties binnen"]
["Kinderboerderij (stadsboerderij)",null,null,null,null,"Per gemiddelde boerderij (verk. Gen. Per 100 m2 bvo)","Per 100m2 bvo","bioscoop/theater/podium/enzovoort"]
["Manage (paardenhouderij)",null,null,null,null,"Per Box","Per bezette box/ paard","bioscoop/theater/podium/enzovoort"]
["Dierenpark",null,null,null,null,"Per ha. Netto terrein","Per gemiddeld park (300,000 bezoekers per jaar)","bioscoop/theater/podium/enzovoort"]
["Attractie- en pretpark",null,null,null,null,"per ha. Netto terrein (verk. Gen. 550000 bezoekers per jaar)","550.000 bezoekers per jaar","bioscoop/theater/podium/enzovoort"]
["Volkstuin",null,null,null,null,"Per 10 tuinen","Per 10 Tuinen","bioscoop/theater/podium/enzovoort"]
["Plantentuin (botanische tuin)",null,null,null,null,"Per gemiddelde tuin ","Per 10 tuinen","bioscoop/theater/podium/enzovoort"]
["Camping (kampeerterrein)",null,null,null,null,"Per standplaats","Per standplaats"]
["Bungalowparkt (huisjescomplex)",null,null,null,null,"Per bungalow","Per bungalow"]
["1 ster hotel",null,null,null,null,"Per 10 kamers","Per 10 kamers"]
["2 ster hotel",null,null,null,null,"Per 10 kamers","Per 10 kamers"]
["3 ster hotel",null,null,null,null,"Per 10 kamers","Per 10 kamers"]
["4 ster hotel",null,null,null,null,"Per 10 kamers","Per 10 kamers"]
["5 ster hotel",null,null,null,null,"Per 10 kamers","Per 10 kamers"]
["Café/ bar/ cafetaria",null,null,null,null,"Per 100m2 bvo","Per 100m2 bvo"]
["Restaurant",null,null,null,null,"Per 100m2 bvo","Per 100m2 bvo"]
["Fastfoodrestaurant",null,null,null,null,"Per gemiddelde vesting","Per gemiddelde vesting","detailhandel"]
["Discotheek",null,null,null,null,"Per 100m2 bvo","Per 100m2 bvo","bioscoop/theater/podium/enzovoort"]
["Evenementenhal/ beursgebouw/ congresgebouw",null,null,null,null,"Per 100m2 bvo","Per 100m2 bvo","bioscoop/theater/podium/enzovoort"]
["Huisartsenpraktijk (centrum)",null,null,null,null,"Per behandelkamer","Per behandelkamer","sociaal medisch: arts/therapeut/consultatiebureau"]
["Apotheek",null,null,null,null,"Per apotheek","Per apotheek","sociaal medisch: arts/therapeut/consultatiebureau"]
["Fysiotherapiepraktijk (centrum)",null,null,null,null,"Per behandelkamer","Per behandelkamer","sociaal medisch: arts/therapeut/consultatiebureau"]
["consultatiebureau",null,null,null,null,"Per behandelkamer","Per behandelkamer","sociaal medisch: arts/therapeut/consultatiebureau"]
["Consultatiebureau voor ouderen",null,null,null,null,"Per behandelkamer","Per behandelkamer","sociaal medisch: arts/therapeut/consultatiebureau"]
["Tandartsenpraktijk (centrum)",null,null,null,null,"Per behandelkamer","Per behandelkamer","sociaal medisch: arts/therapeut/consultatiebureau"]
["Gezondheidscentrum",null,null,null,null,"Per behandelkamer","Per behandelkamer","sociaal medisch: arts/therapeut/consultatiebureau"]
["Ziekenhuis",null,null,null,null,"Per 100m2 bvo","Per 100m2 bvo","ziekenhuis medewerkers","ziekenhuis: patiënten inclusief bezoekers","Let op: de weergegeven kengetallen gelden voor een gemiddeld ziekenhuis. Een gedetailleerde parkeerberekening is mogelijk door gebruik te maken van de volgende parkeerkengetallen:\nbezoekers van klinische patiënten: 0,5 p.p. per bed bij beperkt aantal bezoekuren per dag, 0,25 p.p. per bed bij gespreide bezoektijden\ndagverplegings- respectievelijk deeltijdbehandelingspatiënten: 0,5 p.p. per bed respectievelijk plaats\nmedewerkers: 0,25 p.p. per formatieplaats (voor elke ambulante behandelaar 1 parkeerplaats\nAandeel bezoekers: 29%"]
["Crematorium",null,null,null,null,"Per (deels) gelijktijdige plechtigheid","Per Plechtigheid","sociaal medisch: arts/therapeut/consultatiebureau"]
["Begraafplaats",null,null,null,null,"Per (deels) gelijktijdige plechtigheid","Per Plechtigheid","sociaal medisch: arts/therapeut/consultatiebureau"]
["Penitentiaire inrichting",null,null,null,null,"Per 10 cellen","Per 10 cellen","sociaal medisch: arts/therapeut/consultatiebureau"]
["Religiegebouw",null,null,null,null,"Per zitplaats","Per zitplaats","sociaal medisch: arts/therapeut/consultatiebureau"]
["Verpleeg- en verzorgingshuis",null,null,null,null,"Per wooneenheid","Per wooneenheid","verpleeghuis/verzorgingstehuis"]
["Kinderdagverblijf (créche)",null,null,null,null,"Per 100m2 bvo","Per 100m2 bvo","dagonderwijs"]
["Basisonderwijs",null,null,null,null,"Per leslokaal","Per leslokaal","dagonderwijs"]
["Middelbare school",null,null,null,null,"Per 100 leerlingen","Per 100 leerlingen","dagonderwijs"]
["ROC",null,null,null,null,"Per 100 leerlingen","Per 100 leerlingen","dagonderwijs"]
["Hogeschool",null,null,null,null,"Per 100 leerlingen","Per 100 leerlingen","dagonderwijs"]
["Universiteit",null,null,null,null,"Per 100 studenten","Per 100 studenten","dagonderwijs"]
["Avondonderwijs",null,null,null,null,"Per 10 Studenten","Per 10 Studenten","avondonderwijs"]